Workbook

Sheet Control
A2: State Inventory Tool - Emissions and Sinks From Land Use, Land-Use Change, and Forestry
A6: 1. Choose a State
A7: This is very important - it selects the correct default variables for your state.
A10: 2. Forest Carbon Flux (Forest Land Remaining Forest Land, Land Converted to Forest Land, and Forest Land Converted to Land)
A11: TRUE
A15: 3.- 6. Enter emission factors and proceed to the corresponding worksheet to enter activity data for the following:
A18: 3. C Storage in Urban Trees
B19: Carbon Sequestration Factor | D19: Default Value
B20: ="metric ton C/hectare/year in "&StateName -> metric ton C/hectare/year in Select a State . . . | D20: =IFERROR(VLOOKUP(StateID,'Urban Forests'!$B$64:$G$115,6,FALSE),"Select a state") -> Select a state
A22: 4. N2O from Settlement Soils
B23: Emission Factor | D23: Default Value | F23: Value Used
B24: Direct N2O Emission Factor for Managed Soils | D24: =SettlementEF -> 0.01
A27: 5. Non-CO2 From Forest Fires
B28: Emission Factors | D28: Default Value | F28: Value Used
B29: Savanna, g CH4/kg dry matter combusted | D29: ='Burning Data'!L6 -> 4.6
B30: Savanna, g N2O/kg dry matter combusted | D30: ='Burning Data'!M6 -> 0.12
B31: Forests, g CH4/kg dry matter combusted | D31: ='Burning Data'!L7 -> 8.1
B32: Forests, g N2O/kg dry matter combusted | D32: ='Burning Data'!M7 -> 0.11
B34: Combustion Efficiency by Vegetation Type | D34: Default Value | F34: Value Used
B35: Primary tropical forests | D35: ='Burning Data'!I6 -> 0.36
B36: Secondary tropical forests | D36: ='Burning Data'!I7 -> 0.55
B37: Tertiary tropical forests | D37: ='Burning Data'!I8 -> 0.59
B38: Boreal forest | D38: ='Burning Data'!I9 -> 0.34
B39: Eucalypt forests | D39: ='Burning Data'!I10 -> 0.63
B40: Other temperate forests | D40: ='Burning Data'!I11 -> 0.45
B41: Shrublands | D41: ='Burning Data'!I12 -> 0.72
B42: Savanna woodlands (early dry season burns) | D42: ='Burning Data'!I13 -> 0.4
B43: Savanna woodlands (mid/late season burns) | D43: ='Burning Data'!I14 -> 0.74
B45: Average Biomass Density (kg d.m. / ha) | D45: Default Value | F45: Value Used
B46: =StateName -> Select a State . . . | D46: =IFERROR(VLOOKUP(StateID,'Burning Data'!$E$6:$F$56,2,FALSE),"Select a state") -> Select a state
A48: 6. Carbon Storage in Landfilled Yard Trimmings and Food Scraps
B49: Since the calculations for this source are complex, the key variables are selected on the Yard Trimmings and Food Scraps sheet.
A52: 7. Agricultural Soil Carbon Flux (in Cropland and Grassland soils)
A53: 1
A56: 8. Continue to estimate emissions . . .
A63: 9. Export the results for use in the Synthesis Tool.
A70: Constants and/or Factors Used Throughout the Module
A71: The default GWPs used in this module are from the IPCC Fourth Assessment Report (AR4) but can be adjusted in the cells below to reflect other sources.
C72: Default
B73: Methane GWP* | C73: 25
B74: Nitrous Oxide GWP* | C74: 298
B75: N2O/N2 (molecular weight ratio) | C75: =44/28 -> 1.571428571
B76: CO2/C (molecular weight ratio) | C76: =44/12 -> 3.666666667
B77: * As of January 2014, the UNFCCC approved the use of new (AR4) GWPs for GHG Inventories.

Sheet C Flux-User Data
A1: ="2. Forest Carbon Flux in "&StateName -> 2. Forest Carbon Flux in Select a State . . .
C8: Aboveground Biomass | E8: Belowground Biomass | G8: Dead Wood | I8: Litter | K8: Soil (Mineral) | M8: Soil (Organic) | O8: Drained Organic Soil | Q8: Wood products and landfills | S8: Total
C9: MMTCO2E (million metric tons of carbon dioxide equivalent)
B11: 1990 | D11: + | F11: + | H11: + | J11: + | L11: + | N11: + | P11: + | R11: = | S11: =C11+E11+G11+I11+K11+M11+O11+Q11 -> 0
B13: =B11+1 -> 1991 | D13: + | F13: + | H13: + | J13: + | L13: + | N13: + | P13: + | R13: = | S13: =C13+E13+G13+I13+K13+M13+O13+Q13 -> 0
B15: =B13+1 -> 1992 | D15: + | F15: + | H15: + | J15: + | L15: + | N15: + | P15: + | R15: = | S15: =C15+E15+G15+I15+K15+M15+O15+Q15 -> 0
B17: =B15+1 -> 1993 | D17: + | F17: + | H17: + | J17: + | L17: + | N17: + | P17: + | R17: = | S17: =C17+E17+G17+I17+K17+M17+O17+Q17 -> 0
B19: =B17+1 -> 1994 | D19: + | F19: + | H19: + | J19: + | L19: + | N19: + | P19: + | R19: = | S19: =C19+E19+G19+I19+K19+M19+O19+Q19 -> 0
B21: =B19+1 -> 1995 | D21: + | F21: + | H21: + | J21: + | L21: + | N21: + | P21: + | R21: = | S21: =C21+E21+G21+I21+K21+M21+O21+Q21 -> 0
B23: =B21+1 -> 1996 | D23: + | F23: + | H23: + | J23: + | L23: + | N23: + | P23: + | R23: = | S23: =C23+E23+G23+I23+K23+M23+O23+Q23 -> 0
B25: =B23+1 -> 1997 | D25: + | F25: + | H25: + | J25: + | L25: + | N25: + | P25: + | R25: = | S25: =C25+E25+G25+I25+K25+M25+O25+Q25 -> 0
B27: =B25+1 -> 1998 | D27: + | F27: + | H27: + | J27: + | L27: + | N27: + | P27: + | R27: = | S27: =C27+E27+G27+I27+K27+M27+O27+Q27 -> 0
B29: =B27+1 -> 1999 | D29: + | F29: + | H29: + | J29: + | L29: + | N29: + | P29: + | R29: = | S29: =C29+E29+G29+I29+K29+M29+O29+Q29 -> 0
B31: =B29+1 -> 2000 | D31: + | F31: + | H31: + | J31: + | L31: + | N31: + | P31: + | R31: = | S31: =C31+E31+G31+I31+K31+M31+O31+Q31 -> 0
B33: =B31+1 -> 2001 | D33: + | F33: + | H33: + | J33: + | L33: + | N33: + | P33: + | R33: = | S33: =C33+E33+G33+I33+K33+M33+O33+Q33 -> 0
B35: =B33+1 -> 2002 | D35: + | F35: + | H35: + | J35: + | L35: + | N35: + | P35: + | R35: = | S35: =C35+E35+G35+I35+K35+M35+O35+Q35 -> 0
B37: =B35+1 -> 2003 | D37: + | F37: + | H37: + | J37: + | L37: + | N37: + | P37: + | R37: = | S37: =C37+E37+G37+I37+K37+M37+O37+Q37 -> 0
B39: =B37+1 -> 2004 | D39: + | F39: + | H39: + | J39: + | L39: + | N39: + | P39: + | R39: = | S39: =C39+E39+G39+I39+K39+M39+O39+Q39 -> 0
B41: =B39+1 -> 2005 | D41: + | F41: + | H41: + | J41: + | L41: + | N41: + | P41: + | R41: = | S41: =C41+E41+G41+I41+K41+M41+O41+Q41 -> 0
B43: =B41+1 -> 2006 | D43: + | F43: + | H43: + | J43: + | L43: + | N43: + | P43: + | R43: = | S43: =C43+E43+G43+I43+K43+M43+O43+Q43 -> 0
B45: =B43+1 -> 2007 | D45: + | F45: + | H45: + | J45: + | L45: + | N45: + | P45: + | R45: = | S45: =C45+E45+G45+I45+K45+M45+O45+Q45 -> 0
B47: =B45+1 -> 2008 | D47: + | F47: + | H47: + | J47: + | L47: + | N47: + | P47: + | R47: = | S47: =C47+E47+G47+I47+K47+M47+O47+Q47 -> 0
B49: =B47+1 -> 2009 | D49: + | F49: + | H49: + | J49: + | L49: + | N49: + | P49: + | R49: = | S49: =C49+E49+G49+I49+K49+M49+O49+Q49 -> 0
B51: =B49+1 -> 2010 | D51: + | F51: + | H51: + | J51: + | L51: + | N51: + | P51: + | R51: = | S51: =C51+E51+G51+I51+K51+M51+O51+Q51 -> 0
B53: =B51+1 -> 2011 | D53: + | F53: + | H53: + | J53: + | L53: + | N53: + | P53: + | R53: = | S53: =C53+E53+G53+I53+K53+M53+O53+Q53 -> 0
B55: =B53+1 -> 2012 | D55: + | F55: + | H55: + | J55: + | L55: + | N55: + | P55: + | R55: = | S55: =C55+E55+G55+I55+K55+M55+O55+Q55 -> 0
B57: =B55+1 -> 2013 | D57: + | F57: + | H57: + | J57: + | L57: + | N57: + | P57: + | R57: = | S57: =C57+E57+G57+I57+K57+M57+O57+Q57 -> 0
B59: =B57+1 -> 2014 | D59: + | F59: + | H59: + | J59: + | L59: + | N59: + | P59: + | R59: = | S59: =C59+E59+G59+I59+K59+M59+O59+Q59 -> 0
B61: =B59+1 -> 2015 | D61: + | F61: + | H61: + | J61: + | L61: + | N61: + | P61: + | R61: = | S61: =C61+E61+G61+I61+K61+M61+O61+Q61 -> 0
B63: =B61+1 -> 2016 | D63: + | F63: + | H63: + | J63: + | L63: + | N63: + | P63: + | R63: = | S63: =C63+E63+G63+I63+K63+M63+O63+Q63 -> 0
B65: =B63+1 -> 2017 | D65: + | F65: + | H65: + | J65: + | L65: + | N65: + | P65: + | R65: = | S65: =C65+E65+G65+I65+K65+M65+O65+Q65 -> 0
B67: =B65+1 -> 2018 | D67: + | F67: + | H67: + | J67: + | L67: + | N67: + | P67: + | R67: = | S67: =C67+E67+G67+I67+K67+M67+O67+Q67 -> 0
B69: =B67+1 -> 2019 | D69: + | F69: + | H69: + | J69: + | L69: + | N69: + | P69: + | R69: = | S69: =C69+E69+G69+I69+K69+M69+O69+Q69 -> 0
B71: =B69+1 -> 2020 | D71: + | F71: + | H71: + | J71: + | L71: + | N71: + | P71: + | R71: = | S71: =C71+E71+G71+I71+K71+M71+O71+Q71 -> 0

Sheet Forest Land Remaining Forest
A1: ="2a. Forest Land Remaining Forest Land in "&StateName -> 2a. Forest Land Remaining Forest Land in Select a State . . .
A5: Default data for Aboveground and Belowground Biomass, Dead Wood, Litter, and Soil Carbon
I6: Net Sequestration/Emissions from Forest Land Remaining Forest Land
K7: MMTCO2E
E8: 1990 | F8: 1991 | G8: 1992 | H8: 1993 | I8: 1994 | J8: 1995 | K8: 1996 | L8: 1997 | M8: 1998 | N8: 1999 | O8: 2000 | P8: 2001 | Q8: 2002 | R8: 2003 | S8: 2004 | T8: 2005 | U8: 2006 | V8: 2007 | W8: 2008 | X8: 2009 | Y8: 2010 | Z8: 2011 | AA8: 2012 | AB8: 2013 | AC8: 2014 | AD8: 2015 | AE8: 2016 | AF8: 2017 | AG8: 2018 | AH8: 2019 | AI8: 2020
C9: Aboveground Biomass | E9: ='FRF Carbon Flux'!C2 ->  | F9: ='FRF Carbon Flux'!D2 ->  | G9: ='FRF Carbon Flux'!E2 ->  | H9: ='FRF Carbon Flux'!F2 ->  | I9: ='FRF Carbon Flux'!G2 ->  | J9: ='FRF Carbon Flux'!H2 ->  | K9: ='FRF Carbon Flux'!I2 ->  | L9: ='FRF Carbon Flux'!J2 ->  | M9: ='FRF Carbon Flux'!K2 ->  | N9: ='FRF Carbon Flux'!L2 ->  | O9: ='FRF Carbon Flux'!M2 ->  | P9: ='FRF Carbon Flux'!N2 ->  | Q9: ='FRF Carbon Flux'!O2 ->  | R9: ='FRF Carbon Flux'!P2 ->  | S9: ='FRF Carbon Flux'!Q2 ->  | T9: ='FRF Carbon Flux'!R2 ->  | U9: ='FRF Carbon Flux'!S2 ->  | V9: ='FRF Carbon Flux'!T2 ->  | W9: ='FRF Carbon Flux'!U2 ->  | X9: ='FRF Carbon Flux'!V2 ->  | Y9: ='FRF Carbon Flux'!W2 ->  | Z9: ='FRF Carbon Flux'!X2 ->  | AA9: ='FRF Carbon Flux'!Y2 ->  | AB9: ='FRF Carbon Flux'!Z2 ->  | AC9: ='FRF Carbon Flux'!AA2 ->  | AD9: ='FRF Carbon Flux'!AB2 ->  | AE9: ='FRF Carbon Flux'!AC2 ->  | AF9: ='FRF Carbon Flux'!AD2 ->  | AG9: ='FRF Carbon Flux'!AE2 ->  | AH9: ='FRF Carbon Flux'!AF2 ->  | AI9: ='FRF Carbon Flux'!AG2 -> 
C10: Belowground Biomass | E10: ='FRF Carbon Flux'!C3 ->  | F10: ='FRF Carbon Flux'!D3 ->  | G10: ='FRF Carbon Flux'!E3 ->  | H10: ='FRF Carbon Flux'!F3 ->  | I10: ='FRF Carbon Flux'!G3 ->  | J10: ='FRF Carbon Flux'!H3 ->  | K10: ='FRF Carbon Flux'!I3 ->  | L10: ='FRF Carbon Flux'!J3 ->  | M10: ='FRF Carbon Flux'!K3 ->  | N10: ='FRF Carbon Flux'!L3 ->  | O10: ='FRF Carbon Flux'!M3 ->  | P10: ='FRF Carbon Flux'!N3 ->  | Q10: ='FRF Carbon Flux'!O3 ->  | R10: ='FRF Carbon Flux'!P3 ->  | S10: ='FRF Carbon Flux'!Q3 ->  | T10: ='FRF Carbon Flux'!R3 ->  | U10: ='FRF Carbon Flux'!S3 ->  | V10: ='FRF Carbon Flux'!T3 ->  | W10: ='FRF Carbon Flux'!U3 ->  | X10: ='FRF Carbon Flux'!V3 ->  | Y10: ='FRF Carbon Flux'!W3 ->  | Z10: ='FRF Carbon Flux'!X3 ->  | AA10: ='FRF Carbon Flux'!Y3 ->  | AB10: ='FRF Carbon Flux'!Z3 ->  | AC10: ='FRF Carbon Flux'!AA3 ->  | AD10: ='FRF Carbon Flux'!AB3 ->  | AE10: ='FRF Carbon Flux'!AC3 ->  | AF10: ='FRF Carbon Flux'!AD3 ->  | AG10: ='FRF Carbon Flux'!AE3 ->  | AH10: ='FRF Carbon Flux'!AF3 ->  | AI10: ='FRF Carbon Flux'!AG3 -> 
C11: Deadwood | E11: ='FRF Carbon Flux'!C4 ->  | F11: ='FRF Carbon Flux'!D4 ->  | G11: ='FRF Carbon Flux'!E4 ->  | H11: ='FRF Carbon Flux'!F4 ->  | I11: ='FRF Carbon Flux'!G4 ->  | J11: ='FRF Carbon Flux'!H4 ->  | K11: ='FRF Carbon Flux'!I4 ->  | L11: ='FRF Carbon Flux'!J4 ->  | M11: ='FRF Carbon Flux'!K4 ->  | N11: ='FRF Carbon Flux'!L4 ->  | O11: ='FRF Carbon Flux'!M4 ->  | P11: ='FRF Carbon Flux'!N4 ->  | Q11: ='FRF Carbon Flux'!O4 ->  | R11: ='FRF Carbon Flux'!P4 ->  | S11: ='FRF Carbon Flux'!Q4 ->  | T11: ='FRF Carbon Flux'!R4 ->  | U11: ='FRF Carbon Flux'!S4 ->  | V11: ='FRF Carbon Flux'!T4 ->  | W11: ='FRF Carbon Flux'!U4 ->  | X11: ='FRF Carbon Flux'!V4 ->  | Y11: ='FRF Carbon Flux'!W4 ->  | Z11: ='FRF Carbon Flux'!X4 ->  | AA11: ='FRF Carbon Flux'!Y4 ->  | AB11: ='FRF Carbon Flux'!Z4 ->  | AC11: ='FRF Carbon Flux'!AA4 ->  | AD11: ='FRF Carbon Flux'!AB4 ->  | AE11: ='FRF Carbon Flux'!AC4 ->  | AF11: ='FRF Carbon Flux'!AD4 ->  | AG11: ='FRF Carbon Flux'!AE4 ->  | AH11: ='FRF Carbon Flux'!AF4 ->  | AI11: ='FRF Carbon Flux'!AG4 -> 
C12: Litter | E12: ='FRF Carbon Flux'!C5 ->  | F12: ='FRF Carbon Flux'!D5 ->  | G12: ='FRF Carbon Flux'!E5 ->  | H12: ='FRF Carbon Flux'!F5 ->  | I12: ='FRF Carbon Flux'!G5 ->  | J12: ='FRF Carbon Flux'!H5 ->  | K12: ='FRF Carbon Flux'!I5 ->  | L12: ='FRF Carbon Flux'!J5 ->  | M12: ='FRF Carbon Flux'!K5 ->  | N12: ='FRF Carbon Flux'!L5 ->  | O12: ='FRF Carbon Flux'!M5 ->  | P12: ='FRF Carbon Flux'!N5 ->  | Q12: ='FRF Carbon Flux'!O5 ->  | R12: ='FRF Carbon Flux'!P5 ->  | S12: ='FRF Carbon Flux'!Q5 ->  | T12: ='FRF Carbon Flux'!R5 ->  | U12: ='FRF Carbon Flux'!S5 ->  | V12: ='FRF Carbon Flux'!T5 ->  | W12: ='FRF Carbon Flux'!U5 ->  | X12: ='FRF Carbon Flux'!V5 ->  | Y12: ='FRF Carbon Flux'!W5 ->  | Z12: ='FRF Carbon Flux'!X5 ->  | AA12: ='FRF Carbon Flux'!Y5 ->  | AB12: ='FRF Carbon Flux'!Z5 ->  | AC12: ='FRF Carbon Flux'!AA5 ->  | AD12: ='FRF Carbon Flux'!AB5 ->  | AE12: ='FRF Carbon Flux'!AC5 ->  | AF12: ='FRF Carbon Flux'!AD5 ->  | AG12: ='FRF Carbon Flux'!AE5 ->  | AH12: ='FRF Carbon Flux'!AF5 ->  | AI12: ='FRF Carbon Flux'!AG5 -> 
C13: Soil (Mineral) | E13: ='FRF Carbon Flux'!C6 ->  | F13: ='FRF Carbon Flux'!D6 ->  | G13: ='FRF Carbon Flux'!E6 ->  | H13: ='FRF Carbon Flux'!F6 ->  | I13: ='FRF Carbon Flux'!G6 ->  | J13: ='FRF Carbon Flux'!H6 ->  | K13: ='FRF Carbon Flux'!I6 ->  | L13: ='FRF Carbon Flux'!J6 ->  | M13: ='FRF Carbon Flux'!K6 ->  | N13: ='FRF Carbon Flux'!L6 ->  | O13: ='FRF Carbon Flux'!M6 ->  | P13: ='FRF Carbon Flux'!N6 ->  | Q13: ='FRF Carbon Flux'!O6 ->  | R13: ='FRF Carbon Flux'!P6 ->  | S13: ='FRF Carbon Flux'!Q6 ->  | T13: ='FRF Carbon Flux'!R6 ->  | U13: ='FRF Carbon Flux'!S6 ->  | V13: ='FRF Carbon Flux'!T6 ->  | W13: ='FRF Carbon Flux'!U6 ->  | X13: ='FRF Carbon Flux'!V6 ->  | Y13: ='FRF Carbon Flux'!W6 ->  | Z13: ='FRF Carbon Flux'!X6 ->  | AA13: ='FRF Carbon Flux'!Y6 ->  | AB13: ='FRF Carbon Flux'!Z6 ->  | AC13: ='FRF Carbon Flux'!AA6 ->  | AD13: ='FRF Carbon Flux'!AB6 ->  | AE13: ='FRF Carbon Flux'!AC6 ->  | AF13: ='FRF Carbon Flux'!AD6 ->  | AG13: ='FRF Carbon Flux'!AE6 ->  | AH13: ='FRF Carbon Flux'!AF6 ->  | AI13: ='FRF Carbon Flux'!AG6 -> 
C14: Soil (Organic) | E14: ='FRF Carbon Flux'!C7 ->  | F14: ='FRF Carbon Flux'!D7 ->  | G14: ='FRF Carbon Flux'!E7 ->  | H14: ='FRF Carbon Flux'!F7 ->  | I14: ='FRF Carbon Flux'!G7 ->  | J14: ='FRF Carbon Flux'!H7 ->  | K14: ='FRF Carbon Flux'!I7 ->  | L14: ='FRF Carbon Flux'!J7 ->  | M14: ='FRF Carbon Flux'!K7 ->  | N14: ='FRF Carbon Flux'!L7 ->  | O14: ='FRF Carbon Flux'!M7 ->  | P14: ='FRF Carbon Flux'!N7 ->  | Q14: ='FRF Carbon Flux'!O7 ->  | R14: ='FRF Carbon Flux'!P7 ->  | S14: ='FRF Carbon Flux'!Q7 ->  | T14: ='FRF Carbon Flux'!R7 ->  | U14: ='FRF Carbon Flux'!S7 ->  | V14: ='FRF Carbon Flux'!T7 ->  | W14: ='FRF Carbon Flux'!U7 ->  | X14: ='FRF Carbon Flux'!V7 ->  | Y14: ='FRF Carbon Flux'!W7 ->  | Z14: ='FRF Carbon Flux'!X7 ->  | AA14: ='FRF Carbon Flux'!Y7 ->  | AB14: ='FRF Carbon Flux'!Z7 ->  | AC14: ='FRF Carbon Flux'!AA7 ->  | AD14: ='FRF Carbon Flux'!AB7 ->  | AE14: ='FRF Carbon Flux'!AC7 ->  | AF14: ='FRF Carbon Flux'!AD7 ->  | AG14: ='FRF Carbon Flux'!AE7 ->  | AH14: ='FRF Carbon Flux'!AF7 ->  | AI14: ='FRF Carbon Flux'!AG7 -> 
C15: Drained Organic Soil | E15: ='FRF Carbon Flux'!C8 ->  | F15: ='FRF Carbon Flux'!D8 ->  | G15: ='FRF Carbon Flux'!E8 ->  | H15: ='FRF Carbon Flux'!F8 ->  | I15: ='FRF Carbon Flux'!G8 ->  | J15: ='FRF Carbon Flux'!H8 ->  | K15: ='FRF Carbon Flux'!I8 ->  | L15: ='FRF Carbon Flux'!J8 ->  | M15: ='FRF Carbon Flux'!K8 ->  | N15: ='FRF Carbon Flux'!L8 ->  | O15: ='FRF Carbon Flux'!M8 ->  | P15: ='FRF Carbon Flux'!N8 ->  | Q15: ='FRF Carbon Flux'!O8 ->  | R15: ='FRF Carbon Flux'!P8 ->  | S15: ='FRF Carbon Flux'!Q8 ->  | T15: ='FRF Carbon Flux'!R8 ->  | U15: ='FRF Carbon Flux'!S8 ->  | V15: ='FRF Carbon Flux'!T8 ->  | W15: ='FRF Carbon Flux'!U8 ->  | X15: ='FRF Carbon Flux'!V8 ->  | Y15: ='FRF Carbon Flux'!W8 ->  | Z15: ='FRF Carbon Flux'!X8 ->  | AA15: ='FRF Carbon Flux'!Y8 ->  | AB15: ='FRF Carbon Flux'!Z8 ->  | AC15: ='FRF Carbon Flux'!AA8 ->  | AD15: ='FRF Carbon Flux'!AB8 ->  | AE15: ='FRF Carbon Flux'!AC8 ->  | AF15: ='FRF Carbon Flux'!AD8 ->  | AG15: ='FRF Carbon Flux'!AE8 ->  | AH15: ='FRF Carbon Flux'!AF8 ->  | AI15: ='FRF Carbon Flux'!AG8 -> 
C16: Total | E16: =SUM(E9:E15) ->  | F16: =SUM(F9:F15) -> 
A21: Default Data for Wood Products and Landfills
G22: Total Carbon Storage
G23: (million metric tons carbon)
G24: 1987 | I24: 1992 | K24: 1997
E25: Wood products and landfills | F25: W | G25: =VLOOKUP(StateName&F$25,CFluxBlock,5,FALSE) ->  | I25: =VLOOKUP(StateName&F$25,CFluxBlock,6,FALSE) ->  | K25: =VLOOKUP(StateName&F$25,CFluxBlock,7,FALSE) -> 
F28: Changes in Carbon Storage
F29: (million metric tons carbon)
F30: Change, 1987-1992 | H30: Average Annual Change | J30: Change, 1992-1997 | L30: Average Annual Change
E31: Wood products and landfills | F31: =I25-G25 ->  | H31: =F31/5 ->  | J31: =K25-I25 ->  | L31: =J31/5 -> 
K33: Net Sequestration/Emissions
K34: MMTCO2E
F35: 1990 | G35: 1991 | H35: 1992 | I35: 1993 | J35: 1994 | K35: 1995 | L35: 1996 | M35: 1997 | N35: 1998 | O35: 1999 | P35: 2000 | Q35: 2001 | R35: 2002 | S35: 2003 | T35: 2004 | U35: 2005 | V35: 2006 | W35: 2007 | X35: 2008 | Y35: 2009 | Z35: 2010 | AA35: 2011 | AB35: 2012 | AC35: 2013 | AD35: 2014 | AE35: 2015 | AF35: 2016 | AG35: 2017 | AH35: 2018 | AI35: 2019 | AJ35: 2020
E36: Total wood products and landfills | F36: =-$H$31*CO2_C ->  | G36: =-$H$31*CO2_C ->  | H36: =-$H$31*CO2_C ->  | I36: =-$L$31*CO2_C ->  | AI36: 0 | AJ36: 0

Sheet Land Converted to Forest Land
A1: ="2b. Land Converted to Forest Land in "&StateName -> 2b. Land Converted to Forest Land in Select a State . . .
A5: Default data for Aboveground and Belowground Biomass, Dead Wood, Litter, and Soil Carbon
I6: Net Sequestration/Emissions from Land Converted to Forest Land
K7: MMTCO2E
E8: 1990 | F8: 1991 | G8: 1992 | H8: 1993 | I8: 1994 | J8: 1995 | K8: 1996 | L8: 1997 | M8: 1998 | N8: 1999 | O8: 2000 | P8: 2001 | Q8: 2002 | R8: 2003 | S8: 2004 | T8: 2005 | U8: 2006 | V8: 2007 | W8: 2008 | X8: 2009 | Y8: 2010 | Z8: 2011 | AA8: 2012 | AB8: 2013 | AC8: 2014 | AD8: 2015 | AE8: 2016 | AF8: 2017 | AG8: 2018 | AH8: 2019 | AI8: 2020
C9: Aboveground Biomass | E9: =SUM(E20,E30,E40,E50) ->  | F9: =SUM(F20,F30,F40,F50) -> 
C10: Belowground Biomass | E10: =SUM(E21,E31,E41,E51) -> 
C11: Deadwood
C12: Litter
C13: Soil (Mineral)
C14: Total | E14: =SUM(E9:E13) ->  | F14: =SUM(F9:F13) -> 
A16: Subtotals by Land-Use Change Category
I17: Net Sequestration/Emissions from Cropland Converted to Forest Land
K18: MMTCO2E
E19: 1990 | F19: 1991 | G19: 1992 | H19: 1993 | I19: 1994 | J19: 1995 | K19: 1996 | L19: 1997 | M19: 1998 | N19: 1999 | O19: 2000 | P19: 2001 | Q19: 2002 | R19: 2003 | S19: 2004 | T19: 2005 | U19: 2006 | V19: 2007 | W19: 2008 | X19: 2009 | Y19: 2010 | Z19: 2011 | AA19: 2012 | AB19: 2013 | AC19: 2014 | AD19: 2015 | AE19: 2016 | AF19: 2017 | AG19: 2018 | AH19: 2019 | AI19: 2020
C20: Aboveground Biomass | E20: ='LCF Carbon Flux'!C2 ->  | F20: ='LCF Carbon Flux'!D2 ->  | G20: ='LCF Carbon Flux'!E2 ->  | H20: ='LCF Carbon Flux'!F2 ->  | I20: ='LCF Carbon Flux'!G2 ->  | J20: ='LCF Carbon Flux'!H2 ->  | K20: ='LCF Carbon Flux'!I2 ->  | L20: ='LCF Carbon Flux'!J2 ->  | M20: ='LCF Carbon Flux'!K2 ->  | N20: ='LCF Carbon Flux'!L2 ->  | O20: ='LCF Carbon Flux'!M2 ->  | P20: ='LCF Carbon Flux'!N2 ->  | Q20: ='LCF Carbon Flux'!O2 ->  | R20: ='LCF Carbon Flux'!P2 ->  | S20: ='LCF Carbon Flux'!Q2 ->  | T20: ='LCF Carbon Flux'!R2 ->  | U20: ='LCF Carbon Flux'!S2 ->  | V20: ='LCF Carbon Flux'!T2 ->  | W20: ='LCF Carbon Flux'!U2 ->  | X20: ='LCF Carbon Flux'!V2 ->  | Y20: ='LCF Carbon Flux'!W2 ->  | Z20: ='LCF Carbon Flux'!X2 ->  | AA20: ='LCF Carbon Flux'!Y2 ->  | AB20: ='LCF Carbon Flux'!Z2 ->  | AC20: ='LCF Carbon Flux'!AA2 ->  | AD20: ='LCF Carbon Flux'!AB2 ->  | AE20: ='LCF Carbon Flux'!AC2 ->  | AF20: ='LCF Carbon Flux'!AD2 ->  | AG20: ='LCF Carbon Flux'!AE2 ->  | AH20: ='LCF Carbon Flux'!AF2 ->  | AI20: ='LCF Carbon Flux'!AG2 -> 
C21: Belowground Biomass | E21: ='LCF Carbon Flux'!C3 ->  | F21: ='LCF Carbon Flux'!D3 ->  | G21: ='LCF Carbon Flux'!E3 ->  | H21: ='LCF Carbon Flux'!F3 ->  | I21: ='LCF Carbon Flux'!G3 ->  | J21: ='LCF Carbon Flux'!H3 ->  | K21: ='LCF Carbon Flux'!I3 ->  | L21: ='LCF Carbon Flux'!J3 ->  | M21: ='LCF Carbon Flux'!K3 ->  | N21: ='LCF Carbon Flux'!L3 ->  | O21: ='LCF Carbon Flux'!M3 ->  | P21: ='LCF Carbon Flux'!N3 ->  | Q21: ='LCF Carbon Flux'!O3 ->  | R21: ='LCF Carbon Flux'!P3 ->  | S21: ='LCF Carbon Flux'!Q3 ->  | T21: ='LCF Carbon Flux'!R3 ->  | U21: ='LCF Carbon Flux'!S3 ->  | V21: ='LCF Carbon Flux'!T3 ->  | W21: ='LCF Carbon Flux'!U3 ->  | X21: ='LCF Carbon Flux'!V3 ->  | Y21: ='LCF Carbon Flux'!W3 ->  | Z21: ='LCF Carbon Flux'!X3 ->  | AA21: ='LCF Carbon Flux'!Y3 ->  | AB21: ='LCF Carbon Flux'!Z3 ->  | AC21: ='LCF Carbon Flux'!AA3 ->  | AD21: ='LCF Carbon Flux'!AB3 ->  | AE21: ='LCF Carbon Flux'!AC3 ->  | AF21: ='LCF Carbon Flux'!AD3 ->  | AG21: ='LCF Carbon Flux'!AE3 ->  | AH21: ='LCF Carbon Flux'!AF3 ->  | AI21: ='LCF Carbon Flux'!AG3 -> 
C22: Deadwood | E22: ='LCF Carbon Flux'!C4 ->  | F22: ='LCF Carbon Flux'!D4 ->  | G22: ='LCF Carbon Flux'!E4 ->  | H22: ='LCF Carbon Flux'!F4 ->  | I22: ='LCF Carbon Flux'!G4 ->  | J22: ='LCF Carbon Flux'!H4 ->  | K22: ='LCF Carbon Flux'!I4 ->  | L22: ='LCF Carbon Flux'!J4 ->  | M22: ='LCF Carbon Flux'!K4 ->  | N22: ='LCF Carbon Flux'!L4 ->  | O22: ='LCF Carbon Flux'!M4 ->  | P22: ='LCF Carbon Flux'!N4 ->  | Q22: ='LCF Carbon Flux'!O4 ->  | R22: ='LCF Carbon Flux'!P4 ->  | S22: ='LCF Carbon Flux'!Q4 ->  | T22: ='LCF Carbon Flux'!R4 ->  | U22: ='LCF Carbon Flux'!S4 ->  | V22: ='LCF Carbon Flux'!T4 ->  | W22: ='LCF Carbon Flux'!U4 ->  | X22: ='LCF Carbon Flux'!V4 ->  | Y22: ='LCF Carbon Flux'!W4 ->  | Z22: ='LCF Carbon Flux'!X4 ->  | AA22: ='LCF Carbon Flux'!Y4 ->  | AB22: ='LCF Carbon Flux'!Z4 ->  | AC22: ='LCF Carbon Flux'!AA4 ->  | AD22: ='LCF Carbon Flux'!AB4 ->  | AE22: ='LCF Carbon Flux'!AC4 ->  | AF22: ='LCF Carbon Flux'!AD4 ->  | AG22: ='LCF Carbon Flux'!AE4 ->  | AH22: ='LCF Carbon Flux'!AF4 ->  | AI22: ='LCF Carbon Flux'!AG4 -> 
C23: Litter | E23: ='LCF Carbon Flux'!C5 ->  | F23: ='LCF Carbon Flux'!D5 ->  | G23: ='LCF Carbon Flux'!E5 ->  | H23: ='LCF Carbon Flux'!F5 ->  | I23: ='LCF Carbon Flux'!G5 ->  | J23: ='LCF Carbon Flux'!H5 ->  | K23: ='LCF Carbon Flux'!I5 ->  | L23: ='LCF Carbon Flux'!J5 ->  | M23: ='LCF Carbon Flux'!K5 ->  | N23: ='LCF Carbon Flux'!L5 ->  | O23: ='LCF Carbon Flux'!M5 ->  | P23: ='LCF Carbon Flux'!N5 ->  | Q23: ='LCF Carbon Flux'!O5 ->  | R23: ='LCF Carbon Flux'!P5 ->  | S23: ='LCF Carbon Flux'!Q5 ->  | T23: ='LCF Carbon Flux'!R5 ->  | U23: ='LCF Carbon Flux'!S5 ->  | V23: ='LCF Carbon Flux'!T5 ->  | W23: ='LCF Carbon Flux'!U5 ->  | X23: ='LCF Carbon Flux'!V5 ->  | Y23: ='LCF Carbon Flux'!W5 ->  | Z23: ='LCF Carbon Flux'!X5 ->  | AA23: ='LCF Carbon Flux'!Y5 ->  | AB23: ='LCF Carbon Flux'!Z5 ->  | AC23: ='LCF Carbon Flux'!AA5 ->  | AD23: ='LCF Carbon Flux'!AB5 ->  | AE23: ='LCF Carbon Flux'!AC5 ->  | AF23: ='LCF Carbon Flux'!AD5 ->  | AG23: ='LCF Carbon Flux'!AE5 ->  | AH23: ='LCF Carbon Flux'!AF5 ->  | AI23: ='LCF Carbon Flux'!AG5 -> 
C24: Soil (Mineral) | E24: ='LCF Carbon Flux'!C6 ->  | F24: ='LCF Carbon Flux'!D6 ->  | G24: ='LCF Carbon Flux'!E6 ->  | H24: ='LCF Carbon Flux'!F6 ->  | I24: ='LCF Carbon Flux'!G6 ->  | J24: ='LCF Carbon Flux'!H6 ->  | K24: ='LCF Carbon Flux'!I6 ->  | L24: ='LCF Carbon Flux'!J6 ->  | M24: ='LCF Carbon Flux'!K6 ->  | N24: ='LCF Carbon Flux'!L6 ->  | O24: ='LCF Carbon Flux'!M6 ->  | P24: ='LCF Carbon Flux'!N6 ->  | Q24: ='LCF Carbon Flux'!O6 ->  | R24: ='LCF Carbon Flux'!P6 ->  | S24: ='LCF Carbon Flux'!Q6 ->  | T24: ='LCF Carbon Flux'!R6 ->  | U24: ='LCF Carbon Flux'!S6 ->  | V24: ='LCF Carbon Flux'!T6 ->  | W24: ='LCF Carbon Flux'!U6 ->  | X24: ='LCF Carbon Flux'!V6 ->  | Y24: ='LCF Carbon Flux'!W6 ->  | Z24: ='LCF Carbon Flux'!X6 ->  | AA24: ='LCF Carbon Flux'!Y6 ->  | AB24: ='LCF Carbon Flux'!Z6 ->  | AC24: ='LCF Carbon Flux'!AA6 ->  | AD24: ='LCF Carbon Flux'!AB6 ->  | AE24: ='LCF Carbon Flux'!AC6 ->  | AF24: ='LCF Carbon Flux'!AD6 ->  | AG24: ='LCF Carbon Flux'!AE6 ->  | AH24: ='LCF Carbon Flux'!AF6 ->  | AI24: ='LCF Carbon Flux'!AG6 -> 
C25: Total | E25: =SUM(E20:E24) ->  | F25: =SUM(F20:F24) -> 
I27: Net Sequestration/Emissions from Grassland Converted to Forest Land
K28: MMTCO2E
E29: 1990 | F29: 1991 | G29: 1992 | H29: 1993 | I29: 1994 | J29: 1995 | K29: 1996 | L29: 1997 | M29: 1998 | N29: 1999 | O29: 2000 | P29: 2001 | Q29: 2002 | R29: 2003 | S29: 2004 | T29: 2005 | U29: 2006 | V29: 2007 | W29: 2008 | X29: 2009 | Y29: 2010 | Z29: 2011 | AA29: 2012 | AB29: 2013 | AC29: 2014 | AD29: 2015 | AE29: 2016 | AF29: 2017 | AG29: 2018 | AH29: 2019 | AI29: 2020
C30: Aboveground Biomass | E30: ='LCF Carbon Flux'!AK2 ->  | F30: ='LCF Carbon Flux'!AL2 ->  | G30: ='LCF Carbon Flux'!AM2 ->  | H30: ='LCF Carbon Flux'!AN2 ->  | I30: ='LCF Carbon Flux'!AO2 ->  | J30: ='LCF Carbon Flux'!AP2 ->  | K30: ='LCF Carbon Flux'!AQ2 ->  | L30: ='LCF Carbon Flux'!AR2 ->  | M30: ='LCF Carbon Flux'!AS2 ->  | N30: ='LCF Carbon Flux'!AT2 ->  | O30: ='LCF Carbon Flux'!AU2 ->  | P30: ='LCF Carbon Flux'!AV2 ->  | Q30: ='LCF Carbon Flux'!AW2 ->  | R30: ='LCF Carbon Flux'!AX2 ->  | S30: ='LCF Carbon Flux'!AY2 ->  | T30: ='LCF Carbon Flux'!AZ2 ->  | U30: ='LCF Carbon Flux'!BA2 ->  | V30: ='LCF Carbon Flux'!BB2 ->  | W30: ='LCF Carbon Flux'!BC2 ->  | X30: ='LCF Carbon Flux'!BD2 ->  | Y30: ='LCF Carbon Flux'!BE2 ->  | Z30: ='LCF Carbon Flux'!BF2 ->  | AA30: ='LCF Carbon Flux'!BG2 ->  | AB30: ='LCF Carbon Flux'!BH2 ->  | AC30: ='LCF Carbon Flux'!BI2 ->  | AD30: ='LCF Carbon Flux'!BJ2 ->  | AE30: ='LCF Carbon Flux'!BK2 ->  | AF30: ='LCF Carbon Flux'!BL2 ->  | AG30: ='LCF Carbon Flux'!BM2 ->  | AH30: ='LCF Carbon Flux'!BN2 ->  | AI30: ='LCF Carbon Flux'!BO2 -> 
C31: Belowground Biomass | E31: ='LCF Carbon Flux'!AK3 ->  | F31: ='LCF Carbon Flux'!AL3 ->  | G31: ='LCF Carbon Flux'!AM3 ->  | H31: ='LCF Carbon Flux'!AN3 ->  | I31: ='LCF Carbon Flux'!AO3 ->  | J31: ='LCF Carbon Flux'!AP3 ->  | K31: ='LCF Carbon Flux'!AQ3 ->  | L31: ='LCF Carbon Flux'!AR3 ->  | M31: ='LCF Carbon Flux'!AS3 ->  | N31: ='LCF Carbon Flux'!AT3 ->  | O31: ='LCF Carbon Flux'!AU3 ->  | P31: ='LCF Carbon Flux'!AV3 ->  | Q31: ='LCF Carbon Flux'!AW3 ->  | R31: ='LCF Carbon Flux'!AX3 ->  | S31: ='LCF Carbon Flux'!AY3 ->  | T31: ='LCF Carbon Flux'!AZ3 ->  | U31: ='LCF Carbon Flux'!BA3 ->  | V31: ='LCF Carbon Flux'!BB3 ->  | W31: ='LCF Carbon Flux'!BC3 ->  | X31: ='LCF Carbon Flux'!BD3 ->  | Y31: ='LCF Carbon Flux'!BE3 ->  | Z31: ='LCF Carbon Flux'!BF3 ->  | AA31: ='LCF Carbon Flux'!BG3 ->  | AB31: ='LCF Carbon Flux'!BH3 ->  | AC31: ='LCF Carbon Flux'!BI3 ->  | AD31: ='LCF Carbon Flux'!BJ3 ->  | AE31: ='LCF Carbon Flux'!BK3 ->  | AF31: ='LCF Carbon Flux'!BL3 ->  | AG31: ='LCF Carbon Flux'!BM3 ->  | AH31: ='LCF Carbon Flux'!BN3 ->  | AI31: ='LCF Carbon Flux'!BO3 -> 
C32: Deadwood | E32: ='LCF Carbon Flux'!AK4 ->  | F32: ='LCF Carbon Flux'!AL4 ->  | G32: ='LCF Carbon Flux'!AM4 ->  | H32: ='LCF Carbon Flux'!AN4 ->  | I32: ='LCF Carbon Flux'!AO4 ->  | J32: ='LCF Carbon Flux'!AP4 ->  | K32: ='LCF Carbon Flux'!AQ4 ->  | L32: ='LCF Carbon Flux'!AR4 ->  | M32: ='LCF Carbon Flux'!AS4 ->  | N32: ='LCF Carbon Flux'!AT4 ->  | O32: ='LCF Carbon Flux'!AU4 ->  | P32: ='LCF Carbon Flux'!AV4 ->  | Q32: ='LCF Carbon Flux'!AW4 ->  | R32: ='LCF Carbon Flux'!AX4 ->  | S32: ='LCF Carbon Flux'!AY4 ->  | T32: ='LCF Carbon Flux'!AZ4 ->  | U32: ='LCF Carbon Flux'!BA4 ->  | V32: ='LCF Carbon Flux'!BB4 ->  | W32: ='LCF Carbon Flux'!BC4 ->  | X32: ='LCF Carbon Flux'!BD4 ->  | Y32: ='LCF Carbon Flux'!BE4 ->  | Z32: ='LCF Carbon Flux'!BF4 ->  | AA32: ='LCF Carbon Flux'!BG4 ->  | AB32: ='LCF Carbon Flux'!BH4 ->  | AC32: ='LCF Carbon Flux'!BI4 ->  | AD32: ='LCF Carbon Flux'!BJ4 ->  | AE32: ='LCF Carbon Flux'!BK4 ->  | AF32: ='LCF Carbon Flux'!BL4 ->  | AG32: ='LCF Carbon Flux'!BM4 ->  | AH32: ='LCF Carbon Flux'!BN4 ->  | AI32: ='LCF Carbon Flux'!BO4 -> 
C33: Litter | E33: ='LCF Carbon Flux'!AK5 ->  | F33: ='LCF Carbon Flux'!AL5 ->  | G33: ='LCF Carbon Flux'!AM5 ->  | H33: ='LCF Carbon Flux'!AN5 ->  | I33: ='LCF Carbon Flux'!AO5 ->  | J33: ='LCF Carbon Flux'!AP5 ->  | K33: ='LCF Carbon Flux'!AQ5 ->  | L33: ='LCF Carbon Flux'!AR5 ->  | M33: ='LCF Carbon Flux'!AS5 ->  | N33: ='LCF Carbon Flux'!AT5 ->  | O33: ='LCF Carbon Flux'!AU5 ->  | P33: ='LCF Carbon Flux'!AV5 ->  | Q33: ='LCF Carbon Flux'!AW5 ->  | R33: ='LCF Carbon Flux'!AX5 ->  | S33: ='LCF Carbon Flux'!AY5 ->  | T33: ='LCF Carbon Flux'!AZ5 ->  | U33: ='LCF Carbon Flux'!BA5 ->  | V33: ='LCF Carbon Flux'!BB5 ->  | W33: ='LCF Carbon Flux'!BC5 ->  | X33: ='LCF Carbon Flux'!BD5 ->  | Y33: ='LCF Carbon Flux'!BE5 ->  | Z33: ='LCF Carbon Flux'!BF5 ->  | AA33: ='LCF Carbon Flux'!BG5 ->  | AB33: ='LCF Carbon Flux'!BH5 ->  | AC33: ='LCF Carbon Flux'!BI5 ->  | AD33: ='LCF Carbon Flux'!BJ5 ->  | AE33: ='LCF Carbon Flux'!BK5 ->  | AF33: ='LCF Carbon Flux'!BL5 ->  | AG33: ='LCF Carbon Flux'!BM5 ->  | AH33: ='LCF Carbon Flux'!BN5 ->  | AI33: ='LCF Carbon Flux'!BO5 -> 
C34: Soil (Mineral) | E34: ='LCF Carbon Flux'!AK6 ->  | F34: ='LCF Carbon Flux'!AL6 ->  | G34: ='LCF Carbon Flux'!AM6 ->  | H34: ='LCF Carbon Flux'!AN6 ->  | I34: ='LCF Carbon Flux'!AO6 ->  | J34: ='LCF Carbon Flux'!AP6 ->  | K34: ='LCF Carbon Flux'!AQ6 ->  | L34: ='LCF Carbon Flux'!AR6 ->  | M34: ='LCF Carbon Flux'!AS6 ->  | N34: ='LCF Carbon Flux'!AT6 ->  | O34: ='LCF Carbon Flux'!AU6 ->  | P34: ='LCF Carbon Flux'!AV6 ->  | Q34: ='LCF Carbon Flux'!AW6 ->  | R34: ='LCF Carbon Flux'!AX6 ->  | S34: ='LCF Carbon Flux'!AY6 ->  | T34: ='LCF Carbon Flux'!AZ6 ->  | U34: ='LCF Carbon Flux'!BA6 ->  | V34: ='LCF Carbon Flux'!BB6 ->  | W34: ='LCF Carbon Flux'!BC6 ->  | X34: ='LCF Carbon Flux'!BD6 ->  | Y34: ='LCF Carbon Flux'!BE6 ->  | Z34: ='LCF Carbon Flux'!BF6 ->  | AA34: ='LCF Carbon Flux'!BG6 ->  | AB34: ='LCF Carbon Flux'!BH6 ->  | AC34: ='LCF Carbon Flux'!BI6 ->  | AD34: ='LCF Carbon Flux'!BJ6 ->  | AE34: ='LCF Carbon Flux'!BK6 ->  | AF34: ='LCF Carbon Flux'!BL6 ->  | AG34: ='LCF Carbon Flux'!BM6 ->  | AH34: ='LCF Carbon Flux'!BN6 ->  | AI34: ='LCF Carbon Flux'!BO6 -> 
C35: Total | E35: =SUM(E30:E34) ->  | F35: =SUM(F30:F34) -> 
I37: Net Sequestration/Emissions from Settlements Converted to Forest Land
K38: MMTCO2E
E39: 1990 | F39: 1991 | G39: 1992 | H39: 1993 | I39: 1994 | J39: 1995 | K39: 1996 | L39: 1997 | M39: 1998 | N39: 1999 | O39: 2000 | P39: 2001 | Q39: 2002 | R39: 2003 | S39: 2004 | T39: 2005 | U39: 2006 | V39: 2007 | W39: 2008 | X39: 2009 | Y39: 2010 | Z39: 2011 | AA39: 2012 | AB39: 2013 | AC39: 2014 | AD39: 2015 | AE39: 2016 | AF39: 2017 | AG39: 2018 | AH39: 2019 | AI39: 2020
C40: Aboveground Biomass | E40: ='LCF Carbon Flux'!BS2 ->  | F40: ='LCF Carbon Flux'!BT2 ->  | G40: ='LCF Carbon Flux'!BU2 ->  | H40: ='LCF Carbon Flux'!BV2 ->  | I40: ='LCF Carbon Flux'!BW2 ->  | J40: ='LCF Carbon Flux'!BX2 ->  | K40: ='LCF Carbon Flux'!BY2 ->  | L40: ='LCF Carbon Flux'!BZ2 ->  | M40: ='LCF Carbon Flux'!CA2 ->  | N40: ='LCF Carbon Flux'!CB2 ->  | O40: ='LCF Carbon Flux'!CC2 ->  | P40: ='LCF Carbon Flux'!CD2 ->  | Q40: ='LCF Carbon Flux'!CE2 ->  | R40: ='LCF Carbon Flux'!CF2 ->  | S40: ='LCF Carbon Flux'!CG2 ->  | T40: ='LCF Carbon Flux'!CH2 ->  | U40: ='LCF Carbon Flux'!CI2 ->  | V40: ='LCF Carbon Flux'!CJ2 ->  | W40: ='LCF Carbon Flux'!CK2 ->  | X40: ='LCF Carbon Flux'!CL2 ->  | Y40: ='LCF Carbon Flux'!CM2 ->  | Z40: ='LCF Carbon Flux'!CN2 ->  | AA40: ='LCF Carbon Flux'!CO2 ->  | AB40: ='LCF Carbon Flux'!CP2 ->  | AC40: ='LCF Carbon Flux'!CQ2 ->  | AD40: ='LCF Carbon Flux'!CR2 ->  | AE40: ='LCF Carbon Flux'!CS2 ->  | AF40: ='LCF Carbon Flux'!CT2 ->  | AG40: ='LCF Carbon Flux'!CU2 ->  | AH40: ='LCF Carbon Flux'!CV2 ->  | AI40: ='LCF Carbon Flux'!CW2 -> 
C41: Belowground Biomass | E41: ='LCF Carbon Flux'!BS3 ->  | F41: ='LCF Carbon Flux'!BT3 ->  | G41: ='LCF Carbon Flux'!BU3 ->  | H41: ='LCF Carbon Flux'!BV3 ->  | I41: ='LCF Carbon Flux'!BW3 ->  | J41: ='LCF Carbon Flux'!BX3 ->  | K41: ='LCF Carbon Flux'!BY3 ->  | L41: ='LCF Carbon Flux'!BZ3 ->  | M41: ='LCF Carbon Flux'!CA3 ->  | N41: ='LCF Carbon Flux'!CB3 ->  | O41: ='LCF Carbon Flux'!CC3 ->  | P41: ='LCF Carbon Flux'!CD3 ->  | Q41: ='LCF Carbon Flux'!CE3 ->  | R41: ='LCF Carbon Flux'!CF3 ->  | S41: ='LCF Carbon Flux'!CG3 ->  | T41: ='LCF Carbon Flux'!CH3 ->  | U41: ='LCF Carbon Flux'!CI3 ->  | V41: ='LCF Carbon Flux'!CJ3 ->  | W41: ='LCF Carbon Flux'!CK3 ->  | X41: ='LCF Carbon Flux'!CL3 ->  | Y41: ='LCF Carbon Flux'!CM3 ->  | Z41: ='LCF Carbon Flux'!CN3 ->  | AA41: ='LCF Carbon Flux'!CO3 ->  | AB41: ='LCF Carbon Flux'!CP3 ->  | AC41: ='LCF Carbon Flux'!CQ3 ->  | AD41: ='LCF Carbon Flux'!CR3 ->  | AE41: ='LCF Carbon Flux'!CS3 ->  | AF41: ='LCF Carbon Flux'!CT3 ->  | AG41: ='LCF Carbon Flux'!CU3 ->  | AH41: ='LCF Carbon Flux'!CV3 ->  | AI41: ='LCF Carbon Flux'!CW3 -> 
C42: Deadwood | E42: ='LCF Carbon Flux'!BS4 ->  | F42: ='LCF Carbon Flux'!BT4 ->  | G42: ='LCF Carbon Flux'!BU4 ->  | H42: ='LCF Carbon Flux'!BV4 ->  | I42: ='LCF Carbon Flux'!BW4 ->  | J42: ='LCF Carbon Flux'!BX4 ->  | K42: ='LCF Carbon Flux'!BY4 ->  | L42: ='LCF Carbon Flux'!BZ4 ->  | M42: ='LCF Carbon Flux'!CA4 ->  | N42: ='LCF Carbon Flux'!CB4 ->  | O42: ='LCF Carbon Flux'!CC4 ->  | P42: ='LCF Carbon Flux'!CD4 ->  | Q42: ='LCF Carbon Flux'!CE4 ->  | R42: ='LCF Carbon Flux'!CF4 ->  | S42: ='LCF Carbon Flux'!CG4 ->  | T42: ='LCF Carbon Flux'!CH4 ->  | U42: ='LCF Carbon Flux'!CI4 ->  | V42: ='LCF Carbon Flux'!CJ4 ->  | W42: ='LCF Carbon Flux'!CK4 ->  | X42: ='LCF Carbon Flux'!CL4 ->  | Y42: ='LCF Carbon Flux'!CM4 ->  | Z42: ='LCF Carbon Flux'!CN4 ->  | AA42: ='LCF Carbon Flux'!CO4 ->  | AB42: ='LCF Carbon Flux'!CP4 ->  | AC42: ='LCF Carbon Flux'!CQ4 ->  | AD42: ='LCF Carbon Flux'!CR4 ->  | AE42: ='LCF Carbon Flux'!CS4 ->  | AF42: ='LCF Carbon Flux'!CT4 ->  | AG42: ='LCF Carbon Flux'!CU4 ->  | AH42: ='LCF Carbon Flux'!CV4 ->  | AI42: ='LCF Carbon Flux'!CW4 -> 
C43: Litter | E43: ='LCF Carbon Flux'!BS5 ->  | F43: ='LCF Carbon Flux'!BT5 ->  | G43: ='LCF Carbon Flux'!BU5 ->  | H43: ='LCF Carbon Flux'!BV5 ->  | I43: ='LCF Carbon Flux'!BW5 ->  | J43: ='LCF Carbon Flux'!BX5 ->  | K43: ='LCF Carbon Flux'!BY5 ->  | L43: ='LCF Carbon Flux'!BZ5 ->  | M43: ='LCF Carbon Flux'!CA5 ->  | N43: ='LCF Carbon Flux'!CB5 ->  | O43: ='LCF Carbon Flux'!CC5 ->  | P43: ='LCF Carbon Flux'!CD5 ->  | Q43: ='LCF Carbon Flux'!CE5 ->  | R43: ='LCF Carbon Flux'!CF5 ->  | S43: ='LCF Carbon Flux'!CG5 ->  | T43: ='LCF Carbon Flux'!CH5 ->  | U43: ='LCF Carbon Flux'!CI5 ->  | V43: ='LCF Carbon Flux'!CJ5 ->  | W43: ='LCF Carbon Flux'!CK5 ->  | X43: ='LCF Carbon Flux'!CL5 ->  | Y43: ='LCF Carbon Flux'!CM5 ->  | Z43: ='LCF Carbon Flux'!CN5 ->  | AA43: ='LCF Carbon Flux'!CO5 ->  | AB43: ='LCF Carbon Flux'!CP5 ->  | AC43: ='LCF Carbon Flux'!CQ5 ->  | AD43: ='LCF Carbon Flux'!CR5 ->  | AE43: ='LCF Carbon Flux'!CS5 ->  | AF43: ='LCF Carbon Flux'!CT5 ->  | AG43: ='LCF Carbon Flux'!CU5 ->  | AH43: ='LCF Carbon Flux'!CV5 ->  | AI43: ='LCF Carbon Flux'!CW5 -> 
C44: Soil (Mineral) | E44: ='LCF Carbon Flux'!BS6 ->  | F44: ='LCF Carbon Flux'!BT6 ->  | G44: ='LCF Carbon Flux'!BU6 ->  | H44: ='LCF Carbon Flux'!BV6 ->  | I44: ='LCF Carbon Flux'!BW6 ->  | J44: ='LCF Carbon Flux'!BX6 ->  | K44: ='LCF Carbon Flux'!BY6 ->  | L44: ='LCF Carbon Flux'!BZ6 ->  | M44: ='LCF Carbon Flux'!CA6 ->  | N44: ='LCF Carbon Flux'!CB6 ->  | O44: ='LCF Carbon Flux'!CC6 ->  | P44: ='LCF Carbon Flux'!CD6 ->  | Q44: ='LCF Carbon Flux'!CE6 ->  | R44: ='LCF Carbon Flux'!CF6 ->  | S44: ='LCF Carbon Flux'!CG6 ->  | T44: ='LCF Carbon Flux'!CH6 ->  | U44: ='LCF Carbon Flux'!CI6 ->  | V44: ='LCF Carbon Flux'!CJ6 ->  | W44: ='LCF Carbon Flux'!CK6 ->  | X44: ='LCF Carbon Flux'!CL6 ->  | Y44: ='LCF Carbon Flux'!CM6 ->  | Z44: ='LCF Carbon Flux'!CN6 ->  | AA44: ='LCF Carbon Flux'!CO6 ->  | AB44: ='LCF Carbon Flux'!CP6 ->  | AC44: ='LCF Carbon Flux'!CQ6 ->  | AD44: ='LCF Carbon Flux'!CR6 ->  | AE44: ='LCF Carbon Flux'!CS6 ->  | AF44: ='LCF Carbon Flux'!CT6 ->  | AG44: ='LCF Carbon Flux'!CU6 ->  | AH44: ='LCF Carbon Flux'!CV6 ->  | AI44: ='LCF Carbon Flux'!CW6 -> 
C45: Total | E45: =SUM(E40:E44) ->  | F45: =SUM(F40:F44) -> 
I47: Net Sequestration/Emissions from Other Land Converted to Forest Land
K48: MMTCO2E
E49: 1990 | F49: 1991 | G49: 1992 | H49: 1993 | I49: 1994 | J49: 1995 | K49: 1996 | L49: 1997 | M49: 1998 | N49: 1999 | O49: 2000 | P49: 2001 | Q49: 2002 | R49: 2003 | S49: 2004 | T49: 2005 | U49: 2006 | V49: 2007 | W49: 2008 | X49: 2009 | Y49: 2010 | Z49: 2011 | AA49: 2012 | AB49: 2013 | AC49: 2014 | AD49: 2015 | AE49: 2016 | AF49: 2017 | AG49: 2018 | AH49: 2019 | AI49: 2020
C50: Aboveground Biomass | E50: ='LCF Carbon Flux'!DA2 ->  | F50: ='LCF Carbon Flux'!DB2 ->  | G50: ='LCF Carbon Flux'!DC2 ->  | H50: ='LCF Carbon Flux'!DD2 ->  | I50: ='LCF Carbon Flux'!DE2 ->  | J50: ='LCF Carbon Flux'!DF2 ->  | K50: ='LCF Carbon Flux'!DG2 ->  | L50: ='LCF Carbon Flux'!DH2 ->  | M50: ='LCF Carbon Flux'!DI2 ->  | N50: ='LCF Carbon Flux'!DJ2 ->  | O50: ='LCF Carbon Flux'!DK2 ->  | P50: ='LCF Carbon Flux'!DL2 ->  | Q50: ='LCF Carbon Flux'!DM2 ->  | R50: ='LCF Carbon Flux'!DN2 ->  | S50: ='LCF Carbon Flux'!DO2 ->  | T50: ='LCF Carbon Flux'!DP2 ->  | U50: ='LCF Carbon Flux'!DQ2 ->  | V50: ='LCF Carbon Flux'!DR2 ->  | W50: ='LCF Carbon Flux'!DS2 ->  | X50: ='LCF Carbon Flux'!DT2 ->  | Y50: ='LCF Carbon Flux'!DU2 ->  | Z50: ='LCF Carbon Flux'!DV2 ->  | AA50: ='LCF Carbon Flux'!DW2 ->  | AB50: ='LCF Carbon Flux'!DX2 ->  | AC50: ='LCF Carbon Flux'!DY2 ->  | AD50: ='LCF Carbon Flux'!DZ2 ->  | AE50: ='LCF Carbon Flux'!EA2 ->  | AF50: ='LCF Carbon Flux'!EB2 ->  | AG50: ='LCF Carbon Flux'!EC2 ->  | AH50: ='LCF Carbon Flux'!ED2 ->  | AI50: ='LCF Carbon Flux'!EE2 -> 
C51: Belowground Biomass | E51: ='LCF Carbon Flux'!DA3 ->  | F51: ='LCF Carbon Flux'!DB3 ->  | G51: ='LCF Carbon Flux'!DC3 ->  | H51: ='LCF Carbon Flux'!DD3 ->  | I51: ='LCF Carbon Flux'!DE3 ->  | J51: ='LCF Carbon Flux'!DF3 ->  | K51: ='LCF Carbon Flux'!DG3 ->  | L51: ='LCF Carbon Flux'!DH3 ->  | M51: ='LCF Carbon Flux'!DI3 ->  | N51: ='LCF Carbon Flux'!DJ3 ->  | O51: ='LCF Carbon Flux'!DK3 ->  | P51: ='LCF Carbon Flux'!DL3 ->  | Q51: ='LCF Carbon Flux'!DM3 ->  | R51: ='LCF Carbon Flux'!DN3 ->  | S51: ='LCF Carbon Flux'!DO3 ->  | T51: ='LCF Carbon Flux'!DP3 ->  | U51: ='LCF Carbon Flux'!DQ3 ->  | V51: ='LCF Carbon Flux'!DR3 ->  | W51: ='LCF Carbon Flux'!DS3 ->  | X51: ='LCF Carbon Flux'!DT3 ->  | Y51: ='LCF Carbon Flux'!DU3 ->  | Z51: ='LCF Carbon Flux'!DV3 ->  | AA51: ='LCF Carbon Flux'!DW3 ->  | AB51: ='LCF Carbon Flux'!DX3 ->  | AC51: ='LCF Carbon Flux'!DY3 ->  | AD51: ='LCF Carbon Flux'!DZ3 ->  | AE51: ='LCF Carbon Flux'!EA3 ->  | AF51: ='LCF Carbon Flux'!EB3 ->  | AG51: ='LCF Carbon Flux'!EC3 ->  | AH51: ='LCF Carbon Flux'!ED3 ->  | AI51: ='LCF Carbon Flux'!EE3 -> 
C52: Deadwood | E52: ='LCF Carbon Flux'!DA4 ->  | F52: ='LCF Carbon Flux'!DB4 ->  | G52: ='LCF Carbon Flux'!DC4 ->  | H52: ='LCF Carbon Flux'!DD4 ->  | I52: ='LCF Carbon Flux'!DE4 ->  | J52: ='LCF Carbon Flux'!DF4 ->  | K52: ='LCF Carbon Flux'!DG4 ->  | L52: ='LCF Carbon Flux'!DH4 ->  | M52: ='LCF Carbon Flux'!DI4 ->  | N52: ='LCF Carbon Flux'!DJ4 ->  | O52: ='LCF Carbon Flux'!DK4 ->  | P52: ='LCF Carbon Flux'!DL4 ->  | Q52: ='LCF Carbon Flux'!DM4 ->  | R52: ='LCF Carbon Flux'!DN4 ->  | S52: ='LCF Carbon Flux'!DO4 ->  | T52: ='LCF Carbon Flux'!DP4 ->  | U52: ='LCF Carbon Flux'!DQ4 ->  | V52: ='LCF Carbon Flux'!DR4 ->  | W52: ='LCF Carbon Flux'!DS4 ->  | X52: ='LCF Carbon Flux'!DT4 ->  | Y52: ='LCF Carbon Flux'!DU4 ->  | Z52: ='LCF Carbon Flux'!DV4 ->  | AA52: ='LCF Carbon Flux'!DW4 ->  | AB52: ='LCF Carbon Flux'!DX4 ->  | AC52: ='LCF Carbon Flux'!DY4 ->  | AD52: ='LCF Carbon Flux'!DZ4 ->  | AE52: ='LCF Carbon Flux'!EA4 ->  | AF52: ='LCF Carbon Flux'!EB4 ->  | AG52: ='LCF Carbon Flux'!EC4 ->  | AH52: ='LCF Carbon Flux'!ED4 ->  | AI52: ='LCF Carbon Flux'!EE4 -> 
C53: Litter | E53: ='LCF Carbon Flux'!DA5 ->  | F53: ='LCF Carbon Flux'!DB5 ->  | G53: ='LCF Carbon Flux'!DC5 ->  | H53: ='LCF Carbon Flux'!DD5 ->  | I53: ='LCF Carbon Flux'!DE5 ->  | J53: ='LCF Carbon Flux'!DF5 ->  | K53: ='LCF Carbon Flux'!DG5 ->  | L53: ='LCF Carbon Flux'!DH5 ->  | M53: ='LCF Carbon Flux'!DI5 ->  | N53: ='LCF Carbon Flux'!DJ5 ->  | O53: ='LCF Carbon Flux'!DK5 ->  | P53: ='LCF Carbon Flux'!DL5 ->  | Q53: ='LCF Carbon Flux'!DM5 ->  | R53: ='LCF Carbon Flux'!DN5 ->  | S53: ='LCF Carbon Flux'!DO5 ->  | T53: ='LCF Carbon Flux'!DP5 ->  | U53: ='LCF Carbon Flux'!DQ5 ->  | V53: ='LCF Carbon Flux'!DR5 ->  | W53: ='LCF Carbon Flux'!DS5 ->  | X53: ='LCF Carbon Flux'!DT5 ->  | Y53: ='LCF Carbon Flux'!DU5 ->  | Z53: ='LCF Carbon Flux'!DV5 ->  | AA53: ='LCF Carbon Flux'!DW5 ->  | AB53: ='LCF Carbon Flux'!DX5 ->  | AC53: ='LCF Carbon Flux'!DY5 ->  | AD53: ='LCF Carbon Flux'!DZ5 ->  | AE53: ='LCF Carbon Flux'!EA5 ->  | AF53: ='LCF Carbon Flux'!EB5 ->  | AG53: ='LCF Carbon Flux'!EC5 ->  | AH53: ='LCF Carbon Flux'!ED5 ->  | AI53: ='LCF Carbon Flux'!EE5 -> 
C54: Soil (Mineral) | E54: ='LCF Carbon Flux'!DA6 ->  | F54: ='LCF Carbon Flux'!DB6 ->  | G54: ='LCF Carbon Flux'!DC6 ->  | H54: ='LCF Carbon Flux'!DD6 ->  | I54: ='LCF Carbon Flux'!DE6 ->  | J54: ='LCF Carbon Flux'!DF6 ->  | K54: ='LCF Carbon Flux'!DG6 ->  | L54: ='LCF Carbon Flux'!DH6 ->  | M54: ='LCF Carbon Flux'!DI6 ->  | N54: ='LCF Carbon Flux'!DJ6 ->  | O54: ='LCF Carbon Flux'!DK6 ->  | P54: ='LCF Carbon Flux'!DL6 ->  | Q54: ='LCF Carbon Flux'!DM6 ->  | R54: ='LCF Carbon Flux'!DN6 ->  | S54: ='LCF Carbon Flux'!DO6 ->  | T54: ='LCF Carbon Flux'!DP6 ->  | U54: ='LCF Carbon Flux'!DQ6 ->  | V54: ='LCF Carbon Flux'!DR6 ->  | W54: ='LCF Carbon Flux'!DS6 ->  | X54: ='LCF Carbon Flux'!DT6 ->  | Y54: ='LCF Carbon Flux'!DU6 ->  | Z54: ='LCF Carbon Flux'!DV6 ->  | AA54: ='LCF Carbon Flux'!DW6 ->  | AB54: ='LCF Carbon Flux'!DX6 ->  | AC54: ='LCF Carbon Flux'!DY6 ->  | AD54: ='LCF Carbon Flux'!DZ6 ->  | AE54: ='LCF Carbon Flux'!EA6 ->  | AF54: ='LCF Carbon Flux'!EB6 ->  | AG54: ='LCF Carbon Flux'!EC6 ->  | AH54: ='LCF Carbon Flux'!ED6 ->  | AI54: ='LCF Carbon Flux'!EE6 -> 
C55: Total | E55: =SUM(E50:E54) ->  | F55: =SUM(F50:F54) -> 

Sheet Forest Land Converted to Land
A1: ="2c. Forest Land Converted to Land in "&StateName -> 2c. Forest Land Converted to Land in Select a State . . .
A5: Default data for Aboveground and Belowground Biomass, Dead Wood, Litter, and Soil Carbon
I6: Net Sequestration/Emissions from Forest Land Converted to Land
K7: MMTCO2E
E8: 1990 | F8: 1991 | G8: 1992 | H8: 1993 | I8: 1994 | J8: 1995 | K8: 1996 | L8: 1997 | M8: 1998 | N8: 1999 | O8: 2000 | P8: 2001 | Q8: 2002 | R8: 2003 | S8: 2004 | T8: 2005 | U8: 2006 | V8: 2007 | W8: 2008 | X8: 2009 | Y8: 2010 | Z8: 2011 | AA8: 2012 | AB8: 2013 | AC8: 2014 | AD8: 2015 | AE8: 2016 | AF8: 2017 | AG8: 2018 | AH8: 2019 | AI8: 2020
C9: Aboveground Biomass | E9: =SUM(E20,E30) ->  | F9: =SUM(F20,F30) -> 
C10: Belowground Biomass | E10: =SUM(E21,E31) -> 
C11: Deadwood
C12: Litter
C13: Soil (Mineral)
C14: Total | E14: =SUM(E9:E13) ->  | F14: =SUM(F9:F13) -> 
A16: Subtotals by Land-Use Change Category
I17: Net Sequestration/Emissions from Forest Land Converted to Cropland
K18: MMTCO2E
E19: 1990 | F19: 1991 | G19: 1992 | H19: 1993 | I19: 1994 | J19: 1995 | K19: 1996 | L19: 1997 | M19: 1998 | N19: 1999 | O19: 2000 | P19: 2001 | Q19: 2002 | R19: 2003 | S19: 2004 | T19: 2005 | U19: 2006 | V19: 2007 | W19: 2008 | X19: 2009 | Y19: 2010 | Z19: 2011 | AA19: 2012 | AB19: 2013 | AC19: 2014 | AD19: 2015 | AE19: 2016 | AF19: 2017 | AG19: 2018 | AH19: 2019 | AI19: 2020
C20: Aboveground Biomass | E20: ='FCL Carbon Flux'!C2 ->  | F20: ='FCL Carbon Flux'!D2 ->  | G20: ='FCL Carbon Flux'!E2 ->  | H20: ='FCL Carbon Flux'!F2 ->  | I20: ='FCL Carbon Flux'!G2 ->  | J20: ='FCL Carbon Flux'!H2 ->  | K20: ='FCL Carbon Flux'!I2 ->  | L20: ='FCL Carbon Flux'!J2 ->  | M20: ='FCL Carbon Flux'!K2 ->  | N20: ='FCL Carbon Flux'!L2 ->  | O20: ='FCL Carbon Flux'!M2 ->  | P20: ='FCL Carbon Flux'!N2 ->  | Q20: ='FCL Carbon Flux'!O2 ->  | R20: ='FCL Carbon Flux'!P2 ->  | S20: ='FCL Carbon Flux'!Q2 ->  | T20: ='FCL Carbon Flux'!R2 ->  | U20: ='FCL Carbon Flux'!S2 ->  | V20: ='FCL Carbon Flux'!T2 ->  | W20: ='FCL Carbon Flux'!U2 ->  | X20: ='FCL Carbon Flux'!V2 ->  | Y20: ='FCL Carbon Flux'!W2 ->  | Z20: ='FCL Carbon Flux'!X2 ->  | AA20: ='FCL Carbon Flux'!Y2 ->  | AB20: ='FCL Carbon Flux'!Z2 ->  | AC20: ='FCL Carbon Flux'!AA2 ->  | AD20: ='FCL Carbon Flux'!AB2 ->  | AE20: ='FCL Carbon Flux'!AC2 ->  | AF20: ='FCL Carbon Flux'!AD2 ->  | AG20: ='FCL Carbon Flux'!AE2 ->  | AH20: ='FCL Carbon Flux'!AF2 ->  | AI20: ='FCL Carbon Flux'!AG2 -> 
C21: Belowground Biomass | E21: ='FCL Carbon Flux'!C3 ->  | F21: ='FCL Carbon Flux'!D3 ->  | G21: ='FCL Carbon Flux'!E3 ->  | H21: ='FCL Carbon Flux'!F3 ->  | I21: ='FCL Carbon Flux'!G3 ->  | J21: ='FCL Carbon Flux'!H3 ->  | K21: ='FCL Carbon Flux'!I3 ->  | L21: ='FCL Carbon Flux'!J3 ->  | M21: ='FCL Carbon Flux'!K3 ->  | N21: ='FCL Carbon Flux'!L3 ->  | O21: ='FCL Carbon Flux'!M3 ->  | P21: ='FCL Carbon Flux'!N3 ->  | Q21: ='FCL Carbon Flux'!O3 ->  | R21: ='FCL Carbon Flux'!P3 ->  | S21: ='FCL Carbon Flux'!Q3 ->  | T21: ='FCL Carbon Flux'!R3 ->  | U21: ='FCL Carbon Flux'!S3 ->  | V21: ='FCL Carbon Flux'!T3 ->  | W21: ='FCL Carbon Flux'!U3 ->  | X21: ='FCL Carbon Flux'!V3 ->  | Y21: ='FCL Carbon Flux'!W3 ->  | Z21: ='FCL Carbon Flux'!X3 ->  | AA21: ='FCL Carbon Flux'!Y3 ->  | AB21: ='FCL Carbon Flux'!Z3 ->  | AC21: ='FCL Carbon Flux'!AA3 ->  | AD21: ='FCL Carbon Flux'!AB3 ->  | AE21: ='FCL Carbon Flux'!AC3 ->  | AF21: ='FCL Carbon Flux'!AD3 ->  | AG21: ='FCL Carbon Flux'!AE3 ->  | AH21: ='FCL Carbon Flux'!AF3 ->  | AI21: ='FCL Carbon Flux'!AG3 -> 
C22: Deadwood | E22: ='FCL Carbon Flux'!C4 ->  | F22: ='FCL Carbon Flux'!D4 ->  | G22: ='FCL Carbon Flux'!E4 ->  | H22: ='FCL Carbon Flux'!F4 ->  | I22: ='FCL Carbon Flux'!G4 ->  | J22: ='FCL Carbon Flux'!H4 ->  | K22: ='FCL Carbon Flux'!I4 ->  | L22: ='FCL Carbon Flux'!J4 ->  | M22: ='FCL Carbon Flux'!K4 ->  | N22: ='FCL Carbon Flux'!L4 ->  | O22: ='FCL Carbon Flux'!M4 ->  | P22: ='FCL Carbon Flux'!N4 ->  | Q22: ='FCL Carbon Flux'!O4 ->  | R22: ='FCL Carbon Flux'!P4 ->  | S22: ='FCL Carbon Flux'!Q4 ->  | T22: ='FCL Carbon Flux'!R4 ->  | U22: ='FCL Carbon Flux'!S4 ->  | V22: ='FCL Carbon Flux'!T4 ->  | W22: ='FCL Carbon Flux'!U4 ->  | X22: ='FCL Carbon Flux'!V4 ->  | Y22: ='FCL Carbon Flux'!W4 ->  | Z22: ='FCL Carbon Flux'!X4 ->  | AA22: ='FCL Carbon Flux'!Y4 ->  | AB22: ='FCL Carbon Flux'!Z4 ->  | AC22: ='FCL Carbon Flux'!AA4 ->  | AD22: ='FCL Carbon Flux'!AB4 ->  | AE22: ='FCL Carbon Flux'!AC4 ->  | AF22: ='FCL Carbon Flux'!AD4 ->  | AG22: ='FCL Carbon Flux'!AE4 ->  | AH22: ='FCL Carbon Flux'!AF4 ->  | AI22: ='FCL Carbon Flux'!AG4 -> 
C23: Litter | E23: ='FCL Carbon Flux'!C5 ->  | F23: ='FCL Carbon Flux'!D5 ->  | G23: ='FCL Carbon Flux'!E5 ->  | H23: ='FCL Carbon Flux'!F5 ->  | I23: ='FCL Carbon Flux'!G5 ->  | J23: ='FCL Carbon Flux'!H5 ->  | K23: ='FCL Carbon Flux'!I5 ->  | L23: ='FCL Carbon Flux'!J5 ->  | M23: ='FCL Carbon Flux'!K5 ->  | N23: ='FCL Carbon Flux'!L5 ->  | O23: ='FCL Carbon Flux'!M5 ->  | P23: ='FCL Carbon Flux'!N5 ->  | Q23: ='FCL Carbon Flux'!O5 ->  | R23: ='FCL Carbon Flux'!P5 ->  | S23: ='FCL Carbon Flux'!Q5 ->  | T23: ='FCL Carbon Flux'!R5 ->  | U23: ='FCL Carbon Flux'!S5 ->  | V23: ='FCL Carbon Flux'!T5 ->  | W23: ='FCL Carbon Flux'!U5 ->  | X23: ='FCL Carbon Flux'!V5 ->  | Y23: ='FCL Carbon Flux'!W5 ->  | Z23: ='FCL Carbon Flux'!X5 ->  | AA23: ='FCL Carbon Flux'!Y5 ->  | AB23: ='FCL Carbon Flux'!Z5 ->  | AC23: ='FCL Carbon Flux'!AA5 ->  | AD23: ='FCL Carbon Flux'!AB5 ->  | AE23: ='FCL Carbon Flux'!AC5 ->  | AF23: ='FCL Carbon Flux'!AD5 ->  | AG23: ='FCL Carbon Flux'!AE5 ->  | AH23: ='FCL Carbon Flux'!AF5 ->  | AI23: ='FCL Carbon Flux'!AG5 -> 
C24: Soil (Mineral) | E24: ='FCL Carbon Flux'!C6 ->  | F24: ='FCL Carbon Flux'!D6 ->  | G24: ='FCL Carbon Flux'!E6 ->  | H24: ='FCL Carbon Flux'!F6 ->  | I24: ='FCL Carbon Flux'!G6 ->  | J24: ='FCL Carbon Flux'!H6 ->  | K24: ='FCL Carbon Flux'!I6 ->  | L24: ='FCL Carbon Flux'!J6 ->  | M24: ='FCL Carbon Flux'!K6 ->  | N24: ='FCL Carbon Flux'!L6 ->  | O24: ='FCL Carbon Flux'!M6 ->  | P24: ='FCL Carbon Flux'!N6 ->  | Q24: ='FCL Carbon Flux'!O6 ->  | R24: ='FCL Carbon Flux'!P6 ->  | S24: ='FCL Carbon Flux'!Q6 ->  | T24: ='FCL Carbon Flux'!R6 ->  | U24: ='FCL Carbon Flux'!S6 ->  | V24: ='FCL Carbon Flux'!T6 ->  | W24: ='FCL Carbon Flux'!U6 ->  | X24: ='FCL Carbon Flux'!V6 ->  | Y24: ='FCL Carbon Flux'!W6 ->  | Z24: ='FCL Carbon Flux'!X6 ->  | AA24: ='FCL Carbon Flux'!Y6 ->  | AB24: ='FCL Carbon Flux'!Z6 ->  | AC24: ='FCL Carbon Flux'!AA6 ->  | AD24: ='FCL Carbon Flux'!AB6 ->  | AE24: ='FCL Carbon Flux'!AC6 ->  | AF24: ='FCL Carbon Flux'!AD6 ->  | AG24: ='FCL Carbon Flux'!AE6 ->  | AH24: ='FCL Carbon Flux'!AF6 ->  | AI24: ='FCL Carbon Flux'!AG6 -> 
C25: Total | E25: =SUM(E20:E24) ->  | F25: =SUM(F20:F24) -> 
I27: Net Sequestration/Emissions from Forest Land Converted to Settlements
K28: MMTCO2E
E29: 1990 | F29: 1991 | G29: 1992 | H29: 1993 | I29: 1994 | J29: 1995 | K29: 1996 | L29: 1997 | M29: 1998 | N29: 1999 | O29: 2000 | P29: 2001 | Q29: 2002 | R29: 2003 | S29: 2004 | T29: 2005 | U29: 2006 | V29: 2007 | W29: 2008 | X29: 2009 | Y29: 2010 | Z29: 2011 | AA29: 2012 | AB29: 2013 | AC29: 2014 | AD29: 2015 | AE29: 2016 | AF29: 2017 | AG29: 2018 | AH29: 2019 | AI29: 2020
C30: Aboveground Biomass | E30: ='FCL Carbon Flux'!AK2 ->  | F30: ='FCL Carbon Flux'!AL2 ->  | G30: ='FCL Carbon Flux'!AM2 ->  | H30: ='FCL Carbon Flux'!AN2 ->  | I30: ='FCL Carbon Flux'!AO2 ->  | J30: ='FCL Carbon Flux'!AP2 ->  | K30: ='FCL Carbon Flux'!AQ2 ->  | L30: ='FCL Carbon Flux'!AR2 ->  | M30: ='FCL Carbon Flux'!AS2 ->  | N30: ='FCL Carbon Flux'!AT2 ->  | O30: ='FCL Carbon Flux'!AU2 ->  | P30: ='FCL Carbon Flux'!AV2 ->  | Q30: ='FCL Carbon Flux'!AW2 ->  | R30: ='FCL Carbon Flux'!AX2 ->  | S30: ='FCL Carbon Flux'!AY2 ->  | T30: ='FCL Carbon Flux'!AZ2 ->  | U30: ='FCL Carbon Flux'!BA2 ->  | V30: ='FCL Carbon Flux'!BB2 ->  | W30: ='FCL Carbon Flux'!BC2 ->  | X30: ='FCL Carbon Flux'!BD2 ->  | Y30: ='FCL Carbon Flux'!BE2 ->  | Z30: ='FCL Carbon Flux'!BF2 ->  | AA30: ='FCL Carbon Flux'!BG2 ->  | AB30: ='FCL Carbon Flux'!BH2 ->  | AC30: ='FCL Carbon Flux'!BI2 ->  | AD30: ='FCL Carbon Flux'!BJ2 ->  | AE30: ='FCL Carbon Flux'!BK2 ->  | AF30: ='FCL Carbon Flux'!BL2 ->  | AG30: ='FCL Carbon Flux'!BM2 ->  | AH30: ='FCL Carbon Flux'!BN2 ->  | AI30: ='FCL Carbon Flux'!BO2 -> 
C31: Belowground Biomass | E31: ='FCL Carbon Flux'!AK3 ->  | F31: ='FCL Carbon Flux'!AL3 ->  | G31: ='FCL Carbon Flux'!AM3 ->  | H31: ='FCL Carbon Flux'!AN3 ->  | I31: ='FCL Carbon Flux'!AO3 ->  | J31: ='FCL Carbon Flux'!AP3 ->  | K31: ='FCL Carbon Flux'!AQ3 ->  | L31: ='FCL Carbon Flux'!AR3 ->  | M31: ='FCL Carbon Flux'!AS3 ->  | N31: ='FCL Carbon Flux'!AT3 ->  | O31: ='FCL Carbon Flux'!AU3 ->  | P31: ='FCL Carbon Flux'!AV3 ->  | Q31: ='FCL Carbon Flux'!AW3 ->  | R31: ='FCL Carbon Flux'!AX3 ->  | S31: ='FCL Carbon Flux'!AY3 ->  | T31: ='FCL Carbon Flux'!AZ3 ->  | U31: ='FCL Carbon Flux'!BA3 ->  | V31: ='FCL Carbon Flux'!BB3 ->  | W31: ='FCL Carbon Flux'!BC3 ->  | X31: ='FCL Carbon Flux'!BD3 ->  | Y31: ='FCL Carbon Flux'!BE3 ->  | Z31: ='FCL Carbon Flux'!BF3 ->  | AA31: ='FCL Carbon Flux'!BG3 ->  | AB31: ='FCL Carbon Flux'!BH3 ->  | AC31: ='FCL Carbon Flux'!BI3 ->  | AD31: ='FCL Carbon Flux'!BJ3 ->  | AE31: ='FCL Carbon Flux'!BK3 ->  | AF31: ='FCL Carbon Flux'!BL3 ->  | AG31: ='FCL Carbon Flux'!BM3 ->  | AH31: ='FCL Carbon Flux'!BN3 ->  | AI31: ='FCL Carbon Flux'!BO3 -> 
C32: Deadwood | E32: ='FCL Carbon Flux'!AK4 ->  | F32: ='FCL Carbon Flux'!AL4 ->  | G32: ='FCL Carbon Flux'!AM4 ->  | H32: ='FCL Carbon Flux'!AN4 ->  | I32: ='FCL Carbon Flux'!AO4 ->  | J32: ='FCL Carbon Flux'!AP4 ->  | K32: ='FCL Carbon Flux'!AQ4 ->  | L32: ='FCL Carbon Flux'!AR4 ->  | M32: ='FCL Carbon Flux'!AS4 ->  | N32: ='FCL Carbon Flux'!AT4 ->  | O32: ='FCL Carbon Flux'!AU4 ->  | P32: ='FCL Carbon Flux'!AV4 ->  | Q32: ='FCL Carbon Flux'!AW4 ->  | R32: ='FCL Carbon Flux'!AX4 ->  | S32: ='FCL Carbon Flux'!AY4 ->  | T32: ='FCL Carbon Flux'!AZ4 ->  | U32: ='FCL Carbon Flux'!BA4 ->  | V32: ='FCL Carbon Flux'!BB4 ->  | W32: ='FCL Carbon Flux'!BC4 ->  | X32: ='FCL Carbon Flux'!BD4 ->  | Y32: ='FCL Carbon Flux'!BE4 ->  | Z32: ='FCL Carbon Flux'!BF4 ->  | AA32: ='FCL Carbon Flux'!BG4 ->  | AB32: ='FCL Carbon Flux'!BH4 ->  | AC32: ='FCL Carbon Flux'!BI4 ->  | AD32: ='FCL Carbon Flux'!BJ4 ->  | AE32: ='FCL Carbon Flux'!BK4 ->  | AF32: ='FCL Carbon Flux'!BL4 ->  | AG32: ='FCL Carbon Flux'!BM4 ->  | AH32: ='FCL Carbon Flux'!BN4 ->  | AI32: ='FCL Carbon Flux'!BO4 -> 
C33: Litter | E33: ='FCL Carbon Flux'!AK5 ->  | F33: ='FCL Carbon Flux'!AL5 ->  | G33: ='FCL Carbon Flux'!AM5 ->  | H33: ='FCL Carbon Flux'!AN5 ->  | I33: ='FCL Carbon Flux'!AO5 ->  | J33: ='FCL Carbon Flux'!AP5 ->  | K33: ='FCL Carbon Flux'!AQ5 ->  | L33: ='FCL Carbon Flux'!AR5 ->  | M33: ='FCL Carbon Flux'!AS5 ->  | N33: ='FCL Carbon Flux'!AT5 ->  | O33: ='FCL Carbon Flux'!AU5 ->  | P33: ='FCL Carbon Flux'!AV5 ->  | Q33: ='FCL Carbon Flux'!AW5 ->  | R33: ='FCL Carbon Flux'!AX5 ->  | S33: ='FCL Carbon Flux'!AY5 ->  | T33: ='FCL Carbon Flux'!AZ5 ->  | U33: ='FCL Carbon Flux'!BA5 ->  | V33: ='FCL Carbon Flux'!BB5 ->  | W33: ='FCL Carbon Flux'!BC5 ->  | X33: ='FCL Carbon Flux'!BD5 ->  | Y33: ='FCL Carbon Flux'!BE5 ->  | Z33: ='FCL Carbon Flux'!BF5 ->  | AA33: ='FCL Carbon Flux'!BG5 ->  | AB33: ='FCL Carbon Flux'!BH5 ->  | AC33: ='FCL Carbon Flux'!BI5 ->  | AD33: ='FCL Carbon Flux'!BJ5 ->  | AE33: ='FCL Carbon Flux'!BK5 ->  | AF33: ='FCL Carbon Flux'!BL5 ->  | AG33: ='FCL Carbon Flux'!BM5 ->  | AH33: ='FCL Carbon Flux'!BN5 ->  | AI33: ='FCL Carbon Flux'!BO5 -> 
C34: Soil (Mineral) | E34: ='FCL Carbon Flux'!AK6 ->  | F34: ='FCL Carbon Flux'!AL6 ->  | G34: ='FCL Carbon Flux'!AM6 ->  | H34: ='FCL Carbon Flux'!AN6 ->  | I34: ='FCL Carbon Flux'!AO6 ->  | J34: ='FCL Carbon Flux'!AP6 ->  | K34: ='FCL Carbon Flux'!AQ6 ->  | L34: ='FCL Carbon Flux'!AR6 ->  | M34: ='FCL Carbon Flux'!AS6 ->  | N34: ='FCL Carbon Flux'!AT6 ->  | O34: ='FCL Carbon Flux'!AU6 ->  | P34: ='FCL Carbon Flux'!AV6 ->  | Q34: ='FCL Carbon Flux'!AW6 ->  | R34: ='FCL Carbon Flux'!AX6 ->  | S34: ='FCL Carbon Flux'!AY6 ->  | T34: ='FCL Carbon Flux'!AZ6 ->  | U34: ='FCL Carbon Flux'!BA6 ->  | V34: ='FCL Carbon Flux'!BB6 ->  | W34: ='FCL Carbon Flux'!BC6 ->  | X34: ='FCL Carbon Flux'!BD6 ->  | Y34: ='FCL Carbon Flux'!BE6 ->  | Z34: ='FCL Carbon Flux'!BF6 ->  | AA34: ='FCL Carbon Flux'!BG6 ->  | AB34: ='FCL Carbon Flux'!BH6 ->  | AC34: ='FCL Carbon Flux'!BI6 ->  | AD34: ='FCL Carbon Flux'!BJ6 ->  | AE34: ='FCL Carbon Flux'!BK6 ->  | AF34: ='FCL Carbon Flux'!BL6 ->  | AG34: ='FCL Carbon Flux'!BM6 ->  | AH34: ='FCL Carbon Flux'!BN6 ->  | AI34: ='FCL Carbon Flux'!BO6 -> 
C35: Total | E35: =SUM(E30:E34) ->  | F35: =SUM(F30:F34) -> 

Sheet Urban Trees
A1: ="3. Urban Trees in "&StateName -> 3. Urban Trees in Select a State . . .
B9: Year | D9: Total Urban Area | F9: Percent of Urban Area with Tree Cover | H9: hectare/ km2 | J9: Carbon Sequestration Factor | L9: Carbon Sequestration
D10: (km2) | J10: (metric ton C/hectare/year) | L10: (MMTCO2E)
A12: 4 | B12: 1990 | E12: x | G12: x | H12: 100 | I12: x | J12: =Control!$F$20 -> 0 | K12: = | L12: =((D12*F12*H12*J12)*CO2_C)*10^-6 -> 0
A14: =A12+1 -> 5 | B14: =B12+1 -> 1991 | E14: x | G14: x | H14: 100 | I14: x | J14: =Control!$F$20 -> 0 | K14: = | L14: =((D14*F14*H14*J14)*CO2_C)*10^-6 -> 0
A16: =A14+1 -> 6 | B16: =B14+1 -> 1992 | E16: x | G16: x | H16: 100 | I16: x | J16: =Control!$F$20 -> 0 | K16: = | L16: =((D16*F16*H16*J16)*CO2_C)*10^-6 -> 0
A18: =A16+1 -> 7 | B18: =B16+1 -> 1993 | E18: x | G18: x | H18: 100 | I18: x | J18: =Control!$F$20 -> 0 | K18: = | L18: =((D18*F18*H18*J18)*CO2_C)*10^-6 -> 0
A20: =A18+1 -> 8 | B20: =B18+1 -> 1994 | E20: x | G20: x | H20: 100 | I20: x | J20: =Control!$F$20 -> 0 | K20: = | L20: =((D20*F20*H20*J20)*CO2_C)*10^-6 -> 0
A22: =A20+1 -> 9 | B22: =B20+1 -> 1995 | E22: x | G22: x | H22: 100 | I22: x | J22: =Control!$F$20 -> 0 | K22: = | L22: =((D22*F22*H22*J22)*CO2_C)*10^-6 -> 0
A24: =A22+1 -> 10 | B24: =B22+1 -> 1996 | E24: x | G24: x | H24: 100 | I24: x | J24: =Control!$F$20 -> 0 | K24: = | L24: =((D24*F24*H24*J24)*CO2_C)*10^-6 -> 0
A26: =A24+1 -> 11 | B26: =B24+1 -> 1997 | E26: x | G26: x | H26: 100 | I26: x | J26: =Control!$F$20 -> 0 | K26: = | L26: =((D26*F26*H26*J26)*CO2_C)*10^-6 -> 0
A28: =A26+1 -> 12 | B28: =B26+1 -> 1998 | E28: x | G28: x | H28: 100 | I28: x | J28: =Control!$F$20 -> 0 | K28: = | L28: =((D28*F28*H28*J28)*CO2_C)*10^-6 -> 0
A30: =A28+1 -> 13 | B30: =B28+1 -> 1999 | E30: x | G30: x | H30: 100 | I30: x | J30: =Control!$F$20 -> 0 | K30: = | L30: =((D30*F30*H30*J30)*CO2_C)*10^-6 -> 0
A32: =A30+1 -> 14 | B32: =B30+1 -> 2000 | E32: x | G32: x | H32: 100 | I32: x | J32: =Control!$F$20 -> 0 | K32: = | L32: =((D32*F32*H32*J32)*CO2_C)*10^-6 -> 0
A34: =A32+1 -> 15 | B34: =B32+1 -> 2001 | E34: x | G34: x | H34: 100 | I34: x | J34: =Control!$F$20 -> 0 | K34: = | L34: =((D34*F34*H34*J34)*CO2_C)*10^-6 -> 0
A36: =A34+1 -> 16 | B36: =B34+1 -> 2002 | E36: x | G36: x | H36: 100 | I36: x | J36: =Control!$F$20 -> 0 | K36: = | L36: =((D36*F36*H36*J36)*CO2_C)*10^-6 -> 0
A38: =A36+1 -> 17 | B38: =B36+1 -> 2003 | E38: x | G38: x | H38: 100 | I38: x | J38: =Control!$F$20 -> 0 | K38: = | L38: =((D38*F38*H38*J38)*CO2_C)*10^-6 -> 0
A40: =A38+1 -> 18 | B40: =B38+1 -> 2004 | E40: x | G40: x | H40: 100 | I40: x | J40: =Control!$F$20 -> 0 | K40: = | L40: =((D40*F40*H40*J40)*CO2_C)*10^-6 -> 0
A42: =A40+1 -> 19 | B42: =B40+1 -> 2005 | E42: x | G42: x | H42: 100 | I42: x | J42: =Control!$F$20 -> 0 | K42: = | L42: =((D42*F42*H42*J42)*CO2_C)*10^-6 -> 0
A44: =A42+1 -> 20 | B44: =B42+1 -> 2006 | E44: x | G44: x | H44: 100 | I44: x | J44: =Control!$F$20 -> 0 | K44: = | L44: =((D44*F44*H44*J44)*CO2_C)*10^-6 -> 0
A46: =A44+1 -> 21 | B46: =B44+1 -> 2007 | E46: x | G46: x | H46: 100 | I46: x | J46: =Control!$F$20 -> 0 | K46: = | L46: =((D46*F46*H46*J46)*CO2_C)*10^-6 -> 0
A48: =A46+1 -> 22 | B48: =B46+1 -> 2008 | E48: x | G48: x | H48: 100 | I48: x | J48: =Control!$F$20 -> 0 | K48: = | L48: =((D48*F48*H48*J48)*CO2_C)*10^-6 -> 0
A50: =A48+1 -> 23 | B50: =B48+1 -> 2009 | E50: x | G50: x | H50: 100 | I50: x | J50: =Control!$F$20 -> 0 | K50: = | L50: =((D50*F50*H50*J50)*CO2_C)*10^-6 -> 0
A52: =A50+1 -> 24 | B52: =B50+1 -> 2010 | E52: x | G52: x | H52: 100 | I52: x | J52: =Control!$F$20 -> 0 | K52: = | L52: =((D52*F52*H52*J52)*CO2_C)*10^-6 -> 0
A54: =A52+1 -> 25 | B54: =B52+1 -> 2011 | E54: x | G54: x | H54: 100 | I54: x | J54: =Control!$F$20 -> 0 | K54: = | L54: =((D54*F54*H54*J54)*CO2_C)*10^-6 -> 0
A56: =A54+1 -> 26 | B56: =B54+1 -> 2012 | E56: x | G56: x | H56: 100 | I56: x | J56: =Control!$F$20 -> 0 | K56: = | L56: =((D56*F56*H56*J56)*CO2_C)*10^-6 -> 0
A58: =A56+1 -> 27 | B58: =B56+1 -> 2013 | E58: x | G58: x | H58: 100 | I58: x | J58: =Control!$F$20 -> 0 | K58: = | L58: =((D58*F58*H58*J58)*CO2_C)*10^-6 -> 0
A60: =A58+1 -> 28 | B60: =B58+1 -> 2014 | E60: x | G60: x | H60: 100 | I60: x | J60: =Control!$F$20 -> 0 | K60: = | L60: =((D60*F60*H60*J60)*CO2_C)*10^-6 -> 0
A62: =A60+1 -> 29 | B62: =B60+1 -> 2015 | E62: x | G62: x | H62: 100 | I62: x | J62: =Control!$F$20 -> 0 | K62: = | L62: =((D62*F62*H62*J62)*CO2_C)*10^-6 -> 0
A64: =A62+1 -> 30 | B64: =B62+1 -> 2016 | E64: x | G64: x | H64: 100 | I64: x | J64: =Control!$F$20 -> 0 | K64: = | L64: =((D64*F64*H64*J64)*CO2_C)*10^-6 -> 0
A66: =A64+1 -> 31 | B66: =B64+1 -> 2017 | E66: x | G66: x | H66: 100 | I66: x | J66: =Control!$F$20 -> 0 | K66: = | L66: =((D66*F66*H66*J66)*CO2_C)*10^-6 -> 0
A68: =A66+1 -> 32 | B68: =B66+1 -> 2018 | E68: x | G68: x | H68: 100 | I68: x | J68: =Control!$F$20 -> 0 | K68: = | L68: =((D68*F68*H68*J68)*CO2_C)*10^-6 -> 0
A70: =A68+1 -> 33 | B70: =B68+1 -> 2019 | E70: x | G70: x | H70: 100 | I70: x | J70: =Control!$F$20 -> 0 | K70: = | L70: =((D70*F70*H70*J70)*CO2_C)*10^-6 -> 0
A72: =A70+1 -> 34 | B72: =B70+1 -> 2020 | E72: x | G72: x | H72: 100 | I72: x | J72: =Control!$F$20 -> 0 | K72: = | L72: =((D72*F72*H72*J72)*CO2_C)*10^-6 -> 0

Sheet Settlement Soils
A1: ="4. N2O from Settlement Soils in "&StateName -> 4. N2O from Settlement Soils in Select a State . . .
B6: Year | D6: Total Synthetic Fertilizer Applied to Settlements | F6: Emission Factor | H6: N2O-N | J6: Direct N2O Emissions | L6: N2O GWP | N6: Carbon Dioxide Emissions | P6: Total Carbon Dioxide Emissions
D7: (Metric Tons N) | F7: (percent) | J7: (Metric Tons N2O Emitted) | N7: (MTCO2E) | P7: (MMTCO2E)
A9: 2 | B9: 1990 | E9: x | F9: =Control!$F$24 -> 0 | G9: x | H9: =(N2O_N2) -> 1.571428571 | I9: = | J9: =D9*F9*H9 -> 0 | K9: x | L9: =Control!$C$74 -> 298 | M9: x | N9: =J9*L9 -> 0 | O9: = | P9: =N9*10^-6 -> 0
A11: 3 | B11: =B9+1 -> 1991 | E11: x | F11: =Control!$F$24 -> 0 | G11: x | H11: =(N2O_N2) -> 1.571428571 | I11: = | J11: =D11*F11*H11 -> 0 | K11: x | L11: =Control!$C$74 -> 298 | M11: x | N11: =J11*L11 -> 0 | O11: = | P11: =N11*10^-6 -> 0
A13: 4 | B13: =B11+1 -> 1992 | E13: x | F13: =Control!$F$24 -> 0 | G13: x | H13: =(N2O_N2) -> 1.571428571 | I13: = | J13: =D13*F13*H13 -> 0 | K13: x | L13: =Control!$C$74 -> 298 | M13: x | N13: =J13*L13 -> 0 | O13: = | P13: =N13*10^-6 -> 0
A15: 5 | B15: =B13+1 -> 1993 | E15: x | F15: =Control!$F$24 -> 0 | G15: x | H15: =(N2O_N2) -> 1.571428571 | I15: = | J15: =D15*F15*H15 -> 0 | K15: x | L15: =Control!$C$74 -> 298 | M15: x | N15: =J15*L15 -> 0 | O15: = | P15: =N15*10^-6 -> 0
A17: 6 | B17: =B15+1 -> 1994 | E17: x | F17: =Control!$F$24 -> 0 | G17: x | H17: =(N2O_N2) -> 1.571428571 | I17: = | J17: =D17*F17*H17 -> 0 | K17: x | L17: =Control!$C$74 -> 298 | M17: x | N17: =J17*L17 -> 0 | O17: = | P17: =N17*10^-6 -> 0
A19: 7 | B19: =B17+1 -> 1995 | E19: x | F19: =Control!$F$24 -> 0 | G19: x | H19: =(N2O_N2) -> 1.571428571 | I19: = | J19: =D19*F19*H19 -> 0 | K19: x | L19: =Control!$C$74 -> 298 | M19: x | N19: =J19*L19 -> 0 | O19: = | P19: =N19*10^-6 -> 0
A21: 8 | B21: =B19+1 -> 1996 | E21: x | F21: =Control!$F$24 -> 0 | G21: x | H21: =(N2O_N2) -> 1.571428571 | I21: = | J21: =D21*F21*H21 -> 0 | K21: x | L21: =Control!$C$74 -> 298 | M21: x | N21: =J21*L21 -> 0 | O21: = | P21: =N21*10^-6 -> 0
A23: 9 | B23: =B21+1 -> 1997 | E23: x | F23: =Control!$F$24 -> 0 | G23: x | H23: =(N2O_N2) -> 1.571428571 | I23: = | J23: =D23*F23*H23 -> 0 | K23: x | L23: =Control!$C$74 -> 298 | M23: x | N23: =J23*L23 -> 0 | O23: = | P23: =N23*10^-6 -> 0
A25: 10 | B25: =B23+1 -> 1998 | E25: x | F25: =Control!$F$24 -> 0 | G25: x | H25: =(N2O_N2) -> 1.571428571 | I25: = | J25: =D25*F25*H25 -> 0 | K25: x | L25: =Control!$C$74 -> 298 | M25: x | N25: =J25*L25 -> 0 | O25: = | P25: =N25*10^-6 -> 0
A27: 11 | B27: =B25+1 -> 1999 | E27: x | F27: =Control!$F$24 -> 0 | G27: x | H27: =(N2O_N2) -> 1.571428571 | I27: = | J27: =D27*F27*H27 -> 0 | K27: x | L27: =Control!$C$74 -> 298 | M27: x | N27: =J27*L27 -> 0 | O27: = | P27: =N27*10^-6 -> 0
A29: 12 | B29: =B27+1 -> 2000 | E29: x | F29: =Control!$F$24 -> 0 | G29: x | H29: =(N2O_N2) -> 1.571428571 | I29: = | J29: =D29*F29*H29 -> 0 | K29: x | L29: =Control!$C$74 -> 298 | M29: x | N29: =J29*L29 -> 0 | O29: = | P29: =N29*10^-6 -> 0
A31: 13 | B31: =B29+1 -> 2001 | E31: x | F31: =Control!$F$24 -> 0 | G31: x | H31: =(N2O_N2) -> 1.571428571 | I31: = | J31: =D31*F31*H31 -> 0 | K31: x | L31: =Control!$C$74 -> 298 | M31: x | N31: =J31*L31 -> 0 | O31: = | P31: =N31*10^-6 -> 0
A33: 14 | B33: =B31+1 -> 2002 | E33: x | F33: =Control!$F$24 -> 0 | G33: x | H33: =(N2O_N2) -> 1.571428571 | I33: = | J33: =D33*F33*H33 -> 0 | K33: x | L33: =Control!$C$74 -> 298 | M33: x | N33: =J33*L33 -> 0 | O33: = | P33: =N33*10^-6 -> 0
A35: 15 | B35: =B33+1 -> 2003 | E35: x | F35: =Control!$F$24 -> 0 | G35: x | H35: =(N2O_N2) -> 1.571428571 | I35: = | J35: =D35*F35*H35 -> 0 | K35: x | L35: =Control!$C$74 -> 298 | M35: x | N35: =J35*L35 -> 0 | O35: = | P35: =N35*10^-6 -> 0
A37: 16 | B37: =B35+1 -> 2004 | E37: x | F37: =Control!$F$24 -> 0 | G37: x | H37: =(N2O_N2) -> 1.571428571 | I37: = | J37: =D37*F37*H37 -> 0 | K37: x | L37: =Control!$C$74 -> 298 | M37: x | N37: =J37*L37 -> 0 | O37: = | P37: =N37*10^-6 -> 0
A39: 17 | B39: =B37+1 -> 2005 | E39: x | F39: =Control!$F$24 -> 0 | G39: x | H39: =(N2O_N2) -> 1.571428571 | I39: = | J39: =D39*F39*H39 -> 0 | K39: x | L39: =Control!$C$74 -> 298 | M39: x | N39: =J39*L39 -> 0 | O39: = | P39: =N39*10^-6 -> 0
A41: 18 | B41: =B39+1 -> 2006 | E41: x | F41: =Control!$F$24 -> 0 | G41: x | H41: =(N2O_N2) -> 1.571428571 | I41: = | J41: =D41*F41*H41 -> 0 | K41: x | L41: =Control!$C$74 -> 298 | M41: x | N41: =J41*L41 -> 0 | O41: = | P41: =N41*10^-6 -> 0
A43: 19 | B43: =B41+1 -> 2007 | E43: x | F43: =Control!$F$24 -> 0 | G43: x | H43: =(N2O_N2) -> 1.571428571 | I43: = | J43: =D43*F43*H43 -> 0 | K43: x | L43: =Control!$C$74 -> 298 | M43: x | N43: =J43*L43 -> 0 | O43: = | P43: =N43*10^-6 -> 0
A45: 20 | B45: =B43+1 -> 2008 | E45: x | F45: =Control!$F$24 -> 0 | G45: x | H45: =(N2O_N2) -> 1.571428571 | I45: = | J45: =D45*F45*H45 -> 0 | K45: x | L45: =Control!$C$74 -> 298 | M45: x | N45: =J45*L45 -> 0 | O45: = | P45: =N45*10^-6 -> 0
A47: 21 | B47: =B45+1 -> 2009 | E47: x | F47: =Control!$F$24 -> 0 | G47: x | H47: =(N2O_N2) -> 1.571428571 | I47: = | J47: =D47*F47*H47 -> 0 | K47: x | L47: =Control!$C$74 -> 298 | M47: x | N47: =J47*L47 -> 0 | O47: = | P47: =N47*10^-6 -> 0
A49: 22 | B49: =B47+1 -> 2010 | E49: x | F49: =Control!$F$24 -> 0 | G49: x | H49: =(N2O_N2) -> 1.571428571 | I49: = | J49: =D49*F49*H49 -> 0 | K49: x | L49: =Control!$C$74 -> 298 | M49: x | N49: =J49*L49 -> 0 | O49: = | P49: =N49*10^-6 -> 0
A51: 23 | B51: =B49+1 -> 2011 | E51: x | F51: =Control!$F$24 -> 0 | G51: x | H51: =(N2O_N2) -> 1.571428571 | I51: = | J51: =D51*F51*H51 -> 0 | K51: x | L51: =Control!$C$74 -> 298 | M51: x | N51: =J51*L51 -> 0 | O51: = | P51: =N51*10^-6 -> 0
A53: 24 | B53: =B51+1 -> 2012 | E53: x | F53: =Control!$F$24 -> 0 | G53: x | H53: =(N2O_N2) -> 1.571428571 | I53: = | J53: =D53*F53*H53 -> 0 | K53: x | L53: =Control!$C$74 -> 298 | M53: x | N53: =J53*L53 -> 0 | O53: = | P53: =N53*10^-6 -> 0
A55: 25 | B55: =B53+1 -> 2013 | E55: x | F55: =Control!$F$24 -> 0 | G55: x | H55: =(N2O_N2) -> 1.571428571 | I55: = | J55: =D55*F55*H55 -> 0 | K55: x | L55: =Control!$C$74 -> 298 | M55: x | N55: =J55*L55 -> 0 | O55: = | P55: =N55*10^-6 -> 0
A57: 26 | B57: =B55+1 -> 2014 | E57: x | F57: =Control!$F$24 -> 0 | G57: x | H57: =(N2O_N2) -> 1.571428571 | I57: = | J57: =D57*F57*H57 -> 0 | K57: x | L57: =Control!$C$74 -> 298 | M57: x | N57: =J57*L57 -> 0 | O57: = | P57: =N57*10^-6 -> 0
A59: 27 | B59: =B57+1 -> 2015 | E59: x | F59: =Control!$F$24 -> 0 | G59: x | H59: =(N2O_N2) -> 1.571428571 | I59: = | J59: =D59*F59*H59 -> 0 | K59: x | L59: =Control!$C$74 -> 298 | M59: x | N59: =J59*L59 -> 0 | O59: = | P59: =N59*10^-6 -> 0
A61: 28 | B61: =B59+1 -> 2016 | E61: x | F61: =Control!$F$24 -> 0 | G61: x | H61: =(N2O_N2) -> 1.571428571 | I61: = | J61: =D61*F61*H61 -> 0 | K61: x | L61: =Control!$C$74 -> 298 | M61: x | N61: =J61*L61 -> 0 | O61: = | P61: =N61*10^-6 -> 0
A63: 29 | B63: =B61+1 -> 2017 | E63: x | F63: =Control!$F$24 -> 0 | G63: x | H63: =(N2O_N2) -> 1.571428571 | I63: = | J63: =D63*F63*H63 -> 0 | K63: x | L63: =Control!$C$74 -> 298 | M63: x | N63: =J63*L63 -> 0 | O63: = | P63: =N63*10^-6 -> 0
A65: 30 | B65: =B63+1 -> 2018 | E65: x | F65: =Control!$F$24 -> 0 | G65: x | H65: =(N2O_N2) -> 1.571428571 | I65: = | J65: =D65*F65*H65 -> 0 | K65: x | L65: =Control!$C$74 -> 298 | M65: x | N65: =J65*L65 -> 0 | O65: = | P65: =N65*10^-6 -> 0
A67: 31 | B67: =B65+1 -> 2019 | E67: x | F67: =Control!$F$24 -> 0 | G67: x | H67: =(N2O_N2) -> 1.571428571 | I67: = | J67: =D67*F67*H67 -> 0 | K67: x | L67: =Control!$C$74 -> 298 | M67: x | N67: =J67*L67 -> 0 | O67: = | P67: =N67*10^-6 -> 0
A69: 32 | B69: =B67+1 -> 2020 | E69: x | F69: =Control!$F$24 -> 0 | G69: x | H69: =(N2O_N2) -> 1.571428571 | I69: = | J69: =D69*F69*H69 -> 0 | K69: x | L69: =Control!$C$74 -> 298 | M69: x | N69: =J69*L69 -> 0 | O69: = | P69: =N69*10^-6 -> 0

Sheet Burning CH4
A1: ="5a. Methane Emissions from Forest Fires in "&StateName -> 5a. Methane Emissions from Forest Fires in Select a State . . .
A7: Forest Fires | D7: 1990
B8: Forest Type | D8: Area Burned (ha) | F8: Average Biomass Density (kg d.m. / ha) | H8: Combustion efficiency | J8: Emission Factor (g/kg dry matter burned) | L8: MTCH4 Emitted | N8: CH4 GWP | P8: Emissions MMTCO2E
B9: Primary tropical forests | E9: x | F9: =Control!$F$46 -> 0 | G9: x | H9: =Control!$F$35 -> 0 | I9: x | J9: =Control!$F$31 -> 0 | K9: = | L9: =D9*F9*H9*J9*10^-6 -> 0 | M9: x | N9: =Control!$C$73 -> 25 | O9: = | P9: =L9*N9*10^-6 -> 0
B10: Secondary tropical forests | E10: x | F10: =Control!$F$46 -> 0 | G10: x | H10: =Control!$F$36 -> 0 | I10: x | J10: =Control!$F$31 -> 0 | K10: = | L10: =D10*F10*H10*J10*10^-6 -> 0 | M10: x | N10: =Control!$C$73 -> 25 | O10: = | P10: =L10*N10*10^-6 -> 0
B11: Tertiary tropical forests | E11: x | F11: =Control!$F$46 -> 0 | G11: x | H11: =Control!$F$37 -> 0 | I11: x | J11: =Control!$F$31 -> 0 | K11: = | L11: 0 | M11: x | N11: =Control!$C$73 -> 25 | O11: = | P11: =L11*N11*10^-6 -> 0
B12: Boreal forest | E12: x | F12: =Control!$F$46 -> 0 | G12: x | H12: =Control!$F$38 -> 0 | I12: x | J12: =Control!$F$31 -> 0 | K12: = | L12: 0 | M12: x | N12: =Control!$C$73 -> 25 | O12: = | P12: 0
B13: Eucalypt forests | E13: x | F13: =Control!$F$46 -> 0 | G13: x | H13: =Control!$F$39 -> 0 | I13: x | J13: =Control!$F$31 -> 0 | K13: = | L13: 0 | M13: x | N13: =Control!$C$73 -> 25 | O13: = | P13: 0
B14: Other temperate forests | E14: x | F14: =Control!$F$46 -> 0 | G14: x | H14: =Control!$F$40 -> 0 | I14: x | J14: =Control!$F$31 -> 0 | K14: = | L14: 0 | M14: x | N14: =Control!$C$73 -> 25 | O14: = | P14: 0
B15: Shrublands | E15: x | F15: =Control!$F$46 -> 0 | G15: x | H15: =Control!$F$41 -> 0 | I15: x | J15: =Control!$F$31 -> 0 | K15: = | L15: 0 | M15: x | N15: =Control!$C$73 -> 25 | O15: = | P15: 0
B16: Savanna woodlands (early dry season burns) | E16: x | F16: =Control!$F$46 -> 0 | G16: x | H16: =Control!$F$42 -> 0 | I16: x | J16: =Control!$F$29 -> 0 | K16: = | L16: 0 | M16: x | N16: =Control!$C$73 -> 25 | O16: = | P16: 0
B17: Savanna woodlands (mid/late season burns) | E17: x | F17: =Control!$F$46 -> 0 | G17: x | H17: =Control!$F$43 -> 0 | I17: x | J17: =Control!$F$29 -> 0 | K17: = | L17: 0 | M17: x | N17: =Control!$C$73 -> 25 | O17: = | P17: 0
B18: Total | P18: =SUM(P9:P17) -> 0
A20: Forest Fires | D20: =D7+1 -> 1991
B21: Forest Type | D21: Area Burned (ha) | F21: Average Biomass Density (kg d.m. / ha) | H21: Combustion efficiency | J21: Emission Factor (g/kg dry matter burned) | L21: MTCH4 Emitted | N21: CH4 GWP | P21: Emissions MMTCO2E
B22: Primary tropical forests | E22: x | F22: =Control!$F$46 -> 0 | G22: x | H22: =Control!$F$35 -> 0 | I22: x | J22: =Control!$F$31 -> 0 | K22: = | L22: =D22*F22*H22*J22*10^-6 -> 0 | M22: x | N22: =Control!$C$73 -> 25 | O22: = | P22: =L22*N22*10^-6 -> 0
B23: Secondary tropical forests | E23: x | F23: =Control!$F$46 -> 0 | G23: x | H23: =Control!$F$36 -> 0 | I23: x | J23: =Control!$F$31 -> 0 | K23: = | L23: =D23*F23*H23*J23*10^-6 -> 0 | M23: x | N23: =Control!$C$73 -> 25 | O23: = | P23: =L23*N23*10^-6 -> 0
B24: Tertiary tropical forests | E24: x | F24: =Control!$F$46 -> 0 | G24: x | H24: =Control!$F$37 -> 0 | I24: x | J24: =Control!$F$31 -> 0 | K24: = | L24: 0 | M24: x | N24: =Control!$C$73 -> 25 | O24: = | P24: =L24*N24*10^-6 -> 0
B25: Boreal forest | E25: x | F25: =Control!$F$46 -> 0 | G25: x | H25: =Control!$F$38 -> 0 | I25: x | J25: =Control!$F$31 -> 0 | K25: = | L25: 0 | M25: x | N25: =Control!$C$73 -> 25 | O25: = | P25: 0
B26: Eucalypt forests | E26: x | F26: =Control!$F$46 -> 0 | G26: x | H26: =Control!$F$39 -> 0 | I26: x | J26: =Control!$F$31 -> 0 | K26: = | L26: 0 | M26: x | N26: =Control!$C$73 -> 25 | O26: = | P26: 0
B27: Other temperate forests | E27: x | F27: =Control!$F$46 -> 0 | G27: x | H27: =Control!$F$40 -> 0 | I27: x | J27: =Control!$F$31 -> 0 | K27: = | L27: 0 | M27: x | N27: =Control!$C$73 -> 25 | O27: = | P27: 0
B28: Shrublands | E28: x | F28: =Control!$F$46 -> 0 | G28: x | H28: =Control!$F$41 -> 0 | I28: x | J28: =Control!$F$31 -> 0 | K28: = | L28: 0 | M28: x | N28: =Control!$C$73 -> 25 | O28: = | P28: 0
B29: Savanna woodlands (early dry season burns) | E29: x | F29: =Control!$F$46 -> 0 | G29: x | H29: =Control!$F$42 -> 0 | I29: x | J29: =Control!$F$29 -> 0 | K29: = | L29: 0 | M29: x | N29: =Control!$C$73 -> 25 | O29: = | P29: 0
B30: Savanna woodlands (mid/late season burns) | E30: x | F30: =Control!$F$46 -> 0 | G30: x | H30: =Control!$F$43 -> 0 | I30: x | J30: =Control!$F$29 -> 0 | K30: = | L30: 0 | M30: x | N30: =Control!$C$73 -> 25 | O30: = | P30: 0
B31: Total | P31: =SUM(P22:P30) -> 0
A33: Forest Fires | D33: =D20+1 -> 1992
B34: Forest Type | D34: Area Burned (ha) | F34: Average Biomass Density (kg d.m. / ha) | H34: Combustion efficiency | J34: Emission Factor (g/kg dry matter burned) | L34: MTCH4 Emitted | N34: CH4 GWP | P34: Emissions MMTCO2E
B35: Primary tropical forests | E35: x | F35: =Control!$F$46 -> 0 | G35: x | H35: =Control!$F$35 -> 0 | I35: x | J35: =Control!$F$31 -> 0 | K35: = | L35: =D35*F35*H35*J35*10^-6 -> 0 | M35: x | N35: =Control!$C$73 -> 25 | O35: = | P35: =L35*N35*10^-6 -> 0
B36: Secondary tropical forests | E36: x | F36: =Control!$F$46 -> 0 | G36: x | H36: =Control!$F$36 -> 0 | I36: x | J36: =Control!$F$31 -> 0 | K36: = | L36: =D36*F36*H36*J36*10^-6 -> 0 | M36: x | N36: =Control!$C$73 -> 25 | O36: = | P36: =L36*N36*10^-6 -> 0
B37: Tertiary tropical forests | E37: x | F37: =Control!$F$46 -> 0 | G37: x | H37: =Control!$F$37 -> 0 | I37: x | J37: =Control!$F$31 -> 0 | K37: = | L37: 0 | M37: x | N37: =Control!$C$73 -> 25 | O37: = | P37: =L37*N37*10^-6 -> 0
B38: Boreal forest | E38: x | F38: =Control!$F$46 -> 0 | G38: x | H38: =Control!$F$38 -> 0 | I38: x | J38: =Control!$F$31 -> 0 | K38: = | L38: 0 | M38: x | N38: =Control!$C$73 -> 25 | O38: = | P38: 0
B39: Eucalypt forests | E39: x | F39: =Control!$F$46 -> 0 | G39: x | H39: =Control!$F$39 -> 0 | I39: x | J39: =Control!$F$31 -> 0 | K39: = | L39: 0 | M39: x | N39: =Control!$C$73 -> 25 | O39: = | P39: 0
B40: Other temperate forests | E40: x | F40: =Control!$F$46 -> 0 | G40: x | H40: =Control!$F$40 -> 0 | I40: x | J40: =Control!$F$31 -> 0 | K40: = | L40: 0 | M40: x | N40: =Control!$C$73 -> 25 | O40: = | P40: 0
B41: Shrublands | E41: x | F41: =Control!$F$46 -> 0 | G41: x | H41: =Control!$F$41 -> 0 | I41: x | J41: =Control!$F$31 -> 0 | K41: = | L41: 0 | M41: x | N41: =Control!$C$73 -> 25 | O41: = | P41: 0
B42: Savanna woodlands (early dry season burns) | E42: x | F42: =Control!$F$46 -> 0 | G42: x | H42: =Control!$F$42 -> 0 | I42: x | J42: =Control!$F$29 -> 0 | K42: = | L42: 0 | M42: x | N42: =Control!$C$73 -> 25 | O42: = | P42: 0
B43: Savanna woodlands (mid/late season burns) | E43: x | F43: =Control!$F$46 -> 0 | G43: x | H43: =Control!$F$43 -> 0 | I43: x | J43: =Control!$F$29 -> 0 | K43: = | L43: 0 | M43: x | N43: =Control!$C$73 -> 25 | O43: = | P43: 0
B44: Total | P44: =SUM(P35:P43) -> 0
A46: Forest Fires | D46: =D33+1 -> 1993
B47: Forest Type | D47: Area Burned (ha) | F47: Average Biomass Density (kg d.m. / ha) | H47: Combustion efficiency | J47: Emission Factor (g/kg dry matter burned) | L47: MTCH4 Emitted | N47: CH4 GWP | P47: Emissions MMTCO2E
B48: Primary tropical forests | E48: x | F48: =Control!$F$46 -> 0 | G48: x | H48: =Control!$F$35 -> 0 | I48: x | J48: =Control!$F$31 -> 0 | K48: = | L48: =D48*F48*H48*J48*10^-6 -> 0 | M48: x | N48: =Control!$C$73 -> 25 | O48: = | P48: =L48*N48*10^-6 -> 0
B49: Secondary tropical forests | E49: x | F49: =Control!$F$46 -> 0 | G49: x | H49: =Control!$F$36 -> 0 | I49: x | J49: =Control!$F$31 -> 0 | K49: = | L49: =D49*F49*H49*J49*10^-6 -> 0 | M49: x | N49: =Control!$C$73 -> 25 | O49: = | P49: =L49*N49*10^-6 -> 0
B50: Tertiary tropical forests | E50: x | F50: =Control!$F$46 -> 0 | G50: x | H50: =Control!$F$37 -> 0 | I50: x | J50: =Control!$F$31 -> 0 | K50: = | L50: 0 | M50: x | N50: =Control!$C$73 -> 25 | O50: = | P50: =L50*N50*10^-6 -> 0
B51: Boreal forest | E51: x | F51: =Control!$F$46 -> 0 | G51: x | H51: =Control!$F$38 -> 0 | I51: x | J51: =Control!$F$31 -> 0 | K51: = | L51: 0 | M51: x | N51: =Control!$C$73 -> 25 | O51: = | P51: 0
B52: Eucalypt forests | E52: x | F52: =Control!$F$46 -> 0 | G52: x | H52: =Control!$F$39 -> 0 | I52: x | J52: =Control!$F$31 -> 0 | K52: = | L52: 0 | M52: x | N52: =Control!$C$73 -> 25 | O52: = | P52: 0
B53: Other temperate forests | E53: x | F53: =Control!$F$46 -> 0 | G53: x | H53: =Control!$F$40 -> 0 | I53: x | J53: =Control!$F$31 -> 0 | K53: = | L53: 0 | M53: x | N53: =Control!$C$73 -> 25 | O53: = | P53: 0
B54: Shrublands | E54: x | F54: =Control!$F$46 -> 0 | G54: x | H54: =Control!$F$41 -> 0 | I54: x | J54: =Control!$F$31 -> 0 | K54: = | L54: 0 | M54: x | N54: =Control!$C$73 -> 25 | O54: = | P54: 0
B55: Savanna woodlands (early dry season burns) | E55: x | F55: =Control!$F$46 -> 0 | G55: x | H55: =Control!$F$42 -> 0 | I55: x | J55: =Control!$F$29 -> 0 | K55: = | L55: 0 | M55: x | N55: =Control!$C$73 -> 25 | O55: = | P55: 0
B56: Savanna woodlands (mid/late season burns) | E56: x | F56: =Control!$F$46 -> 0 | G56: x | H56: =Control!$F$43 -> 0 | I56: x | J56: =Control!$F$29 -> 0 | K56: = | L56: 0 | M56: x | N56: =Control!$C$73 -> 25 | O56: = | P56: 0
B57: Total | P57: =SUM(P48:P56) -> 0
A59: Forest Fires | D59: =D46+1 -> 1994
B60: Forest Type | D60: Area Burned (ha) | F60: Average Biomass Density (kg d.m. / ha) | H60: Combustion efficiency | J60: Emission Factor (g/kg dry matter burned) | L60: MTCH4 Emitted | N60: CH4 GWP | P60: Emissions MMTCO2E
B61: Primary tropical forests | E61: x | F61: =Control!$F$46 -> 0 | G61: x | H61: =Control!$F$35 -> 0 | I61: x | J61: =Control!$F$31 -> 0 | K61: = | L61: =D61*F61*H61*J61*10^-6 -> 0 | M61: x | N61: =Control!$C$73 -> 25 | O61: = | P61: =L61*N61*10^-6 -> 0
B62: Secondary tropical forests | E62: x | F62: =Control!$F$46 -> 0 | G62: x | H62: =Control!$F$36 -> 0 | I62: x | J62: =Control!$F$31 -> 0 | K62: = | L62: =D62*F62*H62*J62*10^-6 -> 0 | M62: x | N62: =Control!$C$73 -> 25 | O62: = | P62: =L62*N62*10^-6 -> 0
B63: Tertiary tropical forests | E63: x | F63: =Control!$F$46 -> 0 | G63: x | H63: =Control!$F$37 -> 0 | I63: x | J63: =Control!$F$31 -> 0 | K63: = | L63: 0 | M63: x | N63: =Control!$C$73 -> 25 | O63: = | P63: =L63*N63*10^-6 -> 0
B64: Boreal forest | E64: x | F64: =Control!$F$46 -> 0 | G64: x | H64: =Control!$F$38 -> 0 | I64: x | J64: =Control!$F$31 -> 0 | K64: = | L64: 0 | M64: x | N64: =Control!$C$73 -> 25 | O64: = | P64: 0
B65: Eucalypt forests | E65: x | F65: =Control!$F$46 -> 0 | G65: x | H65: =Control!$F$39 -> 0 | I65: x | J65: =Control!$F$31 -> 0 | K65: = | L65: 0 | M65: x | N65: =Control!$C$73 -> 25 | O65: = | P65: 0
B66: Other temperate forests | E66: x | F66: =Control!$F$46 -> 0 | G66: x | H66: =Control!$F$40 -> 0 | I66: x | J66: =Control!$F$31 -> 0 | K66: = | L66: 0 | M66: x | N66: =Control!$C$73 -> 25 | O66: = | P66: 0
B67: Shrublands | E67: x | F67: =Control!$F$46 -> 0 | G67: x | H67: =Control!$F$41 -> 0 | I67: x | J67: =Control!$F$31 -> 0 | K67: = | L67: 0 | M67: x | N67: =Control!$C$73 -> 25 | O67: = | P67: 0
B68: Savanna woodlands (early dry season burns) | E68: x | F68: =Control!$F$46 -> 0 | G68: x | H68: =Control!$F$42 -> 0 | I68: x | J68: =Control!$F$29 -> 0 | K68: = | L68: 0 | M68: x | N68: =Control!$C$73 -> 25 | O68: = | P68: 0
B69: Savanna woodlands (mid/late season burns) | E69: x | F69: =Control!$F$46 -> 0 | G69: x | H69: =Control!$F$43 -> 0 | I69: x | J69: =Control!$F$29 -> 0 | K69: = | L69: 0 | M69: x | N69: =Control!$C$73 -> 25 | O69: = | P69: 0
B70: Total | P70: =SUM(P61:P69) -> 0
A72: Forest Fires | D72: =D59+1 -> 1995
B73: Forest Type | D73: Area Burned (ha) | F73: Average Biomass Density (kg d.m. / ha) | H73: Combustion efficiency | J73: Emission Factor (g/kg dry matter burned) | L73: MTCH4 Emitted | N73: CH4 GWP | P73: Emissions MMTCO2E
B74: Primary tropical forests | E74: x | F74: =Control!$F$46 -> 0 | G74: x | H74: =Control!$F$35 -> 0 | I74: x | J74: =Control!$F$31 -> 0 | K74: = | L74: =D74*F74*H74*J74*10^-6 -> 0 | M74: x | N74: =Control!$C$73 -> 25 | O74: = | P74: =L74*N74*10^-6 -> 0
B75: Secondary tropical forests | E75: x | F75: =Control!$F$46 -> 0 | G75: x | H75: =Control!$F$36 -> 0 | I75: x | J75: =Control!$F$31 -> 0 | K75: = | L75: =D75*F75*H75*J75*10^-6 -> 0 | M75: x | N75: =Control!$C$73 -> 25 | O75: = | P75: =L75*N75*10^-6 -> 0
B76: Tertiary tropical forests | E76: x | F76: =Control!$F$46 -> 0 | G76: x | H76: =Control!$F$37 -> 0 | I76: x | J76: =Control!$F$31 -> 0 | K76: = | L76: 0 | M76: x | N76: =Control!$C$73 -> 25 | O76: = | P76: =L76*N76*10^-6 -> 0
B77: Boreal forest | E77: x | F77: =Control!$F$46 -> 0 | G77: x | H77: =Control!$F$38 -> 0 | I77: x | J77: =Control!$F$31 -> 0 | K77: = | L77: 0 | M77: x | N77: =Control!$C$73 -> 25 | O77: = | P77: 0
B78: Eucalypt forests | E78: x | F78: =Control!$F$46 -> 0 | G78: x | H78: =Control!$F$39 -> 0 | I78: x | J78: =Control!$F$31 -> 0 | K78: = | L78: 0 | M78: x | N78: =Control!$C$73 -> 25 | O78: = | P78: 0
B79: Other temperate forests | E79: x | F79: =Control!$F$46 -> 0 | G79: x | H79: =Control!$F$40 -> 0 | I79: x | J79: =Control!$F$31 -> 0 | K79: = | L79: 0 | M79: x | N79: =Control!$C$73 -> 25 | O79: = | P79: 0
B80: Shrublands | E80: x | F80: =Control!$F$46 -> 0 | G80: x | H80: =Control!$F$41 -> 0 | I80: x | J80: =Control!$F$31 -> 0 | K80: = | L80: 0 | M80: x | N80: =Control!$C$73 -> 25 | O80: = | P80: 0
B81: Savanna woodlands (early dry season burns) | E81: x | F81: =Control!$F$46 -> 0 | G81: x | H81: =Control!$F$42 -> 0 | I81: x | J81: =Control!$F$29 -> 0 | K81: = | L81: 0 | M81: x | N81: =Control!$C$73 -> 25 | O81: = | P81: 0
B82: Savanna woodlands (mid/late season burns) | E82: x | F82: =Control!$F$46 -> 0 | G82: x | H82: =Control!$F$43 -> 0 | I82: x | J82: =Control!$F$29 -> 0 | K82: = | L82: 0 | M82: x | N82: =Control!$C$73 -> 25 | O82: = | P82: 0
B83: Total | P83: =SUM(P74:P82) -> 0
A85: Forest Fires | D85: =D72+1 -> 1996
B86: Forest Type | D86: Area Burned (ha) | F86: Average Biomass Density (kg d.m. / ha) | H86: Combustion efficiency | J86: Emission Factor (g/kg dry matter burned) | L86: MTCH4 Emitted | N86: CH4 GWP | P86: Emissions MMTCO2E
B87: Primary tropical forests | E87: x | F87: =Control!$F$46 -> 0 | G87: x | H87: =Control!$F$35 -> 0 | I87: x | J87: =Control!$F$31 -> 0 | K87: = | L87: =D87*F87*H87*J87*10^-6 -> 0 | M87: x | N87: =Control!$C$73 -> 25 | O87: = | P87: =L87*N87*10^-6 -> 0
B88: Secondary tropical forests | E88: x | F88: =Control!$F$46 -> 0 | G88: x | H88: =Control!$F$36 -> 0 | I88: x | J88: =Control!$F$31 -> 0 | K88: = | L88: =D88*F88*H88*J88*10^-6 -> 0 | M88: x | N88: =Control!$C$73 -> 25 | O88: = | P88: =L88*N88*10^-6 -> 0
B89: Tertiary tropical forests | E89: x | F89: =Control!$F$46 -> 0 | G89: x | H89: =Control!$F$37 -> 0 | I89: x | J89: =Control!$F$31 -> 0 | K89: = | L89: 0 | M89: x | N89: =Control!$C$73 -> 25 | O89: = | P89: =L89*N89*10^-6 -> 0
B90: Boreal forest | E90: x | F90: =Control!$F$46 -> 0 | G90: x | H90: =Control!$F$38 -> 0 | I90: x | J90: =Control!$F$31 -> 0 | K90: = | L90: 0 | M90: x | N90: =Control!$C$73 -> 25 | O90: = | P90: 0
B91: Eucalypt forests | E91: x | F91: =Control!$F$46 -> 0 | G91: x | H91: =Control!$F$39 -> 0 | I91: x | J91: =Control!$F$31 -> 0 | K91: = | L91: 0 | M91: x | N91: =Control!$C$73 -> 25 | O91: = | P91: 0
B92: Other temperate forests | E92: x | F92: =Control!$F$46 -> 0 | G92: x | H92: =Control!$F$40 -> 0 | I92: x | J92: =Control!$F$31 -> 0 | K92: = | L92: 0 | M92: x | N92: =Control!$C$73 -> 25 | O92: = | P92: 0
B93: Shrublands | E93: x | F93: =Control!$F$46 -> 0 | G93: x | H93: =Control!$F$41 -> 0 | I93: x | J93: =Control!$F$31 -> 0 | K93: = | L93: 0 | M93: x | N93: =Control!$C$73 -> 25 | O93: = | P93: 0
B94: Savanna woodlands (early dry season burns) | E94: x | F94: =Control!$F$46 -> 0 | G94: x | H94: =Control!$F$42 -> 0 | I94: x | J94: =Control!$F$29 -> 0 | K94: = | L94: 0 | M94: x | N94: =Control!$C$73 -> 25 | O94: = | P94: 0
B95: Savanna woodlands (mid/late season burns) | E95: x | F95: =Control!$F$46 -> 0 | G95: x | H95: =Control!$F$43 -> 0 | I95: x | J95: =Control!$F$29 -> 0 | K95: = | L95: 0 | M95: x | N95: =Control!$C$73 -> 25 | O95: = | P95: 0
B96: Total | P96: =SUM(P87:P95) -> 0
A98: Forest Fires | D98: =D85+1 -> 1997
B99: Forest Type | D99: Area Burned (ha) | F99: Average Biomass Density (kg d.m. / ha) | H99: Combustion efficiency | J99: Emission Factor (g/kg dry matter burned) | L99: MTCH4 Emitted | N99: CH4 GWP | P99: Emissions MMTCO2E
B100: Primary tropical forests | E100: x | F100: =Control!$F$46 -> 0 | G100: x | H100: =Control!$F$35 -> 0 | I100: x | J100: =Control!$F$31 -> 0 | K100: = | L100: =D100*F100*H100*J100*10^-6 -> 0 | M100: x | N100: =Control!$C$73 -> 25 | O100: = | P100: =L100*N100*10^-6 -> 0
B101: Secondary tropical forests | E101: x | F101: =Control!$F$46 -> 0 | G101: x | H101: =Control!$F$36 -> 0 | I101: x | J101: =Control!$F$31 -> 0 | K101: = | L101: =D101*F101*H101*J101*10^-6 -> 0 | M101: x | N101: =Control!$C$73 -> 25 | O101: = | P101: =L101*N101*10^-6 -> 0
B102: Tertiary tropical forests | E102: x | F102: =Control!$F$46 -> 0 | G102: x | H102: =Control!$F$37 -> 0 | I102: x | J102: =Control!$F$31 -> 0 | K102: = | L102: 0 | M102: x | N102: =Control!$C$73 -> 25 | O102: = | P102: =L102*N102*10^-6 -> 0
B103: Boreal forest | E103: x | F103: =Control!$F$46 -> 0 | G103: x | H103: =Control!$F$38 -> 0 | I103: x | J103: =Control!$F$31 -> 0 | K103: = | L103: 0 | M103: x | N103: =Control!$C$73 -> 25 | O103: = | P103: 0
B104: Eucalypt forests | E104: x | F104: =Control!$F$46 -> 0 | G104: x | H104: =Control!$F$39 -> 0 | I104: x | J104: =Control!$F$31 -> 0 | K104: = | L104: 0 | M104: x | N104: =Control!$C$73 -> 25 | O104: = | P104: 0
B105: Other temperate forests | E105: x | F105: =Control!$F$46 -> 0 | G105: x | H105: =Control!$F$40 -> 0 | I105: x | J105: =Control!$F$31 -> 0 | K105: = | L105: 0 | M105: x | N105: =Control!$C$73 -> 25 | O105: = | P105: 0
B106: Shrublands | E106: x | F106: =Control!$F$46 -> 0 | G106: x | H106: =Control!$F$41 -> 0 | I106: x | J106: =Control!$F$31 -> 0 | K106: = | L106: 0 | M106: x | N106: =Control!$C$73 -> 25 | O106: = | P106: 0
B107: Savanna woodlands (early dry season burns) | E107: x | F107: =Control!$F$46 -> 0 | G107: x | H107: =Control!$F$42 -> 0 | I107: x | J107: =Control!$F$29 -> 0 | K107: = | L107: 0 | M107: x | N107: =Control!$C$73 -> 25 | O107: = | P107: 0
B108: Savanna woodlands (mid/late season burns) | E108: x | F108: =Control!$F$46 -> 0 | G108: x | H108: =Control!$F$43 -> 0 | I108: x | J108: =Control!$F$29 -> 0 | K108: = | L108: 0 | M108: x | N108: =Control!$C$73 -> 25 | O108: = | P108: 0
B109: Total | P109: =SUM(P100:P108) -> 0
A111: Forest Fires | D111: =D98+1 -> 1998
B112: Forest Type | D112: Area Burned (ha) | F112: Average Biomass Density (kg d.m. / ha) | H112: Combustion efficiency | J112: Emission Factor (g/kg dry matter burned) | L112: MTCH4 Emitted | N112: CH4 GWP | P112: Emissions MMTCO2E
B113: Primary tropical forests | E113: x | F113: =Control!$F$46 -> 0 | G113: x | H113: =Control!$F$35 -> 0 | I113: x | J113: =Control!$F$31 -> 0 | K113: = | L113: =D113*F113*H113*J113*10^-6 -> 0 | M113: x | N113: =Control!$C$73 -> 25 | O113: = | P113: =L113*N113*10^-6 -> 0
B114: Secondary tropical forests | E114: x | F114: =Control!$F$46 -> 0 | G114: x | H114: =Control!$F$36 -> 0 | I114: x | J114: =Control!$F$31 -> 0 | K114: = | L114: =D114*F114*H114*J114*10^-6 -> 0 | M114: x | N114: =Control!$C$73 -> 25 | O114: = | P114: =L114*N114*10^-6 -> 0
B115: Tertiary tropical forests | E115: x | F115: =Control!$F$46 -> 0 | G115: x | H115: =Control!$F$37 -> 0 | I115: x | J115: =Control!$F$31 -> 0 | K115: = | L115: 0 | M115: x | N115: =Control!$C$73 -> 25 | O115: = | P115: =L115*N115*10^-6 -> 0
B116: Boreal forest | E116: x | F116: =Control!$F$46 -> 0 | G116: x | H116: =Control!$F$38 -> 0 | I116: x | J116: =Control!$F$31 -> 0 | K116: = | L116: 0 | M116: x | N116: =Control!$C$73 -> 25 | O116: = | P116: 0
B117: Eucalypt forests | E117: x | F117: =Control!$F$46 -> 0 | G117: x | H117: =Control!$F$39 -> 0 | I117: x | J117: =Control!$F$31 -> 0 | K117: = | L117: 0 | M117: x | N117: =Control!$C$73 -> 25 | O117: = | P117: 0
B118: Other temperate forests | E118: x | F118: =Control!$F$46 -> 0 | G118: x | H118: =Control!$F$40 -> 0 | I118: x | J118: =Control!$F$31 -> 0 | K118: = | L118: 0 | M118: x | N118: =Control!$C$73 -> 25 | O118: = | P118: 0
B119: Shrublands | E119: x | F119: =Control!$F$46 -> 0 | G119: x | H119: =Control!$F$41 -> 0 | I119: x | J119: =Control!$F$31 -> 0 | K119: = | L119: 0 | M119: x | N119: =Control!$C$73 -> 25 | O119: = | P119: 0
B120: Savanna woodlands (early dry season burns) | E120: x | F120: =Control!$F$46 -> 0 | G120: x | H120: =Control!$F$42 -> 0 | I120: x | J120: =Control!$F$29 -> 0 | K120: = | L120: 0 | M120: x | N120: =Control!$C$73 -> 25 | O120: = | P120: 0
B121: Savanna woodlands (mid/late season burns) | E121: x | F121: =Control!$F$46 -> 0 | G121: x | H121: =Control!$F$43 -> 0 | I121: x | J121: =Control!$F$29 -> 0 | K121: = | L121: 0 | M121: x | N121: =Control!$C$73 -> 25 | O121: = | P121: 0
B122: Total | P122: =SUM(P113:P121) -> 0
A124: Forest Fires | D124: =D111+1 -> 1999
B125: Forest Type | D125: Area Burned (ha) | F125: Average Biomass Density (kg d.m. / ha) | H125: Combustion efficiency | J125: Emission Factor (g/kg dry matter burned) | L125: MTCH4 Emitted | N125: CH4 GWP | P125: Emissions MMTCO2E
B126: Primary tropical forests | E126: x | F126: =Control!$F$46 -> 0 | G126: x | H126: =Control!$F$35 -> 0 | I126: x | J126: =Control!$F$31 -> 0 | K126: = | L126: =D126*F126*H126*J126*10^-6 -> 0 | M126: x | N126: =Control!$C$73 -> 25 | O126: = | P126: =L126*N126*10^-6 -> 0
B127: Secondary tropical forests | E127: x | F127: =Control!$F$46 -> 0 | G127: x | H127: =Control!$F$36 -> 0 | I127: x | J127: =Control!$F$31 -> 0 | K127: = | L127: =D127*F127*H127*J127*10^-6 -> 0 | M127: x | N127: =Control!$C$73 -> 25 | O127: = | P127: =L127*N127*10^-6 -> 0
B128: Tertiary tropical forests | E128: x | F128: =Control!$F$46 -> 0 | G128: x | H128: =Control!$F$37 -> 0 | I128: x | J128: =Control!$F$31 -> 0 | K128: = | L128: 0 | M128: x | N128: =Control!$C$73 -> 25 | O128: = | P128: =L128*N128*10^-6 -> 0
B129: Boreal forest | E129: x | F129: =Control!$F$46 -> 0 | G129: x | H129: =Control!$F$38 -> 0 | I129: x | J129: =Control!$F$31 -> 0 | K129: = | L129: 0 | M129: x | N129: =Control!$C$73 -> 25 | O129: = | P129: 0
B130: Eucalypt forests | E130: x | F130: =Control!$F$46 -> 0 | G130: x | H130: =Control!$F$39 -> 0 | I130: x | J130: =Control!$F$31 -> 0 | K130: = | L130: 0 | M130: x | N130: =Control!$C$73 -> 25 | O130: = | P130: 0
B131: Other temperate forests | E131: x | F131: =Control!$F$46 -> 0 | G131: x | H131: =Control!$F$40 -> 0 | I131: x | J131: =Control!$F$31 -> 0 | K131: = | L131: 0 | M131: x | N131: =Control!$C$73 -> 25 | O131: = | P131: 0
B132: Shrublands | E132: x | F132: =Control!$F$46 -> 0 | G132: x | H132: =Control!$F$41 -> 0 | I132: x | J132: =Control!$F$31 -> 0 | K132: = | L132: 0 | M132: x | N132: =Control!$C$73 -> 25 | O132: = | P132: 0
B133: Savanna woodlands (early dry season burns) | E133: x | F133: =Control!$F$46 -> 0 | G133: x | H133: =Control!$F$42 -> 0 | I133: x | J133: =Control!$F$29 -> 0 | K133: = | L133: 0 | M133: x | N133: =Control!$C$73 -> 25 | O133: = | P133: 0
B134: Savanna woodlands (mid/late season burns) | E134: x | F134: =Control!$F$46 -> 0 | G134: x | H134: =Control!$F$43 -> 0 | I134: x | J134: =Control!$F$29 -> 0 | K134: = | L134: 0 | M134: x | N134: =Control!$C$73 -> 25 | O134: = | P134: 0
B135: Total | P135: =SUM(P126:P134) -> 0
A137: Forest Fires | D137: =D124+1 -> 2000
B138: Forest Type | D138: Area Burned (ha) | F138: Average Biomass Density (kg d.m. / ha) | H138: Combustion efficiency | J138: Emission Factor (g/kg dry matter burned) | L138: MTCH4 Emitted | N138: CH4 GWP | P138: Emissions MMTCO2E
B139: Primary tropical forests | E139: x | F139: =Control!$F$46 -> 0 | G139: x | H139: =Control!$F$35 -> 0 | I139: x | J139: =Control!$F$31 -> 0 | K139: = | L139: =D139*F139*H139*J139*10^-6 -> 0 | M139: x | N139: =Control!$C$73 -> 25 | O139: = | P139: =L139*N139*10^-6 -> 0
B140: Secondary tropical forests | E140: x | F140: =Control!$F$46 -> 0 | G140: x | H140: =Control!$F$36 -> 0 | I140: x | J140: =Control!$F$31 -> 0 | K140: = | L140: =D140*F140*H140*J140*10^-6 -> 0 | M140: x | N140: =Control!$C$73 -> 25 | O140: = | P140: =L140*N140*10^-6 -> 0
B141: Tertiary tropical forests | E141: x | F141: =Control!$F$46 -> 0 | G141: x | H141: =Control!$F$37 -> 0 | I141: x | J141: =Control!$F$31 -> 0 | K141: = | L141: 0 | M141: x | N141: =Control!$C$73 -> 25 | O141: = | P141: =L141*N141*10^-6 -> 0
B142: Boreal forest | E142: x | F142: =Control!$F$46 -> 0 | G142: x | H142: =Control!$F$38 -> 0 | I142: x | J142: =Control!$F$31 -> 0 | K142: = | L142: 0 | M142: x | N142: =Control!$C$73 -> 25 | O142: = | P142: 0
B143: Eucalypt forests | E143: x | F143: =Control!$F$46 -> 0 | G143: x | H143: =Control!$F$39 -> 0 | I143: x | J143: =Control!$F$31 -> 0 | K143: = | L143: 0 | M143: x | N143: =Control!$C$73 -> 25 | O143: = | P143: 0
B144: Other temperate forests | E144: x | F144: =Control!$F$46 -> 0 | G144: x | H144: =Control!$F$40 -> 0 | I144: x | J144: =Control!$F$31 -> 0 | K144: = | L144: 0 | M144: x | N144: =Control!$C$73 -> 25 | O144: = | P144: 0
B145: Shrublands | E145: x | F145: =Control!$F$46 -> 0 | G145: x | H145: =Control!$F$41 -> 0 | I145: x | J145: =Control!$F$31 -> 0 | K145: = | L145: 0 | M145: x | N145: =Control!$C$73 -> 25 | O145: = | P145: 0
B146: Savanna woodlands (early dry season burns) | E146: x | F146: =Control!$F$46 -> 0 | G146: x | H146: =Control!$F$42 -> 0 | I146: x | J146: =Control!$F$29 -> 0 | K146: = | L146: 0 | M146: x | N146: =Control!$C$73 -> 25 | O146: = | P146: 0
B147: Savanna woodlands (mid/late season burns) | E147: x | F147: =Control!$F$46 -> 0 | G147: x | H147: =Control!$F$43 -> 0 | I147: x | J147: =Control!$F$29 -> 0 | K147: = | L147: 0 | M147: x | N147: =Control!$C$73 -> 25 | O147: = | P147: 0
B148: Total | P148: =SUM(P139:P147) -> 0
A150: Forest Fires | D150: =D137+1 -> 2001
B151: Forest Type | D151: Area Burned (ha) | F151: Average Biomass Density (kg d.m. / ha) | H151: Combustion efficiency | J151: Emission Factor (g/kg dry matter burned) | L151: MTCH4 Emitted | N151: CH4 GWP | P151: Emissions MMTCO2E
B152: Primary tropical forests | E152: x | F152: =Control!$F$46 -> 0 | G152: x | H152: =Control!$F$35 -> 0 | I152: x | J152: =Control!$F$31 -> 0 | K152: = | L152: =D152*F152*H152*J152*10^-6 -> 0 | M152: x | N152: =Control!$C$73 -> 25 | O152: = | P152: =L152*N152*10^-6 -> 0
B153: Secondary tropical forests | E153: x | F153: =Control!$F$46 -> 0 | G153: x | H153: =Control!$F$36 -> 0 | I153: x | J153: =Control!$F$31 -> 0 | K153: = | L153: =D153*F153*H153*J153*10^-6 -> 0 | M153: x | N153: =Control!$C$73 -> 25 | O153: = | P153: =L153*N153*10^-6 -> 0
B154: Tertiary tropical forests | E154: x | F154: =Control!$F$46 -> 0 | G154: x | H154: =Control!$F$37 -> 0 | I154: x | J154: =Control!$F$31 -> 0 | K154: = | L154: 0 | M154: x | N154: =Control!$C$73 -> 25 | O154: = | P154: =L154*N154*10^-6 -> 0
B155: Boreal forest | E155: x | F155: =Control!$F$46 -> 0 | G155: x | H155: =Control!$F$38 -> 0 | I155: x | J155: =Control!$F$31 -> 0 | K155: = | L155: 0 | M155: x | N155: =Control!$C$73 -> 25 | O155: = | P155: 0
B156: Eucalypt forests | E156: x | F156: =Control!$F$46 -> 0 | G156: x | H156: =Control!$F$39 -> 0 | I156: x | J156: =Control!$F$31 -> 0 | K156: = | L156: 0 | M156: x | N156: =Control!$C$73 -> 25 | O156: = | P156: 0
B157: Other temperate forests | E157: x | F157: =Control!$F$46 -> 0 | G157: x | H157: =Control!$F$40 -> 0 | I157: x | J157: =Control!$F$31 -> 0 | K157: = | L157: 0 | M157: x | N157: =Control!$C$73 -> 25 | O157: = | P157: 0
B158: Shrublands | E158: x | F158: =Control!$F$46 -> 0 | G158: x | H158: =Control!$F$41 -> 0 | I158: x | J158: =Control!$F$31 -> 0 | K158: = | L158: 0 | M158: x | N158: =Control!$C$73 -> 25 | O158: = | P158: 0
B159: Savanna woodlands (early dry season burns) | E159: x | F159: =Control!$F$46 -> 0 | G159: x | H159: =Control!$F$42 -> 0 | I159: x | J159: =Control!$F$29 -> 0 | K159: = | L159: 0 | M159: x | N159: =Control!$C$73 -> 25 | O159: = | P159: 0
B160: Savanna woodlands (mid/late season burns) | E160: x | F160: =Control!$F$46 -> 0 | G160: x | H160: =Control!$F$43 -> 0 | I160: x | J160: =Control!$F$29 -> 0 | K160: = | L160: 0 | M160: x | N160: =Control!$C$73 -> 25 | O160: = | P160: 0
B161: Total | P161: =SUM(P152:P160) -> 0
A163: Forest Fires | D163: =D150+1 -> 2002
B164: Forest Type | D164: Area Burned (ha) | F164: Average Biomass Density (kg d.m. / ha) | H164: Combustion efficiency | J164: Emission Factor (g/kg dry matter burned) | L164: MTCH4 Emitted | N164: CH4 GWP | P164: Emissions MMTCO2E
B165: Primary tropical forests | E165: x | F165: =Control!$F$46 -> 0 | G165: x | H165: =Control!$F$35 -> 0 | I165: x | J165: =Control!$F$31 -> 0 | K165: = | L165: =D165*F165*H165*J165*10^-6 -> 0 | M165: x | N165: =Control!$C$73 -> 25 | O165: = | P165: =L165*N165*10^-6 -> 0
B166: Secondary tropical forests | E166: x | F166: =Control!$F$46 -> 0 | G166: x | H166: =Control!$F$36 -> 0 | I166: x | J166: =Control!$F$31 -> 0 | K166: = | L166: =D166*F166*H166*J166*10^-6 -> 0 | M166: x | N166: =Control!$C$73 -> 25 | O166: = | P166: =L166*N166*10^-6 -> 0
B167: Tertiary tropical forests | E167: x | F167: =Control!$F$46 -> 0 | G167: x | H167: =Control!$F$37 -> 0 | I167: x | J167: =Control!$F$31 -> 0 | K167: = | L167: 0 | M167: x | N167: =Control!$C$73 -> 25 | O167: = | P167: =L167*N167*10^-6 -> 0
B168: Boreal forest | E168: x | F168: =Control!$F$46 -> 0 | G168: x | H168: =Control!$F$38 -> 0 | I168: x | J168: =Control!$F$31 -> 0 | K168: = | L168: 0 | M168: x | N168: =Control!$C$73 -> 25 | O168: = | P168: 0
B169: Eucalypt forests | E169: x | F169: =Control!$F$46 -> 0 | G169: x | H169: =Control!$F$39 -> 0 | I169: x | J169: =Control!$F$31 -> 0 | K169: = | L169: 0 | M169: x | N169: =Control!$C$73 -> 25 | O169: = | P169: 0
B170: Other temperate forests | E170: x | F170: =Control!$F$46 -> 0 | G170: x | H170: =Control!$F$40 -> 0 | I170: x | J170: =Control!$F$31 -> 0 | K170: = | L170: 0 | M170: x | N170: =Control!$C$73 -> 25 | O170: = | P170: 0
B171: Shrublands | E171: x | F171: =Control!$F$46 -> 0 | G171: x | H171: =Control!$F$41 -> 0 | I171: x | J171: =Control!$F$31 -> 0 | K171: = | L171: 0 | M171: x | N171: =Control!$C$73 -> 25 | O171: = | P171: 0
B172: Savanna woodlands (early dry season burns) | E172: x | F172: =Control!$F$46 -> 0 | G172: x | H172: =Control!$F$42 -> 0 | I172: x | J172: =Control!$F$29 -> 0 | K172: = | L172: 0 | M172: x | N172: =Control!$C$73 -> 25 | O172: = | P172: 0
B173: Savanna woodlands (mid/late season burns) | E173: x | F173: =Control!$F$46 -> 0 | G173: x | H173: =Control!$F$43 -> 0 | I173: x | J173: =Control!$F$29 -> 0 | K173: = | L173: 0 | M173: x | N173: =Control!$C$73 -> 25 | O173: = | P173: 0
B174: Total | P174: =SUM(P165:P173) -> 0
A176: Forest Fires | D176: =D163+1 -> 2003
B177: Forest Type | D177: Area Burned (ha) | F177: Average Biomass Density (kg d.m. / ha) | H177: Combustion efficiency | J177: Emission Factor (g/kg dry matter burned) | L177: MTCH4 Emitted | N177: CH4 GWP | P177: Emissions MMTCO2E
B178: Primary tropical forests | E178: x | F178: =Control!$F$46 -> 0 | G178: x | H178: =Control!$F$35 -> 0 | I178: x | J178: =Control!$F$31 -> 0 | K178: = | L178: =D178*F178*H178*J178*10^-6 -> 0 | M178: x | N178: =Control!$C$73 -> 25 | O178: = | P178: =L178*N178*10^-6 -> 0
B179: Secondary tropical forests | E179: x | F179: =Control!$F$46 -> 0 | G179: x | H179: =Control!$F$36 -> 0 | I179: x | J179: =Control!$F$31 -> 0 | K179: = | L179: =D179*F179*H179*J179*10^-6 -> 0 | M179: x | N179: =Control!$C$73 -> 25 | O179: = | P179: =L179*N179*10^-6 -> 0
B180: Tertiary tropical forests | E180: x | F180: =Control!$F$46 -> 0 | G180: x | H180: =Control!$F$37 -> 0 | I180: x | J180: =Control!$F$31 -> 0 | K180: = | L180: 0 | M180: x | N180: =Control!$C$73 -> 25 | O180: = | P180: =L180*N180*10^-6 -> 0
B181: Boreal forest | E181: x | F181: =Control!$F$46 -> 0 | G181: x | H181: =Control!$F$38 -> 0 | I181: x | J181: =Control!$F$31 -> 0 | K181: = | L181: 0 | M181: x | N181: =Control!$C$73 -> 25 | O181: = | P181: 0
B182: Eucalypt forests | E182: x | F182: =Control!$F$46 -> 0 | G182: x | H182: =Control!$F$39 -> 0 | I182: x | J182: =Control!$F$31 -> 0 | K182: = | L182: 0 | M182: x | N182: =Control!$C$73 -> 25 | O182: = | P182: 0
B183: Other temperate forests | E183: x | F183: =Control!$F$46 -> 0 | G183: x | H183: =Control!$F$40 -> 0 | I183: x | J183: =Control!$F$31 -> 0 | K183: = | L183: 0 | M183: x | N183: =Control!$C$73 -> 25 | O183: = | P183: 0
B184: Shrublands | E184: x | F184: =Control!$F$46 -> 0 | G184: x | H184: =Control!$F$41 -> 0 | I184: x | J184: =Control!$F$31 -> 0 | K184: = | L184: 0 | M184: x | N184: =Control!$C$73 -> 25 | O184: = | P184: 0
B185: Savanna woodlands (early dry season burns) | E185: x | F185: =Control!$F$46 -> 0 | G185: x | H185: =Control!$F$42 -> 0 | I185: x | J185: =Control!$F$29 -> 0 | K185: = | L185: 0 | M185: x | N185: =Control!$C$73 -> 25 | O185: = | P185: 0
B186: Savanna woodlands (mid/late season burns) | E186: x | F186: =Control!$F$46 -> 0 | G186: x | H186: =Control!$F$43 -> 0 | I186: x | J186: =Control!$F$29 -> 0 | K186: = | L186: 0 | M186: x | N186: =Control!$C$73 -> 25 | O186: = | P186: 0
B187: Total | P187: =SUM(P178:P186) -> 0
A189: Forest Fires | D189: =D176+1 -> 2004
B190: Forest Type | D190: Area Burned (ha) | F190: Average Biomass Density (kg d.m. / ha) | H190: Combustion efficiency | J190: Emission Factor (g/kg dry matter burned) | L190: MTCH4 Emitted | N190: CH4 GWP | P190: Emissions MMTCO2E
B191: Primary tropical forests | E191: x | F191: =Control!$F$46 -> 0 | G191: x | H191: =Control!$F$35 -> 0 | I191: x | J191: =Control!$F$31 -> 0 | K191: = | L191: =D191*F191*H191*J191*10^-6 -> 0 | M191: x | N191: =Control!$C$73 -> 25 | O191: = | P191: =L191*N191*10^-6 -> 0
B192: Secondary tropical forests | E192: x | F192: =Control!$F$46 -> 0 | G192: x | H192: =Control!$F$36 -> 0 | I192: x | J192: =Control!$F$31 -> 0 | K192: = | L192: =D192*F192*H192*J192*10^-6 -> 0 | M192: x | N192: =Control!$C$73 -> 25 | O192: = | P192: =L192*N192*10^-6 -> 0
B193: Tertiary tropical forests | E193: x | F193: =Control!$F$46 -> 0 | G193: x | H193: =Control!$F$37 -> 0 | I193: x | J193: =Control!$F$31 -> 0 | K193: = | L193: 0 | M193: x | N193: =Control!$C$73 -> 25 | O193: = | P193: =L193*N193*10^-6 -> 0
B194: Boreal forest | E194: x | F194: =Control!$F$46 -> 0 | G194: x | H194: =Control!$F$38 -> 0 | I194: x | J194: =Control!$F$31 -> 0 | K194: = | L194: 0 | M194: x | N194: =Control!$C$73 -> 25 | O194: = | P194: 0
B195: Eucalypt forests | E195: x | F195: =Control!$F$46 -> 0 | G195: x | H195: =Control!$F$39 -> 0 | I195: x | J195: =Control!$F$31 -> 0 | K195: = | L195: 0 | M195: x | N195: =Control!$C$73 -> 25 | O195: = | P195: 0
B196: Other temperate forests | E196: x | F196: =Control!$F$46 -> 0 | G196: x | H196: =Control!$F$40 -> 0 | I196: x | J196: =Control!$F$31 -> 0 | K196: = | L196: 0 | M196: x | N196: =Control!$C$73 -> 25 | O196: = | P196: 0
B197: Shrublands | E197: x | F197: =Control!$F$46 -> 0 | G197: x | H197: =Control!$F$41 -> 0 | I197: x | J197: =Control!$F$31 -> 0 | K197: = | L197: 0 | M197: x | N197: =Control!$C$73 -> 25 | O197: = | P197: 0
B198: Savanna woodlands (early dry season burns) | E198: x | F198: =Control!$F$46 -> 0 | G198: x | H198: =Control!$F$42 -> 0 | I198: x | J198: =Control!$F$29 -> 0 | K198: = | L198: 0 | M198: x | N198: =Control!$C$73 -> 25 | O198: = | P198: 0
B199: Savanna woodlands (mid/late season burns) | E199: x | F199: =Control!$F$46 -> 0 | G199: x | H199: =Control!$F$43 -> 0 | I199: x | J199: =Control!$F$29 -> 0 | K199: = | L199: 0 | M199: x | N199: =Control!$C$73 -> 25 | O199: = | P199: 0
B200: Total | P200: =SUM(P191:P199) -> 0
A202: Forest Fires | D202: =D189+1 -> 2005
B203: Forest Type | D203: Area Burned (ha) | F203: Average Biomass Density (kg d.m. / ha) | H203: Combustion efficiency | J203: Emission Factor (g/kg dry matter burned) | L203: MTCH4 Emitted | N203: CH4 GWP | P203: Emissions MMTCO2E
B204: Primary tropical forests | E204: x | F204: =Control!$F$46 -> 0 | G204: x | H204: =Control!$F$35 -> 0 | I204: x | J204: =Control!$F$31 -> 0 | K204: = | L204: =D204*F204*H204*J204*10^-6 -> 0 | M204: x | N204: =Control!$C$73 -> 25 | O204: = | P204: =L204*N204*10^-6 -> 0
B205: Secondary tropical forests | E205: x | F205: =Control!$F$46 -> 0 | G205: x | H205: =Control!$F$36 -> 0 | I205: x | J205: =Control!$F$31 -> 0 | K205: = | L205: =D205*F205*H205*J205*10^-6 -> 0 | M205: x | N205: =Control!$C$73 -> 25 | O205: = | P205: =L205*N205*10^-6 -> 0
B206: Tertiary tropical forests | E206: x | F206: =Control!$F$46 -> 0 | G206: x | H206: =Control!$F$37 -> 0 | I206: x | J206: =Control!$F$31 -> 0 | K206: = | L206: 0 | M206: x | N206: =Control!$C$73 -> 25 | O206: = | P206: =L206*N206*10^-6 -> 0
B207: Boreal forest | E207: x | F207: =Control!$F$46 -> 0 | G207: x | H207: =Control!$F$38 -> 0 | I207: x | J207: =Control!$F$31 -> 0 | K207: = | L207: 0 | M207: x | N207: =Control!$C$73 -> 25 | O207: = | P207: 0
B208: Eucalypt forests | E208: x | F208: =Control!$F$46 -> 0 | G208: x | H208: =Control!$F$39 -> 0 | I208: x | J208: =Control!$F$31 -> 0 | K208: = | L208: 0 | M208: x | N208: =Control!$C$73 -> 25 | O208: = | P208: 0
B209: Other temperate forests | E209: x | F209: =Control!$F$46 -> 0 | G209: x | H209: =Control!$F$40 -> 0 | I209: x | J209: =Control!$F$31 -> 0 | K209: = | L209: 0 | M209: x | N209: =Control!$C$73 -> 25 | O209: = | P209: 0
B210: Shrublands | E210: x | F210: =Control!$F$46 -> 0 | G210: x | H210: =Control!$F$41 -> 0 | I210: x | J210: =Control!$F$31 -> 0 | K210: = | L210: 0 | M210: x | N210: =Control!$C$73 -> 25 | O210: = | P210: 0
B211: Savanna woodlands (early dry season burns) | E211: x | F211: =Control!$F$46 -> 0 | G211: x | H211: =Control!$F$42 -> 0 | I211: x | J211: =Control!$F$29 -> 0 | K211: = | L211: 0 | M211: x | N211: =Control!$C$73 -> 25 | O211: = | P211: 0
B212: Savanna woodlands (mid/late season burns) | E212: x | F212: =Control!$F$46 -> 0 | G212: x | H212: =Control!$F$43 -> 0 | I212: x | J212: =Control!$F$29 -> 0 | K212: = | L212: 0 | M212: x | N212: =Control!$C$73 -> 25 | O212: = | P212: 0
B213: Total | P213: =SUM(P204:P212) -> 0
A215: Forest Fires | D215: =D202+1 -> 2006
B216: Forest Type | D216: Area Burned (ha) | F216: Average Biomass Density (kg d.m. / ha) | H216: Combustion efficiency | J216: Emission Factor (g/kg dry matter burned) | L216: MTCH4 Emitted | N216: CH4 GWP | P216: Emissions MMTCO2E
B217: Primary tropical forests | E217: x | F217: =Control!$F$46 -> 0 | G217: x | H217: =Control!$F$35 -> 0 | I217: x | J217: =Control!$F$31 -> 0 | K217: = | L217: =D217*F217*H217*J217*10^-6 -> 0 | M217: x | N217: =Control!$C$73 -> 25 | O217: = | P217: =L217*N217*10^-6 -> 0
B218: Secondary tropical forests | E218: x | F218: =Control!$F$46 -> 0 | G218: x | H218: =Control!$F$36 -> 0 | I218: x | J218: =Control!$F$31 -> 0 | K218: = | L218: =D218*F218*H218*J218*10^-6 -> 0 | M218: x | N218: =Control!$C$73 -> 25 | O218: = | P218: =L218*N218*10^-6 -> 0
B219: Tertiary tropical forests | E219: x | F219: =Control!$F$46 -> 0 | G219: x | H219: =Control!$F$37 -> 0 | I219: x | J219: =Control!$F$31 -> 0 | K219: = | L219: 0 | M219: x | N219: =Control!$C$73 -> 25 | O219: = | P219: =L219*N219*10^-6 -> 0
B220: Boreal forest | E220: x | F220: =Control!$F$46 -> 0 | G220: x | H220: =Control!$F$38 -> 0 | I220: x | J220: =Control!$F$31 -> 0 | K220: = | L220: 0 | M220: x | N220: =Control!$C$73 -> 25 | O220: = | P220: 0
B221: Eucalypt forests | E221: x | F221: =Control!$F$46 -> 0 | G221: x | H221: =Control!$F$39 -> 0 | I221: x | J221: =Control!$F$31 -> 0 | K221: = | L221: 0 | M221: x | N221: =Control!$C$73 -> 25 | O221: = | P221: 0
... 173 more rows

Sheet Burning N2O
A1: ="5b. Nitrous Oxide Emissions from Forest Fires in "&StateName -> 5b. Nitrous Oxide Emissions from Forest Fires in Select a State . . .
A7: Forest Fires | D7: 1990
B8: Forest Type | D8: Area Burned (ha) | F8: Average Biomass Density (kg d.m. / ha) | H8: Combustion efficiency | J8: Emission Factor (g/kg dry matter burned) | L8: MTN2O Emitted | N8: N2O GWP | P8: Emissions MMTCO2E
B9: Primary tropical forests | D9: ='Burning CH4'!D9 -> 0 | E9: x | F9: =Control!$F$46 -> 0 | G9: x | H9: =Control!$F$35 -> 0 | I9: x | J9: =Control!$F$32 -> 0 | K9: = | L9: =D9*F9*H9*J9*10^-6 -> 0 | M9: x | N9: =Control!$C$74 -> 298 | O9: = | P9: =L9*N9*10^-6 -> 0
B10: Secondary tropical forests | D10: ='Burning CH4'!D10 -> 0 | E10: x | F10: =Control!$F$46 -> 0 | G10: x | H10: =Control!$F$36 -> 0 | I10: x | J10: =Control!$F$32 -> 0 | K10: = | L10: 0 | M10: x | N10: =Control!$C$74 -> 298 | O10: = | P10: =L10*N10*10^-6 -> 0
B11: Tertiary tropical forests | D11: ='Burning CH4'!D11 -> 0 | E11: x | F11: =Control!$F$46 -> 0 | G11: x | H11: =Control!$F$37 -> 0 | I11: x | J11: =Control!$F$32 -> 0 | K11: = | L11: 0 | M11: x | N11: =Control!$C$74 -> 298 | O11: = | P11: 0
B12: Boreal forest | D12: ='Burning CH4'!D12 -> 0 | E12: x | F12: =Control!$F$46 -> 0 | G12: x | H12: =Control!$F$38 -> 0 | I12: x | J12: =Control!$F$32 -> 0 | K12: = | L12: 0 | M12: x | N12: =Control!$C$74 -> 298 | O12: = | P12: 0
B13: Eucalypt forests | D13: ='Burning CH4'!D13 -> 0 | E13: x | F13: =Control!$F$46 -> 0 | G13: x | H13: =Control!$F$39 -> 0 | I13: x | J13: =Control!$F$32 -> 0 | K13: = | L13: 0 | M13: x | N13: =Control!$C$74 -> 298 | O13: = | P13: 0
B14: Other temperate forests | D14: ='Burning CH4'!D14 -> 0 | E14: x | F14: =Control!$F$46 -> 0 | G14: x | H14: =Control!$F$40 -> 0 | I14: x | J14: =Control!$F$32 -> 0 | K14: = | L14: 0 | M14: x | N14: =Control!$C$74 -> 298 | O14: = | P14: 0
B15: Shrublands | D15: ='Burning CH4'!D15 -> 0 | E15: x | F15: =Control!$F$46 -> 0 | G15: x | H15: =Control!$F$41 -> 0 | I15: x | J15: =Control!$F$32 -> 0 | K15: = | L15: 0 | M15: x | N15: =Control!$C$74 -> 298 | O15: = | P15: 0
B16: Savanna woodlands (early dry season burns) | D16: ='Burning CH4'!D16 -> 0 | E16: x | F16: =Control!$F$46 -> 0 | G16: x | H16: =Control!$F$42 -> 0 | I16: x | J16: =Control!$F$30 -> 0 | K16: = | L16: 0 | M16: x | N16: =Control!$C$74 -> 298 | O16: = | P16: 0
B17: Savanna woodlands (mid/late season burns) | D17: ='Burning CH4'!D17 -> 0 | E17: x | F17: =Control!$F$46 -> 0 | G17: x | H17: =Control!$F$43 -> 0 | I17: x | J17: =Control!$F$30 -> 0 | K17: = | L17: 0 | M17: x | N17: =Control!$C$74 -> 298 | O17: = | P17: 0
B18: Total | P18: =SUM(P9:P17) -> 0
A20: Forest Fires | D20: =D7+1 -> 1991
B21: Forest Type | D21: Area Burned (ha) | F21: Average Biomass Density (kg d.m. / ha) | H21: Combustion efficiency | J21: Emission Factor (g/kg dry matter burned) | L21: MTN2O Emitted | N21: N2O GWP | P21: Emissions MMTCO2E
B22: Primary tropical forests | D22: ='Burning CH4'!D22 -> 0 | E22: x | F22: =Control!$F$46 -> 0 | G22: x | H22: =Control!$F$35 -> 0 | I22: x | J22: =Control!$F$32 -> 0 | K22: = | L22: =D22*F22*H22*J22*10^-6 -> 0 | M22: x | N22: =Control!$C$74 -> 298 | O22: = | P22: =L22*N22*10^-6 -> 0
B23: Secondary tropical forests | D23: ='Burning CH4'!D23 -> 0 | E23: x | F23: =Control!$F$46 -> 0 | G23: x | H23: =Control!$F$36 -> 0 | I23: x | J23: =Control!$F$32 -> 0 | K23: = | L23: 0 | M23: x | N23: =Control!$C$74 -> 298 | O23: = | P23: =L23*N23*10^-6 -> 0
B24: Tertiary tropical forests | D24: ='Burning CH4'!D24 -> 0 | E24: x | F24: =Control!$F$46 -> 0 | G24: x | H24: =Control!$F$37 -> 0 | I24: x | J24: =Control!$F$32 -> 0 | K24: = | L24: 0 | M24: x | N24: =Control!$C$74 -> 298 | O24: = | P24: 0
B25: Boreal forest | D25: ='Burning CH4'!D25 -> 0 | E25: x | F25: =Control!$F$46 -> 0 | G25: x | H25: =Control!$F$38 -> 0 | I25: x | J25: =Control!$F$32 -> 0 | K25: = | L25: 0 | M25: x | N25: =Control!$C$74 -> 298 | O25: = | P25: 0
B26: Eucalypt forests | D26: ='Burning CH4'!D26 -> 0 | E26: x | F26: =Control!$F$46 -> 0 | G26: x | H26: =Control!$F$39 -> 0 | I26: x | J26: =Control!$F$32 -> 0 | K26: = | L26: 0 | M26: x | N26: =Control!$C$74 -> 298 | O26: = | P26: 0
B27: Other temperate forests | D27: ='Burning CH4'!D27 -> 0 | E27: x | F27: =Control!$F$46 -> 0 | G27: x | H27: =Control!$F$40 -> 0 | I27: x | J27: =Control!$F$32 -> 0 | K27: = | L27: 0 | M27: x | N27: =Control!$C$74 -> 298 | O27: = | P27: 0
B28: Shrublands | D28: ='Burning CH4'!D28 -> 0 | E28: x | F28: =Control!$F$46 -> 0 | G28: x | H28: =Control!$F$41 -> 0 | I28: x | J28: =Control!$F$32 -> 0 | K28: = | L28: 0 | M28: x | N28: =Control!$C$74 -> 298 | O28: = | P28: 0
B29: Savanna woodlands (early dry season burns) | D29: ='Burning CH4'!D29 -> 0 | E29: x | F29: =Control!$F$46 -> 0 | G29: x | H29: =Control!$F$42 -> 0 | I29: x | J29: =Control!$F$30 -> 0 | K29: = | L29: 0 | M29: x | N29: =Control!$C$74 -> 298 | O29: = | P29: 0
B30: Savanna woodlands (mid/late season burns) | D30: ='Burning CH4'!D30 -> 0 | E30: x | F30: =Control!$F$46 -> 0 | G30: x | H30: =Control!$F$43 -> 0 | I30: x | J30: =Control!$F$30 -> 0 | K30: = | L30: 0 | M30: x | N30: =Control!$C$74 -> 298 | O30: = | P30: 0
B31: Total | P31: =SUM(P22:P30) -> 0
A33: Forest Fires | D33: =D20+1 -> 1992
B34: Forest Type | D34: Area Burned (ha) | F34: Average Biomass Density (kg d.m. / ha) | H34: Combustion efficiency | J34: Emission Factor (g/kg dry matter burned) | L34: MTN2O Emitted | N34: N2O GWP | P34: Emissions MMTCO2E
B35: Primary tropical forests | D35: ='Burning CH4'!D35 -> 0 | E35: x | F35: =Control!$F$46 -> 0 | G35: x | H35: =Control!$F$35 -> 0 | I35: x | J35: =Control!$F$32 -> 0 | K35: = | L35: =D35*F35*H35*J35*10^-6 -> 0 | M35: x | N35: =Control!$C$74 -> 298 | O35: = | P35: =L35*N35*10^-6 -> 0
B36: Secondary tropical forests | D36: ='Burning CH4'!D36 -> 0 | E36: x | F36: =Control!$F$46 -> 0 | G36: x | H36: =Control!$F$36 -> 0 | I36: x | J36: =Control!$F$32 -> 0 | K36: = | L36: 0 | M36: x | N36: =Control!$C$74 -> 298 | O36: = | P36: =L36*N36*10^-6 -> 0
B37: Tertiary tropical forests | D37: ='Burning CH4'!D37 -> 0 | E37: x | F37: =Control!$F$46 -> 0 | G37: x | H37: =Control!$F$37 -> 0 | I37: x | J37: =Control!$F$32 -> 0 | K37: = | L37: 0 | M37: x | N37: =Control!$C$74 -> 298 | O37: = | P37: 0
B38: Boreal forest | D38: ='Burning CH4'!D38 -> 0 | E38: x | F38: =Control!$F$46 -> 0 | G38: x | H38: =Control!$F$38 -> 0 | I38: x | J38: =Control!$F$32 -> 0 | K38: = | L38: 0 | M38: x | N38: =Control!$C$74 -> 298 | O38: = | P38: 0
B39: Eucalypt forests | D39: ='Burning CH4'!D39 -> 0 | E39: x | F39: =Control!$F$46 -> 0 | G39: x | H39: =Control!$F$39 -> 0 | I39: x | J39: =Control!$F$32 -> 0 | K39: = | L39: 0 | M39: x | N39: =Control!$C$74 -> 298 | O39: = | P39: 0
B40: Other temperate forests | D40: ='Burning CH4'!D40 -> 0 | E40: x | F40: =Control!$F$46 -> 0 | G40: x | H40: =Control!$F$40 -> 0 | I40: x | J40: =Control!$F$32 -> 0 | K40: = | L40: 0 | M40: x | N40: =Control!$C$74 -> 298 | O40: = | P40: 0
B41: Shrublands | D41: ='Burning CH4'!D41 -> 0 | E41: x | F41: =Control!$F$46 -> 0 | G41: x | H41: =Control!$F$41 -> 0 | I41: x | J41: =Control!$F$32 -> 0 | K41: = | L41: 0 | M41: x | N41: =Control!$C$74 -> 298 | O41: = | P41: 0
B42: Savanna woodlands (early dry season burns) | D42: ='Burning CH4'!D42 -> 0 | E42: x | F42: =Control!$F$46 -> 0 | G42: x | H42: =Control!$F$42 -> 0 | I42: x | J42: =Control!$F$30 -> 0 | K42: = | L42: 0 | M42: x | N42: =Control!$C$74 -> 298 | O42: = | P42: 0
B43: Savanna woodlands (mid/late season burns) | D43: ='Burning CH4'!D43 -> 0 | E43: x | F43: =Control!$F$46 -> 0 | G43: x | H43: =Control!$F$43 -> 0 | I43: x | J43: =Control!$F$30 -> 0 | K43: = | L43: 0 | M43: x | N43: =Control!$C$74 -> 298 | O43: = | P43: 0
B44: Total | P44: =SUM(P35:P43) -> 0
A46: Forest Fires | D46: =D33+1 -> 1993
B47: Forest Type | D47: Area Burned (ha) | F47: Average Biomass Density (kg d.m. / ha) | H47: Combustion efficiency | J47: Emission Factor (g/kg dry matter burned) | L47: MTN2O Emitted | N47: N2O GWP | P47: Emissions MMTCO2E
B48: Primary tropical forests | D48: ='Burning CH4'!D48 -> 0 | E48: x | F48: =Control!$F$46 -> 0 | G48: x | H48: =Control!$F$35 -> 0 | I48: x | J48: =Control!$F$32 -> 0 | K48: = | L48: =D48*F48*H48*J48*10^-6 -> 0 | M48: x | N48: =Control!$C$74 -> 298 | O48: = | P48: =L48*N48*10^-6 -> 0
B49: Secondary tropical forests | D49: ='Burning CH4'!D49 -> 0 | E49: x | F49: =Control!$F$46 -> 0 | G49: x | H49: =Control!$F$36 -> 0 | I49: x | J49: =Control!$F$32 -> 0 | K49: = | L49: 0 | M49: x | N49: =Control!$C$74 -> 298 | O49: = | P49: =L49*N49*10^-6 -> 0
B50: Tertiary tropical forests | D50: ='Burning CH4'!D50 -> 0 | E50: x | F50: =Control!$F$46 -> 0 | G50: x | H50: =Control!$F$37 -> 0 | I50: x | J50: =Control!$F$32 -> 0 | K50: = | L50: 0 | M50: x | N50: =Control!$C$74 -> 298 | O50: = | P50: 0
B51: Boreal forest | D51: ='Burning CH4'!D51 -> 0 | E51: x | F51: =Control!$F$46 -> 0 | G51: x | H51: =Control!$F$38 -> 0 | I51: x | J51: =Control!$F$32 -> 0 | K51: = | L51: 0 | M51: x | N51: =Control!$C$74 -> 298 | O51: = | P51: 0
B52: Eucalypt forests | D52: ='Burning CH4'!D52 -> 0 | E52: x | F52: =Control!$F$46 -> 0 | G52: x | H52: =Control!$F$39 -> 0 | I52: x | J52: =Control!$F$32 -> 0 | K52: = | L52: 0 | M52: x | N52: =Control!$C$74 -> 298 | O52: = | P52: 0
B53: Other temperate forests | D53: ='Burning CH4'!D53 -> 0 | E53: x | F53: =Control!$F$46 -> 0 | G53: x | H53: =Control!$F$40 -> 0 | I53: x | J53: =Control!$F$32 -> 0 | K53: = | L53: 0 | M53: x | N53: =Control!$C$74 -> 298 | O53: = | P53: 0
B54: Shrublands | D54: ='Burning CH4'!D54 -> 0 | E54: x | F54: =Control!$F$46 -> 0 | G54: x | H54: =Control!$F$41 -> 0 | I54: x | J54: =Control!$F$32 -> 0 | K54: = | L54: 0 | M54: x | N54: =Control!$C$74 -> 298 | O54: = | P54: 0
B55: Savanna woodlands (early dry season burns) | D55: ='Burning CH4'!D55 -> 0 | E55: x | F55: =Control!$F$46 -> 0 | G55: x | H55: =Control!$F$42 -> 0 | I55: x | J55: =Control!$F$30 -> 0 | K55: = | L55: 0 | M55: x | N55: =Control!$C$74 -> 298 | O55: = | P55: 0
B56: Savanna woodlands (mid/late season burns) | D56: ='Burning CH4'!D56 -> 0 | E56: x | F56: =Control!$F$46 -> 0 | G56: x | H56: =Control!$F$43 -> 0 | I56: x | J56: =Control!$F$30 -> 0 | K56: = | L56: 0 | M56: x | N56: =Control!$C$74 -> 298 | O56: = | P56: 0
B57: Total | P57: =SUM(P48:P56) -> 0
A59: Forest Fires | D59: =D46+1 -> 1994
B60: Forest Type | D60: Area Burned (ha) | F60: Average Biomass Density (kg d.m. / ha) | H60: Combustion efficiency | J60: Emission Factor (g/kg dry matter burned) | L60: MTN2O Emitted | N60: N2O GWP | P60: Emissions MMTCO2E
B61: Primary tropical forests | D61: ='Burning CH4'!D61 -> 0 | E61: x | F61: =Control!$F$46 -> 0 | G61: x | H61: =Control!$F$35 -> 0 | I61: x | J61: =Control!$F$32 -> 0 | K61: = | L61: =D61*F61*H61*J61*10^-6 -> 0 | M61: x | N61: =Control!$C$74 -> 298 | O61: = | P61: =L61*N61*10^-6 -> 0
B62: Secondary tropical forests | D62: ='Burning CH4'!D62 -> 0 | E62: x | F62: =Control!$F$46 -> 0 | G62: x | H62: =Control!$F$36 -> 0 | I62: x | J62: =Control!$F$32 -> 0 | K62: = | L62: 0 | M62: x | N62: =Control!$C$74 -> 298 | O62: = | P62: =L62*N62*10^-6 -> 0
B63: Tertiary tropical forests | D63: ='Burning CH4'!D63 -> 0 | E63: x | F63: =Control!$F$46 -> 0 | G63: x | H63: =Control!$F$37 -> 0 | I63: x | J63: =Control!$F$32 -> 0 | K63: = | L63: 0 | M63: x | N63: =Control!$C$74 -> 298 | O63: = | P63: 0
B64: Boreal forest | D64: ='Burning CH4'!D64 -> 0 | E64: x | F64: =Control!$F$46 -> 0 | G64: x | H64: =Control!$F$38 -> 0 | I64: x | J64: =Control!$F$32 -> 0 | K64: = | L64: 0 | M64: x | N64: =Control!$C$74 -> 298 | O64: = | P64: 0
B65: Eucalypt forests | D65: ='Burning CH4'!D65 -> 0 | E65: x | F65: =Control!$F$46 -> 0 | G65: x | H65: =Control!$F$39 -> 0 | I65: x | J65: =Control!$F$32 -> 0 | K65: = | L65: 0 | M65: x | N65: =Control!$C$74 -> 298 | O65: = | P65: 0
B66: Other temperate forests | D66: ='Burning CH4'!D66 -> 0 | E66: x | F66: =Control!$F$46 -> 0 | G66: x | H66: =Control!$F$40 -> 0 | I66: x | J66: =Control!$F$32 -> 0 | K66: = | L66: 0 | M66: x | N66: =Control!$C$74 -> 298 | O66: = | P66: 0
B67: Shrublands | D67: ='Burning CH4'!D67 -> 0 | E67: x | F67: =Control!$F$46 -> 0 | G67: x | H67: =Control!$F$41 -> 0 | I67: x | J67: =Control!$F$32 -> 0 | K67: = | L67: 0 | M67: x | N67: =Control!$C$74 -> 298 | O67: = | P67: 0
B68: Savanna woodlands (early dry season burns) | D68: ='Burning CH4'!D68 -> 0 | E68: x | F68: =Control!$F$46 -> 0 | G68: x | H68: =Control!$F$42 -> 0 | I68: x | J68: =Control!$F$30 -> 0 | K68: = | L68: 0 | M68: x | N68: =Control!$C$74 -> 298 | O68: = | P68: 0
B69: Savanna woodlands (mid/late season burns) | D69: ='Burning CH4'!D69 -> 0 | E69: x | F69: =Control!$F$46 -> 0 | G69: x | H69: =Control!$F$43 -> 0 | I69: x | J69: =Control!$F$30 -> 0 | K69: = | L69: 0 | M69: x | N69: =Control!$C$74 -> 298 | O69: = | P69: 0
B70: Total | P70: =SUM(P61:P69) -> 0
A72: Forest Fires | D72: =D59+1 -> 1995
B73: Forest Type | D73: Area Burned (ha) | F73: Average Biomass Density (kg d.m. / ha) | H73: Combustion efficiency | J73: Emission Factor (g/kg dry matter burned) | L73: MTN2O Emitted | N73: N2O GWP | P73: Emissions MMTCO2E
B74: Primary tropical forests | D74: ='Burning CH4'!D74 -> 0 | E74: x | F74: =Control!$F$46 -> 0 | G74: x | H74: =Control!$F$35 -> 0 | I74: x | J74: =Control!$F$32 -> 0 | K74: = | L74: =D74*F74*H74*J74*10^-6 -> 0 | M74: x | N74: =Control!$C$74 -> 298 | O74: = | P74: =L74*N74*10^-6 -> 0
B75: Secondary tropical forests | D75: ='Burning CH4'!D75 -> 0 | E75: x | F75: =Control!$F$46 -> 0 | G75: x | H75: =Control!$F$36 -> 0 | I75: x | J75: =Control!$F$32 -> 0 | K75: = | L75: 0 | M75: x | N75: =Control!$C$74 -> 298 | O75: = | P75: =L75*N75*10^-6 -> 0
B76: Tertiary tropical forests | D76: ='Burning CH4'!D76 -> 0 | E76: x | F76: =Control!$F$46 -> 0 | G76: x | H76: =Control!$F$37 -> 0 | I76: x | J76: =Control!$F$32 -> 0 | K76: = | L76: 0 | M76: x | N76: =Control!$C$74 -> 298 | O76: = | P76: 0
B77: Boreal forest | D77: ='Burning CH4'!D77 -> 0 | E77: x | F77: =Control!$F$46 -> 0 | G77: x | H77: =Control!$F$38 -> 0 | I77: x | J77: =Control!$F$32 -> 0 | K77: = | L77: 0 | M77: x | N77: =Control!$C$74 -> 298 | O77: = | P77: 0
B78: Eucalypt forests | D78: ='Burning CH4'!D78 -> 0 | E78: x | F78: =Control!$F$46 -> 0 | G78: x | H78: =Control!$F$39 -> 0 | I78: x | J78: =Control!$F$32 -> 0 | K78: = | L78: 0 | M78: x | N78: =Control!$C$74 -> 298 | O78: = | P78: 0
B79: Other temperate forests | D79: ='Burning CH4'!D79 -> 0 | E79: x | F79: =Control!$F$46 -> 0 | G79: x | H79: =Control!$F$40 -> 0 | I79: x | J79: =Control!$F$32 -> 0 | K79: = | L79: 0 | M79: x | N79: =Control!$C$74 -> 298 | O79: = | P79: 0
B80: Shrublands | D80: ='Burning CH4'!D80 -> 0 | E80: x | F80: =Control!$F$46 -> 0 | G80: x | H80: =Control!$F$41 -> 0 | I80: x | J80: =Control!$F$32 -> 0 | K80: = | L80: 0 | M80: x | N80: =Control!$C$74 -> 298 | O80: = | P80: 0
B81: Savanna woodlands (early dry season burns) | D81: ='Burning CH4'!D81 -> 0 | E81: x | F81: =Control!$F$46 -> 0 | G81: x | H81: =Control!$F$42 -> 0 | I81: x | J81: =Control!$F$30 -> 0 | K81: = | L81: 0 | M81: x | N81: =Control!$C$74 -> 298 | O81: = | P81: 0
B82: Savanna woodlands (mid/late season burns) | D82: ='Burning CH4'!D82 -> 0 | E82: x | F82: =Control!$F$46 -> 0 | G82: x | H82: =Control!$F$43 -> 0 | I82: x | J82: =Control!$F$30 -> 0 | K82: = | L82: 0 | M82: x | N82: =Control!$C$74 -> 298 | O82: = | P82: 0
B83: Total | P83: =SUM(P74:P82) -> 0
A85: Forest Fires | D85: =D72+1 -> 1996
B86: Forest Type | D86: Area Burned (ha) | F86: Average Biomass Density (kg d.m. / ha) | H86: Combustion efficiency | J86: Emission Factor (g/kg dry matter burned) | L86: MTN2O Emitted | N86: N2O GWP | P86: Emissions MMTCO2E
B87: Primary tropical forests | D87: ='Burning CH4'!D87 -> 0 | E87: x | F87: =Control!$F$46 -> 0 | G87: x | H87: =Control!$F$35 -> 0 | I87: x | J87: =Control!$F$32 -> 0 | K87: = | L87: =D87*F87*H87*J87*10^-6 -> 0 | M87: x | N87: =Control!$C$74 -> 298 | O87: = | P87: =L87*N87*10^-6 -> 0
B88: Secondary tropical forests | D88: ='Burning CH4'!D88 -> 0 | E88: x | F88: =Control!$F$46 -> 0 | G88: x | H88: =Control!$F$36 -> 0 | I88: x | J88: =Control!$F$32 -> 0 | K88: = | L88: 0 | M88: x | N88: =Control!$C$74 -> 298 | O88: = | P88: =L88*N88*10^-6 -> 0
B89: Tertiary tropical forests | D89: ='Burning CH4'!D89 -> 0 | E89: x | F89: =Control!$F$46 -> 0 | G89: x | H89: =Control!$F$37 -> 0 | I89: x | J89: =Control!$F$32 -> 0 | K89: = | L89: 0 | M89: x | N89: =Control!$C$74 -> 298 | O89: = | P89: 0
B90: Boreal forest | D90: ='Burning CH4'!D90 -> 0 | E90: x | F90: =Control!$F$46 -> 0 | G90: x | H90: =Control!$F$38 -> 0 | I90: x | J90: =Control!$F$32 -> 0 | K90: = | L90: 0 | M90: x | N90: =Control!$C$74 -> 298 | O90: = | P90: 0
B91: Eucalypt forests | D91: ='Burning CH4'!D91 -> 0 | E91: x | F91: =Control!$F$46 -> 0 | G91: x | H91: =Control!$F$39 -> 0 | I91: x | J91: =Control!$F$32 -> 0 | K91: = | L91: 0 | M91: x | N91: =Control!$C$74 -> 298 | O91: = | P91: 0
B92: Other temperate forests | D92: ='Burning CH4'!D92 -> 0 | E92: x | F92: =Control!$F$46 -> 0 | G92: x | H92: =Control!$F$40 -> 0 | I92: x | J92: =Control!$F$32 -> 0 | K92: = | L92: 0 | M92: x | N92: =Control!$C$74 -> 298 | O92: = | P92: 0
B93: Shrublands | D93: ='Burning CH4'!D93 -> 0 | E93: x | F93: =Control!$F$46 -> 0 | G93: x | H93: =Control!$F$41 -> 0 | I93: x | J93: =Control!$F$32 -> 0 | K93: = | L93: 0 | M93: x | N93: =Control!$C$74 -> 298 | O93: = | P93: 0
B94: Savanna woodlands (early dry season burns) | D94: ='Burning CH4'!D94 -> 0 | E94: x | F94: =Control!$F$46 -> 0 | G94: x | H94: =Control!$F$42 -> 0 | I94: x | J94: =Control!$F$30 -> 0 | K94: = | L94: 0 | M94: x | N94: =Control!$C$74 -> 298 | O94: = | P94: 0
B95: Savanna woodlands (mid/late season burns) | D95: ='Burning CH4'!D95 -> 0 | E95: x | F95: =Control!$F$46 -> 0 | G95: x | H95: =Control!$F$43 -> 0 | I95: x | J95: =Control!$F$30 -> 0 | K95: = | L95: 0 | M95: x | N95: =Control!$C$74 -> 298 | O95: = | P95: 0
B96: Total | P96: =SUM(P87:P95) -> 0
A98: Forest Fires | D98: =D85+1 -> 1997
B99: Forest Type | D99: Area Burned (ha) | F99: Average Biomass Density (kg d.m. / ha) | H99: Combustion efficiency | J99: Emission Factor (g/kg dry matter burned) | L99: MTN2O Emitted | N99: N2O GWP | P99: Emissions MMTCO2E
B100: Primary tropical forests | D100: ='Burning CH4'!D100 -> 0 | E100: x | F100: =Control!$F$46 -> 0 | G100: x | H100: =Control!$F$35 -> 0 | I100: x | J100: =Control!$F$32 -> 0 | K100: = | L100: =D100*F100*H100*J100*10^-6 -> 0 | M100: x | N100: =Control!$C$74 -> 298 | O100: = | P100: =L100*N100*10^-6 -> 0
B101: Secondary tropical forests | D101: ='Burning CH4'!D101 -> 0 | E101: x | F101: =Control!$F$46 -> 0 | G101: x | H101: =Control!$F$36 -> 0 | I101: x | J101: =Control!$F$32 -> 0 | K101: = | L101: 0 | M101: x | N101: =Control!$C$74 -> 298 | O101: = | P101: =L101*N101*10^-6 -> 0
B102: Tertiary tropical forests | D102: ='Burning CH4'!D102 -> 0 | E102: x | F102: =Control!$F$46 -> 0 | G102: x | H102: =Control!$F$37 -> 0 | I102: x | J102: =Control!$F$32 -> 0 | K102: = | L102: 0 | M102: x | N102: =Control!$C$74 -> 298 | O102: = | P102: 0
B103: Boreal forest | D103: ='Burning CH4'!D103 -> 0 | E103: x | F103: =Control!$F$46 -> 0 | G103: x | H103: =Control!$F$38 -> 0 | I103: x | J103: =Control!$F$32 -> 0 | K103: = | L103: 0 | M103: x | N103: =Control!$C$74 -> 298 | O103: = | P103: 0
B104: Eucalypt forests | D104: ='Burning CH4'!D104 -> 0 | E104: x | F104: =Control!$F$46 -> 0 | G104: x | H104: =Control!$F$39 -> 0 | I104: x | J104: =Control!$F$32 -> 0 | K104: = | L104: 0 | M104: x | N104: =Control!$C$74 -> 298 | O104: = | P104: 0
B105: Other temperate forests | D105: ='Burning CH4'!D105 -> 0 | E105: x | F105: =Control!$F$46 -> 0 | G105: x | H105: =Control!$F$40 -> 0 | I105: x | J105: =Control!$F$32 -> 0 | K105: = | L105: 0 | M105: x | N105: =Control!$C$74 -> 298 | O105: = | P105: 0
B106: Shrublands | D106: ='Burning CH4'!D106 -> 0 | E106: x | F106: =Control!$F$46 -> 0 | G106: x | H106: =Control!$F$41 -> 0 | I106: x | J106: =Control!$F$32 -> 0 | K106: = | L106: 0 | M106: x | N106: =Control!$C$74 -> 298 | O106: = | P106: 0
B107: Savanna woodlands (early dry season burns) | D107: ='Burning CH4'!D107 -> 0 | E107: x | F107: =Control!$F$46 -> 0 | G107: x | H107: =Control!$F$42 -> 0 | I107: x | J107: =Control!$F$30 -> 0 | K107: = | L107: 0 | M107: x | N107: =Control!$C$74 -> 298 | O107: = | P107: 0
B108: Savanna woodlands (mid/late season burns) | D108: ='Burning CH4'!D108 -> 0 | E108: x | F108: =Control!$F$46 -> 0 | G108: x | H108: =Control!$F$43 -> 0 | I108: x | J108: =Control!$F$30 -> 0 | K108: = | L108: 0 | M108: x | N108: =Control!$C$74 -> 298 | O108: = | P108: 0
B109: Total | P109: =SUM(P100:P108) -> 0
A111: Forest Fires | D111: =D98+1 -> 1998
B112: Forest Type | D112: Area Burned (ha) | F112: Average Biomass Density (kg d.m. / ha) | H112: Combustion efficiency | J112: Emission Factor (g/kg dry matter burned) | L112: MTN2O Emitted | N112: N2O GWP | P112: Emissions MMTCO2E
B113: Primary tropical forests | D113: ='Burning CH4'!D113 -> 0 | E113: x | F113: =Control!$F$46 -> 0 | G113: x | H113: =Control!$F$35 -> 0 | I113: x | J113: =Control!$F$32 -> 0 | K113: = | L113: =D113*F113*H113*J113*10^-6 -> 0 | M113: x | N113: =Control!$C$74 -> 298 | O113: = | P113: =L113*N113*10^-6 -> 0
B114: Secondary tropical forests | D114: ='Burning CH4'!D114 -> 0 | E114: x | F114: =Control!$F$46 -> 0 | G114: x | H114: =Control!$F$36 -> 0 | I114: x | J114: =Control!$F$32 -> 0 | K114: = | L114: 0 | M114: x | N114: =Control!$C$74 -> 298 | O114: = | P114: =L114*N114*10^-6 -> 0
B115: Tertiary tropical forests | D115: ='Burning CH4'!D115 -> 0 | E115: x | F115: =Control!$F$46 -> 0 | G115: x | H115: =Control!$F$37 -> 0 | I115: x | J115: =Control!$F$32 -> 0 | K115: = | L115: 0 | M115: x | N115: =Control!$C$74 -> 298 | O115: = | P115: 0
B116: Boreal forest | D116: ='Burning CH4'!D116 -> 0 | E116: x | F116: =Control!$F$46 -> 0 | G116: x | H116: =Control!$F$38 -> 0 | I116: x | J116: =Control!$F$32 -> 0 | K116: = | L116: 0 | M116: x | N116: =Control!$C$74 -> 298 | O116: = | P116: 0
B117: Eucalypt forests | D117: ='Burning CH4'!D117 -> 0 | E117: x | F117: =Control!$F$46 -> 0 | G117: x | H117: =Control!$F$39 -> 0 | I117: x | J117: =Control!$F$32 -> 0 | K117: = | L117: 0 | M117: x | N117: =Control!$C$74 -> 298 | O117: = | P117: 0
B118: Other temperate forests | D118: ='Burning CH4'!D118 -> 0 | E118: x | F118: =Control!$F$46 -> 0 | G118: x | H118: =Control!$F$40 -> 0 | I118: x | J118: =Control!$F$32 -> 0 | K118: = | L118: 0 | M118: x | N118: =Control!$C$74 -> 298 | O118: = | P118: 0
B119: Shrublands | D119: ='Burning CH4'!D119 -> 0 | E119: x | F119: =Control!$F$46 -> 0 | G119: x | H119: =Control!$F$41 -> 0 | I119: x | J119: =Control!$F$32 -> 0 | K119: = | L119: 0 | M119: x | N119: =Control!$C$74 -> 298 | O119: = | P119: 0
B120: Savanna woodlands (early dry season burns) | D120: ='Burning CH4'!D120 -> 0 | E120: x | F120: =Control!$F$46 -> 0 | G120: x | H120: =Control!$F$42 -> 0 | I120: x | J120: =Control!$F$30 -> 0 | K120: = | L120: 0 | M120: x | N120: =Control!$C$74 -> 298 | O120: = | P120: 0
B121: Savanna woodlands (mid/late season burns) | D121: ='Burning CH4'!D121 -> 0 | E121: x | F121: =Control!$F$46 -> 0 | G121: x | H121: =Control!$F$43 -> 0 | I121: x | J121: =Control!$F$30 -> 0 | K121: = | L121: 0 | M121: x | N121: =Control!$C$74 -> 298 | O121: = | P121: 0
B122: Total | P122: =SUM(P113:P121) -> 0
A124: Forest Fires | D124: =D111+1 -> 1999
B125: Forest Type | D125: Area Burned (ha) | F125: Average Biomass Density (kg d.m. / ha) | H125: Combustion efficiency | J125: Emission Factor (g/kg dry matter burned) | L125: MTN2O Emitted | N125: N2O GWP | P125: Emissions MMTCO2E
B126: Primary tropical forests | D126: ='Burning CH4'!D126 -> 0 | E126: x | F126: =Control!$F$46 -> 0 | G126: x | H126: =Control!$F$35 -> 0 | I126: x | J126: =Control!$F$32 -> 0 | K126: = | L126: =D126*F126*H126*J126*10^-6 -> 0 | M126: x | N126: =Control!$C$74 -> 298 | O126: = | P126: =L126*N126*10^-6 -> 0
B127: Secondary tropical forests | D127: ='Burning CH4'!D127 -> 0 | E127: x | F127: =Control!$F$46 -> 0 | G127: x | H127: =Control!$F$36 -> 0 | I127: x | J127: =Control!$F$32 -> 0 | K127: = | L127: 0 | M127: x | N127: =Control!$C$74 -> 298 | O127: = | P127: =L127*N127*10^-6 -> 0
B128: Tertiary tropical forests | D128: ='Burning CH4'!D128 -> 0 | E128: x | F128: =Control!$F$46 -> 0 | G128: x | H128: =Control!$F$37 -> 0 | I128: x | J128: =Control!$F$32 -> 0 | K128: = | L128: 0 | M128: x | N128: =Control!$C$74 -> 298 | O128: = | P128: 0
B129: Boreal forest | D129: ='Burning CH4'!D129 -> 0 | E129: x | F129: =Control!$F$46 -> 0 | G129: x | H129: =Control!$F$38 -> 0 | I129: x | J129: =Control!$F$32 -> 0 | K129: = | L129: 0 | M129: x | N129: =Control!$C$74 -> 298 | O129: = | P129: 0
B130: Eucalypt forests | D130: ='Burning CH4'!D130 -> 0 | E130: x | F130: =Control!$F$46 -> 0 | G130: x | H130: =Control!$F$39 -> 0 | I130: x | J130: =Control!$F$32 -> 0 | K130: = | L130: 0 | M130: x | N130: =Control!$C$74 -> 298 | O130: = | P130: 0
B131: Other temperate forests | D131: ='Burning CH4'!D131 -> 0 | E131: x | F131: =Control!$F$46 -> 0 | G131: x | H131: =Control!$F$40 -> 0 | I131: x | J131: =Control!$F$32 -> 0 | K131: = | L131: 0 | M131: x | N131: =Control!$C$74 -> 298 | O131: = | P131: 0
B132: Shrublands | D132: ='Burning CH4'!D132 -> 0 | E132: x | F132: =Control!$F$46 -> 0 | G132: x | H132: =Control!$F$41 -> 0 | I132: x | J132: =Control!$F$32 -> 0 | K132: = | L132: 0 | M132: x | N132: =Control!$C$74 -> 298 | O132: = | P132: 0
B133: Savanna woodlands (early dry season burns) | D133: ='Burning CH4'!D133 -> 0 | E133: x | F133: =Control!$F$46 -> 0 | G133: x | H133: =Control!$F$42 -> 0 | I133: x | J133: =Control!$F$30 -> 0 | K133: = | L133: 0 | M133: x | N133: =Control!$C$74 -> 298 | O133: = | P133: 0
B134: Savanna woodlands (mid/late season burns) | D134: ='Burning CH4'!D134 -> 0 | E134: x | F134: =Control!$F$46 -> 0 | G134: x | H134: =Control!$F$43 -> 0 | I134: x | J134: =Control!$F$30 -> 0 | K134: = | L134: 0 | M134: x | N134: =Control!$C$74 -> 298 | O134: = | P134: 0
B135: Total | P135: =SUM(P126:P134) -> 0
A137: Forest Fires | D137: =D124+1 -> 2000
B138: Forest Type | D138: Area Burned (ha) | F138: Average Biomass Density (kg d.m. / ha) | H138: Combustion efficiency | J138: Emission Factor (g/kg dry matter burned) | L138: MTN2O Emitted | N138: N2O GWP | P138: Emissions MMTCO2E
B139: Primary tropical forests | D139: ='Burning CH4'!D139 -> 0 | E139: x | F139: =Control!$F$46 -> 0 | G139: x | H139: =Control!$F$35 -> 0 | I139: x | J139: =Control!$F$32 -> 0 | K139: = | L139: =D139*F139*H139*J139*10^-6 -> 0 | M139: x | N139: =Control!$C$74 -> 298 | O139: = | P139: =L139*N139*10^-6 -> 0
B140: Secondary tropical forests | D140: ='Burning CH4'!D140 -> 0 | E140: x | F140: =Control!$F$46 -> 0 | G140: x | H140: =Control!$F$36 -> 0 | I140: x | J140: =Control!$F$32 -> 0 | K140: = | L140: 0 | M140: x | N140: =Control!$C$74 -> 298 | O140: = | P140: =L140*N140*10^-6 -> 0
B141: Tertiary tropical forests | D141: ='Burning CH4'!D141 -> 0 | E141: x | F141: =Control!$F$46 -> 0 | G141: x | H141: =Control!$F$37 -> 0 | I141: x | J141: =Control!$F$32 -> 0 | K141: = | L141: 0 | M141: x | N141: =Control!$C$74 -> 298 | O141: = | P141: 0
B142: Boreal forest | D142: ='Burning CH4'!D142 -> 0 | E142: x | F142: =Control!$F$46 -> 0 | G142: x | H142: =Control!$F$38 -> 0 | I142: x | J142: =Control!$F$32 -> 0 | K142: = | L142: 0 | M142: x | N142: =Control!$C$74 -> 298 | O142: = | P142: 0
B143: Eucalypt forests | D143: ='Burning CH4'!D143 -> 0 | E143: x | F143: =Control!$F$46 -> 0 | G143: x | H143: =Control!$F$39 -> 0 | I143: x | J143: =Control!$F$32 -> 0 | K143: = | L143: 0 | M143: x | N143: =Control!$C$74 -> 298 | O143: = | P143: 0
B144: Other temperate forests | D144: ='Burning CH4'!D144 -> 0 | E144: x | F144: =Control!$F$46 -> 0 | G144: x | H144: =Control!$F$40 -> 0 | I144: x | J144: =Control!$F$32 -> 0 | K144: = | L144: 0 | M144: x | N144: =Control!$C$74 -> 298 | O144: = | P144: 0
B145: Shrublands | D145: ='Burning CH4'!D145 -> 0 | E145: x | F145: =Control!$F$46 -> 0 | G145: x | H145: =Control!$F$41 -> 0 | I145: x | J145: =Control!$F$32 -> 0 | K145: = | L145: 0 | M145: x | N145: =Control!$C$74 -> 298 | O145: = | P145: 0
B146: Savanna woodlands (early dry season burns) | D146: ='Burning CH4'!D146 -> 0 | E146: x | F146: =Control!$F$46 -> 0 | G146: x | H146: =Control!$F$42 -> 0 | I146: x | J146: =Control!$F$30 -> 0 | K146: = | L146: 0 | M146: x | N146: =Control!$C$74 -> 298 | O146: = | P146: 0
B147: Savanna woodlands (mid/late season burns) | D147: ='Burning CH4'!D147 -> 0 | E147: x | F147: =Control!$F$46 -> 0 | G147: x | H147: =Control!$F$43 -> 0 | I147: x | J147: =Control!$F$30 -> 0 | K147: = | L147: 0 | M147: x | N147: =Control!$C$74 -> 298 | O147: = | P147: 0
B148: Total | P148: =SUM(P139:P147) -> 0
A150: Forest Fires | D150: =D137+1 -> 2001
B151: Forest Type | D151: Area Burned (ha) | F151: Average Biomass Density (kg d.m. / ha) | H151: Combustion efficiency | J151: Emission Factor (g/kg dry matter burned) | L151: MTN2O Emitted | N151: N2O GWP | P151: Emissions MMTCO2E
B152: Primary tropical forests | D152: ='Burning CH4'!D152 -> 0 | E152: x | F152: =Control!$F$46 -> 0 | G152: x | H152: =Control!$F$35 -> 0 | I152: x | J152: =Control!$F$32 -> 0 | K152: = | L152: =D152*F152*H152*J152*10^-6 -> 0 | M152: x | N152: =Control!$C$74 -> 298 | O152: = | P152: =L152*N152*10^-6 -> 0
B153: Secondary tropical forests | D153: ='Burning CH4'!D153 -> 0 | E153: x | F153: =Control!$F$46 -> 0 | G153: x | H153: =Control!$F$36 -> 0 | I153: x | J153: =Control!$F$32 -> 0 | K153: = | L153: 0 | M153: x | N153: =Control!$C$74 -> 298 | O153: = | P153: =L153*N153*10^-6 -> 0
B154: Tertiary tropical forests | D154: ='Burning CH4'!D154 -> 0 | E154: x | F154: =Control!$F$46 -> 0 | G154: x | H154: =Control!$F$37 -> 0 | I154: x | J154: =Control!$F$32 -> 0 | K154: = | L154: 0 | M154: x | N154: =Control!$C$74 -> 298 | O154: = | P154: 0
B155: Boreal forest | D155: ='Burning CH4'!D155 -> 0 | E155: x | F155: =Control!$F$46 -> 0 | G155: x | H155: =Control!$F$38 -> 0 | I155: x | J155: =Control!$F$32 -> 0 | K155: = | L155: 0 | M155: x | N155: =Control!$C$74 -> 298 | O155: = | P155: 0
B156: Eucalypt forests | D156: ='Burning CH4'!D156 -> 0 | E156: x | F156: =Control!$F$46 -> 0 | G156: x | H156: =Control!$F$39 -> 0 | I156: x | J156: =Control!$F$32 -> 0 | K156: = | L156: 0 | M156: x | N156: =Control!$C$74 -> 298 | O156: = | P156: 0
B157: Other temperate forests | D157: ='Burning CH4'!D157 -> 0 | E157: x | F157: =Control!$F$46 -> 0 | G157: x | H157: =Control!$F$40 -> 0 | I157: x | J157: =Control!$F$32 -> 0 | K157: = | L157: 0 | M157: x | N157: =Control!$C$74 -> 298 | O157: = | P157: 0
B158: Shrublands | D158: ='Burning CH4'!D158 -> 0 | E158: x | F158: =Control!$F$46 -> 0 | G158: x | H158: =Control!$F$41 -> 0 | I158: x | J158: =Control!$F$32 -> 0 | K158: = | L158: 0 | M158: x | N158: =Control!$C$74 -> 298 | O158: = | P158: 0
B159: Savanna woodlands (early dry season burns) | D159: ='Burning CH4'!D159 -> 0 | E159: x | F159: =Control!$F$46 -> 0 | G159: x | H159: =Control!$F$42 -> 0 | I159: x | J159: =Control!$F$30 -> 0 | K159: = | L159: 0 | M159: x | N159: =Control!$C$74 -> 298 | O159: = | P159: 0
B160: Savanna woodlands (mid/late season burns) | D160: ='Burning CH4'!D160 -> 0 | E160: x | F160: =Control!$F$46 -> 0 | G160: x | H160: =Control!$F$43 -> 0 | I160: x | J160: =Control!$F$30 -> 0 | K160: = | L160: 0 | M160: x | N160: =Control!$C$74 -> 298 | O160: = | P160: 0
B161: Total | P161: =SUM(P152:P160) -> 0
A163: Forest Fires | D163: =D150+1 -> 2002
B164: Forest Type | D164: Area Burned (ha) | F164: Average Biomass Density (kg d.m. / ha) | H164: Combustion efficiency | J164: Emission Factor (g/kg dry matter burned) | L164: MTN2O Emitted | N164: N2O GWP | P164: Emissions MMTCO2E
B165: Primary tropical forests | D165: ='Burning CH4'!D165 -> 0 | E165: x | F165: =Control!$F$46 -> 0 | G165: x | H165: =Control!$F$35 -> 0 | I165: x | J165: =Control!$F$32 -> 0 | K165: = | L165: =D165*F165*H165*J165*10^-6 -> 0 | M165: x | N165: =Control!$C$74 -> 298 | O165: = | P165: =L165*N165*10^-6 -> 0
B166: Secondary tropical forests | D166: ='Burning CH4'!D166 -> 0 | E166: x | F166: =Control!$F$46 -> 0 | G166: x | H166: =Control!$F$36 -> 0 | I166: x | J166: =Control!$F$32 -> 0 | K166: = | L166: 0 | M166: x | N166: =Control!$C$74 -> 298 | O166: = | P166: =L166*N166*10^-6 -> 0
B167: Tertiary tropical forests | D167: ='Burning CH4'!D167 -> 0 | E167: x | F167: =Control!$F$46 -> 0 | G167: x | H167: =Control!$F$37 -> 0 | I167: x | J167: =Control!$F$32 -> 0 | K167: = | L167: 0 | M167: x | N167: =Control!$C$74 -> 298 | O167: = | P167: 0
B168: Boreal forest | D168: ='Burning CH4'!D168 -> 0 | E168: x | F168: =Control!$F$46 -> 0 | G168: x | H168: =Control!$F$38 -> 0 | I168: x | J168: =Control!$F$32 -> 0 | K168: = | L168: 0 | M168: x | N168: =Control!$C$74 -> 298 | O168: = | P168: 0
B169: Eucalypt forests | D169: ='Burning CH4'!D169 -> 0 | E169: x | F169: =Control!$F$46 -> 0 | G169: x | H169: =Control!$F$39 -> 0 | I169: x | J169: =Control!$F$32 -> 0 | K169: = | L169: 0 | M169: x | N169: =Control!$C$74 -> 298 | O169: = | P169: 0
B170: Other temperate forests | D170: ='Burning CH4'!D170 -> 0 | E170: x | F170: =Control!$F$46 -> 0 | G170: x | H170: =Control!$F$40 -> 0 | I170: x | J170: =Control!$F$32 -> 0 | K170: = | L170: 0 | M170: x | N170: =Control!$C$74 -> 298 | O170: = | P170: 0
B171: Shrublands | D171: ='Burning CH4'!D171 -> 0 | E171: x | F171: =Control!$F$46 -> 0 | G171: x | H171: =Control!$F$41 -> 0 | I171: x | J171: =Control!$F$32 -> 0 | K171: = | L171: 0 | M171: x | N171: =Control!$C$74 -> 298 | O171: = | P171: 0
B172: Savanna woodlands (early dry season burns) | D172: ='Burning CH4'!D172 -> 0 | E172: x | F172: =Control!$F$46 -> 0 | G172: x | H172: =Control!$F$42 -> 0 | I172: x | J172: =Control!$F$30 -> 0 | K172: = | L172: 0 | M172: x | N172: =Control!$C$74 -> 298 | O172: = | P172: 0
B173: Savanna woodlands (mid/late season burns) | D173: ='Burning CH4'!D173 -> 0 | E173: x | F173: =Control!$F$46 -> 0 | G173: x | H173: =Control!$F$43 -> 0 | I173: x | J173: =Control!$F$30 -> 0 | K173: = | L173: 0 | M173: x | N173: =Control!$C$74 -> 298 | O173: = | P173: 0
B174: Total | P174: =SUM(P165:P173) -> 0
A176: Forest Fires | D176: =D163+1 -> 2003
B177: Forest Type | D177: Area Burned (ha) | F177: Average Biomass Density (kg d.m. / ha) | H177: Combustion efficiency | J177: Emission Factor (g/kg dry matter burned) | L177: MTN2O Emitted | N177: N2O GWP | P177: Emissions MMTCO2E
B178: Primary tropical forests | D178: ='Burning CH4'!D178 -> 0 | E178: x | F178: =Control!$F$46 -> 0 | G178: x | H178: =Control!$F$35 -> 0 | I178: x | J178: =Control!$F$32 -> 0 | K178: = | L178: =D178*F178*H178*J178*10^-6 -> 0 | M178: x | N178: =Control!$C$74 -> 298 | O178: = | P178: =L178*N178*10^-6 -> 0
B179: Secondary tropical forests | D179: ='Burning CH4'!D179 -> 0 | E179: x | F179: =Control!$F$46 -> 0 | G179: x | H179: =Control!$F$36 -> 0 | I179: x | J179: =Control!$F$32 -> 0 | K179: = | L179: 0 | M179: x | N179: =Control!$C$74 -> 298 | O179: = | P179: =L179*N179*10^-6 -> 0
B180: Tertiary tropical forests | D180: ='Burning CH4'!D180 -> 0 | E180: x | F180: =Control!$F$46 -> 0 | G180: x | H180: =Control!$F$37 -> 0 | I180: x | J180: =Control!$F$32 -> 0 | K180: = | L180: 0 | M180: x | N180: =Control!$C$74 -> 298 | O180: = | P180: 0
B181: Boreal forest | D181: ='Burning CH4'!D181 -> 0 | E181: x | F181: =Control!$F$46 -> 0 | G181: x | H181: =Control!$F$38 -> 0 | I181: x | J181: =Control!$F$32 -> 0 | K181: = | L181: 0 | M181: x | N181: =Control!$C$74 -> 298 | O181: = | P181: 0
B182: Eucalypt forests | D182: ='Burning CH4'!D182 -> 0 | E182: x | F182: =Control!$F$46 -> 0 | G182: x | H182: =Control!$F$39 -> 0 | I182: x | J182: =Control!$F$32 -> 0 | K182: = | L182: 0 | M182: x | N182: =Control!$C$74 -> 298 | O182: = | P182: 0
B183: Other temperate forests | D183: ='Burning CH4'!D183 -> 0 | E183: x | F183: =Control!$F$46 -> 0 | G183: x | H183: =Control!$F$40 -> 0 | I183: x | J183: =Control!$F$32 -> 0 | K183: = | L183: 0 | M183: x | N183: =Control!$C$74 -> 298 | O183: = | P183: 0
B184: Shrublands | D184: ='Burning CH4'!D184 -> 0 | E184: x | F184: =Control!$F$46 -> 0 | G184: x | H184: =Control!$F$41 -> 0 | I184: x | J184: =Control!$F$32 -> 0 | K184: = | L184: 0 | M184: x | N184: =Control!$C$74 -> 298 | O184: = | P184: 0
B185: Savanna woodlands (early dry season burns) | D185: ='Burning CH4'!D185 -> 0 | E185: x | F185: =Control!$F$46 -> 0 | G185: x | H185: =Control!$F$42 -> 0 | I185: x | J185: =Control!$F$30 -> 0 | K185: = | L185: 0 | M185: x | N185: =Control!$C$74 -> 298 | O185: = | P185: 0
B186: Savanna woodlands (mid/late season burns) | D186: ='Burning CH4'!D186 -> 0 | E186: x | F186: =Control!$F$46 -> 0 | G186: x | H186: =Control!$F$43 -> 0 | I186: x | J186: =Control!$F$30 -> 0 | K186: = | L186: 0 | M186: x | N186: =Control!$C$74 -> 298 | O186: = | P186: 0
B187: Total | P187: =SUM(P178:P186) -> 0
A189: Forest Fires | D189: =D176+1 -> 2004
B190: Forest Type | D190: Area Burned (ha) | F190: Average Biomass Density (kg d.m. / ha) | H190: Combustion efficiency | J190: Emission Factor (g/kg dry matter burned) | L190: MTN2O Emitted | N190: N2O GWP | P190: Emissions MMTCO2E
B191: Primary tropical forests | D191: ='Burning CH4'!D191 -> 0 | E191: x | F191: =Control!$F$46 -> 0 | G191: x | H191: =Control!$F$35 -> 0 | I191: x | J191: =Control!$F$32 -> 0 | K191: = | L191: =D191*F191*H191*J191*10^-6 -> 0 | M191: x | N191: =Control!$C$74 -> 298 | O191: = | P191: =L191*N191*10^-6 -> 0
B192: Secondary tropical forests | D192: ='Burning CH4'!D192 -> 0 | E192: x | F192: =Control!$F$46 -> 0 | G192: x | H192: =Control!$F$36 -> 0 | I192: x | J192: =Control!$F$32 -> 0 | K192: = | L192: 0 | M192: x | N192: =Control!$C$74 -> 298 | O192: = | P192: =L192*N192*10^-6 -> 0
B193: Tertiary tropical forests | D193: ='Burning CH4'!D193 -> 0 | E193: x | F193: =Control!$F$46 -> 0 | G193: x | H193: =Control!$F$37 -> 0 | I193: x | J193: =Control!$F$32 -> 0 | K193: = | L193: 0 | M193: x | N193: =Control!$C$74 -> 298 | O193: = | P193: 0
B194: Boreal forest | D194: ='Burning CH4'!D194 -> 0 | E194: x | F194: =Control!$F$46 -> 0 | G194: x | H194: =Control!$F$38 -> 0 | I194: x | J194: =Control!$F$32 -> 0 | K194: = | L194: 0 | M194: x | N194: =Control!$C$74 -> 298 | O194: = | P194: 0
B195: Eucalypt forests | D195: ='Burning CH4'!D195 -> 0 | E195: x | F195: =Control!$F$46 -> 0 | G195: x | H195: =Control!$F$39 -> 0 | I195: x | J195: =Control!$F$32 -> 0 | K195: = | L195: 0 | M195: x | N195: =Control!$C$74 -> 298 | O195: = | P195: 0
B196: Other temperate forests | D196: ='Burning CH4'!D196 -> 0 | E196: x | F196: =Control!$F$46 -> 0 | G196: x | H196: =Control!$F$40 -> 0 | I196: x | J196: =Control!$F$32 -> 0 | K196: = | L196: 0 | M196: x | N196: =Control!$C$74 -> 298 | O196: = | P196: 0
B197: Shrublands | D197: ='Burning CH4'!D197 -> 0 | E197: x | F197: =Control!$F$46 -> 0 | G197: x | H197: =Control!$F$41 -> 0 | I197: x | J197: =Control!$F$32 -> 0 | K197: = | L197: 0 | M197: x | N197: =Control!$C$74 -> 298 | O197: = | P197: 0
B198: Savanna woodlands (early dry season burns) | D198: ='Burning CH4'!D198 -> 0 | E198: x | F198: =Control!$F$46 -> 0 | G198: x | H198: =Control!$F$42 -> 0 | I198: x | J198: =Control!$F$30 -> 0 | K198: = | L198: 0 | M198: x | N198: =Control!$C$74 -> 298 | O198: = | P198: 0
B199: Savanna woodlands (mid/late season burns) | D199: ='Burning CH4'!D199 -> 0 | E199: x | F199: =Control!$F$46 -> 0 | G199: x | H199: =Control!$F$43 -> 0 | I199: x | J199: =Control!$F$30 -> 0 | K199: = | L199: 0 | M199: x | N199: =Control!$C$74 -> 298 | O199: = | P199: 0
B200: Total | P200: =SUM(P191:P199) -> 0
A202: Forest Fires | D202: =D189+1 -> 2005
B203: Forest Type | D203: Area Burned (ha) | F203: Average Biomass Density (kg d.m. / ha) | H203: Combustion efficiency | J203: Emission Factor (g/kg dry matter burned) | L203: MTN2O Emitted | N203: N2O GWP | P203: Emissions MMTCO2E
B204: Primary tropical forests | D204: ='Burning CH4'!D204 -> 0 | E204: x | F204: =Control!$F$46 -> 0 | G204: x | H204: =Control!$F$35 -> 0 | I204: x | J204: =Control!$F$32 -> 0 | K204: = | L204: =D204*F204*H204*J204*10^-6 -> 0 | M204: x | N204: =Control!$C$74 -> 298 | O204: = | P204: =L204*N204*10^-6 -> 0
B205: Secondary tropical forests | D205: ='Burning CH4'!D205 -> 0 | E205: x | F205: =Control!$F$46 -> 0 | G205: x | H205: =Control!$F$36 -> 0 | I205: x | J205: =Control!$F$32 -> 0 | K205: = | L205: 0 | M205: x | N205: =Control!$C$74 -> 298 | O205: = | P205: =L205*N205*10^-6 -> 0
B206: Tertiary tropical forests | D206: ='Burning CH4'!D206 -> 0 | E206: x | F206: =Control!$F$46 -> 0 | G206: x | H206: =Control!$F$37 -> 0 | I206: x | J206: =Control!$F$32 -> 0 | K206: = | L206: 0 | M206: x | N206: =Control!$C$74 -> 298 | O206: = | P206: 0
B207: Boreal forest | D207: ='Burning CH4'!D207 -> 0 | E207: x | F207: =Control!$F$46 -> 0 | G207: x | H207: =Control!$F$38 -> 0 | I207: x | J207: =Control!$F$32 -> 0 | K207: = | L207: 0 | M207: x | N207: =Control!$C$74 -> 298 | O207: = | P207: 0
B208: Eucalypt forests | D208: ='Burning CH4'!D208 -> 0 | E208: x | F208: =Control!$F$46 -> 0 | G208: x | H208: =Control!$F$39 -> 0 | I208: x | J208: =Control!$F$32 -> 0 | K208: = | L208: 0 | M208: x | N208: =Control!$C$74 -> 298 | O208: = | P208: 0
B209: Other temperate forests | D209: ='Burning CH4'!D209 -> 0 | E209: x | F209: =Control!$F$46 -> 0 | G209: x | H209: =Control!$F$40 -> 0 | I209: x | J209: =Control!$F$32 -> 0 | K209: = | L209: 0 | M209: x | N209: =Control!$C$74 -> 298 | O209: = | P209: 0
B210: Shrublands | D210: ='Burning CH4'!D210 -> 0 | E210: x | F210: =Control!$F$46 -> 0 | G210: x | H210: =Control!$F$41 -> 0 | I210: x | J210: =Control!$F$32 -> 0 | K210: = | L210: 0 | M210: x | N210: =Control!$C$74 -> 298 | O210: = | P210: 0
B211: Savanna woodlands (early dry season burns) | D211: ='Burning CH4'!D211 -> 0 | E211: x | F211: =Control!$F$46 -> 0 | G211: x | H211: =Control!$F$42 -> 0 | I211: x | J211: =Control!$F$30 -> 0 | K211: = | L211: 0 | M211: x | N211: =Control!$C$74 -> 298 | O211: = | P211: 0
B212: Savanna woodlands (mid/late season burns) | D212: ='Burning CH4'!D212 -> 0 | E212: x | F212: =Control!$F$46 -> 0 | G212: x | H212: =Control!$F$43 -> 0 | I212: x | J212: =Control!$F$30 -> 0 | K212: = | L212: 0 | M212: x | N212: =Control!$C$74 -> 298 | O212: = | P212: 0
B213: Total | P213: =SUM(P204:P212) -> 0
A215: Forest Fires | D215: =D202+1 -> 2006
B216: Forest Type | D216: Area Burned (ha) | F216: Average Biomass Density (kg d.m. / ha) | H216: Combustion efficiency | J216: Emission Factor (g/kg dry matter burned) | L216: MTN2O Emitted | N216: N2O GWP | P216: Emissions MMTCO2E
B217: Primary tropical forests | D217: ='Burning CH4'!D217 -> 0 | E217: x | F217: =Control!$F$46 -> 0 | G217: x | H217: =Control!$F$35 -> 0 | I217: x | J217: =Control!$F$32 -> 0 | K217: = | L217: =D217*F217*H217*J217*10^-6 -> 0 | M217: x | N217: =Control!$C$74 -> 298 | O217: = | P217: =L217*N217*10^-6 -> 0
B218: Secondary tropical forests | D218: ='Burning CH4'!D218 -> 0 | E218: x | F218: =Control!$F$46 -> 0 | G218: x | H218: =Control!$F$36 -> 0 | I218: x | J218: =Control!$F$32 -> 0 | K218: = | L218: 0 | M218: x | N218: =Control!$C$74 -> 298 | O218: = | P218: =L218*N218*10^-6 -> 0
B219: Tertiary tropical forests | D219: ='Burning CH4'!D219 -> 0 | E219: x | F219: =Control!$F$46 -> 0 | G219: x | H219: =Control!$F$37 -> 0 | I219: x | J219: =Control!$F$32 -> 0 | K219: = | L219: 0 | M219: x | N219: =Control!$C$74 -> 298 | O219: = | P219: 0
B220: Boreal forest | D220: ='Burning CH4'!D220 -> 0 | E220: x | F220: =Control!$F$46 -> 0 | G220: x | H220: =Control!$F$38 -> 0 | I220: x | J220: =Control!$F$32 -> 0 | K220: = | L220: 0 | M220: x | N220: =Control!$C$74 -> 298 | O220: = | P220: 0
B221: Eucalypt forests | D221: ='Burning CH4'!D221 -> 0 | E221: x | F221: =Control!$F$46 -> 0 | G221: x | H221: =Control!$F$39 -> 0 | I221: x | J221: =Control!$F$32 -> 0 | K221: = | L221: 0 | M221: x | N221: =Control!$C$74 -> 298 | O221: = | P221: 0
... 173 more rows

Sheet Yard Trimmings
A1: ="6. Landfilled Yard Trimmings and Food Scraps in "&StateName -> 6. Landfilled Yard Trimmings and Food Scraps in Select a State . . .
A9: 1. Enter the composition of yard trimmings, and the amount of annually landfilled yard trimmings and food scraps
B11: Content of yard trimmings | C11: Default | E11: Use the Default? (Check for Yes)
B13: % Grass | C13: =LYTinputs!C5 -> 0.303
B14: % Leaves | C14: =LYTinputs!C6 -> 0.401
B15: % Branches | C15: =LYTinputs!C7 -> 0.296
D16: Check -- must add up to 100% in order to continue: | E16: =SUM(E13:E15) -> 0 | F16: =IF(E16=1,"OK","Must equal 100%") -> Must equal 100%
B18: Landfilled yard trimmings and scraps, '000 short tons, wet weight
B19: Default landfilled yard trimmings and food scraps = state population x national landfilled yard trimmings and food scraps per capita
B20: Default grass, leaves, and branches = total landfilled yard trimmings x percentages entered above
C24: 1960 | D24: 1961 | E24: 1962 | F24: 1963 | G24: 1964 | H24: 1965 | I24: 1966 | J24: 1967 | K24: 1968 | L24: 1969 | M24: 1970 | N24: 1971 | O24: 1972 | P24: 1973 | Q24: 1974 | R24: 1975 | S24: 1976 | T24: 1977 | U24: 1978 | V24: 1979 | W24: 1980 | X24: 1981 | Y24: 1982 | Z24: 1983 | AA24: 1984 | AB24: 1985 | AC24: 1986 | AD24: 1987 | AE24: 1988 | AF24: 1989 | AG24: 1990 | AH24: 1991 | AI24: 1992 | AJ24: 1993 | AK24: 1994 | AL24: 1995 | AM24: 1996 | AN24: 1997 | AO24: 1998 | AP24: 1999 | AQ24: 2000 | AR24: 2001 | AS24: 2002 | AT24: 2003 | AU24: 2004 | AV24: 2005 | AW24: 2006 | AX24: 2007 | AY24: 2008 | AZ24: 2009 | BA24: 2010 | BB24: 2011 | BC24: 2012 | BD24: 2013 | BE24: 2014 | BF24: 2015 | BG24: 2016 | BH24: 2017 | BI24: 2018 | BJ24: 2019 | BK24: 2020
B25: Total landfilled yard trimmings
B26: Grass
B27: Leaves
B28: Branches
B29: Food scraps
A32: 2. Calculate the amount of carbon added to landfills annually
B33: Key Assumptions
B34: Initial Carbon Content | C34: Default | E34: Use the Default? (Check for Yes)
B37: Grass | C37: =LYTinputs!C70 -> 0.4487
B38: Leaves | C38: =LYTinputs!C71 -> 0.455
B39: Branches | C39: =LYTinputs!C72 -> 0.494
B40: Food Scraps | C40: =LYTinputs!C73 -> 0.508
B42: Dry Weight/Wet Weight ratio | C42: Default | E42: Use the Default? (Check for Yes)
B43: Grass | C43: =LYTinputs!E5 -> 0.3
B44: Leaves | C44: =LYTinputs!E6 -> 0.7
B45: Branches | C45: =LYTinputs!E7 -> 0.9
B46: Food Scraps | C46: =LYTinputs!E8 -> 0.3
B49: Total Mass Additions, '000 metric tons C
B50: Mass additions of carbon = landfilled materials, wet weight x initial carbon content x dry weight/wet weight ration x metric tons per short ton
C53: 1960 | D53: 1961 | E53: 1962 | F53: 1963 | G53: 1964 | H53: 1965 | I53: 1966 | J53: 1967 | K53: 1968 | L53: 1969 | M53: 1970 | N53: 1971 | O53: 1972 | P53: 1973 | Q53: 1974 | R53: 1975 | S53: 1976 | T53: 1977 | U53: 1978 | V53: 1979 | W53: 1980 | X53: 1981 | Y53: 1982 | Z53: 1983 | AA53: 1984 | AB53: 1985 | AC53: 1986 | AD53: 1987 | AE53: 1988 | AF53: 1989 | AG53: 1990 | AH53: 1991 | AI53: 1992 | AJ53: 1993 | AK53: 1994 | AL53: 1995 | AM53: 1996 | AN53: 1997 | AO53: 1998 | AP53: 1999 | AQ53: 2000 | AR53: 2001 | AS53: 2002 | AT53: 2003 | AU53: 2004 | AV53: 2005 | AW53: 2006 | AX53: 2007 | AY53: 2008 | AZ53: 2009 | BA53: 2010 | BB53: 2011 | BC53: 2012 | BD53: 2013 | BE53: 2014 | BF53: 2015 | BG53: 2016 | BH53: 2017 | BI53: 2018 | BJ53: 2019 | BK53: 2020
B54: Grass | C54: =C26*$E37*MT_ST*$E43 -> 0 | D54: 0 | E54: 0 | F54: 0 | G54: 0 | H54: 0 | I54: 0 | J54: 0 | K54: 0 | L54: 0 | M54: 0 | N54: 0 | O54: 0 | P54: 0 | Q54: 0 | R54: 0 | S54: 0 | T54: 0 | U54: 0 | V54: 0 | W54: 0 | X54: 0 | Y54: 0 | Z54: 0 | AA54: 0 | AB54: 0 | AC54: 0 | AD54: 0 | AE54: 0 | AF54: 0 | AG54: 0 | AH54: 0 | AI54: 0 | AJ54: 0 | AK54: 0 | AL54: 0 | AM54: 0 | AN54: 0 | AO54: 0 | AP54: 0 | AQ54: 0 | AR54: 0 | AS54: 0 | AT54: 0 | AU54: 0 | AV54: 0 | AW54: 0 | AX54: 0 | AY54: 0 | AZ54: 0 | BA54: 0 | BB54: 0 | BC54: 0 | BD54: 0 | BE54: 0 | BF54: 0 | BG54: 0 | BH54: 0 | BI54: 0 | BJ54: 0 | BK54: 0
B55: Leaves | C55: =C27*$E38*MT_ST*$E44 -> 0 | D55: 0 | E55: 0 | F55: 0 | G55: 0 | H55: 0 | I55: 0 | J55: 0 | K55: 0 | L55: 0 | M55: 0 | N55: 0 | O55: 0 | P55: 0 | Q55: 0 | R55: 0 | S55: 0 | T55: 0 | U55: 0 | V55: 0 | W55: 0 | X55: 0 | Y55: 0 | Z55: 0 | AA55: 0 | AB55: 0 | AC55: 0 | AD55: 0 | AE55: 0 | AF55: 0 | AG55: 0 | AH55: 0 | AI55: 0 | AJ55: 0 | AK55: 0 | AL55: 0 | AM55: 0 | AN55: 0 | AO55: 0 | AP55: 0 | AQ55: 0 | AR55: 0 | AS55: 0 | AT55: 0 | AU55: 0 | AV55: 0 | AW55: 0 | AX55: 0 | AY55: 0 | AZ55: 0 | BA55: 0 | BB55: 0 | BC55: 0 | BD55: 0 | BE55: 0 | BF55: 0 | BG55: 0 | BH55: 0 | BI55: 0 | BJ55: 0 | BK55: 0
B56: Branches | C56: =C28*$E39*MT_ST*$E45 -> 0 | D56: 0 | E56: 0 | F56: 0 | G56: 0 | H56: 0 | I56: 0 | J56: 0 | K56: 0 | L56: 0 | M56: 0 | N56: 0 | O56: 0 | P56: 0 | Q56: 0 | R56: 0 | S56: 0 | T56: 0 | U56: 0 | V56: 0 | W56: 0 | X56: 0 | Y56: 0 | Z56: 0 | AA56: 0 | AB56: 0 | AC56: 0 | AD56: 0 | AE56: 0 | AF56: 0 | AG56: 0 | AH56: 0 | AI56: 0 | AJ56: 0 | AK56: 0 | AL56: 0 | AM56: 0 | AN56: 0 | AO56: 0 | AP56: 0 | AQ56: 0 | AR56: 0 | AS56: 0 | AT56: 0 | AU56: 0 | AV56: 0 | AW56: 0 | AX56: 0 | AY56: 0 | AZ56: 0 | BA56: 0 | BB56: 0 | BC56: 0 | BD56: 0 | BE56: 0 | BF56: 0 | BG56: 0 | BH56: 0 | BI56: 0 | BJ56: 0 | BK56: 0
B57: Food Scraps | C57: =C29*$E40*MT_ST*$E46 -> 0 | D57: 0 | E57: 0 | F57: 0 | G57: 0 | H57: 0 | I57: 0 | J57: 0 | K57: 0 | L57: 0 | M57: 0 | N57: 0 | O57: 0 | P57: 0 | Q57: 0 | R57: 0 | S57: 0 | T57: 0 | U57: 0 | V57: 0 | W57: 0 | X57: 0 | Y57: 0 | Z57: 0 | AA57: 0 | AB57: 0 | AC57: 0 | AD57: 0 | AE57: 0 | AF57: 0 | AG57: 0 | AH57: 0 | AI57: 0 | AJ57: 0 | AK57: 0 | AL57: 0 | AM57: 0 | AN57: 0 | AO57: 0 | AP57: 0 | AQ57: 0 | AR57: 0 | AS57: 0 | AT57: 0 | AU57: 0 | AV57: 0 | AW57: 0 | AX57: 0 | AY57: 0 | AZ57: 0 | BA57: 0 | BB57: 0 | BC57: 0 | BD57: 0 | BE57: 0 | BF57: 0 | BG57: 0 | BH57: 0 | BI57: 0 | BJ57: 0 | BK57: 0
B58: Total | C58: =SUM(C54:C57) -> 0 | D58: =SUM(D54:D57) -> 0 | E58: 0 | F58: 0 | G58: 0 | H58: 0 | I58: 0 | J58: 0 | K58: 0 | L58: 0 | M58: 0 | N58: 0 | O58: 0 | P58: 0 | Q58: 0 | R58: 0 | S58: 0 | T58: 0 | U58: 0 | V58: 0 | W58: 0 | X58: 0 | Y58: 0 | Z58: 0 | AA58: 0 | AB58: 0 | AC58: 0 | AD58: 0 | AE58: 0 | AF58: 0 | AG58: 0 | AH58: 0 | AI58: 0 | AJ58: 0 | AK58: 0 | AL58: 0 | AM58: 0 | AN58: 0 | AO58: 0 | AP58: 0 | AQ58: 0 | AR58: 0 | AS58: 0 | AT58: 0 | AU58: 0 | AV58: 0 | AW58: =SUM(AW54:AW57) -> 0 | AX58: 0 | AY58: 0 | AZ58: 0 | BA58: 0 | BB58: 0 | BC58: 0 | BD58: 0 | BE58: 0 | BF58: 0 | BG58: 0 | BH58: 0 | BI58: 0 | BJ58: 0 | BK58: 0
A60: 3. Calculate the total annual stocks of landfilled carbon
B62: Proportion of Carbon Stored Permanently | C62: Default | E62: Use the Default? (Check for Yes)
B65: Grass | C65: 0.535
B66: Leaves | C66: 0.846
B67: Branches | C67: 0.769
B68: Food Scraps | C68: 0.157
B70: Half-life of degradable carbon (years) | C70: Default | E70: Use the Default? (Check for Yes)
B71: Grass | C71: =LYTinputs!G5 -> 5
B72: Leaves | C72: =LYTinputs!G6 -> 20
B73: Branches | C73: =LYTinputs!G7 -> 23.1
B74: Food Scraps | C74: =LYTinputs!G8 -> 3.8
B77: Total Stocks of Landfilled Carbon, '000 metric tons C
B78: Annual carbon stocks are calculated by summing the carbon remaining from all previous years' deposits of waste.
B79: The stock of carbon remaining in landfills from any given year is calculated as follows:
B80: Initial C Addition x (Proportion of C Stored Permanently + (1 - Proportion of C Stored Permanently) x e ^(-ln(0.5)/half-life of degradable C))
B81: To calculate stocks for any given year, the remaining stocks for all previous years are summed.
B82: The table below provides a summary of the calculated annual C stored in landfills. To view the more detailed calculations for each year, click on the navigational arrow below.
C87: 1960 | D87: 1961 | E87: 1962 | F87: 1963 | G87: 1964 | H87: 1965 | I87: 1966 | J87: 1967 | K87: 1968 | L87: 1969 | M87: 1970 | N87: 1971 | O87: 1972 | P87: 1973 | Q87: 1974 | R87: 1975 | S87: 1976 | T87: 1977 | U87: 1978 | V87: 1979 | W87: 1980 | X87: 1981 | Y87: 1982 | Z87: 1983 | AA87: 1984 | AB87: 1985 | AC87: 1986 | AD87: 1987 | AE87: 1988 | AF87: 1989 | AG87: 1990 | AH87: 1991 | AI87: 1992 | AJ87: 1993 | AK87: 1994 | AL87: 1995 | AM87: 1996 | AN87: 1997 | AO87: 1998 | AP87: 1999 | AQ87: 2000 | AR87: 2001 | AS87: 2002 | AT87: 2003 | AU87: 2004 | AV87: 2005 | AW87: 2006 | AX87: 2007 | AY87: 2008 | AZ87: 2009 | BA87: 2010 | BB87: 2011 | BC87: 2012 | BD87: 2013 | BE87: 2014 | BF87: 2015 | BG87: 2016 | BH87: 2017 | BI87: 2018 | BJ87: 2019 | BK87: 2020
B88: Grass | C88: =IF(C26=0,0,LYTCalculations!B69) -> 0 | D88: =IF(D26=0,0,LYTCalculations!C69) -> 0 | E88: =IF(E26=0,0,LYTCalculations!D69) -> 0 | F88: =IF(F26=0,0,LYTCalculations!E69) -> 0 | G88: =IF(G26=0,0,LYTCalculations!F69) -> 0 | H88: =IF(H26=0,0,LYTCalculations!G69) -> 0 | I88: =IF(I26=0,0,LYTCalculations!H69) -> 0 | J88: =IF(J26=0,0,LYTCalculations!I69) -> 0 | K88: =IF(K26=0,0,LYTCalculations!J69) -> 0 | L88: =IF(L26=0,0,LYTCalculations!K69) -> 0 | M88: =IF(M26=0,0,LYTCalculations!L69) -> 0 | N88: =IF(N26=0,0,LYTCalculations!M69) -> 0 | O88: =IF(O26=0,0,LYTCalculations!N69) -> 0 | P88: =IF(P26=0,0,LYTCalculations!O69) -> 0 | Q88: =IF(Q26=0,0,LYTCalculations!P69) -> 0 | R88: =IF(R26=0,0,LYTCalculations!Q69) -> 0 | S88: =IF(S26=0,0,LYTCalculations!R69) -> 0 | T88: =IF(T26=0,0,LYTCalculations!S69) -> 0 | U88: =IF(U26=0,0,LYTCalculations!T69) -> 0 | V88: =IF(V26=0,0,LYTCalculations!U69) -> 0 | W88: =IF(W26=0,0,LYTCalculations!V69) -> 0 | X88: =IF(X26=0,0,LYTCalculations!W69) -> 0 | Y88: =IF(Y26=0,0,LYTCalculations!X69) -> 0 | Z88: =IF(Z26=0,0,LYTCalculations!Y69) -> 0 | AA88: =IF(AA26=0,0,LYTCalculations!Z69) -> 0 | AB88: =IF(AB26=0,0,LYTCalculations!AA69) -> 0 | AC88: =IF(AC26=0,0,LYTCalculations!AB69) -> 0 | AD88: =IF(AD26=0,0,LYTCalculations!AC69) -> 0 | AE88: =IF(AE26=0,0,LYTCalculations!AD69) -> 0 | AF88: =IF(AF26=0,0,LYTCalculations!AE69) -> 0 | AG88: =IF(AG26=0,0,LYTCalculations!AF69) -> 0 | AH88: =IF(AH26=0,0,LYTCalculations!AG69) -> 0 | AI88: =IF(AI26=0,0,LYTCalculations!AH69) -> 0 | AJ88: =IF(AJ26=0,0,LYTCalculations!AI69) -> 0 | AK88: =IF(AK26=0,0,LYTCalculations!AJ69) -> 0 | AL88: =IF(AL26=0,0,LYTCalculations!AK69) -> 0 | AM88: =IF(AM26=0,0,LYTCalculations!AL69) -> 0 | AN88: =IF(AN26=0,0,LYTCalculations!AM69) -> 0 | AO88: =IF(AO26=0,0,LYTCalculations!AN69) -> 0 | AP88: =IF(AP26=0,0,LYTCalculations!AO69) -> 0 | AQ88: =IF(AQ26=0,0,LYTCalculations!AP69) -> 0 | AR88: =IF(AR26=0,0,LYTCalculations!AQ69) -> 0 | AS88: =IF(AS26=0,0,LYTCalculations!AR69) -> 0 | AT88: =IF(AT26=0,0,LYTCalculations!AS69) -> 0 | AU88: =IF(AU26=0,0,LYTCalculations!AT69) -> 0 | AV88: =IF(AV26=0,0,LYTCalculations!AU69) -> 0 | AW88: =IF(AW26=0,0,LYTCalculations!AV69) -> 0 | AX88: =IF(AX26=0,0,LYTCalculations!AW69) -> 0 | AY88: =IF(AY26=0,0,LYTCalculations!AX69) -> 0 | AZ88: =IF(AZ26=0,0,LYTCalculations!AY69) -> 0 | BA88: =IF(BA26=0,0,LYTCalculations!AZ69) -> 0 | BB88: =IF(BB26=0,0,LYTCalculations!BA69) -> 0 | BC88: =IF(BC26=0,0,LYTCalculations!BB69) -> 0 | BD88: =IF(BD26=0,0,LYTCalculations!BC69) -> 0 | BE88: =IF(BE26=0,0,LYTCalculations!BD69) -> 0 | BF88: =IF(BF26=0,0,LYTCalculations!BE69) -> 0 | BG88: =IF(BG26=0,0,LYTCalculations!BF69) -> 0 | BH88: =IF(BH26=0,0,LYTCalculations!BG69) -> 0 | BI88: =IF(BI26=0,0,LYTCalculations!BH69) -> 0 | BJ88: =IF(BJ26=0,0,LYTCalculations!BI69) -> 0 | BK88: =IF(BK26=0,0,LYTCalculations!BJ69) -> 0
B89: Leaves | C89: =IF(C27=0,0,LYTCalculations!B136) -> 0 | D89: =IF(D27=0,0,LYTCalculations!C136) -> 0 | E89: =IF(E27=0,0,LYTCalculations!D136) -> 0 | F89: =IF(F27=0,0,LYTCalculations!E136) -> 0 | G89: =IF(G27=0,0,LYTCalculations!F136) -> 0 | H89: =IF(H27=0,0,LYTCalculations!G136) -> 0 | I89: =IF(I27=0,0,LYTCalculations!H136) -> 0 | J89: =IF(J27=0,0,LYTCalculations!I136) -> 0 | K89: =IF(K27=0,0,LYTCalculations!J136) -> 0 | L89: =IF(L27=0,0,LYTCalculations!K136) -> 0 | M89: =IF(M27=0,0,LYTCalculations!L136) -> 0 | N89: =IF(N27=0,0,LYTCalculations!M136) -> 0 | O89: =IF(O27=0,0,LYTCalculations!N136) -> 0 | P89: =IF(P27=0,0,LYTCalculations!O136) -> 0 | Q89: =IF(Q27=0,0,LYTCalculations!P136) -> 0 | R89: =IF(R27=0,0,LYTCalculations!Q136) -> 0 | S89: =IF(S27=0,0,LYTCalculations!R136) -> 0 | T89: =IF(T27=0,0,LYTCalculations!S136) -> 0 | U89: =IF(U27=0,0,LYTCalculations!T136) -> 0 | V89: =IF(V27=0,0,LYTCalculations!U136) -> 0 | W89: =IF(W27=0,0,LYTCalculations!V136) -> 0 | X89: =IF(X27=0,0,LYTCalculations!W136) -> 0 | Y89: =IF(Y27=0,0,LYTCalculations!X136) -> 0 | Z89: =IF(Z27=0,0,LYTCalculations!Y136) -> 0 | AA89: =IF(AA27=0,0,LYTCalculations!Z136) -> 0 | AB89: =IF(AB27=0,0,LYTCalculations!AA136) -> 0 | AC89: =IF(AC27=0,0,LYTCalculations!AB136) -> 0 | AD89: =IF(AD27=0,0,LYTCalculations!AC136) -> 0 | AE89: =IF(AE27=0,0,LYTCalculations!AD136) -> 0 | AF89: =IF(AF27=0,0,LYTCalculations!AE136) -> 0 | AG89: =IF(AG27=0,0,LYTCalculations!AF136) -> 0 | AH89: =IF(AH27=0,0,LYTCalculations!AG136) -> 0 | AI89: =IF(AI27=0,0,LYTCalculations!AH136) -> 0 | AJ89: =IF(AJ27=0,0,LYTCalculations!AI136) -> 0 | AK89: =IF(AK27=0,0,LYTCalculations!AJ136) -> 0 | AL89: =IF(AL27=0,0,LYTCalculations!AK136) -> 0 | AM89: =IF(AM27=0,0,LYTCalculations!AL136) -> 0 | AN89: =IF(AN27=0,0,LYTCalculations!AM136) -> 0 | AO89: =IF(AO27=0,0,LYTCalculations!AN136) -> 0 | AP89: =IF(AP27=0,0,LYTCalculations!AO136) -> 0 | AQ89: =IF(AQ27=0,0,LYTCalculations!AP136) -> 0 | AR89: =IF(AR27=0,0,LYTCalculations!AQ136) -> 0 | AS89: =IF(AS27=0,0,LYTCalculations!AR136) -> 0 | AT89: =IF(AT27=0,0,LYTCalculations!AS136) -> 0 | AU89: =IF(AU27=0,0,LYTCalculations!AT136) -> 0 | AV89: =IF(AV27=0,0,LYTCalculations!AU136) -> 0 | AW89: =IF(AW27=0,0,LYTCalculations!AV136) -> 0 | AX89: =IF(AX27=0,0,LYTCalculations!AW136) -> 0 | AY89: =IF(AY27=0,0,LYTCalculations!AX136) -> 0 | AZ89: =IF(AZ27=0,0,LYTCalculations!AY136) -> 0 | BA89: =IF(BA27=0,0,LYTCalculations!AZ136) -> 0 | BB89: =IF(BB27=0,0,LYTCalculations!BA136) -> 0 | BC89: =IF(BC27=0,0,LYTCalculations!BB136) -> 0 | BD89: =IF(BD27=0,0,LYTCalculations!BC136) -> 0 | BE89: =IF(BE27=0,0,LYTCalculations!BD136) -> 0 | BF89: =IF(BF27=0,0,LYTCalculations!BE136) -> 0 | BG89: =IF(BG27=0,0,LYTCalculations!BF136) -> 0 | BH89: =IF(BH27=0,0,LYTCalculations!BG136) -> 0 | BI89: =IF(BI27=0,0,LYTCalculations!BH136) -> 0 | BJ89: =IF(BJ27=0,0,LYTCalculations!BI136) -> 0 | BK89: =IF(BK27=0,0,LYTCalculations!BJ136) -> 0
B90: Branches | C90: =IF(C28=0,0,LYTCalculations!B203) -> 0 | D90: =IF(D28=0,0,LYTCalculations!C203) -> 0 | E90: =IF(E28=0,0,LYTCalculations!D203) -> 0 | F90: =IF(F28=0,0,LYTCalculations!E203) -> 0 | G90: =IF(G28=0,0,LYTCalculations!F203) -> 0 | H90: =IF(H28=0,0,LYTCalculations!G203) -> 0 | I90: =IF(I28=0,0,LYTCalculations!H203) -> 0 | J90: =IF(J28=0,0,LYTCalculations!I203) -> 0 | K90: =IF(K28=0,0,LYTCalculations!J203) -> 0 | L90: =IF(L28=0,0,LYTCalculations!K203) -> 0 | M90: =IF(M28=0,0,LYTCalculations!L203) -> 0 | N90: =IF(N28=0,0,LYTCalculations!M203) -> 0 | O90: =IF(O28=0,0,LYTCalculations!N203) -> 0 | P90: =IF(P28=0,0,LYTCalculations!O203) -> 0 | Q90: =IF(Q28=0,0,LYTCalculations!P203) -> 0 | R90: =IF(R28=0,0,LYTCalculations!Q203) -> 0 | S90: =IF(S28=0,0,LYTCalculations!R203) -> 0 | T90: =IF(T28=0,0,LYTCalculations!S203) -> 0 | U90: =IF(U28=0,0,LYTCalculations!T203) -> 0 | V90: =IF(V28=0,0,LYTCalculations!U203) -> 0 | W90: =IF(W28=0,0,LYTCalculations!V203) -> 0 | X90: =IF(X28=0,0,LYTCalculations!W203) -> 0 | Y90: =IF(Y28=0,0,LYTCalculations!X203) -> 0 | Z90: =IF(Z28=0,0,LYTCalculations!Y203) -> 0 | AA90: =IF(AA28=0,0,LYTCalculations!Z203) -> 0 | AB90: =IF(AB28=0,0,LYTCalculations!AA203) -> 0 | AC90: =IF(AC28=0,0,LYTCalculations!AB203) -> 0 | AD90: =IF(AD28=0,0,LYTCalculations!AC203) -> 0 | AE90: =IF(AE28=0,0,LYTCalculations!AD203) -> 0 | AF90: =IF(AF28=0,0,LYTCalculations!AE203) -> 0 | AG90: =IF(AG28=0,0,LYTCalculations!AF203) -> 0 | AH90: =IF(AH28=0,0,LYTCalculations!AG203) -> 0 | AI90: =IF(AI28=0,0,LYTCalculations!AH203) -> 0 | AJ90: =IF(AJ28=0,0,LYTCalculations!AI203) -> 0 | AK90: =IF(AK28=0,0,LYTCalculations!AJ203) -> 0 | AL90: =IF(AL28=0,0,LYTCalculations!AK203) -> 0 | AM90: =IF(AM28=0,0,LYTCalculations!AL203) -> 0 | AN90: =IF(AN28=0,0,LYTCalculations!AM203) -> 0 | AO90: =IF(AO28=0,0,LYTCalculations!AN203) -> 0 | AP90: =IF(AP28=0,0,LYTCalculations!AO203) -> 0 | AQ90: =IF(AQ28=0,0,LYTCalculations!AP203) -> 0 | AR90: =IF(AR28=0,0,LYTCalculations!AQ203) -> 0 | AS90: =IF(AS28=0,0,LYTCalculations!AR203) -> 0 | AT90: =IF(AT28=0,0,LYTCalculations!AS203) -> 0 | AU90: =IF(AU28=0,0,LYTCalculations!AT203) -> 0 | AV90: =IF(AV28=0,0,LYTCalculations!AU203) -> 0 | AW90: =IF(AW28=0,0,LYTCalculations!AV203) -> 0 | AX90: =IF(AX28=0,0,LYTCalculations!AW203) -> 0 | AY90: =IF(AY28=0,0,LYTCalculations!AX203) -> 0 | AZ90: =IF(AZ28=0,0,LYTCalculations!AY203) -> 0 | BA90: =IF(BA28=0,0,LYTCalculations!AZ203) -> 0 | BB90: =IF(BB28=0,0,LYTCalculations!BA203) -> 0 | BC90: =IF(BC28=0,0,LYTCalculations!BB203) -> 0 | BD90: =IF(BD28=0,0,LYTCalculations!BC203) -> 0 | BE90: =IF(BE28=0,0,LYTCalculations!BD203) -> 0 | BF90: =IF(BF28=0,0,LYTCalculations!BE203) -> 0 | BG90: =IF(BG28=0,0,LYTCalculations!BF203) -> 0 | BH90: =IF(BH28=0,0,LYTCalculations!BG203) -> 0 | BI90: =IF(BI28=0,0,LYTCalculations!BH203) -> 0 | BJ90: =IF(BJ28=0,0,LYTCalculations!BI203) -> 0 | BK90: =IF(BK28=0,0,LYTCalculations!BJ203) -> 0
B91: Food Scraps | C91: =IF(C29=0,0,LYTCalculations!B271) -> 0 | D91: =IF(D29=0,0,LYTCalculations!C271) -> 0 | E91: =IF(E29=0,0,LYTCalculations!D271) -> 0 | F91: =IF(F29=0,0,LYTCalculations!E271) -> 0 | G91: =IF(G29=0,0,LYTCalculations!F271) -> 0 | H91: =IF(H29=0,0,LYTCalculations!G271) -> 0 | I91: =IF(I29=0,0,LYTCalculations!H271) -> 0 | J91: =IF(J29=0,0,LYTCalculations!I271) -> 0 | K91: =IF(K29=0,0,LYTCalculations!J271) -> 0 | L91: =IF(L29=0,0,LYTCalculations!K271) -> 0 | M91: =IF(M29=0,0,LYTCalculations!L271) -> 0 | N91: =IF(N29=0,0,LYTCalculations!M271) -> 0 | O91: =IF(O29=0,0,LYTCalculations!N271) -> 0 | P91: =IF(P29=0,0,LYTCalculations!O271) -> 0 | Q91: =IF(Q29=0,0,LYTCalculations!P271) -> 0 | R91: =IF(R29=0,0,LYTCalculations!Q271) -> 0 | S91: =IF(S29=0,0,LYTCalculations!R271) -> 0 | T91: =IF(T29=0,0,LYTCalculations!S271) -> 0 | U91: =IF(U29=0,0,LYTCalculations!T271) -> 0 | V91: =IF(V29=0,0,LYTCalculations!U271) -> 0 | W91: =IF(W29=0,0,LYTCalculations!V271) -> 0 | X91: =IF(X29=0,0,LYTCalculations!W271) -> 0 | Y91: =IF(Y29=0,0,LYTCalculations!X271) -> 0 | Z91: =IF(Z29=0,0,LYTCalculations!Y271) -> 0 | AA91: =IF(AA29=0,0,LYTCalculations!Z271) -> 0 | AB91: =IF(AB29=0,0,LYTCalculations!AA271) -> 0 | AC91: =IF(AC29=0,0,LYTCalculations!AB271) -> 0 | AD91: =IF(AD29=0,0,LYTCalculations!AC271) -> 0 | AE91: =IF(AE29=0,0,LYTCalculations!AD271) -> 0 | AF91: =IF(AF29=0,0,LYTCalculations!AE271) -> 0 | AG91: =IF(AG29=0,0,LYTCalculations!AF271) -> 0 | AH91: =IF(AH29=0,0,LYTCalculations!AG271) -> 0 | AI91: =IF(AI29=0,0,LYTCalculations!AH271) -> 0 | AJ91: =IF(AJ29=0,0,LYTCalculations!AI271) -> 0 | AK91: =IF(AK29=0,0,LYTCalculations!AJ271) -> 0 | AL91: =IF(AL29=0,0,LYTCalculations!AK271) -> 0 | AM91: =IF(AM29=0,0,LYTCalculations!AL271) -> 0 | AN91: =IF(AN29=0,0,LYTCalculations!AM271) -> 0 | AO91: =IF(AO29=0,0,LYTCalculations!AN271) -> 0 | AP91: =IF(AP29=0,0,LYTCalculations!AO271) -> 0 | AQ91: =IF(AQ29=0,0,LYTCalculations!AP271) -> 0 | AR91: =IF(AR29=0,0,LYTCalculations!AQ271) -> 0 | AS91: =IF(AS29=0,0,LYTCalculations!AR271) -> 0 | AT91: =IF(AT29=0,0,LYTCalculations!AS271) -> 0 | AU91: =IF(AU29=0,0,LYTCalculations!AT271) -> 0 | AV91: =IF(AV29=0,0,LYTCalculations!AU271) -> 0 | AW91: =IF(AW29=0,0,LYTCalculations!AV271) -> 0 | AX91: =IF(AX29=0,0,LYTCalculations!AW271) -> 0 | AY91: =IF(AY29=0,0,LYTCalculations!AX271) -> 0 | AZ91: =IF(AZ29=0,0,LYTCalculations!AY271) -> 0 | BA91: =IF(BA29=0,0,LYTCalculations!AZ271) -> 0 | BB91: =IF(BB29=0,0,LYTCalculations!BA271) -> 0 | BC91: =IF(BC29=0,0,LYTCalculations!BB271) -> 0 | BD91: =IF(BD29=0,0,LYTCalculations!BC271) -> 0 | BE91: =IF(BE29=0,0,LYTCalculations!BD271) -> 0 | BF91: =IF(BF29=0,0,LYTCalculations!BE271) -> 0 | BG91: =IF(BG29=0,0,LYTCalculations!BF271) -> 0 | BH91: =IF(BH29=0,0,LYTCalculations!BG271) -> 0 | BI91: =IF(BI29=0,0,LYTCalculations!BH271) -> 0 | BJ91: =IF(BJ29=0,0,LYTCalculations!BI271) -> 0 | BK91: =IF(BK29=0,0,LYTCalculations!BJ271) -> 0
B92: Total | C92: =SUM(C88:C91) -> 0 | D92: =SUM(D88:D91) -> 0 | E92: 0 | F92: 0 | G92: 0 | H92: 0 | I92: 0 | J92: 0 | K92: 0 | L92: 0 | M92: 0 | N92: 0 | O92: 0 | P92: 0 | Q92: 0 | R92: 0 | S92: 0 | T92: 0 | U92: 0 | V92: 0 | W92: 0 | X92: 0 | Y92: 0 | Z92: 0 | AA92: 0 | AB92: 0 | AC92: 0 | AD92: 0 | AE92: 0 | AF92: 0 | AG92: 0 | AH92: 0 | AI92: 0 | AJ92: 0 | AK92: 0 | AL92: 0 | AM92: 0 | AN92: 0 | AO92: 0 | AP92: 0 | AQ92: 0 | AR92: 0 | AS92: 0 | AT92: 0 | AU92: 0 | AV92: 0 | AW92: =SUM(AW88:AW91) -> 0 | AX92: 0 | AY92: 0 | AZ92: 0 | BA92: 0 | BB92: 0 | BC92: 0 | BD92: 0 | BE92: 0 | BF92: 0 | BG92: 0 | BH92: 0 | BI92: 0 | BJ92: 0 | BK92: 0
A95: 4. Calculate annual flux of carbon stored in landfills
B97: Annual Flux of Carbon Stored in Landfills, '000 metric tons C
B98: Annual flux is calculated by subtracting the current year's C stocks from the previous year's stocks
C100: 1960 | D100: 1961 | E100: 1962 | F100: 1963 | G100: 1964 | H100: 1965 | I100: 1966 | J100: 1967 | K100: 1968 | L100: 1969 | M100: 1970 | N100: 1971 | O100: 1972 | P100: 1973 | Q100: 1974 | R100: 1975 | S100: 1976 | T100: 1977 | U100: 1978 | V100: 1979 | W100: 1980 | X100: 1981 | Y100: 1982 | Z100: 1983 | AA100: 1984 | AB100: 1985 | AC100: 1986 | AD100: 1987 | AE100: 1988 | AF100: 1989 | AG100: 1990 | AH100: 1991 | AI100: 1992 | AJ100: 1993 | AK100: 1994 | AL100: 1995 | AM100: 1996 | AN100: 1997 | AO100: 1998 | AP100: 1999 | AQ100: 2000 | AR100: 2001 | AS100: 2002 | AT100: 2003 | AU100: 2004 | AV100: 2005 | AW100: 2006 | AX100: 2007 | AY100: 2008 | AZ100: 2009 | BA100: 2010 | BB100: 2011 | BC100: 2012 | BD100: 2013 | BE100: 2014 | BF100: 2015 | BG100: 2016 | BH100: 2017 | BI100: 2018 | BJ100: 2019 | BK100: 2020
B101: Grass | C101: =IF(C26=0,0,-C88) -> 0 | D101: =-1*IF(D26=0,0,D88-C88) -> 0 | E101: =-1*IF(E26=0,0,E88-D88) -> 0 | F101: 0 | G101: 0 | H101: 0 | I101: 0 | J101: 0 | K101: 0 | L101: 0 | M101: 0 | N101: 0 | O101: 0 | P101: 0 | Q101: 0 | R101: 0 | S101: 0 | T101: 0 | U101: 0 | V101: 0 | W101: 0 | X101: 0 | Y101: 0 | Z101: 0 | AA101: 0 | AB101: 0 | AC101: 0 | AD101: 0 | AE101: 0 | AF101: 0 | AG101: 0 | AH101: 0 | AI101: 0 | AJ101: 0 | AK101: 0 | AL101: 0 | AM101: 0 | AN101: 0 | AO101: 0 | AP101: 0 | AQ101: 0 | AR101: 0 | AS101: 0 | AT101: 0 | AU101: 0 | AV101: 0 | AW101: =-1*IF(AW26=0,0,AW88-AV88) -> 0 | AX101: 0 | AY101: 0 | AZ101: 0 | BA101: 0 | BB101: 0 | BC101: 0 | BD101: 0 | BE101: 0 | BF101: 0 | BG101: 0 | BH101: 0 | BI101: 0 | BJ101: 0 | BK101: 0
B102: Leaves | C102: =IF(C27=0,0,-C89) -> 0 | D102: =-1*IF(D27=0,0,D89-C89) -> 0 | E102: =-1*IF(E27=0,0,E89-D89) -> 0 | F102: 0 | G102: 0 | H102: 0 | I102: 0 | J102: 0 | K102: 0 | L102: 0 | M102: 0 | N102: 0 | O102: 0 | P102: 0 | Q102: 0 | R102: 0 | S102: 0 | T102: =-1*IF(T27=0,0,T89-S89) -> 0 | U102: 0 | V102: 0 | W102: 0 | X102: 0 | Y102: 0 | Z102: 0 | AA102: 0 | AB102: 0 | AC102: 0 | AD102: 0 | AE102: 0 | AF102: 0 | AG102: 0 | AH102: 0 | AI102: 0 | AJ102: 0 | AK102: 0 | AL102: 0 | AM102: 0 | AN102: 0 | AO102: 0 | AP102: 0 | AQ102: 0 | AR102: 0 | AS102: 0 | AT102: 0 | AU102: 0 | AV102: 0 | AW102: =-1*IF(AW27=0,0,AW89-AV89) -> 0 | AX102: 0 | AY102: 0 | AZ102: 0 | BA102: 0 | BB102: 0 | BC102: 0 | BD102: 0 | BE102: 0 | BF102: 0 | BG102: 0 | BH102: 0 | BI102: 0 | BJ102: 0 | BK102: 0
B103: Branches | C103: =IF(C28=0,0,-C90) -> 0 | D103: =-1*IF(D28=0,0,D90-C90) -> 0 | E103: 0 | F103: 0 | G103: 0 | H103: 0 | I103: 0 | J103: 0 | K103: 0 | L103: 0 | M103: 0 | N103: 0 | O103: 0 | P103: 0 | Q103: 0 | R103: 0 | S103: 0 | T103: =-1*IF(T28=0,0,T90-S90) -> 0 | U103: 0 | V103: 0 | W103: 0 | X103: 0 | Y103: 0 | Z103: 0 | AA103: 0 | AB103: 0 | AC103: 0 | AD103: 0 | AE103: 0 | AF103: 0 | AG103: 0 | AH103: 0 | AI103: 0 | AJ103: 0 | AK103: 0 | AL103: 0 | AM103: 0 | AN103: 0 | AO103: 0 | AP103: 0 | AQ103: 0 | AR103: 0 | AS103: 0 | AT103: 0 | AU103: 0 | AV103: 0 | AW103: =-1*IF(AW28=0,0,AW90-AV90) -> 0 | AX103: 0 | AY103: 0 | AZ103: 0 | BA103: 0 | BB103: 0 | BC103: 0 | BD103: 0 | BE103: 0 | BF103: 0 | BG103: 0 | BH103: 0 | BI103: 0 | BJ103: 0 | BK103: 0
B104: Food Scraps | C104: =IF(C29=0,0,-C91) -> 0 | D104: =-1*IF(D29=0,0,D91-C91) -> 0 | E104: 0 | F104: 0 | G104: 0 | H104: 0 | I104: 0 | J104: 0 | K104: 0 | L104: 0 | M104: 0 | N104: 0 | O104: 0 | P104: 0 | Q104: 0 | R104: 0 | S104: 0 | T104: 0 | U104: 0 | V104: 0 | W104: 0 | X104: 0 | Y104: 0 | Z104: 0 | AA104: 0 | AB104: 0 | AC104: 0 | AD104: 0 | AE104: 0 | AF104: 0 | AG104: 0 | AH104: 0 | AI104: 0 | AJ104: 0 | AK104: 0 | AL104: 0 | AM104: 0 | AN104: 0 | AO104: 0 | AP104: 0 | AQ104: 0 | AR104: 0 | AS104: 0 | AT104: 0 | AU104: 0 | AV104: 0 | AW104: =-1*IF(AW29=0,0,AW91-AV91) -> 0 | AX104: 0 | AY104: 0 | AZ104: 0 | BA104: 0 | BB104: 0 | BC104: 0 | BD104: 0 | BE104: 0 | BF104: 0 | BG104: 0 | BH104: 0 | BI104: 0 | BJ104: 0 | BK104: 0
B105: Total | C105: =SUM(C101:C104) -> 0 | D105: 0 | E105: 0 | F105: 0 | G105: 0 | H105: 0 | I105: 0 | J105: 0 | K105: 0 | L105: 0 | M105: 0 | N105: 0 | O105: 0 | P105: 0 | Q105: 0 | R105: 0 | S105: 0 | T105: 0 | U105: 0 | V105: 0 | W105: 0 | X105: 0 | Y105: 0 | Z105: 0 | AA105: 0 | AB105: 0 | AC105: 0 | AD105: 0 | AE105: 0 | AF105: 0 | AG105: 0 | AH105: 0 | AI105: 0 | AJ105: 0 | AK105: 0 | AL105: 0 | AM105: 0 | AN105: 0 | AO105: 0 | AP105: 0 | AQ105: 0 | AR105: 0 | AS105: 0 | AT105: 0 | AU105: 0 | AV105: 0 | AW105: =SUM(AW101:AW104) -> 0 | AX105: 0 | AY105: 0 | AZ105: 0 | BA105: 0 | BB105: 0 | BC105: 0 | BD105: 0 | BE105: 0 | BF105: 0 | BG105: 0 | BH105: 0 | BI105: 0 | BJ105: 0 | BK105: 0
B108: Time series for 1990 to 2020, '000 metric tons C
B109: Activity data and values for 1960-1989 are necessary for completing 1990-2018 calculations with stocks from previous years
B110: Since stocks for 1960-1989 do not include previous years, those calculations are considered incomplete and are not presented in the following summary table.
C112: 1990 | D112: 1991 | E112: 1992 | F112: 1993 | G112: 1994 | H112: 1995 | I112: 1996 | J112: 1997 | K112: 1998 | L112: 1999 | M112: 2000 | N112: 2001 | O112: 2002 | P112: 2003 | Q112: 2004 | R112: 2005 | S112: 2006 | T112: 2007 | U112: 2008 | V112: 2009 | W112: 2010 | X112: 2011 | Y112: 2012 | Z112: 2013 | AA112: 2014 | AB112: 2015 | AC112: 2016 | AD112: 2017 | AE112: 2018 | AF112: 2019 | AG112: 2020
B113: Grass | C113: =AG101 -> 0 | D113: =AH101 -> 0 | E113: 0 | F113: 0 | G113: 0 | H113: 0 | I113: 0 | J113: 0 | K113: 0 | L113: 0 | M113: 0 | N113: 0 | O113: 0 | P113: 0 | Q113: 0 | R113: 0 | S113: =AW101 -> 0 | T113: 0 | U113: 0 | V113: 0 | W113: 0 | X113: 0 | Y113: 0 | Z113: 0 | AA113: 0 | AB113: 0 | AC113: 0 | AD113: 0 | AE113: 0 | AF113: 0 | AG113: 0
B114: Leaves | C114: =AG102 -> 0 | D114: 0 | E114: 0 | F114: 0 | G114: 0 | H114: 0 | I114: 0 | J114: 0 | K114: 0 | L114: 0 | M114: 0 | N114: 0 | O114: 0 | P114: 0 | Q114: 0 | R114: 0 | S114: 0 | T114: 0 | U114: 0 | V114: 0 | W114: 0 | X114: 0 | Y114: 0 | Z114: 0 | AA114: 0 | AB114: 0 | AC114: 0 | AD114: 0 | AE114: 0 | AF114: 0 | AG114: 0
B115: Branches | C115: =AG103 -> 0 | D115: 0 | E115: 0 | F115: 0 | G115: 0 | H115: 0 | I115: 0 | J115: 0 | K115: 0 | L115: 0 | M115: 0 | N115: 0 | O115: 0 | P115: 0 | Q115: 0 | R115: 0 | S115: 0 | T115: 0 | U115: 0 | V115: 0 | W115: 0 | X115: 0 | Y115: 0 | Z115: 0 | AA115: 0 | AB115: 0 | AC115: 0 | AD115: 0 | AE115: 0 | AF115: 0 | AG115: 0
B116: Food Scraps | C116: =AG104 -> 0 | D116: 0 | E116: 0 | F116: 0 | G116: 0 | H116: 0 | I116: 0 | J116: 0 | K116: 0 | L116: 0 | M116: 0 | N116: 0 | O116: 0 | P116: 0 | Q116: 0 | R116: 0 | S116: 0 | T116: 0 | U116: 0 | V116: 0 | W116: 0 | X116: 0 | Y116: 0 | Z116: 0 | AA116: 0 | AB116: 0 | AC116: 0 | AD116: 0 | AE116: 0 | AF116: 0 | AG116: 0
B117: Total | C117: =AG105 -> 0 | D117: 0 | E117: 0 | F117: 0 | G117: 0 | H117: 0 | I117: 0 | J117: 0 | K117: 0 | L117: 0 | M117: 0 | N117: 0 | O117: 0 | P117: 0 | Q117: 0 | R117: 0 | S117: 0 | T117: 0 | U117: 0 | V117: 0 | W117: 0 | X117: 0 | Y117: 0 | Z117: 0 | AA117: 0 | AB117: 0 | AC117: 0 | AD117: 0 | AE117: 0 | AF117: 0 | AG117: 0
B119: Time series for 1990 to 2020, '000 metric tons CO2E
C120: 1990 | D120: 1991 | E120: 1992 | F120: 1993 | G120: 1994 | H120: 1995 | I120: 1996 | J120: 1997 | K120: 1998 | L120: 1999 | M120: 2000 | N120: 2001 | O120: 2002 | P120: 2003 | Q120: 2004 | R120: 2005 | S120: 2006 | T120: 2007 | U120: 2008 | V120: 2009 | W120: 2010 | X120: 2011 | Y120: 2012 | Z120: 2013 | AA120: 2014 | AB120: 2015 | AC120: 2016 | AD120: 2017 | AE120: 2018 | AF120: 2019 | AG120: 2020
B121: Grass | C121: =C113*CO2_C -> 0 | D121: 0 | E121: 0 | F121: 0 | G121: 0 | H121: 0 | I121: 0 | J121: 0 | K121: 0 | L121: 0 | M121: 0 | N121: 0 | O121: 0 | P121: 0 | Q121: 0 | R121: 0 | S121: =S113*CO2_C -> 0 | T121: 0 | U121: 0 | V121: 0 | W121: 0 | X121: 0 | Y121: 0 | Z121: 0 | AA121: 0 | AB121: 0 | AC121: 0 | AD121: 0 | AE121: 0 | AF121: 0 | AG121: 0
B122: Leaves | C122: =C114*CO2_C -> 0 | D122: 0 | E122: 0 | F122: 0 | G122: 0 | H122: 0 | I122: 0 | J122: 0 | K122: 0 | L122: 0 | M122: 0 | N122: 0 | O122: 0 | P122: 0 | Q122: 0 | R122: 0 | S122: =S114*CO2_C -> 0 | T122: 0 | U122: 0 | V122: 0 | W122: 0 | X122: 0 | Y122: 0 | Z122: 0 | AA122: 0 | AB122: 0 | AC122: 0 | AD122: 0 | AE122: 0 | AF122: 0 | AG122: 0
B123: Branches | C123: =C115*CO2_C -> 0 | D123: 0 | E123: 0 | F123: 0 | G123: 0 | H123: 0 | I123: 0 | J123: 0 | K123: 0 | L123: 0 | M123: 0 | N123: 0 | O123: 0 | P123: 0 | Q123: 0 | R123: 0 | S123: =S115*CO2_C -> 0 | T123: 0 | U123: 0 | V123: 0 | W123: 0 | X123: 0 | Y123: 0 | Z123: 0 | AA123: 0 | AB123: 0 | AC123: 0 | AD123: 0 | AE123: 0 | AF123: 0 | AG123: 0
B124: Food Scraps | C124: =C116*CO2_C -> 0 | D124: 0 | E124: 0 | F124: 0 | G124: 0 | H124: 0 | I124: 0 | J124: 0 | K124: 0 | L124: 0 | M124: 0 | N124: 0 | O124: 0 | P124: 0 | Q124: 0 | R124: 0 | S124: =S116*CO2_C -> 0 | T124: 0 | U124: 0 | V124: 0 | W124: 0 | X124: 0 | Y124: 0 | Z124: 0 | AA124: 0 | AB124: 0 | AC124: 0 | AD124: 0 | AE124: 0 | AF124: 0 | AG124: 0
B125: Total | C125: =C117*CO2_C -> 0 | D125: 0 | E125: 0 | F125: 0 | G125: 0 | H125: 0 | I125: 0 | J125: 0 | K125: 0 | L125: 0 | M125: 0 | N125: 0 | O125: 0 | P125: 0 | Q125: 0 | R125: 0 | S125: 0 | T125: 0 | U125: 0 | V125: 0 | W125: 0 | X125: 0 | Y125: 0 | Z125: 0 | AA125: 0 | AB125: 0 | AC125: 0 | AD125: 0 | AE125: 0 | AF125: 0 | AG125: 0

Sheet Ag Soil C Flux-Default
A1: ="7. Agricultural Soil Carbon Flux in "&StateName -> 7. Agricultural Soil Carbon Flux in Select a State . . .
A5: Default data for carbon stored in Cropland Remaining Cropland, Land Converted to Cropland, Grassland Remaining Grassland, and Land Converted to Grassland
K7: Changes in Carbon Storage
K8: (million metric tons carbon)
E9: 1990 | F9: 1991 | G9: 1992 | H9: 1993 | I9: 1994 | J9: 1995 | K9: 1996 | L9: 1997 | M9: 1998 | N9: 1999 | O9: 2000 | P9: 2001 | Q9: 2002 | R9: 2003 | S9: 2004 | T9: 2005 | U9: 2006 | V9: 2007 | W9: 2008 | X9: 2009 | Y9: 2010 | Z9: 2011 | AA9: 2012 | AB9: 2013 | AC9: 2014 | AD9: 2015 | AE9: 2016 | AF9: 2017 | AG9: 2018 | AH9: 2019 | AI9: 2020
C10: Total | E10: =VLOOKUP(StateID,AgSoilCFluxData,((E9-1990)+3),FALSE) -> 
K12: Net Sequestration/Emissions
K13: MMTCO2E
E14: 1990 | F14: 1991 | G14: 1992 | H14: 1993 | I14: 1994 | J14: 1995 | K14: 1996 | L14: 1997 | M14: 1998 | N14: 1999 | O14: 2000 | P14: 2001 | Q14: 2002 | R14: 2003 | S14: 2004 | T14: 2005 | U14: 2006 | V14: 2007 | W14: 2008 | X14: 2009 | Y14: 2010 | Z14: 2011 | AA14: 2012 | AB14: 2013 | AC14: 2014 | AD14: 2015 | AE14: 2016 | AF14: 2017 | AG14: 2018 | AH14: 2019 | AI14: 2020
C15: Total | E15: =IFERROR(-E10*CO2_C,"") -> 

Sheet Ag Soil C Flux-User Data
A1: ="7. Agricultural Soil Carbon Flux in "&StateName -> 7. Agricultural Soil Carbon Flux in Select a State . . .
C8: Total
C9: MMTCO2E (million metric tons of carbon dioxide equivalent)
B11: 1990 | D11: = | E11: =C11 -> 0
B13: =B11+1 -> 1991 | D13: = | E13: =C13 -> 0
B15: =B13+1 -> 1992 | D15: = | E15: =C15 -> 0
B17: =B15+1 -> 1993 | D17: = | E17: =C17 -> 0
B19: =B17+1 -> 1994 | D19: = | E19: =C19 -> 0
B21: =B19+1 -> 1995 | D21: = | E21: =C21 -> 0
B23: =B21+1 -> 1996 | D23: = | E23: =C23 -> 0
B25: =B23+1 -> 1997 | D25: = | E25: =C25 -> 0
B27: =B25+1 -> 1998 | D27: = | E27: =C27 -> 0
B29: =B27+1 -> 1999 | D29: = | E29: =C29 -> 0
B31: =B29+1 -> 2000 | D31: = | E31: =C31 -> 0
B33: =B31+1 -> 2001 | D33: = | E33: =C33 -> 0
B35: =B33+1 -> 2002 | D35: = | E35: =C35 -> 0
B37: =B35+1 -> 2003 | D37: = | E37: =C37 -> 0
B39: =B37+1 -> 2004 | D39: = | E39: =C39 -> 0
B41: =B39+1 -> 2005 | D41: = | E41: =C41 -> 0
B43: =B41+1 -> 2006 | D43: = | E43: =C43 -> 0
B45: =B43+1 -> 2007 | D45: = | E45: =C45 -> 0
B47: =B45+1 -> 2008 | D47: = | E47: =C47 -> 0
B49: =B47+1 -> 2009 | D49: = | E49: =C49 -> 0
B51: =B49+1 -> 2010 | D51: = | E51: =C51 -> 0
B53: =B51+1 -> 2011 | D53: = | E53: =C53 -> 0
B55: =B53+1 -> 2012 | D55: = | E55: =C55 -> 0
B57: =B55+1 -> 2013 | D57: = | E57: =C57 -> 0
B59: =B57+1 -> 2014 | D59: = | E59: =C59 -> 0
B61: =B59+1 -> 2015 | D61: = | E61: =C61 -> 0
B63: =B61+1 -> 2016 | D63: = | E63: =C63 -> 0
B65: =B63+1 -> 2017 | D65: = | E65: =C65 -> 0
B67: =B65+1 -> 2018 | D67: = | E67: =C67 -> 0
B69: =B67+1 -> 2019 | D69: = | E69: =C69 -> 0
B71: =B69+1 -> 2020 | D71: = | E71: =C71 -> 0

Sheet Summary
A1: ="8. Summary of Land Use, Land-Use Change, and Forestry Emissions and Sequestration for "&StateName -> 8. Summary of Land Use, Land-Use Change, and Forestry Emissions and Sequestration for Select a State . . .
AM2: used depending on which option is selected
B3: 2018
B4: Note: The Land Use, Land-Use Change, and Forestry module no longer estimates carbon dioxide emissions from Liming of Soils and Urea Fertilization. These categories are now estimated in the Agriculture module.
B5: =Tracker!B17 -> Emissions were not calculated for the following sectors: Forest Carbon Flux, Settlement Soils, Urban Trees, Landfilled Yard Trimmings and Food Scraps, Forest Fires, and Agricultural Soil Carbon Flux. If you skipped any of these by mistake, please return to the control worksheet and complete each skipped source.
AK6: FCF | AL6: =IF(FCFchoice=TRUE,"default","user") -> default
B8: Emissions* (MMTCO2E) | AM8: 1990 | AN8: 1991 | AO8: 1992 | AP8: 1993 | AQ8: 1994 | AR8: 1995 | AS8: 1996 | AT8: 1997 | AU8: 1998 | AV8: 1999 | AW8: 2000 | AX8: 2001 | AY8: 2002 | AZ8: 2003 | BA8: 2004 | BB8: 2005 | BC8: 2006 | BD8: 2007 | BE8: 2008 | BF8: 2009 | BG8: 2010 | BH8: 2011 | BI8: 2012 | BJ8: 2013 | BK8: 2014 | BL8: 2015 | BM8: 2016 | BN8: 2017 | BO8: 2018 | BP8: 2019 | BQ8: 2020
C9: 1990 | D9: 1991 | E9: 1992 | F9: 1993 | G9: 1994 | H9: 1995 | I9: 1996 | J9: 1997 | K9: 1998 | L9: 1999 | M9: 2000 | N9: 2001 | O9: 2002 | P9: 2003 | Q9: 2004 | R9: 2005 | S9: 2006 | T9: 2007 | U9: 2008 | V9: 2009 | W9: 2010 | X9: 2011 | Y9: 2012 | Z9: 2013 | AA9: 2014 | AB9: 2015 | AC9: 2016 | AD9: 2017 | AE9: 2018 | AF9: 2019 | AG9: 2020 | AK9: default | AL9: Ag Soil C Flux | AM9: ='Ag Soil C Flux-Default'!E15 ->  | AN9: ='Ag Soil C Flux-Default'!F15 ->  | AO9: ='Ag Soil C Flux-Default'!G15 ->  | AP9: ='Ag Soil C Flux-Default'!H15 ->  | AQ9: ='Ag Soil C Flux-Default'!I15 ->  | AR9: ='Ag Soil C Flux-Default'!J15 ->  | AS9: ='Ag Soil C Flux-Default'!K15 ->  | AT9: ='Ag Soil C Flux-Default'!L15 ->  | AU9: ='Ag Soil C Flux-Default'!M15 ->  | AV9: ='Ag Soil C Flux-Default'!N15 ->  | AW9: ='Ag Soil C Flux-Default'!O15 ->  | AX9: ='Ag Soil C Flux-Default'!P15 ->  | AY9: ='Ag Soil C Flux-Default'!Q15 ->  | AZ9: ='Ag Soil C Flux-Default'!R15 ->  | BA9: ='Ag Soil C Flux-Default'!S15 ->  | BB9: ='Ag Soil C Flux-Default'!T15 ->  | BC9: ='Ag Soil C Flux-Default'!U15 ->  | BD9: ='Ag Soil C Flux-Default'!V15 ->  | BE9: ='Ag Soil C Flux-Default'!W15 ->  | BF9: ='Ag Soil C Flux-Default'!X15 ->  | BG9: ='Ag Soil C Flux-Default'!Y15 ->  | BH9: ='Ag Soil C Flux-Default'!Z15 ->  | BI9: ='Ag Soil C Flux-Default'!AA15 ->  | BJ9: ='Ag Soil C Flux-Default'!AB15 ->  | BK9: ='Ag Soil C Flux-Default'!AC15 ->  | BL9: ='Ag Soil C Flux-Default'!AD15 ->  | BM9: ='Ag Soil C Flux-Default'!AE15 ->  | BN9: ='Ag Soil C Flux-Default'!AF15 ->  | BO9: ='Ag Soil C Flux-Default'!AG15 ->  | BP9: ='Ag Soil C Flux-Default'!AH15 ->  | BQ9: ='Ag Soil C Flux-Default'!AI15 -> 
B10: Net Forest Carbon Flux | C10: =IF(FCFchoice=TRUE,SUM(C19,C28,C34),SUM(C11:C18)) ->  | AK10: User defined | AL10: Ag Soil C Flux | AM10: ='Ag Soil C Flux-User Data'!C$11 -> 0 | AN10: ='Ag Soil C Flux-User Data'!C$13 -> 0 | AO10: ='Ag Soil C Flux-User Data'!C$15 -> 0 | AP10: ='Ag Soil C Flux-User Data'!C$17 -> 0 | AQ10: ='Ag Soil C Flux-User Data'!C$19 -> 0 | AR10: ='Ag Soil C Flux-User Data'!C$21 -> 0 | AS10: ='Ag Soil C Flux-User Data'!C$23 -> 0 | AT10: ='Ag Soil C Flux-User Data'!C$25 -> 0 | AU10: ='Ag Soil C Flux-User Data'!C$27 -> 0 | AV10: ='Ag Soil C Flux-User Data'!C$29 -> 0 | AW10: ='Ag Soil C Flux-User Data'!C$31 -> 0 | AX10: ='Ag Soil C Flux-User Data'!C$33 -> 0 | AY10: ='Ag Soil C Flux-User Data'!C$35 -> 0 | AZ10: ='Ag Soil C Flux-User Data'!C$37 -> 0 | BA10: ='Ag Soil C Flux-User Data'!C$39 -> 0 | BB10: ='Ag Soil C Flux-User Data'!C$41 -> 0 | BC10: ='Ag Soil C Flux-User Data'!C$43 -> 0 | BD10: ='Ag Soil C Flux-User Data'!C$45 -> 0 | BE10: ='Ag Soil C Flux-User Data'!C$47 -> 0 | BF10: ='Ag Soil C Flux-User Data'!C$49 -> 0 | BG10: ='Ag Soil C Flux-User Data'!C$51 -> 0 | BH10: ='Ag Soil C Flux-User Data'!C$53 -> 0 | BI10: ='Ag Soil C Flux-User Data'!C$55 -> 0 | BJ10: ='Ag Soil C Flux-User Data'!C$57 -> 0 | BK10: ='Ag Soil C Flux-User Data'!C$59 -> 0 | BL10: ='Ag Soil C Flux-User Data'!C$61 -> 0 | BM10: ='Ag Soil C Flux-User Data'!C$63 -> 0 | BN10: ='Ag Soil C Flux-User Data'!C$65 -> 0 | BO10: ='Ag Soil C Flux-User Data'!C$67 -> 0 | BP10: ='Ag Soil C Flux-User Data'!C$69 -> 0 | BQ10: ='Ag Soil C Flux-User Data'!C$71 -> 0
B11: Aboveground Biomass | C11: ='C Flux-User Data'!C$11 -> 0 | D11: ='C Flux-User Data'!C$13 -> 0 | E11: ='C Flux-User Data'!C$15 -> 0 | F11: ='C Flux-User Data'!C$17 -> 0 | G11: ='C Flux-User Data'!C$19 -> 0 | H11: ='C Flux-User Data'!C$21 -> 0 | I11: ='C Flux-User Data'!C$23 -> 0 | J11: ='C Flux-User Data'!C$25 -> 0 | K11: ='C Flux-User Data'!C$27 -> 0 | L11: ='C Flux-User Data'!C$29 -> 0 | M11: ='C Flux-User Data'!C$31 -> 0 | N11: ='C Flux-User Data'!C$33 -> 0 | O11: ='C Flux-User Data'!C$35 -> 0 | P11: ='C Flux-User Data'!C$37 -> 0 | Q11: ='C Flux-User Data'!C$39 -> 0 | R11: ='C Flux-User Data'!C$41 -> 0 | S11: ='C Flux-User Data'!C$43 -> 0 | T11: ='C Flux-User Data'!C$45 -> 0 | U11: ='C Flux-User Data'!C$47 -> 0 | V11: ='C Flux-User Data'!C$49 -> 0 | W11: ='C Flux-User Data'!C$51 -> 0 | X11: ='C Flux-User Data'!C$53 -> 0 | Y11: ='C Flux-User Data'!C$55 -> 0 | Z11: ='C Flux-User Data'!C$57 -> 0 | AA11: ='C Flux-User Data'!C$59 -> 0 | AB11: ='C Flux-User Data'!C$61 -> 0 | AC11: ='C Flux-User Data'!C$63 -> 0 | AD11: ='C Flux-User Data'!C$65 -> 0 | AE11: ='C Flux-User Data'!C$67 -> 0 | AF11: ='C Flux-User Data'!C$69 -> 0 | AG11: ='C Flux-User Data'!C$71 -> 0
B12: Belowground Biomass | C12: ='C Flux-User Data'!E11 -> 0 | D12: ='C Flux-User Data'!E13 -> 0 | E12: ='C Flux-User Data'!E15 -> 0 | F12: ='C Flux-User Data'!E17 -> 0 | G12: ='C Flux-User Data'!E19 -> 0 | H12: ='C Flux-User Data'!E21 -> 0 | I12: ='C Flux-User Data'!E23 -> 0 | J12: ='C Flux-User Data'!E25 -> 0 | K12: ='C Flux-User Data'!E27 -> 0 | L12: ='C Flux-User Data'!E29 -> 0 | M12: ='C Flux-User Data'!E31 -> 0 | N12: ='C Flux-User Data'!E33 -> 0 | O12: ='C Flux-User Data'!E35 -> 0 | P12: ='C Flux-User Data'!E37 -> 0 | Q12: ='C Flux-User Data'!E39 -> 0 | R12: ='C Flux-User Data'!E41 -> 0 | S12: ='C Flux-User Data'!E43 -> 0 | T12: ='C Flux-User Data'!E45 -> 0 | U12: ='C Flux-User Data'!E47 -> 0 | V12: ='C Flux-User Data'!E49 -> 0 | W12: ='C Flux-User Data'!E51 -> 0 | X12: ='C Flux-User Data'!E53 -> 0 | Y12: ='C Flux-User Data'!E55 -> 0 | Z12: ='C Flux-User Data'!E57 -> 0 | AA12: ='C Flux-User Data'!E59 -> 0 | AB12: ='C Flux-User Data'!E61 -> 0 | AC12: ='C Flux-User Data'!E63 -> 0 | AD12: ='C Flux-User Data'!E65 -> 0 | AE12: ='C Flux-User Data'!E67 -> 0 | AF12: ='C Flux-User Data'!E69 -> 0 | AG12: ='C Flux-User Data'!E71 -> 0
B13: Deadwood | C13: ='C Flux-User Data'!G11 -> 0 | D13: ='C Flux-User Data'!G13 -> 0 | E13: ='C Flux-User Data'!G15 -> 0 | F13: ='C Flux-User Data'!G17 -> 0 | G13: ='C Flux-User Data'!G19 -> 0 | H13: ='C Flux-User Data'!G21 -> 0 | I13: ='C Flux-User Data'!G23 -> 0 | J13: ='C Flux-User Data'!G25 -> 0 | K13: ='C Flux-User Data'!G27 -> 0 | L13: ='C Flux-User Data'!G29 -> 0 | M13: ='C Flux-User Data'!G31 -> 0 | N13: ='C Flux-User Data'!G33 -> 0 | O13: ='C Flux-User Data'!G35 -> 0 | P13: ='C Flux-User Data'!G37 -> 0 | Q13: ='C Flux-User Data'!G39 -> 0 | R13: ='C Flux-User Data'!G41 -> 0 | S13: ='C Flux-User Data'!G43 -> 0 | T13: ='C Flux-User Data'!G45 -> 0 | U13: ='C Flux-User Data'!G47 -> 0 | V13: ='C Flux-User Data'!G49 -> 0 | W13: ='C Flux-User Data'!G51 -> 0 | X13: ='C Flux-User Data'!G53 -> 0 | Y13: ='C Flux-User Data'!G55 -> 0 | Z13: ='C Flux-User Data'!G57 -> 0 | AA13: ='C Flux-User Data'!G59 -> 0 | AB13: ='C Flux-User Data'!G61 -> 0 | AC13: ='C Flux-User Data'!G63 -> 0 | AD13: ='C Flux-User Data'!G65 -> 0 | AE13: ='C Flux-User Data'!G67 -> 0 | AF13: ='C Flux-User Data'!G69 -> 0 | AG13: ='C Flux-User Data'!G71 -> 0
B14: Litter | C14: ='C Flux-User Data'!I11 -> 0 | D14: ='C Flux-User Data'!I13 -> 0 | E14: ='C Flux-User Data'!I15 -> 0 | F14: ='C Flux-User Data'!I17 -> 0 | G14: ='C Flux-User Data'!I19 -> 0 | H14: ='C Flux-User Data'!I21 -> 0 | I14: ='C Flux-User Data'!I23 -> 0 | J14: ='C Flux-User Data'!I25 -> 0 | K14: ='C Flux-User Data'!I27 -> 0 | L14: ='C Flux-User Data'!I29 -> 0 | M14: ='C Flux-User Data'!I31 -> 0 | N14: ='C Flux-User Data'!I33 -> 0 | O14: ='C Flux-User Data'!I35 -> 0 | P14: ='C Flux-User Data'!I37 -> 0 | Q14: ='C Flux-User Data'!I39 -> 0 | R14: ='C Flux-User Data'!I41 -> 0 | S14: ='C Flux-User Data'!I43 -> 0 | T14: ='C Flux-User Data'!I45 -> 0 | U14: ='C Flux-User Data'!I47 -> 0 | V14: ='C Flux-User Data'!I49 -> 0 | W14: ='C Flux-User Data'!I51 -> 0 | X14: ='C Flux-User Data'!I53 -> 0 | Y14: ='C Flux-User Data'!I55 -> 0 | Z14: ='C Flux-User Data'!I57 -> 0 | AA14: ='C Flux-User Data'!I59 -> 0 | AB14: ='C Flux-User Data'!I61 -> 0 | AC14: ='C Flux-User Data'!I63 -> 0 | AD14: ='C Flux-User Data'!I65 -> 0 | AE14: ='C Flux-User Data'!I67 -> 0 | AF14: ='C Flux-User Data'!I69 -> 0 | AG14: ='C Flux-User Data'!I71 -> 0
B15: Soil (Mineral) | C15: ='C Flux-User Data'!K11 -> 0 | D15: ='C Flux-User Data'!K13 -> 0 | E15: ='C Flux-User Data'!K15 -> 0 | F15: ='C Flux-User Data'!K17 -> 0 | G15: ='C Flux-User Data'!K19 -> 0 | H15: ='C Flux-User Data'!K21 -> 0 | I15: ='C Flux-User Data'!K23 -> 0 | J15: ='C Flux-User Data'!K25 -> 0 | K15: ='C Flux-User Data'!K27 -> 0 | L15: ='C Flux-User Data'!K29 -> 0 | M15: ='C Flux-User Data'!K31 -> 0 | N15: ='C Flux-User Data'!K33 -> 0 | O15: ='C Flux-User Data'!K35 -> 0 | P15: ='C Flux-User Data'!K37 -> 0 | Q15: ='C Flux-User Data'!K39 -> 0 | R15: ='C Flux-User Data'!K41 -> 0 | S15: ='C Flux-User Data'!K43 -> 0 | T15: ='C Flux-User Data'!K45 -> 0 | U15: ='C Flux-User Data'!K47 -> 0 | V15: ='C Flux-User Data'!K49 -> 0 | W15: ='C Flux-User Data'!K51 -> 0 | X15: ='C Flux-User Data'!K53 -> 0 | Y15: ='C Flux-User Data'!K55 -> 0 | Z15: ='C Flux-User Data'!K57 -> 0 | AA15: ='C Flux-User Data'!K59 -> 0 | AB15: ='C Flux-User Data'!K61 -> 0 | AC15: ='C Flux-User Data'!K63 -> 0 | AD15: ='C Flux-User Data'!K65 -> 0 | AE15: ='C Flux-User Data'!K67 -> 0 | AF15: ='C Flux-User Data'!K69 -> 0 | AG15: ='C Flux-User Data'!K71 -> 0
B16: Soil (Organic) | C16: ='C Flux-User Data'!M11 -> 0 | D16: ='C Flux-User Data'!M13 -> 0 | E16: ='C Flux-User Data'!M15 -> 0 | F16: ='C Flux-User Data'!M17 -> 0 | G16: ='C Flux-User Data'!M19 -> 0 | H16: ='C Flux-User Data'!M21 -> 0 | I16: ='C Flux-User Data'!M23 -> 0 | J16: ='C Flux-User Data'!M25 -> 0 | K16: ='C Flux-User Data'!M27 -> 0 | L16: ='C Flux-User Data'!M29 -> 0 | M16: ='C Flux-User Data'!M31 -> 0 | N16: ='C Flux-User Data'!M33 -> 0 | O16: ='C Flux-User Data'!M35 -> 0 | P16: ='C Flux-User Data'!$M$37 -> 0 | Q16: ='C Flux-User Data'!M39 -> 0 | R16: ='C Flux-User Data'!M41 -> 0 | S16: ='C Flux-User Data'!M43 -> 0 | T16: ='C Flux-User Data'!M45 -> 0 | U16: ='C Flux-User Data'!M47 -> 0 | V16: ='C Flux-User Data'!M49 -> 0 | W16: ='C Flux-User Data'!M51 -> 0 | X16: ='C Flux-User Data'!M53 -> 0 | Y16: ='C Flux-User Data'!M55 -> 0 | Z16: ='C Flux-User Data'!M57 -> 0 | AA16: ='C Flux-User Data'!M59 -> 0 | AB16: ='C Flux-User Data'!M61 -> 0 | AC16: ='C Flux-User Data'!M63 -> 0 | AD16: ='C Flux-User Data'!M65 -> 0 | AE16: ='C Flux-User Data'!M67 -> 0 | AF16: ='C Flux-User Data'!M69 -> 0 | AG16: ='C Flux-User Data'!M71 -> 0
B17: Drained Organic Soil | C17: ='C Flux-User Data'!O11 -> 0 | D17: ='C Flux-User Data'!O13 -> 0 | E17: ='C Flux-User Data'!O15 -> 0 | F17: ='C Flux-User Data'!O17 -> 0 | G17: ='C Flux-User Data'!O19 -> 0 | H17: ='C Flux-User Data'!O21 -> 0 | I17: ='C Flux-User Data'!O23 -> 0 | J17: ='C Flux-User Data'!O25 -> 0 | K17: ='C Flux-User Data'!O27 -> 0 | L17: ='C Flux-User Data'!O29 -> 0 | M17: ='C Flux-User Data'!O31 -> 0 | N17: ='C Flux-User Data'!O33 -> 0 | O17: ='C Flux-User Data'!O35 -> 0 | P17: ='C Flux-User Data'!O37 -> 0 | Q17: ='C Flux-User Data'!O39 -> 0 | R17: ='C Flux-User Data'!O41 -> 0 | S17: ='C Flux-User Data'!O43 -> 0 | T17: ='C Flux-User Data'!O45 -> 0 | U17: ='C Flux-User Data'!O47 -> 0 | V17: ='C Flux-User Data'!O49 -> 0 | W17: ='C Flux-User Data'!O51 -> 0 | X17: ='C Flux-User Data'!O53 -> 0 | Y17: ='C Flux-User Data'!O55 -> 0 | Z17: ='C Flux-User Data'!O57 -> 0 | AA17: ='C Flux-User Data'!O59 -> 0 | AB17: ='C Flux-User Data'!O61 -> 0 | AC17: ='C Flux-User Data'!O63 -> 0 | AD17: ='C Flux-User Data'!O65 -> 0 | AE17: ='C Flux-User Data'!O67 -> 0 | AF17: ='C Flux-User Data'!O69 -> 0 | AG17: ='C Flux-User Data'!O71 -> 0
B18: Total wood products and landfills | C18: ='C Flux-User Data'!Q11 -> 0 | D18: ='C Flux-User Data'!Q13 -> 0 | E18: ='C Flux-User Data'!Q15 -> 0 | F18: ='C Flux-User Data'!Q17 -> 0 | G18: ='C Flux-User Data'!Q19 -> 0 | H18: ='C Flux-User Data'!Q21 -> 0 | I18: ='C Flux-User Data'!Q23 -> 0 | J18: ='C Flux-User Data'!Q25 -> 0 | K18: ='C Flux-User Data'!Q27 -> 0 | L18: ='C Flux-User Data'!Q29 -> 0 | M18: ='C Flux-User Data'!Q31 -> 0 | N18: ='C Flux-User Data'!Q33 -> 0 | O18: ='C Flux-User Data'!Q35 -> 0 | P18: ='C Flux-User Data'!Q37 -> 0 | Q18: ='C Flux-User Data'!Q39 -> 0 | R18: ='C Flux-User Data'!Q41 -> 0 | S18: ='C Flux-User Data'!Q43 -> 0 | T18: ='C Flux-User Data'!Q45 -> 0 | U18: ='C Flux-User Data'!Q47 -> 0 | V18: ='C Flux-User Data'!Q49 -> 0 | W18: ='C Flux-User Data'!Q51 -> 0 | X18: ='C Flux-User Data'!Q53 -> 0 | Y18: ='C Flux-User Data'!Q55 -> 0 | Z18: ='C Flux-User Data'!Q57 -> 0 | AA18: ='C Flux-User Data'!Q59 -> 0 | AB18: ='C Flux-User Data'!Q61 -> 0 | AC18: ='C Flux-User Data'!Q63 -> 0 | AD18: ='C Flux-User Data'!Q65 -> 0 | AE18: ='C Flux-User Data'!Q67 -> 0 | AF18: ='C Flux-User Data'!Q69 -> 0 | AG18: ='C Flux-User Data'!Q71 -> 0
B19: Forest Land Remaining Forest Land | C19: =SUM(C20:C27) ->  | D19: =SUM(D20:D27) -> 
B20: Aboveground Biomass | C20: ='Forest Land Remaining Forest'!E9 ->  | D20: ='Forest Land Remaining Forest'!F9 ->  | E20: ='Forest Land Remaining Forest'!G9 ->  | F20: ='Forest Land Remaining Forest'!H9 ->  | G20: ='Forest Land Remaining Forest'!I9 ->  | H20: ='Forest Land Remaining Forest'!J9 ->  | I20: ='Forest Land Remaining Forest'!K9 ->  | J20: ='Forest Land Remaining Forest'!L9 ->  | K20: ='Forest Land Remaining Forest'!M9 ->  | L20: ='Forest Land Remaining Forest'!N9 ->  | M20: ='Forest Land Remaining Forest'!O9 ->  | N20: ='Forest Land Remaining Forest'!P9 ->  | O20: ='Forest Land Remaining Forest'!Q9 ->  | P20: ='Forest Land Remaining Forest'!R9 ->  | Q20: ='Forest Land Remaining Forest'!S9 ->  | R20: ='Forest Land Remaining Forest'!T9 ->  | S20: ='Forest Land Remaining Forest'!U9 ->  | T20: ='Forest Land Remaining Forest'!V9 ->  | U20: ='Forest Land Remaining Forest'!W9 ->  | V20: ='Forest Land Remaining Forest'!X9 ->  | W20: ='Forest Land Remaining Forest'!Y9 ->  | X20: ='Forest Land Remaining Forest'!Z9 ->  | Y20: ='Forest Land Remaining Forest'!AA9 ->  | Z20: ='Forest Land Remaining Forest'!AB9 ->  | AA20: ='Forest Land Remaining Forest'!AC9 ->  | AB20: ='Forest Land Remaining Forest'!AD9 ->  | AC20: ='Forest Land Remaining Forest'!AE9 ->  | AD20: ='Forest Land Remaining Forest'!AF9 ->  | AE20: ='Forest Land Remaining Forest'!AG9 ->  | AF20: ='Forest Land Remaining Forest'!AH9 ->  | AG20: ='Forest Land Remaining Forest'!AI9 -> 
B21: Belowground Biomass | C21: ='Forest Land Remaining Forest'!E10 ->  | D21: ='Forest Land Remaining Forest'!F10 ->  | E21: ='Forest Land Remaining Forest'!G10 ->  | F21: ='Forest Land Remaining Forest'!H10 ->  | G21: ='Forest Land Remaining Forest'!I10 ->  | H21: ='Forest Land Remaining Forest'!J10 ->  | I21: ='Forest Land Remaining Forest'!K10 ->  | J21: ='Forest Land Remaining Forest'!L10 ->  | K21: ='Forest Land Remaining Forest'!M10 ->  | L21: ='Forest Land Remaining Forest'!N10 ->  | M21: ='Forest Land Remaining Forest'!O10 ->  | N21: ='Forest Land Remaining Forest'!P10 ->  | O21: ='Forest Land Remaining Forest'!Q10 ->  | P21: ='Forest Land Remaining Forest'!R10 ->  | Q21: ='Forest Land Remaining Forest'!S10 ->  | R21: ='Forest Land Remaining Forest'!T10 ->  | S21: ='Forest Land Remaining Forest'!U10 ->  | T21: ='Forest Land Remaining Forest'!V10 ->  | U21: ='Forest Land Remaining Forest'!W10 ->  | V21: ='Forest Land Remaining Forest'!X10 ->  | W21: ='Forest Land Remaining Forest'!Y10 ->  | X21: ='Forest Land Remaining Forest'!Z10 ->  | Y21: ='Forest Land Remaining Forest'!AA10 ->  | Z21: ='Forest Land Remaining Forest'!AB10 ->  | AA21: ='Forest Land Remaining Forest'!AC10 ->  | AB21: ='Forest Land Remaining Forest'!AD10 ->  | AC21: ='Forest Land Remaining Forest'!AE10 ->  | AD21: ='Forest Land Remaining Forest'!AF10 ->  | AE21: ='Forest Land Remaining Forest'!AG10 ->  | AF21: ='Forest Land Remaining Forest'!AH10 ->  | AG21: ='Forest Land Remaining Forest'!AI10 -> 
B22: Deadwood | C22: ='Forest Land Remaining Forest'!E11 ->  | D22: ='Forest Land Remaining Forest'!F11 ->  | E22: ='Forest Land Remaining Forest'!G11 ->  | F22: ='Forest Land Remaining Forest'!H11 ->  | G22: ='Forest Land Remaining Forest'!I11 ->  | H22: ='Forest Land Remaining Forest'!J11 ->  | I22: ='Forest Land Remaining Forest'!K11 ->  | J22: ='Forest Land Remaining Forest'!L11 ->  | K22: ='Forest Land Remaining Forest'!M11 ->  | L22: ='Forest Land Remaining Forest'!N11 ->  | M22: ='Forest Land Remaining Forest'!O11 ->  | N22: ='Forest Land Remaining Forest'!P11 ->  | O22: ='Forest Land Remaining Forest'!Q11 ->  | P22: ='Forest Land Remaining Forest'!R11 ->  | Q22: ='Forest Land Remaining Forest'!S11 ->  | R22: ='Forest Land Remaining Forest'!T11 ->  | S22: ='Forest Land Remaining Forest'!U11 ->  | T22: ='Forest Land Remaining Forest'!V11 ->  | U22: ='Forest Land Remaining Forest'!W11 ->  | V22: ='Forest Land Remaining Forest'!X11 ->  | W22: ='Forest Land Remaining Forest'!Y11 ->  | X22: ='Forest Land Remaining Forest'!Z11 ->  | Y22: ='Forest Land Remaining Forest'!AA11 ->  | Z22: ='Forest Land Remaining Forest'!AB11 ->  | AA22: ='Forest Land Remaining Forest'!AC11 ->  | AB22: ='Forest Land Remaining Forest'!AD11 ->  | AC22: ='Forest Land Remaining Forest'!AE11 ->  | AD22: ='Forest Land Remaining Forest'!AF11 ->  | AE22: ='Forest Land Remaining Forest'!AG11 ->  | AF22: ='Forest Land Remaining Forest'!AH11 ->  | AG22: ='Forest Land Remaining Forest'!AI11 -> 
B23: Litter | C23: ='Forest Land Remaining Forest'!E12 ->  | D23: ='Forest Land Remaining Forest'!F12 ->  | E23: ='Forest Land Remaining Forest'!G12 ->  | F23: ='Forest Land Remaining Forest'!H12 ->  | G23: ='Forest Land Remaining Forest'!I12 ->  | H23: ='Forest Land Remaining Forest'!J12 ->  | I23: ='Forest Land Remaining Forest'!K12 ->  | J23: ='Forest Land Remaining Forest'!L12 ->  | K23: ='Forest Land Remaining Forest'!M12 ->  | L23: ='Forest Land Remaining Forest'!N12 ->  | M23: ='Forest Land Remaining Forest'!O12 ->  | N23: ='Forest Land Remaining Forest'!P12 ->  | O23: ='Forest Land Remaining Forest'!Q12 ->  | P23: ='Forest Land Remaining Forest'!R12 ->  | Q23: ='Forest Land Remaining Forest'!S12 ->  | R23: ='Forest Land Remaining Forest'!T12 ->  | S23: ='Forest Land Remaining Forest'!U12 ->  | T23: ='Forest Land Remaining Forest'!V12 ->  | U23: ='Forest Land Remaining Forest'!W12 ->  | V23: ='Forest Land Remaining Forest'!X12 ->  | W23: ='Forest Land Remaining Forest'!Y12 ->  | X23: ='Forest Land Remaining Forest'!Z12 ->  | Y23: ='Forest Land Remaining Forest'!AA12 ->  | Z23: ='Forest Land Remaining Forest'!AB12 ->  | AA23: ='Forest Land Remaining Forest'!AC12 ->  | AB23: ='Forest Land Remaining Forest'!AD12 ->  | AC23: ='Forest Land Remaining Forest'!AE12 ->  | AD23: ='Forest Land Remaining Forest'!AF12 ->  | AE23: ='Forest Land Remaining Forest'!AG12 ->  | AF23: ='Forest Land Remaining Forest'!AH12 ->  | AG23: ='Forest Land Remaining Forest'!AI12 -> 
B24: Soil (Mineral) | C24: ='Forest Land Remaining Forest'!E13 ->  | D24: ='Forest Land Remaining Forest'!F13 ->  | E24: ='Forest Land Remaining Forest'!G13 ->  | F24: ='Forest Land Remaining Forest'!H13 ->  | G24: ='Forest Land Remaining Forest'!I13 ->  | H24: ='Forest Land Remaining Forest'!J13 ->  | I24: ='Forest Land Remaining Forest'!K13 ->  | J24: ='Forest Land Remaining Forest'!L13 ->  | K24: ='Forest Land Remaining Forest'!M13 ->  | L24: ='Forest Land Remaining Forest'!N13 ->  | M24: ='Forest Land Remaining Forest'!O13 ->  | N24: ='Forest Land Remaining Forest'!P13 ->  | O24: ='Forest Land Remaining Forest'!Q13 ->  | P24: ='Forest Land Remaining Forest'!R13 ->  | Q24: ='Forest Land Remaining Forest'!S13 ->  | R24: ='Forest Land Remaining Forest'!T13 ->  | S24: ='Forest Land Remaining Forest'!U13 ->  | T24: ='Forest Land Remaining Forest'!V13 ->  | U24: ='Forest Land Remaining Forest'!W13 ->  | V24: ='Forest Land Remaining Forest'!X13 ->  | W24: ='Forest Land Remaining Forest'!Y13 ->  | X24: ='Forest Land Remaining Forest'!Z13 ->  | Y24: ='Forest Land Remaining Forest'!AA13 ->  | Z24: ='Forest Land Remaining Forest'!AB13 ->  | AA24: ='Forest Land Remaining Forest'!AC13 ->  | AB24: ='Forest Land Remaining Forest'!AD13 ->  | AC24: ='Forest Land Remaining Forest'!AE13 ->  | AD24: ='Forest Land Remaining Forest'!AF13 ->  | AE24: ='Forest Land Remaining Forest'!AG13 ->  | AF24: ='Forest Land Remaining Forest'!AH13 ->  | AG24: ='Forest Land Remaining Forest'!AI13 -> 
B25: Soil (Organic) | C25: ='Forest Land Remaining Forest'!E14 ->  | D25: ='Forest Land Remaining Forest'!F14 ->  | E25: ='Forest Land Remaining Forest'!G14 ->  | F25: ='Forest Land Remaining Forest'!H14 ->  | G25: ='Forest Land Remaining Forest'!I14 ->  | H25: ='Forest Land Remaining Forest'!J14 ->  | I25: ='Forest Land Remaining Forest'!K14 ->  | J25: ='Forest Land Remaining Forest'!L14 ->  | K25: ='Forest Land Remaining Forest'!M14 ->  | L25: ='Forest Land Remaining Forest'!N14 ->  | M25: ='Forest Land Remaining Forest'!O14 ->  | N25: ='Forest Land Remaining Forest'!P14 ->  | O25: ='Forest Land Remaining Forest'!Q14 ->  | P25: ='Forest Land Remaining Forest'!R14 ->  | Q25: ='Forest Land Remaining Forest'!S14 ->  | R25: ='Forest Land Remaining Forest'!T14 ->  | S25: ='Forest Land Remaining Forest'!U14 ->  | T25: ='Forest Land Remaining Forest'!V14 ->  | U25: ='Forest Land Remaining Forest'!W14 ->  | V25: ='Forest Land Remaining Forest'!X14 ->  | W25: ='Forest Land Remaining Forest'!Y14 ->  | X25: ='Forest Land Remaining Forest'!Z14 ->  | Y25: ='Forest Land Remaining Forest'!AA14 ->  | Z25: ='Forest Land Remaining Forest'!AB14 ->  | AA25: ='Forest Land Remaining Forest'!AC14 ->  | AB25: ='Forest Land Remaining Forest'!AD14 ->  | AC25: ='Forest Land Remaining Forest'!AE14 ->  | AD25: ='Forest Land Remaining Forest'!AF14 ->  | AE25: ='Forest Land Remaining Forest'!AG14 ->  | AF25: ='Forest Land Remaining Forest'!AH14 ->  | AG25: ='Forest Land Remaining Forest'!AI14 -> 
B26: Drained Organic Soil | C26: ='Forest Land Remaining Forest'!E15 ->  | D26: ='Forest Land Remaining Forest'!F15 ->  | E26: ='Forest Land Remaining Forest'!G15 ->  | F26: ='Forest Land Remaining Forest'!H15 ->  | G26: ='Forest Land Remaining Forest'!I15 ->  | H26: ='Forest Land Remaining Forest'!J15 ->  | I26: ='Forest Land Remaining Forest'!K15 ->  | J26: ='Forest Land Remaining Forest'!L15 ->  | K26: ='Forest Land Remaining Forest'!M15 ->  | L26: ='Forest Land Remaining Forest'!N15 ->  | M26: ='Forest Land Remaining Forest'!O15 ->  | N26: ='Forest Land Remaining Forest'!P15 ->  | O26: ='Forest Land Remaining Forest'!Q15 ->  | P26: ='Forest Land Remaining Forest'!R15 ->  | Q26: ='Forest Land Remaining Forest'!S15 ->  | R26: ='Forest Land Remaining Forest'!T15 ->  | S26: ='Forest Land Remaining Forest'!U15 ->  | T26: ='Forest Land Remaining Forest'!V15 ->  | U26: ='Forest Land Remaining Forest'!W15 ->  | V26: ='Forest Land Remaining Forest'!X15 ->  | W26: ='Forest Land Remaining Forest'!Y15 ->  | X26: ='Forest Land Remaining Forest'!Z15 ->  | Y26: ='Forest Land Remaining Forest'!AA15 ->  | Z26: ='Forest Land Remaining Forest'!AB15 ->  | AA26: ='Forest Land Remaining Forest'!AC15 ->  | AB26: ='Forest Land Remaining Forest'!AD15 ->  | AC26: ='Forest Land Remaining Forest'!AE15 ->  | AD26: ='Forest Land Remaining Forest'!AF15 ->  | AE26: ='Forest Land Remaining Forest'!AG15 ->  | AF26: ='Forest Land Remaining Forest'!AH15 ->  | AG26: ='Forest Land Remaining Forest'!AI15 -> 
B27: Total wood products and landfills | C27: ='Forest Land Remaining Forest'!F36 ->  | D27: ='Forest Land Remaining Forest'!G36 ->  | E27: ='Forest Land Remaining Forest'!H36 ->  | F27: ='Forest Land Remaining Forest'!I36 ->  | G27: ='Forest Land Remaining Forest'!J36 ->  | H27: ='Forest Land Remaining Forest'!K36 ->  | I27: ='Forest Land Remaining Forest'!L36 ->  | J27: ='Forest Land Remaining Forest'!M36 ->  | K27: ='Forest Land Remaining Forest'!N36 ->  | L27: ='Forest Land Remaining Forest'!O36 ->  | M27: ='Forest Land Remaining Forest'!P36 ->  | N27: ='Forest Land Remaining Forest'!Q36 ->  | O27: ='Forest Land Remaining Forest'!R36 ->  | P27: ='Forest Land Remaining Forest'!S36 ->  | Q27: ='Forest Land Remaining Forest'!T36 ->  | R27: ='Forest Land Remaining Forest'!U36 ->  | S27: ='Forest Land Remaining Forest'!V36 ->  | T27: ='Forest Land Remaining Forest'!W36 ->  | U27: ='Forest Land Remaining Forest'!X36 ->  | V27: ='Forest Land Remaining Forest'!Y36 ->  | W27: ='Forest Land Remaining Forest'!Z36 ->  | X27: ='Forest Land Remaining Forest'!AA36 ->  | Y27: ='Forest Land Remaining Forest'!AB36 ->  | Z27: ='Forest Land Remaining Forest'!AC36 ->  | AA27: ='Forest Land Remaining Forest'!AD36 ->  | AB27: ='Forest Land Remaining Forest'!AE36 ->  | AC27: ='Forest Land Remaining Forest'!AF36 ->  | AD27: ='Forest Land Remaining Forest'!AG36 ->  | AE27: ='Forest Land Remaining Forest'!AH36 ->  | AF27: ='Forest Land Remaining Forest'!AI36 -> 0 | AG27: ='Forest Land Remaining Forest'!AJ36 -> 0
B28: Land Converted to Forest Land | C28: =SUM(C29:C33) ->  | D28: =SUM(D29:D33) -> 
B29: Aboveground Biomass | C29: ='Land Converted to Forest Land'!E9 ->  | D29: ='Land Converted to Forest Land'!F9 ->  | E29: ='Land Converted to Forest Land'!G9 ->  | F29: ='Land Converted to Forest Land'!H9 ->  | G29: ='Land Converted to Forest Land'!I9 ->  | H29: ='Land Converted to Forest Land'!J9 ->  | I29: ='Land Converted to Forest Land'!K9 ->  | J29: ='Land Converted to Forest Land'!L9 ->  | K29: ='Land Converted to Forest Land'!M9 ->  | L29: ='Land Converted to Forest Land'!N9 ->  | M29: ='Land Converted to Forest Land'!O9 ->  | N29: ='Land Converted to Forest Land'!P9 ->  | O29: ='Land Converted to Forest Land'!Q9 ->  | P29: ='Land Converted to Forest Land'!R9 ->  | Q29: ='Land Converted to Forest Land'!S9 ->  | R29: ='Land Converted to Forest Land'!T9 ->  | S29: ='Land Converted to Forest Land'!U9 ->  | T29: ='Land Converted to Forest Land'!V9 ->  | U29: ='Land Converted to Forest Land'!W9 ->  | V29: ='Land Converted to Forest Land'!X9 ->  | W29: ='Land Converted to Forest Land'!Y9 ->  | X29: ='Land Converted to Forest Land'!Z9 ->  | Y29: ='Land Converted to Forest Land'!AA9 ->  | Z29: ='Land Converted to Forest Land'!AB9 ->  | AA29: ='Land Converted to Forest Land'!AC9 ->  | AB29: ='Land Converted to Forest Land'!AD9 ->  | AC29: ='Land Converted to Forest Land'!AE9 ->  | AD29: ='Land Converted to Forest Land'!AF9 ->  | AE29: ='Land Converted to Forest Land'!AG9 ->  | AF29: ='Land Converted to Forest Land'!AH9 ->  | AG29: ='Land Converted to Forest Land'!AI9 -> 
B30: Belowground Biomass | C30: ='Land Converted to Forest Land'!E10 ->  | D30: ='Land Converted to Forest Land'!F10 ->  | E30: ='Land Converted to Forest Land'!G10 ->  | F30: ='Land Converted to Forest Land'!H10 ->  | G30: ='Land Converted to Forest Land'!I10 ->  | H30: ='Land Converted to Forest Land'!J10 ->  | I30: ='Land Converted to Forest Land'!K10 ->  | J30: ='Land Converted to Forest Land'!L10 ->  | K30: ='Land Converted to Forest Land'!M10 ->  | L30: ='Land Converted to Forest Land'!N10 ->  | M30: ='Land Converted to Forest Land'!O10 ->  | N30: ='Land Converted to Forest Land'!P10 ->  | O30: ='Land Converted to Forest Land'!Q10 ->  | P30: ='Land Converted to Forest Land'!R10 ->  | Q30: ='Land Converted to Forest Land'!S10 ->  | R30: ='Land Converted to Forest Land'!T10 ->  | S30: ='Land Converted to Forest Land'!U10 ->  | T30: ='Land Converted to Forest Land'!V10 ->  | U30: ='Land Converted to Forest Land'!W10 ->  | V30: ='Land Converted to Forest Land'!X10 ->  | W30: ='Land Converted to Forest Land'!Y10 ->  | X30: ='Land Converted to Forest Land'!Z10 ->  | Y30: ='Land Converted to Forest Land'!AA10 ->  | Z30: ='Land Converted to Forest Land'!AB10 ->  | AA30: ='Land Converted to Forest Land'!AC10 ->  | AB30: ='Land Converted to Forest Land'!AD10 ->  | AC30: ='Land Converted to Forest Land'!AE10 ->  | AD30: ='Land Converted to Forest Land'!AF10 ->  | AE30: ='Land Converted to Forest Land'!AG10 ->  | AF30: ='Land Converted to Forest Land'!AH10 ->  | AG30: ='Land Converted to Forest Land'!AI10 -> 
B31: Deadwood | C31: ='Land Converted to Forest Land'!E11 ->  | D31: ='Land Converted to Forest Land'!F11 ->  | E31: ='Land Converted to Forest Land'!G11 ->  | F31: ='Land Converted to Forest Land'!H11 ->  | G31: ='Land Converted to Forest Land'!I11 ->  | H31: ='Land Converted to Forest Land'!J11 ->  | I31: ='Land Converted to Forest Land'!K11 ->  | J31: ='Land Converted to Forest Land'!L11 ->  | K31: ='Land Converted to Forest Land'!M11 ->  | L31: ='Land Converted to Forest Land'!N11 ->  | M31: ='Land Converted to Forest Land'!O11 ->  | N31: ='Land Converted to Forest Land'!P11 ->  | O31: ='Land Converted to Forest Land'!Q11 ->  | P31: ='Land Converted to Forest Land'!R11 ->  | Q31: ='Land Converted to Forest Land'!S11 ->  | R31: ='Land Converted to Forest Land'!T11 ->  | S31: ='Land Converted to Forest Land'!U11 ->  | T31: ='Land Converted to Forest Land'!V11 ->  | U31: ='Land Converted to Forest Land'!W11 ->  | V31: ='Land Converted to Forest Land'!X11 ->  | W31: ='Land Converted to Forest Land'!Y11 ->  | X31: ='Land Converted to Forest Land'!Z11 ->  | Y31: ='Land Converted to Forest Land'!AA11 ->  | Z31: ='Land Converted to Forest Land'!AB11 ->  | AA31: ='Land Converted to Forest Land'!AC11 ->  | AB31: ='Land Converted to Forest Land'!AD11 ->  | AC31: ='Land Converted to Forest Land'!AE11 ->  | AD31: ='Land Converted to Forest Land'!AF11 ->  | AE31: ='Land Converted to Forest Land'!AG11 ->  | AF31: ='Land Converted to Forest Land'!AH11 ->  | AG31: ='Land Converted to Forest Land'!AI11 -> 
B32: Litter | C32: ='Land Converted to Forest Land'!E12 ->  | D32: ='Land Converted to Forest Land'!F12 ->  | E32: ='Land Converted to Forest Land'!G12 ->  | F32: ='Land Converted to Forest Land'!H12 ->  | G32: ='Land Converted to Forest Land'!I12 ->  | H32: ='Land Converted to Forest Land'!J12 ->  | I32: ='Land Converted to Forest Land'!K12 ->  | J32: ='Land Converted to Forest Land'!L12 ->  | K32: ='Land Converted to Forest Land'!M12 ->  | L32: ='Land Converted to Forest Land'!N12 ->  | M32: ='Land Converted to Forest Land'!O12 ->  | N32: ='Land Converted to Forest Land'!P12 ->  | O32: ='Land Converted to Forest Land'!Q12 ->  | P32: ='Land Converted to Forest Land'!R12 ->  | Q32: ='Land Converted to Forest Land'!S12 ->  | R32: ='Land Converted to Forest Land'!T12 ->  | S32: ='Land Converted to Forest Land'!U12 ->  | T32: ='Land Converted to Forest Land'!V12 ->  | U32: ='Land Converted to Forest Land'!W12 ->  | V32: ='Land Converted to Forest Land'!X12 ->  | W32: ='Land Converted to Forest Land'!Y12 ->  | X32: ='Land Converted to Forest Land'!Z12 ->  | Y32: ='Land Converted to Forest Land'!AA12 ->  | Z32: ='Land Converted to Forest Land'!AB12 ->  | AA32: ='Land Converted to Forest Land'!AC12 ->  | AB32: ='Land Converted to Forest Land'!AD12 ->  | AC32: ='Land Converted to Forest Land'!AE12 ->  | AD32: ='Land Converted to Forest Land'!AF12 ->  | AE32: ='Land Converted to Forest Land'!AG12 ->  | AF32: ='Land Converted to Forest Land'!AH12 ->  | AG32: ='Land Converted to Forest Land'!AI12 -> 
B33: Soil (Mineral) | C33: ='Land Converted to Forest Land'!E13 ->  | D33: ='Land Converted to Forest Land'!F13 ->  | E33: ='Land Converted to Forest Land'!G13 ->  | F33: ='Land Converted to Forest Land'!H13 ->  | G33: ='Land Converted to Forest Land'!I13 ->  | H33: ='Land Converted to Forest Land'!J13 ->  | I33: ='Land Converted to Forest Land'!K13 ->  | J33: ='Land Converted to Forest Land'!L13 ->  | K33: ='Land Converted to Forest Land'!M13 ->  | L33: ='Land Converted to Forest Land'!N13 ->  | M33: ='Land Converted to Forest Land'!O13 ->  | N33: ='Land Converted to Forest Land'!P13 ->  | O33: ='Land Converted to Forest Land'!Q13 ->  | P33: ='Land Converted to Forest Land'!R13 ->  | Q33: ='Land Converted to Forest Land'!S13 ->  | R33: ='Land Converted to Forest Land'!T13 ->  | S33: ='Land Converted to Forest Land'!U13 ->  | T33: ='Land Converted to Forest Land'!V13 ->  | U33: ='Land Converted to Forest Land'!W13 ->  | V33: ='Land Converted to Forest Land'!X13 ->  | W33: ='Land Converted to Forest Land'!Y13 ->  | X33: ='Land Converted to Forest Land'!Z13 ->  | Y33: ='Land Converted to Forest Land'!AA13 ->  | Z33: ='Land Converted to Forest Land'!AB13 ->  | AA33: ='Land Converted to Forest Land'!AC13 ->  | AB33: ='Land Converted to Forest Land'!AD13 ->  | AC33: ='Land Converted to Forest Land'!AE13 ->  | AD33: ='Land Converted to Forest Land'!AF13 ->  | AE33: ='Land Converted to Forest Land'!AG13 ->  | AF33: ='Land Converted to Forest Land'!AH13 ->  | AG33: ='Land Converted to Forest Land'!AI13 -> 
B34: Forest Land Converted to Land | C34: =SUM(C35:C39) ->  | D34: =SUM(D35:D39) -> 
B35: Aboveground Biomass | C35: ='Forest Land Converted to Land'!E9 ->  | D35: ='Forest Land Converted to Land'!F9 ->  | E35: ='Forest Land Converted to Land'!G9 ->  | F35: ='Forest Land Converted to Land'!H9 ->  | G35: ='Forest Land Converted to Land'!I9 ->  | H35: ='Forest Land Converted to Land'!J9 ->  | I35: ='Forest Land Converted to Land'!K9 ->  | J35: ='Forest Land Converted to Land'!L9 ->  | K35: ='Forest Land Converted to Land'!M9 ->  | L35: ='Forest Land Converted to Land'!N9 ->  | M35: ='Forest Land Converted to Land'!O9 ->  | N35: ='Forest Land Converted to Land'!P9 ->  | O35: ='Forest Land Converted to Land'!Q9 ->  | P35: ='Forest Land Converted to Land'!R9 ->  | Q35: ='Forest Land Converted to Land'!S9 ->  | R35: ='Forest Land Converted to Land'!T9 ->  | S35: ='Forest Land Converted to Land'!U9 ->  | T35: ='Forest Land Converted to Land'!V9 ->  | U35: ='Forest Land Converted to Land'!W9 ->  | V35: ='Forest Land Converted to Land'!X9 ->  | W35: ='Forest Land Converted to Land'!Y9 ->  | X35: ='Forest Land Converted to Land'!Z9 ->  | Y35: ='Forest Land Converted to Land'!AA9 ->  | Z35: ='Forest Land Converted to Land'!AB9 ->  | AA35: ='Forest Land Converted to Land'!AC9 ->  | AB35: ='Forest Land Converted to Land'!AD9 ->  | AC35: ='Forest Land Converted to Land'!AE9 ->  | AD35: ='Forest Land Converted to Land'!AF9 ->  | AE35: ='Forest Land Converted to Land'!AG9 ->  | AF35: ='Forest Land Converted to Land'!AH9 ->  | AG35: ='Forest Land Converted to Land'!AI9 -> 
B36: Belowground Biomass | C36: ='Forest Land Converted to Land'!E10 ->  | D36: ='Forest Land Converted to Land'!F10 ->  | E36: ='Forest Land Converted to Land'!G10 ->  | F36: ='Forest Land Converted to Land'!H10 ->  | G36: ='Forest Land Converted to Land'!I10 ->  | H36: ='Forest Land Converted to Land'!J10 ->  | I36: ='Forest Land Converted to Land'!K10 ->  | J36: ='Forest Land Converted to Land'!L10 ->  | K36: ='Forest Land Converted to Land'!M10 ->  | L36: ='Forest Land Converted to Land'!N10 ->  | M36: ='Forest Land Converted to Land'!O10 ->  | N36: ='Forest Land Converted to Land'!P10 ->  | O36: ='Forest Land Converted to Land'!Q10 ->  | P36: ='Forest Land Converted to Land'!R10 ->  | Q36: ='Forest Land Converted to Land'!S10 ->  | R36: ='Forest Land Converted to Land'!T10 ->  | S36: ='Forest Land Converted to Land'!U10 ->  | T36: ='Forest Land Converted to Land'!V10 ->  | U36: ='Forest Land Converted to Land'!W10 ->  | V36: ='Forest Land Converted to Land'!X10 ->  | W36: ='Forest Land Converted to Land'!Y10 ->  | X36: ='Forest Land Converted to Land'!Z10 ->  | Y36: ='Forest Land Converted to Land'!AA10 ->  | Z36: ='Forest Land Converted to Land'!AB10 ->  | AA36: ='Forest Land Converted to Land'!AC10 ->  | AB36: ='Forest Land Converted to Land'!AD10 ->  | AC36: ='Forest Land Converted to Land'!AE10 ->  | AD36: ='Forest Land Converted to Land'!AF10 ->  | AE36: ='Forest Land Converted to Land'!AG10 ->  | AF36: ='Forest Land Converted to Land'!AH10 ->  | AG36: ='Forest Land Converted to Land'!AI10 -> 
B37: Deadwood | C37: ='Forest Land Converted to Land'!E11 ->  | D37: ='Forest Land Converted to Land'!F11 ->  | E37: ='Forest Land Converted to Land'!G11 ->  | F37: ='Forest Land Converted to Land'!H11 ->  | G37: ='Forest Land Converted to Land'!I11 ->  | H37: ='Forest Land Converted to Land'!J11 ->  | I37: ='Forest Land Converted to Land'!K11 ->  | J37: ='Forest Land Converted to Land'!L11 ->  | K37: ='Forest Land Converted to Land'!M11 ->  | L37: ='Forest Land Converted to Land'!N11 ->  | M37: ='Forest Land Converted to Land'!O11 ->  | N37: ='Forest Land Converted to Land'!P11 ->  | O37: ='Forest Land Converted to Land'!Q11 ->  | P37: ='Forest Land Converted to Land'!R11 ->  | Q37: ='Forest Land Converted to Land'!S11 ->  | R37: ='Forest Land Converted to Land'!T11 ->  | S37: ='Forest Land Converted to Land'!U11 ->  | T37: ='Forest Land Converted to Land'!V11 ->  | U37: ='Forest Land Converted to Land'!W11 ->  | V37: ='Forest Land Converted to Land'!X11 ->  | W37: ='Forest Land Converted to Land'!Y11 ->  | X37: ='Forest Land Converted to Land'!Z11 ->  | Y37: ='Forest Land Converted to Land'!AA11 ->  | Z37: ='Forest Land Converted to Land'!AB11 ->  | AA37: ='Forest Land Converted to Land'!AC11 ->  | AB37: ='Forest Land Converted to Land'!AD11 ->  | AC37: ='Forest Land Converted to Land'!AE11 ->  | AD37: ='Forest Land Converted to Land'!AF11 ->  | AE37: ='Forest Land Converted to Land'!AG11 ->  | AF37: ='Forest Land Converted to Land'!AH11 ->  | AG37: ='Forest Land Converted to Land'!AI11 -> 
B38: Litter | C38: ='Forest Land Converted to Land'!E12 ->  | D38: ='Forest Land Converted to Land'!F12 ->  | E38: ='Forest Land Converted to Land'!G12 ->  | F38: ='Forest Land Converted to Land'!H12 ->  | G38: ='Forest Land Converted to Land'!I12 ->  | H38: ='Forest Land Converted to Land'!J12 ->  | I38: ='Forest Land Converted to Land'!K12 ->  | J38: ='Forest Land Converted to Land'!L12 ->  | K38: ='Forest Land Converted to Land'!M12 ->  | L38: ='Forest Land Converted to Land'!N12 ->  | M38: ='Forest Land Converted to Land'!O12 ->  | N38: ='Forest Land Converted to Land'!P12 ->  | O38: ='Forest Land Converted to Land'!Q12 ->  | P38: ='Forest Land Converted to Land'!R12 ->  | Q38: ='Forest Land Converted to Land'!S12 ->  | R38: ='Forest Land Converted to Land'!T12 ->  | S38: ='Forest Land Converted to Land'!U12 ->  | T38: ='Forest Land Converted to Land'!V12 ->  | U38: ='Forest Land Converted to Land'!W12 ->  | V38: ='Forest Land Converted to Land'!X12 ->  | W38: ='Forest Land Converted to Land'!Y12 ->  | X38: ='Forest Land Converted to Land'!Z12 ->  | Y38: ='Forest Land Converted to Land'!AA12 ->  | Z38: ='Forest Land Converted to Land'!AB12 ->  | AA38: ='Forest Land Converted to Land'!AC12 ->  | AB38: ='Forest Land Converted to Land'!AD12 ->  | AC38: ='Forest Land Converted to Land'!AE12 ->  | AD38: ='Forest Land Converted to Land'!AF12 ->  | AE38: ='Forest Land Converted to Land'!AG12 ->  | AF38: ='Forest Land Converted to Land'!AH12 ->  | AG38: ='Forest Land Converted to Land'!AI12 -> 
B39: Soil (Mineral) | C39: ='Forest Land Converted to Land'!E13 ->  | D39: ='Forest Land Converted to Land'!F13 ->  | E39: ='Forest Land Converted to Land'!G13 ->  | F39: ='Forest Land Converted to Land'!H13 ->  | G39: ='Forest Land Converted to Land'!I13 ->  | H39: ='Forest Land Converted to Land'!J13 ->  | I39: ='Forest Land Converted to Land'!K13 ->  | J39: ='Forest Land Converted to Land'!L13 ->  | K39: ='Forest Land Converted to Land'!M13 ->  | L39: ='Forest Land Converted to Land'!N13 ->  | M39: ='Forest Land Converted to Land'!O13 ->  | N39: ='Forest Land Converted to Land'!P13 ->  | O39: ='Forest Land Converted to Land'!Q13 ->  | P39: ='Forest Land Converted to Land'!R13 ->  | Q39: ='Forest Land Converted to Land'!S13 ->  | R39: ='Forest Land Converted to Land'!T13 ->  | S39: ='Forest Land Converted to Land'!U13 ->  | T39: ='Forest Land Converted to Land'!V13 ->  | U39: ='Forest Land Converted to Land'!W13 ->  | V39: ='Forest Land Converted to Land'!X13 ->  | W39: ='Forest Land Converted to Land'!Y13 ->  | X39: ='Forest Land Converted to Land'!Z13 ->  | Y39: ='Forest Land Converted to Land'!AA13 ->  | Z39: ='Forest Land Converted to Land'!AB13 ->  | AA39: ='Forest Land Converted to Land'!AC13 ->  | AB39: ='Forest Land Converted to Land'!AD13 ->  | AC39: ='Forest Land Converted to Land'!AE13 ->  | AD39: ='Forest Land Converted to Land'!AF13 ->  | AE39: ='Forest Land Converted to Land'!AG13 ->  | AF39: ='Forest Land Converted to Land'!AH13 ->  | AG39: ='Forest Land Converted to Land'!AI13 -> 
B40: Urban Trees | C40: =-'Urban Trees'!L12 -> 0 | D40: =-'Urban Trees'!L14 -> 0 | E40: =-'Urban Trees'!L16 -> 0 | F40: =-'Urban Trees'!L18 -> 0 | G40: =-'Urban Trees'!L20 -> 0 | H40: =-'Urban Trees'!L22 -> 0 | I40: =-'Urban Trees'!L24 -> 0 | J40: =-'Urban Trees'!L26 -> 0 | K40: =-'Urban Trees'!L28 -> 0 | L40: =-'Urban Trees'!L30 -> 0 | M40: =-'Urban Trees'!L32 -> 0 | N40: =-'Urban Trees'!L34 -> 0 | O40: =-'Urban Trees'!L36 -> 0 | P40: =-'Urban Trees'!L38 -> 0 | Q40: =-'Urban Trees'!L40 -> 0 | R40: =-'Urban Trees'!L42 -> 0 | S40: =-'Urban Trees'!L44 -> 0 | T40: =-'Urban Trees'!L46 -> 0 | U40: =-'Urban Trees'!L48 -> 0 | V40: =-'Urban Trees'!L50 -> 0 | W40: =-'Urban Trees'!L52 -> 0 | X40: =-'Urban Trees'!L54 -> 0 | Y40: =-'Urban Trees'!L56 -> 0 | Z40: =-'Urban Trees'!L58 -> 0 | AA40: =-'Urban Trees'!L60 -> 0 | AB40: =-'Urban Trees'!L62 -> 0 | AC40: =-'Urban Trees'!L64 -> 0 | AD40: =-'Urban Trees'!L66 -> 0 | AE40: =-'Urban Trees'!L68 -> 0 | AF40: =-'Urban Trees'!L70 -> 0 | AG40: =-'Urban Trees'!L72 -> 0
B41: Landfilled Yard Trimmings and Food Scraps | C41: =SUM(C42:C45) -> 0 | D41: =SUM(D42:D45) -> 0 | E41: 0 | F41: 0 | G41: 0 | H41: 0 | I41: 0 | J41: 0 | K41: 0 | L41: 0 | M41: 0 | N41: 0 | O41: 0 | P41: 0 | Q41: 0 | R41: 0 | S41: 0 | T41: 0 | U41: 0 | V41: 0 | W41: 0 | X41: 0 | Y41: 0 | Z41: 0 | AA41: 0 | AB41: 0 | AC41: 0 | AD41: 0 | AE41: 0 | AF41: 0 | AG41: 0
B42: Grass | C42: ='Yard Trimmings'!C121/1000 -> 0 | D42: ='Yard Trimmings'!D121/1000 -> 0 | E42: ='Yard Trimmings'!E121/1000 -> 0 | F42: ='Yard Trimmings'!F121/1000 -> 0 | G42: ='Yard Trimmings'!G121/1000 -> 0 | H42: ='Yard Trimmings'!H121/1000 -> 0 | I42: ='Yard Trimmings'!I121/1000 -> 0 | J42: ='Yard Trimmings'!J121/1000 -> 0 | K42: ='Yard Trimmings'!K121/1000 -> 0 | L42: ='Yard Trimmings'!L121/1000 -> 0 | M42: ='Yard Trimmings'!M121/1000 -> 0 | N42: ='Yard Trimmings'!N121/1000 -> 0 | O42: ='Yard Trimmings'!O121/1000 -> 0 | P42: ='Yard Trimmings'!P121/1000 -> 0 | Q42: ='Yard Trimmings'!Q121/1000 -> 0 | R42: ='Yard Trimmings'!R121/1000 -> 0 | S42: ='Yard Trimmings'!S121/1000 -> 0 | T42: ='Yard Trimmings'!T121/1000 -> 0 | U42: ='Yard Trimmings'!U121/1000 -> 0 | V42: ='Yard Trimmings'!V121/1000 -> 0 | W42: ='Yard Trimmings'!W121/1000 -> 0 | X42: ='Yard Trimmings'!X121/1000 -> 0 | Y42: ='Yard Trimmings'!Y121/1000 -> 0 | Z42: ='Yard Trimmings'!Z121/1000 -> 0 | AA42: ='Yard Trimmings'!AA121/1000 -> 0 | AB42: ='Yard Trimmings'!AB121/1000 -> 0 | AC42: ='Yard Trimmings'!AC121/1000 -> 0 | AD42: ='Yard Trimmings'!AD121/1000 -> 0 | AE42: ='Yard Trimmings'!AE121/1000 -> 0 | AF42: ='Yard Trimmings'!AF121/1000 -> 0 | AG42: ='Yard Trimmings'!AG121/1000 -> 0
B43: Leaves | C43: ='Yard Trimmings'!C122/1000 -> 0 | D43: ='Yard Trimmings'!D122/1000 -> 0 | E43: ='Yard Trimmings'!E122/1000 -> 0 | F43: ='Yard Trimmings'!F122/1000 -> 0 | G43: ='Yard Trimmings'!G122/1000 -> 0 | H43: ='Yard Trimmings'!H122/1000 -> 0 | I43: ='Yard Trimmings'!I122/1000 -> 0 | J43: ='Yard Trimmings'!J122/1000 -> 0 | K43: ='Yard Trimmings'!K122/1000 -> 0 | L43: ='Yard Trimmings'!L122/1000 -> 0 | M43: ='Yard Trimmings'!M122/1000 -> 0 | N43: ='Yard Trimmings'!N122/1000 -> 0 | O43: ='Yard Trimmings'!O122/1000 -> 0 | P43: ='Yard Trimmings'!P122/1000 -> 0 | Q43: ='Yard Trimmings'!Q122/1000 -> 0 | R43: ='Yard Trimmings'!R122/1000 -> 0 | S43: ='Yard Trimmings'!S122/1000 -> 0 | T43: ='Yard Trimmings'!T122/1000 -> 0 | U43: ='Yard Trimmings'!U122/1000 -> 0 | V43: ='Yard Trimmings'!V122/1000 -> 0 | W43: ='Yard Trimmings'!W122/1000 -> 0 | X43: ='Yard Trimmings'!X122/1000 -> 0 | Y43: ='Yard Trimmings'!Y122/1000 -> 0 | Z43: ='Yard Trimmings'!Z122/1000 -> 0 | AA43: ='Yard Trimmings'!AA122/1000 -> 0 | AB43: ='Yard Trimmings'!AB122/1000 -> 0 | AC43: ='Yard Trimmings'!AC122/1000 -> 0 | AD43: ='Yard Trimmings'!AD122/1000 -> 0 | AE43: ='Yard Trimmings'!AE122/1000 -> 0 | AF43: ='Yard Trimmings'!AF122/1000 -> 0 | AG43: ='Yard Trimmings'!AG122/1000 -> 0
B44: Branches | C44: ='Yard Trimmings'!C123/1000 -> 0 | D44: ='Yard Trimmings'!D123/1000 -> 0 | E44: ='Yard Trimmings'!E123/1000 -> 0 | F44: ='Yard Trimmings'!F123/1000 -> 0 | G44: ='Yard Trimmings'!G123/1000 -> 0 | H44: ='Yard Trimmings'!H123/1000 -> 0 | I44: ='Yard Trimmings'!I123/1000 -> 0 | J44: ='Yard Trimmings'!J123/1000 -> 0 | K44: ='Yard Trimmings'!K123/1000 -> 0 | L44: ='Yard Trimmings'!L123/1000 -> 0 | M44: ='Yard Trimmings'!M123/1000 -> 0 | N44: ='Yard Trimmings'!N123/1000 -> 0 | O44: ='Yard Trimmings'!O123/1000 -> 0 | P44: ='Yard Trimmings'!P123/1000 -> 0 | Q44: ='Yard Trimmings'!Q123/1000 -> 0 | R44: ='Yard Trimmings'!R123/1000 -> 0 | S44: ='Yard Trimmings'!S123/1000 -> 0 | T44: ='Yard Trimmings'!T123/1000 -> 0 | U44: ='Yard Trimmings'!U123/1000 -> 0 | V44: ='Yard Trimmings'!V123/1000 -> 0 | W44: ='Yard Trimmings'!W123/1000 -> 0 | X44: ='Yard Trimmings'!X123/1000 -> 0 | Y44: ='Yard Trimmings'!Y123/1000 -> 0 | Z44: ='Yard Trimmings'!Z123/1000 -> 0 | AA44: ='Yard Trimmings'!AA123/1000 -> 0 | AB44: ='Yard Trimmings'!AB123/1000 -> 0 | AC44: ='Yard Trimmings'!AC123/1000 -> 0 | AD44: ='Yard Trimmings'!AD123/1000 -> 0 | AE44: ='Yard Trimmings'!AE123/1000 -> 0 | AF44: ='Yard Trimmings'!AF123/1000 -> 0 | AG44: ='Yard Trimmings'!AG123/1000 -> 0
B45: Landfilled Food Scraps | C45: ='Yard Trimmings'!C124/1000 -> 0 | D45: ='Yard Trimmings'!D124/1000 -> 0 | E45: ='Yard Trimmings'!E124/1000 -> 0 | F45: ='Yard Trimmings'!F124/1000 -> 0 | G45: ='Yard Trimmings'!G124/1000 -> 0 | H45: ='Yard Trimmings'!H124/1000 -> 0 | I45: ='Yard Trimmings'!I124/1000 -> 0 | J45: ='Yard Trimmings'!J124/1000 -> 0 | K45: ='Yard Trimmings'!K124/1000 -> 0 | L45: ='Yard Trimmings'!L124/1000 -> 0 | M45: ='Yard Trimmings'!M124/1000 -> 0 | N45: ='Yard Trimmings'!N124/1000 -> 0 | O45: ='Yard Trimmings'!O124/1000 -> 0 | P45: ='Yard Trimmings'!P124/1000 -> 0 | Q45: ='Yard Trimmings'!Q124/1000 -> 0 | R45: ='Yard Trimmings'!R124/1000 -> 0 | S45: ='Yard Trimmings'!S124/1000 -> 0 | T45: ='Yard Trimmings'!T124/1000 -> 0 | U45: ='Yard Trimmings'!U124/1000 -> 0 | V45: ='Yard Trimmings'!V124/1000 -> 0 | W45: ='Yard Trimmings'!W124/1000 -> 0 | X45: ='Yard Trimmings'!X124/1000 -> 0 | Y45: ='Yard Trimmings'!Y124/1000 -> 0 | Z45: ='Yard Trimmings'!Z124/1000 -> 0 | AA45: ='Yard Trimmings'!AA124/1000 -> 0 | AB45: ='Yard Trimmings'!AB124/1000 -> 0 | AC45: ='Yard Trimmings'!AC124/1000 -> 0 | AD45: ='Yard Trimmings'!AD124/1000 -> 0 | AE45: ='Yard Trimmings'!AE124/1000 -> 0 | AF45: ='Yard Trimmings'!AF124/1000 -> 0 | AG45: ='Yard Trimmings'!AG124/1000 -> 0
B46: Forest Fires | C46: =SUM(C47:C48) -> 0 | D46: =SUM(D47:D48) -> 0 | E46: 0 | F46: 0 | G46: 0 | H46: 0 | I46: 0 | J46: 0 | K46: 0 | L46: 0 | M46: 0 | N46: 0 | O46: 0 | P46: 0 | Q46: 0 | R46: 0 | S46: 0 | T46: 0 | U46: 0 | V46: 0 | W46: 0 | X46: 0 | Y46: 0 | Z46: 0 | AA46: 0 | AB46: 0 | AC46: 0 | AD46: 0 | AE46: 0 | AF46: 0 | AG46: 0
B47: CH4 | C47: ='Burning CH4'!P18 -> 0 | D47: ='Burning CH4'!P31 -> 0 | E47: ='Burning CH4'!P44 -> 0 | F47: ='Burning CH4'!P57 -> 0 | G47: ='Burning CH4'!P70 -> 0 | H47: ='Burning CH4'!P83 -> 0 | I47: ='Burning CH4'!P96 -> 0 | J47: ='Burning CH4'!P109 -> 0 | K47: ='Burning CH4'!P122 -> 0 | L47: ='Burning CH4'!P135 -> 0 | M47: ='Burning CH4'!P148 -> 0 | N47: ='Burning CH4'!P161 -> 0 | O47: ='Burning CH4'!P174 -> 0 | P47: ='Burning CH4'!P187 -> 0 | Q47: ='Burning CH4'!P200 -> 0 | R47: ='Burning CH4'!P213 -> 0 | S47: ='Burning CH4'!P226 -> 0 | T47: ='Burning CH4'!P239 -> 0 | U47: ='Burning CH4'!P252 -> 0 | V47: ='Burning CH4'!P265 -> 0 | W47: ='Burning CH4'!P278 -> 0 | X47: ='Burning CH4'!P291 -> 0 | Y47: ='Burning CH4'!P304 -> 0 | Z47: ='Burning CH4'!P317 -> 0 | AA47: ='Burning CH4'!P330 -> 0 | AB47: ='Burning CH4'!P343 -> 0 | AC47: ='Burning CH4'!P356 -> 0 | AD47: ='Burning CH4'!P369 -> 0 | AE47: ='Burning CH4'!P382 -> 0 | AF47: ='Burning CH4'!P395 -> 0 | AG47: ='Burning CH4'!P408 -> 0
B48: N2O | C48: ='Burning N2O'!P18 -> 0 | D48: ='Burning N2O'!P31 -> 0 | E48: ='Burning N2O'!P44 -> 0 | F48: ='Burning N2O'!P57 -> 0 | G48: ='Burning N2O'!P70 -> 0 | H48: ='Burning N2O'!P83 -> 0 | I48: ='Burning N2O'!P96 -> 0 | J48: ='Burning N2O'!P109 -> 0 | K48: ='Burning N2O'!P122 -> 0 | L48: ='Burning N2O'!P135 -> 0 | M48: ='Burning N2O'!P148 -> 0 | N48: ='Burning N2O'!P161 -> 0 | O48: ='Burning N2O'!P174 -> 0 | P48: ='Burning N2O'!P187 -> 0 | Q48: ='Burning N2O'!P200 -> 0 | R48: ='Burning N2O'!P213 -> 0 | S48: ='Burning N2O'!P226 -> 0 | T48: ='Burning N2O'!P239 -> 0 | U48: ='Burning N2O'!P252 -> 0 | V48: ='Burning N2O'!P265 -> 0 | W48: ='Burning N2O'!P278 -> 0 | X48: ='Burning N2O'!P291 -> 0 | Y48: ='Burning N2O'!P304 -> 0 | Z48: ='Burning N2O'!P317 -> 0 | AA48: ='Burning N2O'!P330 -> 0 | AB48: ='Burning N2O'!P343 -> 0 | AC48: ='Burning N2O'!P356 -> 0 | AD48: ='Burning N2O'!P369 -> 0 | AE48: ='Burning N2O'!P382 -> 0 | AF48: ='Burning N2O'!P395 -> 0 | AG48: ='Burning N2O'!P408 -> 0
B49: N2O from Settlement Soils | C49: ='Settlement Soils'!P9 -> 0 | D49: ='Settlement Soils'!P11 -> 0 | E49: ='Settlement Soils'!P13 -> 0 | F49: ='Settlement Soils'!P15 -> 0 | G49: ='Settlement Soils'!P17 -> 0 | H49: ='Settlement Soils'!P19 -> 0 | I49: ='Settlement Soils'!P21 -> 0 | J49: ='Settlement Soils'!P23 -> 0 | K49: ='Settlement Soils'!P25 -> 0 | L49: ='Settlement Soils'!P27 -> 0 | M49: ='Settlement Soils'!P29 -> 0 | N49: ='Settlement Soils'!P31 -> 0 | O49: ='Settlement Soils'!P33 -> 0 | P49: ='Settlement Soils'!P35 -> 0 | Q49: ='Settlement Soils'!P37 -> 0 | R49: ='Settlement Soils'!P39 -> 0 | S49: ='Settlement Soils'!P41 -> 0 | T49: ='Settlement Soils'!P43 -> 0 | U49: ='Settlement Soils'!P45 -> 0 | V49: ='Settlement Soils'!P47 -> 0 | W49: ='Settlement Soils'!P49 -> 0 | X49: ='Settlement Soils'!P51 -> 0 | Y49: ='Settlement Soils'!P53 -> 0 | Z49: ='Settlement Soils'!P55 -> 0 | AA49: ='Settlement Soils'!P57 -> 0 | AB49: ='Settlement Soils'!P59 -> 0 | AC49: ='Settlement Soils'!P61 -> 0 | AD49: ='Settlement Soils'!P63 -> 0 | AE49: ='Settlement Soils'!P65 -> 0 | AF49: ='Settlement Soils'!P67 -> 0 | AG49: ='Settlement Soils'!P69 -> 0
B50: Agricultural Soil Carbon Flux | C50: =IF(AgSoilFluxChoice=1,AM9,AM10) -> 
B51: Total | C51: =SUM(C49,C40,C41,C46,C10,C50) -> 
B52: * Note that parentheses indicate net sequestration.
B55: Emissions (MMTCE)*
C56: 1990 | D56: 1991 | E56: 1992 | F56: 1993 | G56: 1994 | H56: 1995 | I56: 1996 | J56: 1997 | K56: 1998 | L56: 1999 | M56: 2000 | N56: 2001 | O56: 2002 | P56: 2003 | Q56: 2004 | R56: 2005 | S56: 2006 | T56: 2007 | U56: 2008 | V56: 2009 | W56: 2010 | X56: 2011 | Y56: 2012 | Z56: 2013 | AA56: 2014 | AB56: 2015 | AC56: 2016 | AD56: 2017 | AE56: 2018 | AF56: 2019 | AG56: 2020
B57: Forest Carbon Flux | C57: =IFERROR(C10/CO2_C,0) -> 0 | D57: 0 | E57: 0 | F57: 0 | G57: 0 | H57: 0 | I57: 0 | J57: 0 | K57: 0 | L57: 0 | M57: 0 | N57: 0 | O57: 0 | P57: 0 | Q57: 0 | R57: 0 | S57: 0 | T57: 0 | U57: 0 | V57: 0 | W57: 0 | X57: 0 | Y57: 0 | Z57: 0 | AA57: 0 | AB57: 0 | AC57: 0 | AD57: 0 | AE57: 0 | AF57: 0 | AG57: 0
B58: Aboveground Biomass | C58: =IFERROR(C20/CO2_C,0) -> 0 | D58: 0 | E58: 0 | F58: 0 | G58: 0 | H58: 0 | I58: 0 | J58: 0 | K58: 0 | L58: 0 | M58: 0 | N58: 0 | O58: 0 | P58: 0 | Q58: 0 | R58: 0 | S58: 0 | T58: 0 | U58: 0 | V58: 0 | W58: 0 | X58: 0 | Y58: 0 | Z58: 0 | AA58: 0 | AB58: 0 | AC58: 0 | AD58: 0 | AE58: 0 | AF58: 0 | AG58: 0
B59: Belowground Biomass | C59: =IFERROR(C21/CO2_C,0) -> 0 | D59: 0 | E59: 0 | F59: 0 | G59: 0 | H59: 0 | I59: 0 | J59: 0 | K59: 0 | L59: 0 | M59: 0 | N59: 0 | O59: 0 | P59: 0 | Q59: 0 | R59: 0 | S59: 0 | T59: 0 | U59: 0 | V59: 0 | W59: 0 | X59: 0 | Y59: 0 | Z59: 0 | AA59: 0 | AB59: 0 | AC59: 0 | AD59: 0 | AE59: 0 | AF59: 0 | AG59: 0
B60: Deadwood | C60: =IFERROR(C22/CO2_C,0) -> 0 | D60: 0 | E60: 0 | F60: 0 | G60: 0 | H60: 0 | I60: 0 | J60: 0 | K60: 0 | L60: 0 | M60: 0 | N60: 0 | O60: 0 | P60: 0 | Q60: 0 | R60: 0 | S60: 0 | T60: 0 | U60: 0 | V60: 0 | W60: 0 | X60: 0 | Y60: 0 | Z60: 0 | AA60: 0 | AB60: 0 | AC60: 0 | AD60: 0 | AE60: 0 | AF60: 0 | AG60: 0
B61: Litter | C61: =IFERROR(C23/CO2_C,0) -> 0 | D61: 0 | E61: 0 | F61: 0 | G61: 0 | H61: 0 | I61: 0 | J61: 0 | K61: 0 | L61: 0 | M61: 0 | N61: 0 | O61: 0 | P61: 0 | Q61: 0 | R61: 0 | S61: 0 | T61: 0 | U61: 0 | V61: 0 | W61: 0 | X61: 0 | Y61: 0 | Z61: 0 | AA61: 0 | AB61: 0 | AC61: 0 | AD61: 0 | AE61: 0 | AF61: 0 | AG61: 0
B62: Soil (Mineral) | C62: =IFERROR(C24/CO2_C,0) -> 0 | D62: 0 | E62: 0 | F62: 0 | G62: 0 | H62: 0 | I62: 0 | J62: 0 | K62: 0 | L62: 0 | M62: 0 | N62: 0 | O62: 0 | P62: 0 | Q62: 0 | R62: 0 | S62: 0 | T62: 0 | U62: 0 | V62: 0 | W62: 0 | X62: 0 | Y62: 0 | Z62: 0 | AA62: 0 | AB62: 0 | AC62: 0 | AD62: 0 | AE62: 0 | AF62: 0 | AG62: 0
B63: Soil (Organic) | C63: =IFERROR(C25/CO2_C,0) -> 0 | D63: 0 | E63: 0 | F63: 0 | G63: 0 | H63: 0 | I63: 0 | J63: 0 | K63: 0 | L63: 0 | M63: 0 | N63: 0 | O63: 0 | P63: 0 | Q63: 0 | R63: 0 | S63: 0 | T63: 0 | U63: 0 | V63: 0 | W63: 0 | X63: 0 | Y63: 0 | Z63: 0 | AA63: 0 | AB63: 0 | AC63: 0 | AD63: 0 | AE63: 0 | AF63: 0 | AG63: 0
B64: Drained Organic Soil | C64: =IFERROR(C26/CO2_C,0) -> 0 | D64: 0 | E64: 0 | F64: 0 | G64: 0 | H64: 0 | I64: 0 | J64: 0 | K64: 0 | L64: 0 | M64: 0 | N64: 0 | O64: 0 | P64: 0 | Q64: 0 | R64: 0 | S64: 0 | T64: 0 | U64: 0 | V64: 0 | W64: 0 | X64: 0 | Y64: 0 | Z64: 0 | AA64: 0 | AB64: 0 | AC64: 0 | AD64: 0 | AE64: 0 | AF64: 0 | AG64: 0
B65: Total wood products and landfills | C65: =IFERROR(C27/CO2_C,0) -> 0 | D65: 0 | E65: 0 | F65: 0 | G65: 0 | H65: 0 | I65: 0 | J65: 0 | K65: 0 | L65: 0 | M65: 0 | N65: 0 | O65: 0 | P65: 0 | Q65: 0 | R65: 0 | S65: 0 | T65: 0 | U65: 0 | V65: 0 | W65: 0 | X65: 0 | Y65: 0 | Z65: 0 | AA65: 0 | AB65: 0 | AC65: 0 | AD65: 0 | AE65: 0 | AF65: 0 | AG65: 0
B66: Urban Trees | C66: =IFERROR(C40/CO2_C,0) -> 0 | D66: 0 | E66: 0 | F66: 0 | G66: 0 | H66: 0 | I66: 0 | J66: 0 | K66: 0 | L66: 0 | M66: 0 | N66: 0 | O66: 0 | P66: 0 | Q66: 0 | R66: 0 | S66: 0 | T66: 0 | U66: 0 | V66: 0 | W66: 0 | X66: 0 | Y66: 0 | Z66: 0 | AA66: 0 | AB66: 0 | AC66: 0 | AD66: 0 | AE66: 0 | AF66: 0 | AG66: 0
B67: Landfilled Yard Trimmings and Food Scraps | C67: =IFERROR(C41/CO2_C,0) -> 0 | D67: 0 | E67: 0 | F67: 0 | G67: 0 | H67: 0 | I67: 0 | J67: 0 | K67: 0 | L67: 0 | M67: 0 | N67: 0 | O67: 0 | P67: 0 | Q67: 0 | R67: 0 | S67: 0 | T67: 0 | U67: 0 | V67: 0 | W67: 0 | X67: 0 | Y67: 0 | Z67: 0 | AA67: 0 | AB67: 0 | AC67: 0 | AD67: 0 | AE67: 0 | AF67: 0 | AG67: 0
B68: Grass | C68: =IFERROR(C42/CO2_C,0) -> 0 | D68: 0 | E68: 0 | F68: 0 | G68: 0 | H68: 0 | I68: 0 | J68: 0 | K68: 0 | L68: 0 | M68: 0 | N68: 0 | O68: 0 | P68: 0 | Q68: 0 | R68: 0 | S68: 0 | T68: 0 | U68: 0 | V68: 0 | W68: 0 | X68: 0 | Y68: 0 | Z68: 0 | AA68: 0 | AB68: 0 | AC68: 0 | AD68: 0 | AE68: 0 | AF68: 0 | AG68: 0
B69: Leaves | C69: =IFERROR(C43/CO2_C,0) -> 0 | D69: 0 | E69: 0 | F69: 0 | G69: 0 | H69: 0 | I69: 0 | J69: 0 | K69: 0 | L69: 0 | M69: 0 | N69: 0 | O69: 0 | P69: 0 | Q69: 0 | R69: 0 | S69: 0 | T69: 0 | U69: 0 | V69: 0 | W69: 0 | X69: 0 | Y69: 0 | Z69: 0 | AA69: 0 | AB69: 0 | AC69: 0 | AD69: 0 | AE69: 0 | AF69: 0 | AG69: 0
B70: Branches | C70: =IFERROR(C44/CO2_C,0) -> 0 | D70: 0 | E70: 0 | F70: 0 | G70: 0 | H70: 0 | I70: 0 | J70: 0 | K70: 0 | L70: 0 | M70: 0 | N70: 0 | O70: 0 | P70: 0 | Q70: 0 | R70: 0 | S70: 0 | T70: 0 | U70: 0 | V70: 0 | W70: 0 | X70: 0 | Y70: 0 | Z70: 0 | AA70: 0 | AB70: 0 | AC70: 0 | AD70: 0 | AE70: 0 | AF70: 0 | AG70: 0
B71: Landfilled Food Scraps | C71: =IFERROR(C45/CO2_C,0) -> 0 | D71: 0 | E71: 0 | F71: 0 | G71: 0 | H71: 0 | I71: 0 | J71: 0 | K71: 0 | L71: 0 | M71: 0 | N71: 0 | O71: 0 | P71: 0 | Q71: 0 | R71: 0 | S71: 0 | T71: 0 | U71: 0 | V71: 0 | W71: 0 | X71: 0 | Y71: 0 | Z71: 0 | AA71: 0 | AB71: 0 | AC71: 0 | AD71: 0 | AE71: 0 | AF71: 0 | AG71: 0
B72: Forest Fires | C72: =IFERROR(C46/CO2_C,0) -> 0 | D72: 0 | E72: 0 | F72: 0 | G72: 0 | H72: 0 | I72: 0 | J72: 0 | K72: 0 | L72: 0 | M72: 0 | N72: 0 | O72: 0 | P72: 0 | Q72: 0 | R72: 0 | S72: 0 | T72: 0 | U72: 0 | V72: 0 | W72: 0 | X72: 0 | Y72: 0 | Z72: 0 | AA72: 0 | AB72: 0 | AC72: 0 | AD72: 0 | AE72: 0 | AF72: 0 | AG72: 0
B73: CH4 | C73: =IFERROR(C47/CO2_C,0) -> 0 | D73: 0 | E73: 0 | F73: 0 | G73: 0 | H73: 0 | I73: 0 | J73: 0 | K73: 0 | L73: 0 | M73: 0 | N73: 0 | O73: 0 | P73: 0 | Q73: 0 | R73: 0 | S73: 0 | T73: 0 | U73: 0 | V73: 0 | W73: 0 | X73: 0 | Y73: 0 | Z73: 0 | AA73: 0 | AB73: 0 | AC73: 0 | AD73: 0 | AE73: 0 | AF73: 0 | AG73: 0
B74: N2O | C74: =IFERROR(C48/CO2_C,0) -> 0 | D74: 0 | E74: 0 | F74: 0 | G74: 0 | H74: 0 | I74: 0 | J74: 0 | K74: 0 | L74: 0 | M74: 0 | N74: 0 | O74: 0 | P74: 0 | Q74: 0 | R74: 0 | S74: 0 | T74: 0 | U74: 0 | V74: 0 | W74: 0 | X74: 0 | Y74: 0 | Z74: 0 | AA74: 0 | AB74: 0 | AC74: 0 | AD74: 0 | AE74: 0 | AF74: 0 | AG74: 0
B75: N2O from Settlement Soils | C75: =IFERROR(C49/CO2_C,0) -> 0 | D75: 0 | E75: 0 | F75: 0 | G75: 0 | H75: 0 | I75: 0 | J75: 0 | K75: 0 | L75: 0 | M75: 0 | N75: 0 | O75: 0 | P75: 0 | Q75: 0 | R75: 0 | S75: 0 | T75: 0 | U75: 0 | V75: 0 | W75: 0 | X75: 0 | Y75: 0 | Z75: 0 | AA75: 0 | AB75: 0 | AC75: 0 | AD75: 0 | AE75: 0 | AF75: 0 | AG75: 0
B76: Agricultural Soil Carbon Flux | C76: =IFERROR(C50/CO2_C,0) -> 0 | D76: 0 | E76: 0 | F76: 0 | G76: 0 | H76: 0 | I76: 0 | J76: 0 | K76: 0 | L76: 0 | M76: 0 | N76: 0 | O76: 0 | P76: 0 | Q76: 0 | R76: 0 | S76: 0 | T76: 0 | U76: 0 | V76: 0 | W76: 0 | X76: 0 | Y76: 0 | Z76: 0 | AA76: 0 | AB76: 0 | AC76: 0 | AD76: 0 | AE76: 0 | AF76: 0 | AG76: 0
B77: Total | C77: =C51/CO2_C ->  | D77: =D51/CO2_C -> 
B78: * Note that parentheses indicate net sequestration.
C84: 1 | D84: =IF(D9<=$B$3,C84+1,0) -> 2 | E84: 3 | F84: 4 | G84: 5 | H84: 6 | I84: 7 | J84: 8 | K84: 9 | L84: 10 | M84: 11 | N84: 12 | O84: 13 | P84: 14 | Q84: 15 | R84: 16 | S84: 17 | T84: 18 | U84: 19 | V84: 20 | W84: 21 | X84: 22 | Y84: 23 | Z84: 24 | AA84: 25 | AB84: 26 | AC84: 27 | AD84: 28 | AE84: 29 | AF84: 0 | AG84: 0

Sheet Tracker (hidden)
A1: Sector | B1: Sum | C1: Not included? | D1: Text of missing sector | E1: "and"? | F1: Punctuation | G1: Text used
A2: Forest Carbon Flux | B2: =SUM(Summary!C10:AG10) ->  | C2: =IF(ISERROR(B2),TRUE,IF(B2=0,TRUE,FALSE)) -> TRUE | D2: =IF(C2=TRUE," "&A2,"") -> Forest Carbon Flux | E2: =IF(AND($C$13=A2,$C$12>1)," and","") ->  | F2: =IF(C2=TRUE,IF($C$13=A2,".",","),"") -> , | G2: =E2&D2&F2 -> Forest Carbon Flux,
A3: Settlement Soils | B3: =SUM(Summary!C49:AG49) -> 0 | C3: TRUE | D3: =IF(C3=TRUE," "&A3,"") -> Settlement Soils | F3: , | G3: =E3&D3&F3 -> Settlement Soils,
A4: Urban Trees | B4: =SUM(Summary!C40:AG40) -> 0 | C4: TRUE | D4: Urban Trees | F4: , | G4: Urban Trees,
A5: Landfilled Yard Trimmings and Food Scraps | B5: =SUM(Summary!C41:AG41) -> 0 | C5: TRUE | D5: Landfilled Yard Trimmings and Food Scraps | F5: , | G5: Landfilled Yard Trimmings and Food Scraps,
A6: Forest Fires | B6: =SUM(Summary!C46:AG46) -> 0 | C6: =IF(ISERROR(B6),TRUE,IF(B6=0,TRUE,FALSE)) -> TRUE | D6: Forest Fires | F6: , | G6: Forest Fires,
A7: Biomass | B7: =SUM(Summary!C20:AG20) ->  | C7: TRUE | D7: Biomass | F7: , | G7: Biomass,
A8: Forest floor and coarse woody debris | B8: =SUM(Summary!C21:AG21) ->  | C8: TRUE | D8: Forest floor and coarse woody debris | F8: , | G8: Forest floor and coarse woody debris,
A9: Soils | B9: =SUM(Summary!C22:AG22) ->  | C9: TRUE | D9: Soils | F9: , | G9: Soils,
A10: Wood products and landfills | B10: =SUM(Summary!C23:AG23) ->  | C10: TRUE | D10: Wood products and landfills | F10: , | G10: Wood products and landfills,
A11: Agricultural Soil Carbon Flux | B11: =SUM(Summary!C50:AG50) -> 0 | C11: TRUE | D11: Agricultural Soil Carbon Flux | E11: and | F11: . | G11: and Agricultural Soil Carbon Flux.
B12: Count | C12: =COUNTIF(C2:C11,TRUE) -> 10
B13: Last | C13: =IF(C11=TRUE, A11,IF(C6=TRUE,A6,IF(C2=TRUE,A2,IF(C5=TRUE,A5,IF(C4=TRUE,A4,IF(#REF!=TRUE,#REF!,IF(#REF!=TRUE,#REF!,))))))) -> Agricultural Soil Carbon Flux
A15: Part A | B15: =IF(C12>1,"Emissions were not calculated for the following sectors:","Emissions were not calculated for the following sector:") -> Emissions were not calculated for the following sectors:
A16: Part B | B16: =G2&G3&G4&G5&G6&G11 -> Forest Carbon Flux, Settlement Soils, Urban Trees, Landfilled Yard Trimmings and Food Scraps, Forest Fires, and Agricultural Soil Carbon Flux.
A17: Final | B17: =IF(C12=0,0,B15&B16)&" If you skipped any of these by mistake, please return to the control worksheet and complete each skipped source." -> Emissions were not calculated for the following sectors: Forest Carbon Flux, Settlement Soils, Urban Trees, Landfilled Yard Trimmings and Food Scraps, Forest Fires, and Agricultural Soil Carbon Flux. If you skipped any of these by mistake, please return to the control worksheet and complete each skipped source. | J17: Total

Sheet CFlux data
A1: Older, historical default data for wood products and landfills (USDA Forest Service estimates)
D7: Accounting component | E7: 1987 | F7: 1992 | G7: 1997 | H7: Average Annual Change
H8: 1987-1992 | I8: 1992-1997 | J8: 1987-1997
A9: =B9&C9 -> AlabamaB | B9: Alabama | C9: B | D9: Biomass | E9: 419.6176123 | F9: 439.0843103 | G9: 458.6698538 | H9: 3.893339595 | I9: 3.917108698 | J9: 3.905224146
A10: =B9&C10 -> AlabamaW | C10: W | D10: Wood products and landfills | E10: 166.4848295 | F10: 189.0977993 | G10: 221.2457633 | H10: 4.522593958 | I10: 6.4295928 | J10: 5.476093379
A11: =B11&C11 -> AlaskaB | B11: Alaska | C11: B | D11: Biomass | E11: 2136.856564 | F11: 2129.801045 | G11: 2122.818837 | H11: -1.411103783 | I11: -1.396441624 | J11: -1.403772704
A12: =B11&C12 -> AlaskaW | C12: W | D12: Wood products and landfills | E12: 15.00685408 | F12: 18.13657991 | G12: 20.92803686 | H12: 0.6259451662 | I12: 0.5582913895 | J12: 0.5921182778
A13: =B13&C13 -> ArizonaB | B13: Arizona | C13: B | D13: Biomass | E13: 341.9346737 | F13: 343.5092482 | G13: 344.5030632 | H13: 0.3149149122 | I13: 0.1987629848 | J13: 0.2568389485
A14: =B13&C14 -> ArizonaW | C14: W | D14: Wood products and landfills | E14: 56.51458004 | F14: 61.35433132 | G14: 62.3703461 | H14: 0.9679502558 | I14: 0.2032029561 | J14: 0.585576606
A15: =B15&C15 -> ArkansasB | B15: Arkansas | C15: B | D15: Biomass | E15: 389.2273426 | F15: 418.0526701 | G15: 446.9305932 | H15: 5.765065507 | I15: 5.775584623 | J15: 5.770325065
A16: =B15&C16 -> ArkansasW | C16: W | D16: Wood products and landfills | E16: 135.0494191 | F16: 149.4041118 | G16: 163.3531487 | H16: 2.870938553 | I16: 2.789807366 | J16: 2.83037296
A17: =B17&C17 -> CaliforniaB | B17: California | C17: B | D17: Biomass | E17: 963.4780869 | F17: 988.6756587 | G17: 1014.101224 | H17: 5.039514362 | I17: 5.085113027 | J17: 5.062313694
A18: =B17&C18 -> CaliforniaW | C18: W | D18: Wood products and landfills | E18: 172.0977793 | F18: 191.4903705 | G18: 205.7506407 | H18: 3.878518242 | I18: 2.852054045 | J18: 3.365286143
A19: =B19&C19 -> ColoradoB | B19: Colorado | C19: B | D19: Biomass | E19: 380.6871301 | F19: 386.0202484 | G19: 391.353875 | H19: 1.066623658 | I19: 1.066725327 | J19: 1.066674492
A20: =B19&C20 -> ColoradoW | C20: W | D20: Wood products and landfills | E20: 7.917845274 | F20: 10.11011779 | G20: 10.86836066 | H20: 0.4384545038 | I20: 0.1516485736 | J20: 0.2950515387
A21: =B21&C21 -> ConnecticutB | B21: Connecticut | C21: B | D21: Biomass | E21: 48.98204764 | F21: 49.79544235 | G21: 50.62387359 | H21: 0.1626789406 | I21: 0.1656862481 | J21: 0.1641825944
A22: =B21&C22 -> ConnecticutW | C22: W | D22: Wood products and landfills | E22: 6.192293684 | F22: 6.832037228 | G22: 6.697966742 | H22: 0.1279487088 | I22: -0.02681409707 | J22: 0.05056730585
A23: =B23&C23 -> DelawareB | B23: Delaware | C23: B | D23: Biomass | E23: 11.88519675 | F23: 12.36772845 | G23: 12.87564315 | H23: 0.09650634068 | I23: 0.1015829412 | J23: 0.09904464092
A24: =B23&C24 -> DelawareW | C24: W | D24: Wood products and landfills | E24: 2.143811711 | F24: 2.140927526 | G24: 2.27010497 | H24: -0.0005768370275 | I24: 0.02583548878 | J24: 0.01262932588
A25: =B25&C25 -> District of ColumbiaB | B25: District of Columbia | C25: B | D25: Biomass
A26: =B25&C26 -> District of ColumbiaW | C26: W | D26: Wood products and landfills
A27: =B27&C27 -> FloridaB | B27: Florida | C27: B | D27: Biomass | E27: 239.6948147 | F27: 245.6355762 | G27: 251.4834925 | H27: 1.188152301 | I27: 1.169583253 | J27: 1.178867777
A28: =B27&C28 -> FloridaW | C28: W | D28: Wood products and landfills | E28: 70.87950417 | F28: 82.11952386 | G28: 92.27874123 | H28: 2.248003939 | I28: 2.031843473 | J28: 2.139923706
A29: =B29&C29 -> GeorgiaB | B29: Georgia | C29: B | D29: Biomass | E29: 504.87936 | F29: 519.3961011 | G29: 533.9558127 | H29: 2.903348223 | I29: 2.911942319 | J29: 2.907645271
A30: =B29&C30 -> GeorgiaW | C30: W | D30: Wood products and landfills | E30: 194.1425388 | F30: 215.7866945 | G30: 242.3549674 | H30: 4.328831141 | I30: 5.313654563 | J30: 4.821242852
A31: =B31&C31 -> HawaiiB | B31: Hawaii | C31: B | D31: Biomass | E31: 4.598050172 | F31: 4.59804114 | G31: 4.598032108 | H31: -1.806456273e-06 | I31: -1.806456273e-06 | J31: -1.806456273e-06
A32: =B31&C32 -> HawaiiW | C32: W | D32: Wood products and landfills | E32: 0 | F32: 0 | G32: 0 | H32: 0 | I32: 0 | J32: 0
A33: =B33&C33 -> IdahoB | B33: Idaho | C33: B | D33: Biomass | E33: 574.6123807 | F33: 592.3645636 | G33: 610.1203008 | H33: 3.550436566 | I33: 3.551147443 | J33: 3.550792004
A34: =B33&C34 -> IdahoW | C34: W | D34: Wood products and landfills | E34: 95.72941023 | F34: 104.82985 | G34: 110.6466933 | H34: 1.820087957 | I34: 1.163368662 | J34: 1.49172831
A35: =B35&C35 -> IllinoisB | B35: Illinois | C35: B | D35: Biomass | E35: 115.0661744 | F35: 115.0688045 | G35: 115.0714346 | H35: 0.0005260183303 | I35: 0.0005260183303 | J35: 0.0005260183303
A36: =B35&C36 -> IllinoisW | C36: W | D36: Wood products and landfills | E36: 21.03053473 | F36: 22.48412059 | G36: 24.29402522 | H36: 0.2907171717 | I36: 0.3619809251 | J36: 0.3263490484
A37: =B37&C37 -> IndianaB | B37: Indiana | C37: B | D37: Biomass | E37: 119.6983444 | F37: 139.0196799 | G37: 158.3747113 | H37: 3.8642671 | I37: 3.871006266 | J37: 3.867636683
A38: =B37&C38 -> IndianaW | C38: W | D38: Wood products and landfills | E38: 15.60313524 | F38: 17.57079735 | G38: 19.58672049 | H38: 0.3935324212 | I38: 0.4031846281 | J38: 0.3983585246
A39: =B39&C39 -> IowaB | B39: Iowa | C39: B | D39: Biomass | E39: 30.45911365 | F39: 35.4302156 | G39: 40.39574793 | H39: 0.9942203909 | I39: 0.9931064644 | J39: 0.9936634277
A40: =B39&C40 -> IowaW | C40: W | D40: Wood products and landfills | E40: 21.76257332 | F40: 21.95020328 | G40: 22.19469846 | H40: 0.03752599288 | I40: 0.04889903596 | J40: 0.04321251442
A41: =B41&C41 -> KansasB | B41: Kansas | C41: B | D41: Biomass | E41: 20.75223802 | F41: 24.5777624 | G41: 28.43228115 | H41: 0.7651048753 | I41: 0.7709037506 | J41: 0.7680043129
A42: =B41&C42 -> KansasW | C42: W | D42: Wood products and landfills | E42: 18.47801376 | F42: 19.65922123 | G42: 19.28612007 | H42: 0.2362414946 | I42: -0.07462023161 | J42: 0.08081063148
A43: =B43&C43 -> KentuckyB | B43: Kentucky | C43: B | D43: Biomass | E43: 369.5959135 | F43: 386.9810643 | G43: 404.3867228 | H43: 3.477030153 | I43: 3.481131702 | J43: 3.479080927
A44: =B43&C44 -> KentuckyW | C44: W | D44: Wood products and landfills | E44: 28.35306522 | F44: 29.79710901 | G44: 35.57626092 | H44: 0.2888087576 | I44: 1.155830382 | J44: 0.7223195698
A45: =B45&C45 -> LouisianaB | B45: Louisiana | C45: B | D45: Biomass | E45: 347.5621123 | F45: 352.2334542 | G45: 356.9043274 | H45: 0.9342683628 | I45: 0.9341746578 | J45: 0.9342215103
A46: =B45&C46 -> LouisianaW | C46: W | D46: Wood products and landfills | E46: 110.3746533 | F46: 125.1845788 | G46: 139.0324262 | H46: 2.961985097 | I46: 2.769569488 | J46: 2.865777292
A47: =B47&C47 -> MaineB | B47: Maine | C47: B | D47: Biomass | E47: 319.1398492 | F47: 316.7504441 | G47: 314.3791842 | H47: -0.4778810098 | I47: -0.4742519925 | J47: -0.4760665011
A48: =B47&C48 -> MaineW | C48: W | D48: Wood products and landfills | E48: 68.92868174 | F48: 76.687989 | G48: 83.98314153 | H48: 1.551861452 | I48: 1.459030507 | J48: 1.505445979
A49: =B49&C49 -> MarylandB | B49: Maryland | C49: B | D49: Biomass | E49: 88.04465184 | F49: 90.41789846 | G49: 92.79443502 | H49: 0.4746493245 | I49: 0.4753073107 | J49: 0.4749783176
A50: =B49&C50 -> MarylandW | C50: W | D50: Wood products and landfills | E50: 26.51800475 | F50: 27.40500041 | G50: 28.39337243 | H50: 0.1773991331 | I50: 0.1976744023 | J50: 0.1875367677
A51: =B51&C51 -> MassachusettsB | B51: Massachusetts | C51: B | D51: Biomass | E51: 79.23813548 | F51: 83.58455466 | G51: 87.95178158 | H51: 0.8692838367 | I51: 0.8734453842 | J51: 0.8713646104
A52: =B51&C52 -> MassachusettsW | C52: W | D52: Wood products and landfills | E52: 2.712991282 | F52: 3.473459769 | G52: 4.37313947 | H52: 0.1520936974 | I52: 0.1799359401 | J52: 0.1660148188
A53: =B53&C53 -> MichiganB | B53: Michigan | C53: B | D53: Biomass | E53: 382.2163803 | F53: 436.0273862 | G53: 489.9226141 | H53: 10.76220119 | I53: 10.77904557 | J53: 10.77062338
A54: =B53&C54 -> MichiganW | C54: W | D54: Wood products and landfills | E54: 51.46811007 | F54: 59.3911871 | G54: 65.87859899 | H54: 1.584615406 | I54: 1.297482378 | J54: 1.441048892
A55: =B55&C55 -> MinnesotaB | B55: Minnesota | C55: B | D55: Biomass | E55: 268.7725924 | F55: 276.0278341 | G55: 283.2836805 | H55: 1.451048326 | I55: 1.451169293 | J55: 1.451108809
A56: =B55&C56 -> MinnesotaW | C56: W | D56: Wood products and landfills | E56: 32.02074083 | F56: 37.19216408 | G56: 42.72529042 | H56: 1.03428465 | I56: 1.106625269 | J56: 1.070454959
A57: =B57&C57 -> MississippiB | B57: Mississippi | C57: B | D57: Biomass | E57: 383.0996675 | F57: 397.479267 | G57: 411.804141 | H57: 2.875919896 | I57: 2.864974798 | J57: 2.870447347
A58: =B57&C58 -> MississippiW | C58: W | D58: Wood products and landfills | E58: 154.2411053 | F58: 173.5020599 | G58: 197.7452214 | H58: 3.852190935 | I58: 4.848632293 | J58: 4.350411614
A59: =B59&C59 -> MissouriB | B59: Missouri | C59: B | D59: Biomass | E59: 190.4644441 | F59: 203.5200251 | G59: 216.6295995 | H59: 2.611116206 | I59: 2.621914869 | J59: 2.616515537
A60: =B59&C60 -> MissouriW | C60: W | D60: Wood products and landfills | E60: 38.14700373 | F60: 40.43365519 | G60: 43.53251447 | H60: 0.4573302917 | I60: 0.6197718567 | J60: 0.5385510742
A61: =B61&C61 -> MontanaB | B61: Montana | C61: B | D61: Biomass | E61: 542.9986876 | F61: 554.3876327 | G61: 565.7601398 | H61: 2.27778901 | I61: 2.274501426 | J61: 2.276145218
A62: =B61&C62 -> MontanaW | C62: W | D62: Wood products and landfills | E62: 95.28833315 | F62: 128.6420629 | G62: 131.4656679 | H62: 6.670745953 | I62: 0.5647209904 | J62: 3.617733471
A63: =B63&C63 -> NebraskaB | B63: Nebraska | C63: B | D63: Biomass | E63: 12.7428943 | F63: 15.66828524 | G63: 18.59432193 | H63: 0.5850781871 | I63: 0.5852073397 | J63: 0.5851427634
A64: =B63&C64 -> NebraskaW | C64: W | D64: Wood products and landfills | E64: 8.589189719 | F64: 9.177901626 | G64: 9.383935726 | H64: 0.1177423814 | I64: 0.04120681999 | J64: 0.07947460068
A65: =B65&C65 -> NevadaB | B65: Nevada | C65: B | D65: Biomass | E65: 148.2095625 | F65: 157.0603259 | G65: 165.9210597 | H65: 1.770152671 | I65: 1.772146774 | J65: 1.771149722
A66: =B65&C66 -> NevadaW | C66: W | D66: Wood products and landfills | E66: 0.08352072705 | F66: 0.1037174402 | G66: 0.1753878143 | H66: 0.004039342626 | I66: 0.01433407483 | J66: 0.009186708727
A67: =B67&C67 -> New HampshireB | B67: New Hampshire | C67: B | D67: Biomass | E67: 127.945191 | F67: 140.741283 | G67: 153.5531448 | H67: 2.559218387 | I67: 2.562372368 | J67: 2.560795377
A68: =B67&C68 -> New HampshireW | C68: W | D68: Wood products and landfills | E68: 12.58102953 | F68: 14.11883343 | G68: 17.00020071 | H68: 0.3075607806 | I68: 0.5762734548 | J68: 0.4419171177
A69: =B69&C69 -> New JerseyB | B69: New Jersey | C69: B | D69: Biomass | E69: 35.16907844 | F69: 40.77897954 | G69: 46.47150655 | H69: 1.121980221 | I69: 1.138505401 | J69: 1.130242811
A70: =B69&C70 -> New JerseyW | C70: W | D70: Wood products and landfills | E70: 6.415494308 | F70: 7.195955387 | G70: 7.507801195 | H70: 0.1560922158 | I70: 0.06236916142 | J70: 0.1092306886
A71: =B71&C71 -> New MexicoB | B71: New Mexico | C71: B | D71: Biomass | E71: 206.8985912 | F71: 198.372106 | G71: 189.9402385 | H71: -1.705297047 | I71: -1.686373483 | J71: -1.695835265
A72: =B71&C72 -> New MexicoW | C72: W | D72: Wood products and landfills | E72: 29.30419596 | F72: 30.29196708 | G72: 27.22981572 | H72: 0.1975542233 | I72: -0.6124302716 | J72: -0.2074380242
A73: =B73&C73 -> New YorkB | B73: New York | C73: B | D73: Biomass | E73: 394.5423766 | F73: 412.5751096 | G73: 430.6750595 | H73: 3.606546589 | I73: 3.619989991 | J73: 3.61326829
A74: =B73&C74 -> New YorkW | C74: W | D74: Wood products and landfills | E74: 37.0658251 | F74: 42.42612024 | G74: 44.72080191 | H74: 1.072059028 | I74: 0.4589363339 | J74: 0.7654976808
A75: =B75&C75 -> North CarolinaB | B75: North Carolina | C75: B | D75: Biomass | E75: 557.6656536 | F75: 567.0258635 | G75: 576.3721114 | H75: 1.872041964 | I75: 1.869249592 | J75: 1.870645778
A76: =B75&C76 -> North CarolinaW | C76: W | D76: Wood products and landfills | E76: 126.3287983 | F76: 143.0711232 | G76: 160.7460145 | H76: 3.348464973 | I76: 3.534978278 | J76: 3.441721626
A77: =B77&C77 -> North DakotaB | B77: North Dakota | C77: B | D77: Biomass | E77: 6.057804227 | F77: 7.691013942 | G77: 9.299661882 | H77: 0.3266419432 | I77: 0.321729588 | J77: 0.3241857656
A78: =B77&C78 -> North DakotaW | C78: W | D78: Wood products and landfills | E78: 4.202264985 | F78: 4.207083789 | G78: 4.124200389 | H78: 0.0009637608427 | I78: -0.01657667987 | J78: -0.007806459514
A79: =B79&C79 -> OhioB | B79: Ohio | C79: B | D79: Biomass | E79: 160.4387408 | F79: 188.4768465 | G79: 216.6012139 | H79: 5.607621141 | I79: 5.62487347 | J79: 5.616247306
A80: =B79&C80 -> OhioW | C80: W | D80: Wood products and landfills | E80: 20.90011337 | F80: 23.23104272 | G80: 24.91822942 | H80: 0.4661858705 | I80: 0.3374373401 | J80: 0.4018116053
A81: =B81&C81 -> OklahomaB | B81: Oklahoma | C81: B | D81: Biomass | E81: 56.053503 | F81: 72.22416964 | G81: 88.42085541 | H81: 3.234133328 | I81: 3.239337155 | J81: 3.236735242
A82: =B81&C82 -> OklahomaW | C82: W | D82: Wood products and landfills | E82: 16.73451122 | F82: 19.0280934 | G82: 22.3364701 | H82: 0.4587164353 | I82: 0.6616753414 | J82: 0.5601958883
A83: =B83&C83 -> OregonB | B83: Oregon | C83: B | D83: Biomass | E83: 925.8715103 | F83: 957.9025629 | G83: 989.9349242 | H83: 6.406210527 | I83: 6.406472261 | J83: 6.406341394
A84: =B83&C84 -> OregonW | C84: W | D84: Wood products and landfills | E84: 295.3820833 | F84: 313.7305005 | G84: 317.0263677 | H84: 3.66968343 | I84: 0.659173447 | J84: 2.164428439
A85: =B85&C85 -> PennsylvaniaB | B85: Pennsylvania | C85: B | D85: Biomass | E85: 468.4417971 | F85: 470.303558 | G85: 472.3043152 | H85: 0.3723521875 | I85: 0.4001514252 | J85: 0.3862518063
A86: =B85&C86 -> PennsylvaniaW | C86: W | D86: Wood products and landfills | E86: 37.20470076 | F86: 42.16202682 | G86: 45.35726597 | H86: 0.9914652123 | I86: 0.6390478296 | J86: 0.815256521
A87: =B87&C87 -> Rhode IslandB | B87: Rhode Island | C87: B | D87: Biomass | E87: 8.40154164 | F87: 8.437133474 | G87: 8.485827353 | H87: 0.007118366836 | I87: 0.009738775672 | J87: 0.008428571254
A88: =B87&C88 -> Rhode IslandW | C88: W | D88: Wood products and landfills | E88: 1.247047352 | F88: 1.317333272 | G88: 1.344688259 | H88: 0.01405718393 | I88: 0.00547099733 | J88: 0.009764090631
A89: =B89&C89 -> South CarolinaB | B89: South Carolina | C89: B | D89: Biomass | E89: 284.3674275 | F89: 279.7873103 | G89: 275.1704903 | H89: -0.9160234219 | I89: -0.9233640017 | J89: -0.9196937118
A90: =B89&C90 -> South CarolinaW | C90: W | D90: Wood products and landfills | E90: 86.07905721 | F90: 97.86807544 | G90: 110.2188036 | H90: 2.357803647 | I90: 2.470145637 | J90: 2.413974642
A91: =B91&C91 -> South DakotaB | B91: South Dakota | C91: B | D91: Biomass | E91: 33.34911023 | F91: 30.61277508 | G91: 27.86269231 | H91: -0.5472670306 | I91: -0.5500165539 | J91: -0.5486417923
A92: =B91&C92 -> South DakotaW | C92: W | D92: Wood products and landfills | E92: 5.535986625 | F92: 6.408870553 | G92: 6.619775513 | H92: 0.1745767857 | I92: 0.04218099204 | J92: 0.1083788889
A93: =B93&C93 -> TennesseeB | B93: Tennessee | C93: B | D93: Biomass | E93: 343.8640072 | F93: 373.2877616 | G93: 402.7921209 | H93: 5.884750893 | I93: 5.900871853 | J93: 5.892811373
A94: =B93&C94 -> TennesseeW | C94: W | D94: Wood products and landfills | E94: 72.89025338 | F94: 81.32519783 | G94: 89.61804935 | H94: 1.68698889 | I94: 1.658570305 | J94: 1.672779597
A95: =B95&C95 -> TexasB | B95: Texas | C95: B | D95: Biomass | E95: 324.8602556 | F95: 315.9737389 | G95: 307.1328183 | H95: -1.777303349 | I95: -1.768184112 | J95: -1.772743731
A96: =B95&C96 -> TexasW | C96: W | D96: Wood products and landfills | E96: 79.1202565 | F96: 84.77221532 | G96: 101.4641124 | H96: 1.130391764 | I96: 3.338379419 | J96: 2.234385591
A97: =B97&C97 -> UtahB | B97: Utah | C97: B | D97: Biomass | E97: 247.089317 | F97: 248.2696356 | G97: 249.5436374 | H97: 0.236063724 | I97: 0.2548003656 | J97: 0.2454320448
A98: =B97&C98 -> UtahW | C98: W | D98: Wood products and landfills | E98: 6.17781875 | F98: 6.799807046 | G98: 7.111888799 | H98: 0.1243976591 | I98: 0.06241635068 | J98: 0.09340700489
A99: =B99&C99 -> VermontB | B99: Vermont | C99: B | D99: Biomass | E99: 100.864978 | F99: 122.1058121 | G99: 143.4442863 | H99: 4.248166818 | I99: 4.267694844 | J99: 4.257930831
A100: =B99&C100 -> VermontW | C100: W | D100: Wood products and landfills | E100: 12.43900981 | F100: 13.89681241 | G100: 15.40991987 | H100: 0.2915605212 | I100: 0.3026214925 | J100: 0.2970910069
A101: =B101&C101 -> VirginiaB | B101: Virginia | C101: B | D101: Biomass | E101: 472.3152956 | F101: 487.9849061 | G101: 503.7293439 | H101: 3.13392209 | I101: 3.148887567 | J101: 3.141404828
A102: =B101&C102 -> VirginiaW | C102: W | D102: Wood products and landfills | E102: 86.71002721 | F102: 96.46785329 | G102: 106.6855053 | H102: 1.951565215 | I102: 2.043530402 | J102: 1.997547808
A103: =B103&C103 -> WashingtonB | B103: Washington | C103: B | D103: Biomass | E103: 860.3134488 | F103: 842.7159284 | G103: 825.1523707 | H103: -3.519504066 | I103: -3.51271154 | J103: -3.516107803
A104: =B103&C104 -> WashingtonW | C104: W | D104: Wood products and landfills | E104: 209.8474301 | F104: 227.6730589 | G104: 237.0590291 | H104: 3.565125762 | I104: 1.877194054 | J104: 2.721159908
A105: =B105&C105 -> West VirginiaB | B105: West Virginia | C105: B | D105: Biomass | E105: 297.6323742 | F105: 340.9464944 | G105: 384.2717036 | H105: 8.662824034 | I105: 8.665041839 | J105: 8.663932937
A106: =B105&C106 -> West VirginiaW | C106: W | D106: Wood products and landfills | E106: 22.32398053 | F106: 22.76843094 | G106: 25.50809452 | H106: 0.08889008217 | I106: 0.5479327146 | J106: 0.3184113984
A107: =B107&C107 -> WisconsinB | B107: Wisconsin | C107: B | D107: Biomass | E107: 302.2335106 | F107: 321.7330104 | G107: 341.2359385 | H107: 3.89989997 | I107: 3.900585611 | J107: 3.900242791
A108: =B107&C108 -> WisconsinW | C108: W | D108: Wood products and landfills | E108: 51.48228737 | F108: 59.14183844 | G108: 66.32135811 | H108: 1.531910214 | I108: 1.435903934 | J108: 1.483907074
A109: =B109&C109 -> WyomingB | B109: Wyoming | C109: B | D109: Biomass | E109: 184.2861789 | F109: 193.6935939 | G109: 203.0923072 | H109: 1.881483006 | I109: 1.879742656 | J109: 1.880612831
A110: =B109&C110 -> WyomingW | C110: W | D110: Wood products and landfills | E110: 83.8371105 | F110: 93.86259097 | G110: 75.66277761 | H110: 2.005096092 | I110: -3.639962671 | J110: -0.8174332894

Sheet Ag Soil CFlux data
A1: Δ Soil C Stock (MMT C)
C2: 1990 | D2: 1991 | E2: 1992 | F2: 1993 | G2: 1994 | H2: 1995 | I2: 1996 | J2: 1997 | K2: 1998 | L2: 1999 | M2: 2000 | N2: 2001 | O2: 2002 | P2: 2003 | Q2: 2004 | R2: 2005 | S2: 2006 | T2: 2007 | U2: 2008 | V2: 2009 | W2: 2010 | X2: 2011 | Y2: 2012 | Z2: 2013 | AA2: 2014 | AB2: 2015 | AC2: 2016 | AD2: 2017 | AE2: 2018 | AF2: 2019 | AG2: 2020
A3: AL | B3: Alabama | C3: 0.4196569784 | D3: 0.4780090385 | E3: 0.4076051503 | F3: 0.2565951807 | G3: 0.5632699139 | H3: 0.3635841815 | I3: 0.6113542824 | J3: 0.4510866019 | K3: 0.5303899062 | L3: 0.6226560129 | M3: 0.9100294003 | N3: 0.8533030296 | O3: 0.957240964 | P3: 0.8831859135 | Q3: 0.8483737739 | R3: 0.8651553573 | S3: 0.9976696404 | T3: 0.8633851332 | U3: 0.8112559415 | V3: 0.6861632809 | W3: 0.5411722598 | X3: 0.7559083931 | Y3: 0.833407864 | Z3: 0.502246245 | AA3: 0.3435419709 | AB3: 0.3954611358 | AC3: 0.5977998814 | AD3: 0.576159681 | AE3: 0.5048684799 | AF3: =AE3 -> 0.5048684799 | AG3: =AF3 -> 0.5048684799
A4: AK | B4: Alaska | AF4: =AE4 -> 
A5: AZ | B5: Arizona | C5: 0.0335215585 | D5: 0.03818263194 | E5: 0.03255887687 | F5: 0.02049643114 | G5: 0.04499314044 | H5: 0.02904254912 | I5: 0.04883404637 | J5: 0.03603210882 | K5: 0.04236673565 | L5: 0.04973681134 | M5: 0.07269175862 | N5: 0.06816054277 | O5: 0.07646294622 | P5: 0.07054754189 | Q5: 0.06776680135 | R5: 0.0691072886 | S5: 0.07969232715 | T5: 0.06896588581 | U5: 0.06480188559 | V5: 0.05480967491 | W5: 0.04322801359 | X5: 0.06038080795 | Y5: 0.06657134732 | Z5: 0.04011866298 | AA5: 0.02744160794 | AB5: 0.03158883154 | AC5: 0.04775134152 | AD5: 0.04602275536 | AE5: 0.04032812309 | AF5: 0.04032812309 | AG5: 0.04032812309
A6: AR | B6: Arkansas | C6: 0.4135680523 | D6: 0.4710734653 | E6: 0.4016910877 | F6: 0.2528721661 | G6: 0.5550972656 | H6: 0.358308832 | I6: 0.602483964 | J6: 0.4445416542 | K6: 0.5226943237 | L6: 0.6136217144 | M6: 0.8968255171 | N6: 0.840922206 | O6: 0.9433520744 | P6: 0.8703715103 | Q6: 0.8360644702 | R6: 0.8526025648 | S6: 0.9831941593 | T6: 0.8508580254 | U6: 0.7994851913 | V6: 0.6762075368 | W6: 0.5333202329 | X6: 0.7449406967 | Y6: 0.8213157051 | Z6: 0.4949590071 | AA6: 0.3385574197 | AB6: 0.3897232743 | AC6: 0.5891262278 | AD6: 0.5678000114 | AE6: 0.4975431952 | AF6: 0.4975431952 | AG6: 0.4975431952
A7: CA | B7: California | C7: 0.9445865168 | D7: 1.075928475 | E7: 0.9174596133 | F7: 0.5775582451 | G7: 1.267838242 | H7: 0.8183748471 | I7: 1.376069128 | J7: 1.015330005 | K7: 1.193830151 | L7: 1.401507671 | M7: 2.04834316 | N7: 1.920660392 | O7: 2.154609489 | P7: 1.987922395 | Q7: 1.909565358 | R7: 1.947338249 | S7: 2.24560853 | T7: 1.943353733 | U7: 1.826018542 | V7: 1.544453248 | W7: 1.218099653 | X7: 1.701439301 | Y7: 1.875879282 | Z7: 1.130482884 | AA7: 0.7732627606 | AB7: 0.8901252118 | AC7: 1.345560152 | AD7: 1.296851224 | AE7: 1.136385151 | AF7: 1.136385151 | AG7: 1.136385151
A8: CO | B8: Colorado | C8: 0.6583683393 | D8: 0.7499125073 | E8: 0.6394611306 | F8: 0.4025529223 | G8: 0.883671896 | H8: 0.5703999363 | I8: 0.9591078533 | J8: 0.7076759169 | K8: 0.8320889196 | L8: 0.9768382901 | M8: 1.427676831 | N8: 1.338683085 | O8: 1.50174351 | P8: 1.385564099 | Q8: 1.330949946 | R8: 1.357277313 | S8: 1.565169026 | T8: 1.354500141 | U8: 1.272718564 | V8: 1.076470077 | W8: 0.8490045449 | X8: 1.185887949 | Y8: 1.307471053 | Z8: 0.7879364416 | AA8: 0.5389572162 | AB8: 0.6204092977 | AC8: 0.9378433708 | AD8: 0.9038936844 | AE8: 0.7920502691 | AF8: 0.7920502691 | AG8: 0.7920502691
A9: CT | B9: Connecticut | C9: 0.03063961208 | D9: 0.03489995941 | E9: 0.02975969501 | F9: 0.01873429302 | G9: 0.04112494858 | H9: 0.02654567624 | I9: 0.04463564059 | J9: 0.03293432305 | K9: 0.03872434349 | L9: 0.04546079222 | M9: 0.06644223556 | N9: 0.06230058158 | O9: 0.06988920313 | P9: 0.06448236341 | Q9: 0.06194069126 | R9: 0.06316593291 | S9: 0.07284094473 | T9: 0.06303668692 | U9: 0.05923067798 | V9: 0.05009752687 | W9: 0.03951157484 | X9: 0.05518969331 | Y9: 0.06084801391 | Z9: 0.0366695442 | AA9: 0.02508237266 | AB9: 0.02887304732 | AC9: 0.04364601904 | AD9: 0.04206604449 | AE9: 0.03686099642 | AF9: 0.03686099642 | AG9: 0.03686099642
A10: DE | B10: Delaware | C10: 0.01998441931 | D10: 0.02276319364 | E10: 0.01941050109 | F10: 0.01221927896 | G10: 0.02682338844 | H10: 0.01731418542 | I10: 0.02911320664 | J10: 0.02148112449 | K10: 0.02525761474 | L10: 0.02965140458 | M10: 0.0433363677 | N10: 0.04063501007 | O10: 0.04558462218 | P10: 0.04205805821 | Q10: 0.04040027476 | R10: 0.04119942792 | S10: 0.04750986986 | T10: 0.04111512835 | U10: 0.03863269227 | V10: 0.03267567425 | W10: 0.02577107951 | X10: 0.03599699532 | Y10: 0.0396875855 | Z10: 0.02391738986 | AA10: 0.01635975845 | AB10: 0.01883219288 | AC10: 0.02846773463 | AD10: 0.02743721003 | AE10: 0.02404226289 | AF10: 0.02404226289 | AG10: 0.02404226289
A11: DC | B11: District of Columbia
A12: FL | B12: Florida | C12: -3.64128913 | D12: -4.147599601 | E12: -3.536717556 | F12: -2.226430849 | G12: -4.887393086 | H12: -3.154755422 | I12: -5.304612619 | J12: -3.913998396 | K12: -4.602099095 | L12: -5.402675729 | M12: -7.896163615 | N12: -7.403958963 | O12: -8.305809975 | P12: -7.663247443 | Q12: -7.361188686 | R12: -7.506799507 | S12: -8.656602426 | T12: -7.491439587 | U12: -7.039123841 | V12: -5.953717023 | W12: -4.695655663 | X12: -6.558882985 | Y12: -7.231332141 | Z12: -4.357901541 | AA12: -2.980852717 | AB12: -3.431346098 | AC12: -5.187003487 | AD12: -4.999235309 | AE12: -4.380654207 | AF12: -4.380654207 | AG12: -4.380654207
A13: GA | B13: Georgia | C13: 0.06110251098 | D13: 0.06959863419 | E13: 0.05934775174 | F13: 0.03736053648 | G13: 0.08201271007 | H13: 0.05293825096 | I13: 0.08901384625 | J13: 0.06567869823 | K13: 0.07722534531 | L13: 0.09065939047 | M13: 0.1325012672 | N13: 0.1242418461 | O13: 0.139375322 | P13: 0.1285928264 | Q13: 0.1235241411 | R13: 0.1259675579 | S13: 0.1452617812 | T13: 0.1257098113 | U13: 0.1181197445 | V13: 0.09990611752 | W13: 0.07879526768 | X13: 0.1100610815 | Y13: 0.1213450884 | Z13: 0.07312759773 | AA13: 0.05002008337 | AB13: 0.05757957007 | AC13: 0.08704031078 | AD13: 0.08388947414 | AE13: 0.07350939797 | AF13: 0.07350939797 | AG13: 0.07350939797
A14: HI | B14: Hawaii | C14: -0.2493700234 | D14: -0.2840441867 | E14: -0.2422085444 | F14: -0.1524748772 | G14: -0.3347081994 | H14: -0.2160502518 | I14: -0.3632810595 | J14: -0.2680462432 | K14: -0.3151701274 | L14: -0.369996813 | M14: -0.5407608227 | N14: -0.5070526822 | O14: -0.5688150416 | P14: -0.524809793 | Q14: -0.5041236028 | R14: -0.5140956134 | S14: -0.5928387098 | T14: -0.5130437047 | U14: -0.4820673158 | V14: -0.4077343217 | W14: -0.3215772549 | X14: -0.4491785039 | Y14: -0.4952305079 | Z14: -0.2984465036 | AA14: -0.2041407 | AB14: -0.234992286 | AC14: -0.3552267164 | AD14: -0.3423676016 | AE14: -0.300004697 | AF14: -0.300004697 | AG14: -0.300004697
A15: ID | B15: Idaho | C15: 0.6931166813 | D15: 0.7894925034 | E15: 0.6732115599 | F15: 0.4237994583 | G15: 0.9303116438 | H15: 0.6005053513 | I15: 1.009729072 | J15: 0.7450266875 | K15: 0.8760061444 | L15: 1.028395312 | M15: 1.503028879 | N15: 1.409338089 | O15: 1.58100476 | P15: 1.458693459 | Q15: 1.401196799 | R15: 1.42891371 | S15: 1.647777842 | T15: 1.425989961 | U15: 1.339891995 | V15: 1.133285613 | W15: 0.8938145677 | X15: 1.248478505 | Y15: 1.376478702 | Z15: 0.8295233214 | AA15: 0.5674031006 | AB15: 0.653154181 | AC15: 0.9873422611 | AD15: 0.9516007278 | AE15: 0.8338542746 | AF15: 0.8338542746 | AG15: 0.8338542746
A16: IL | B16: Illinois | C16: 2.079731355 | D16: 2.368911841 | E16: 2.02000504 | F16: 1.271631524 | G16: 2.791446733 | H16: 1.801846416 | I16: 3.029742708 | J16: 2.235489931 | K16: 2.628500359 | L16: 3.085751697 | M16: 4.509913513 | N16: 4.2287896 | O16: 4.743884052 | P16: 4.376882862 | Q16: 4.20436125 | R16: 4.287527233 | S16: 4.944240034 | T16: 4.278754377 | U16: 4.020413112 | V16: 3.400480305 | W16: 2.681935426 | X16: 3.746122351 | Y16: 4.130193361 | Z16: 2.489026318 | AA16: 1.702521453 | AB16: 1.959821869 | AC16: 2.962569959 | AD16: 2.855325696 | AE16: 2.50202156 | AF16: 2.50202156 | AG16: 2.50202156
A17: IN | B17: Indiana | C17: 0.0009645460969 | D17: 0.001098663375 | E17: 0.0009368459885 | F17: 0.0005897623364 | G17: 0.001294628291 | H17: 0.0008356675122 | I17: 0.001405146149 | J17: 0.00103678443 | K17: 0.001219056373 | L17: 0.001431122221 | M17: 0.002091625664 | N17: 0.001961244896 | O17: 0.002200137453 | P17: 0.002029928178 | Q17: 0.001949915418 | R17: 0.001988486469 | S17: 0.002293059349 | T17: 0.001984417759 | U17: 0.001864603217 | V17: 0.001577088309 | W17: 0.001243838701 | X17: 0.001737391555 | Y17: 0.001915517539 | Z17: 0.001154370546 | AA17: 0.0007896021851 | AB17: 0.0009089339977 | AC17: 0.001373992504 | AD17: 0.001324254332 | AE17: 0.001160397531 | AF17: 0.001160397531 | AG17: 0.001160397531
A18: IA | B18: Iowa | C18: 1.507780846 | D18: 1.717433308 | E18: 1.464479968 | F18: 0.921917944 | G18: 2.023766149 | H18: 1.306317523 | I18: 2.196527937 | J18: 1.620703987 | K18: 1.905631939 | L18: 2.237133798 | M18: 3.269634415 | N18: 3.065822875 | O18: 3.439260312 | P18: 3.173188753 | Q18: 3.048112607 | R18: 3.10840697 | S18: 3.58451605 | T18: 3.102046752 | U18: 2.914752364 | V18: 2.465308348 | W18: 1.944371736 | X18: 2.715894778 | Y18: 2.994341757 | Z18: 1.804514895 | AA18: 1.23430809 | AB18: 1.420847875 | AC18: 2.147828482 | AD18: 2.070077649 | AE18: 1.813936293 | AF18: 1.813936293 | AG18: 1.813936293
A19: KS | B19: Kansas | C19: 0.6268993611 | D19: 0.7140678608 | E19: 0.6088958874 | F19: 0.3833115214 | G19: 0.8414337597 | H19: 0.5431357103 | I19: 0.913263996 | J19: 0.6738501135 | K19: 0.792316369 | L19: 0.9301469457 | M19: 1.359436109 | N19: 1.274696125 | O19: 1.429962516 | P19: 1.319336299 | Q19: 1.267332617 | R19: 1.292401577 | S19: 1.490356392 | T19: 1.28975715 | U19: 1.211884605 | V19: 1.025016489 | W19: 0.8084234538 | X19: 1.129204357 | Y19: 1.244975979 | Z19: 0.7502743105 | AA19: 0.5131959031 | AB19: 0.5907547023 | AC19: 0.8930159226 | AD19: 0.8606889782 | AE19: 0.7541915035 | AF19: 0.7541915035 | AG19: 0.7541915035
A20: KY | B20: Kentucky | C20: 0.320152403 | D20: 0.3646686466 | E20: 0.3109581755 | F20: 0.1957540752 | G20: 0.4297133749 | H20: 0.2773749881 | I20: 0.4663964921 | J20: 0.3441297703 | K20: 0.4046295231 | L20: 0.4750184771 | M20: 0.6942529598 | N20: 0.6509769395 | O20: 0.7302702223 | P20: 0.6737743135 | Q20: 0.6472164562 | R20: 0.66001897 | S20: 0.7611128832 | T20: 0.6586684825 | U20: 0.6188996073 | V20: 0.5234675808 | W20: 0.4128552802 | X20: 0.5766754777 | Y20: 0.6357991028 | Z20: 0.3831589859 | AA20: 0.2620849722 | AB20: 0.3016936199 | AC20: 0.4560559658 | AD20: 0.4395468583 | AE20: 0.3851594644 | AF20: 0.3851594644 | AG20: 0.3851594644
A21: LA | B21: Louisiana | C21: 0.4225375467 | D21: 0.4812901413 | E21: 0.4104029936 | F21: 0.2583564762 | G21: 0.567136256 | H21: 0.3660798604 | I21: 0.6155506806 | J21: 0.4541829064 | K21: 0.5340305567 | L21: 0.6269299873 | M21: 0.916275935 | N21: 0.8591601887 | O21: 0.9638115637 | P21: 0.8892481917 | Q21: 0.8541970981 | R21: 0.871093872 | S21: 1.004517747 | T21: 0.8693114969 | U21: 0.8168244851 | V21: 0.6908731756 | W21: 0.5448869214 | X21: 0.7610970254 | Y21: 0.8391284606 | Z21: 0.5056937145 | AA21: 0.345900078 | AB21: 0.3981756214 | AC21: 0.6019032408 | AD21: 0.5801144999 | AE21: 0.5083339487 | AF21: 0.5083339487 | AG21: 0.5083339487
A22: ME | B22: Maine | C22: 0.02875134018 | D22: 0.03274912889 | E22: 0.02792565104 | F22: 0.01757972752 | G22: 0.03859048161 | H22: 0.02490970727 | I22: 0.0418848151 | J22: 0.03090463166 | K22: 0.0363378221 | L22: 0.04265911391 | M22: 0.06234750334 | N22: 0.0584610931 | O22: 0.06558203964 | P22: 0.06050841508 | Q22: 0.05812338226 | R22: 0.05927311416 | S22: 0.06835186997 | T22: 0.0591518334 | U22: 0.0555803829 | V22: 0.04701009377 | W22: 0.0370765376 | X22: 0.05178843788 | Y22: 0.05709804493 | Z22: 0.03440965691 | AA22: 0.02353658483 | AB22: 0.02709364607 | AC22: 0.0409561824 | AD22: 0.03947357923 | AE22: 0.03458931022 | AF22: 0.03458931022 | AG22: 0.03458931022
A23: MD | B23: Maryland | C23: 0.04517259311 | D23: 0.05145370841 | E23: 0.04387531377 | F23: 0.02762034302 | G23: 0.06063133449 | H23: 0.03913682158 | I23: 0.06580721796 | J23: 0.0485557314 | K23: 0.05709207437 | L23: 0.06702375551 | M23: 0.0979571172 | N23: 0.09185099388 | O23: 0.1030390505 | P23: 0.09506763848 | Q23: 0.09132040039 | R23: 0.09312679866 | S23: 0.1073908622 | T23: 0.09293624872 | U23: 0.08732497358 | V23: 0.07385978618 | W23: 0.05825270531 | X23: 0.08136726904 | Y23: 0.08970944431 | Z23: 0.05406264267 | AA23: 0.03697944384 | AB23: 0.04256811133 | AC23: 0.06434819911 | AD23: 0.06201881102 | AE23: 0.0543449045 | AF23: 0.0543449045 | AG23: 0.0543449045
A24: MA | B24: Massachusetts | C24: -0.05838135104 | D24: -0.06649910502 | E24: -0.05670473884 | F24: -0.03569670968 | G24: -0.07836032823 | H24: -0.05058068094 | I24: -0.08504967345 | J24: -0.06275374082 | K24: -0.0737861656 | L24: -0.08662193444 | M24: -0.1266004108 | N24: -0.1187088176 | O24: -0.1331683342 | P24: -0.1228660299 | Q24: -0.1180230752 | R24: -0.120357676 | S24: -0.1387926437 | T24: -0.120111408 | U24: -0.1128593598 | V24: -0.09545686461 | W24: -0.07528617251 | X24: -0.105159584 | Y24: -0.1159410651 | Z24: -0.0698709085 | AA24: -0.04779247202 | AB24: -0.05501530197 | AC24: -0.08316402807 | AD24: -0.08015351186 | AE24: -0.07023570552 | AF24: -0.07023570552 | AG24: -0.07023570552
A25: MI | B25: Michigan | C25: -0.6814419436 | D25: -0.7761944278 | E25: -0.6618721005 | F25: -0.4166610534 | G25: -0.914641635 | H25: -0.5903905428 | I25: -0.9927213698 | J25: -0.7324775865 | K25: -0.8612508481 | L25: -1.011073199 | M25: -1.47771212 | N25: -1.385599442 | O25: -1.554374588 | P25: -1.434123478 | Q25: -1.377595282 | R25: -1.404845334 | S25: -1.620022956 | T25: -1.401970832 | U25: -1.317323085 | V25: -1.114196746 | W25: -0.8787593094 | X25: -1.227449348 | Y25: -1.353293532 | Z25: -0.8155509737 | AA25: -0.5578458607 | AB25: -0.6421525647 | AC25: -0.9707116384 | AD25: -0.9355721293 | AE25: -0.8198089771 | AF25: -0.8198089771 | AG25: -0.8198089771
A26: MN | B26: Minnesota | C26: -2.098117741 | D26: -2.3898548 | E26: -2.037863401 | F26: -1.282873701 | G26: -2.816125217 | H26: -1.81777609 | I26: -3.056527907 | J26: -2.25525334 | K26: -2.651738275 | L26: -3.113032058 | M26: -4.549784533 | N26: -4.266175274 | O26: -4.785823547 | P26: -4.415577791 | Q26: -4.241530959 | R26: -4.325432192 | S26: -4.987950826 | T26: -4.316581777 | U26: -4.055956581 | V26: -3.430543103 | W26: -2.705645748 | X26: -3.779240884 | Y26: -4.16670737 | Z26: -2.511031178 | AA26: -1.71757302 | AB26: -1.977148165 | AC26: -2.988761301 | AD26: -2.880568919 | AE26: -2.524141308 | AF26: -2.524141308 | AG26: -2.524141308
A27: MS | B27: Mississippi | C27: 0.5343315615 | D27: 0.6086287828 | E27: 0.5189864761 | F27: 0.32671184 | G27: 0.7171878656 | H27: 0.46293643 | I27: 0.7784116675 | J27: 0.5743495778 | K27: 0.6753231362 | L27: 0.7928016851 | M27: 1.15870212 | N27: 1.08647482 | O27: 1.218814616 | P27: 1.124523438 | Q27: 1.080198607 | R27: 1.10156589 | S27: 1.270290748 | T27: 1.099311938 | U27: 1.032938033 | V27: 0.8736628155 | W27: 0.689051853 | X27: 0.9624663303 | Y27: 1.061143144 | Z27: 0.6394889973 | AA27: 0.4374175271 | AB27: 0.5035240138 | AC27: 0.7611534194 | AD27: 0.7335998634 | AE27: 0.6428277786 | AF27: 0.6428277786 | AG27: 0.6428277786
A28: MO | B28: Missouri | C28: 1.142715326 | D28: 1.301606508 | E28: 1.109898503 | F28: 0.69870218 | G28: 1.533769713 | H28: 0.9900305199 | I28: 1.664702231 | J28: 1.228297395 | K28: 1.444238285 | L28: 1.695476557 | M28: 2.477987015 | N28: 2.323522544 | O28: 2.606542907 | P28: 2.40489288 | Q28: 2.310100305 | R28: 2.355796132 | S28: 2.716629169 | T28: 2.350975856 | U28: 2.209029387 | V28: 1.86840524 | W28: 1.473598361 | X28: 2.058319414 | Y28: 2.269348511 | Z28: 1.367603808 | AA28: 0.9354560879 | AB28: 1.076830659 | AC28: 1.62779394 | AD28: 1.568868223 | AE28: 1.374744087 | AF28: 1.374744087 | AG28: 1.374744087
A29: MT | B29: Montana | C29: 0.07732646254 | D29: 0.08807847817 | E29: 0.07510577925 | F29: 0.04728051397 | G29: 0.1037887421 | H29: 0.06699442648 | I29: 0.1126488214 | J29: 0.08311771999 | K29: 0.09773023523 | L29: 0.1147312909 | M29: 0.1676830315 | N29: 0.1572305672 | O29: 0.1763822869 | P29: 0.1627368207 | Q29: 0.1563222971 | R29: 0.1594144903 | S29: 0.1838317198 | T29: 0.1590883069 | U29: 0.1494829239 | V29: 0.1264332108 | W29: 0.09971700372 | X29: 0.139284523 | Y29: 0.1535646618 | Z29: 0.09254445285 | AA29: 0.06330142642 | AB29: 0.07286810961 | AC29: 0.1101512724 | AD29: 0.106163825 | AE29: 0.09302762877 | AF29: 0.09302762877 | AG29: 0.09302762877
A30: NE | B30: Nebraska | C30: 1.214534585 | D30: 1.383412022 | E30: 1.179655236 | F30: 0.7426153677 | G30: 1.630166603 | H30: 1.052253592 | I30: 1.769328184 | J30: 1.305495457 | K30: 1.535008156 | L30: 1.802036666 | M30: 2.633727632 | N30: 2.469555123 | O30: 2.770363217 | P30: 2.556039556 | Q30: 2.455289301 | R30: 2.503857095 | S30: 2.887368363 | T30: 2.498733867 | U30: 2.347866112 | V30: 1.985833856 | W30: 1.566213502 | X30: 2.18768407 | Y30: 2.411976271 | Z30: 1.453557229 | AA30: 0.9942491759 | AB30: 1.14450909 | AC30: 1.73010022 | AD30: 1.667471042 | AE30: 1.461146272 | AF30: 1.461146272 | AG30: 1.461146272
A31: NV | B31: Nevada | C31: 0.4236270722 | D31: 0.4825311622 | E31: 0.4114612298 | F31: 0.259022656 | G31: 0.5685986336 | H31: 0.3670238081 | I31: 0.6171378962 | J31: 0.4553540304 | K31: 0.5354075702 | L31: 0.6285465448 | M31: 0.9186385795 | N31: 0.8613755586 | O31: 0.9662967802 | P31: 0.8915411444 | Q31: 0.8563996705 | R31: 0.8733400132 | S31: 1.007107925 | T31: 0.8715530422 | U31: 0.8189306911 | V31: 0.6926546125 | W31: 0.5462919284 | X31: 0.7630595365 | Y31: 0.8412921781 | Z31: 0.5069976606 | AA31: 0.3467919916 | AB31: 0.399202329 | AC31: 0.6034552661 | AD31: 0.5816103422 | AE31: 0.5096447027 | AF31: 0.5096447027 | AG31: 0.5096447027
A32: NH | B32: New Hampshire | C32: 0.01092673569 | D32: 0.01244606593 | E32: 0.01061293859 | F32: 0.006681046339 | G32: 0.01466602913 | H32: 0.009466751314 | I32: 0.01591801638 | J32: 0.0117450783 | K32: 0.01380992243 | L32: 0.01621228296 | M32: 0.02369471077 | N32: 0.0222177091 | O32: 0.02492397254 | P32: 0.02299577879 | Q32: 0.02208936458 | R32: 0.02252631174 | S32: 0.02597662621 | T32: 0.02248021988 | U32: 0.02112291635 | V32: 0.0178658409 | W32: 0.01409066583 | X32: 0.01968181549 | Y32: 0.02169969265 | Z32: 0.01307713741 | AA32: 0.008944906214 | AB32: 0.01029674122 | AC32: 0.01556509634 | AD32: 0.0150016439 | AE32: 0.01314541333 | AF32: 0.01314541333 | AG32: 0.01314541333
A33: NJ | B33: New Jersey | C33: 0.02232342541 | D33: 0.0254274316 | E33: 0.02168233494 | F33: 0.0136494415 | G33: 0.02996283763 | H33: 0.01934066338 | I33: 0.03252065955 | J33: 0.02399530719 | K33: 0.02821380346 | L33: 0.03312184897 | M33: 0.04840852049 | N33: 0.04539099196 | O33: 0.05091991402 | P33: 0.04698059576 | Q33: 0.04512878287 | R33: 0.0460214701 | S33: 0.05307049553 | T33: 0.04592730399 | U33: 0.0431543199 | V33: 0.03650008365 | W33: 0.02878736491 | X33: 0.04021013708 | Y33: 0.04433267941 | Z33: 0.02671671666 | AA33: 0.01827452885 | AB33: 0.02103634068 | AC33: 0.03179964054 | AD33: 0.03064850181 | AE33: 0.02685620502 | AF33: 0.02685620502 | AG33: 0.02685620502
A34: NM | B34: New Mexico | C34: -0.9002145376 | D34: -1.025386703 | E34: -0.8743619212 | F34: -0.5504274297 | G34: -1.208281504 | H34: -0.7799316648 | I34: -1.31142824 | J34: -0.9676348486 | K34: -1.137749945 | L34: -1.335671807 | M34: -1.952122181 | N34: -1.830437314 | O34: -2.053396646 | P34: -1.894539683 | Q34: -1.819863469 | R34: -1.855861978 | S34: -2.140121004 | T34: -1.852064635 | U34: -1.740241268 | V34: -1.471902512 | W34: -1.160879387 | X34: -1.62151414 | Y34: -1.787759798 | Z34: -1.077378417 | AA34: -0.7369387199 | AB34: -0.848311554 | AC34: -1.282352425 | AD34: -1.2359316 | AE34: -1.083003426 | AF34: -1.083003426 | AG34: -1.083003426
A35: NY | B35: New York | C35: 0.3124488843 | D35: 0.3558939764 | E35: 0.3034758886 | F35: 0.1910438335 | G35: 0.419373596 | H35: 0.2707007811 | I35: 0.4551740428 | J35: 0.3358493072 | K35: 0.3948933127 | L35: 0.4635885653 | M35: 0.6775478198 | N35: 0.6353131087 | O35: 0.7126984336 | P35: 0.6575619314 | Q35: 0.6316431103 | R35: 0.6441375695 | S35: 0.7427989573 | T35: 0.6428195775 | U35: 0.6040076224 | V35: 0.5108718848 | W35: 0.4029211415 | X35: 0.5627994914 | Y35: 0.6205004816 | Z35: 0.3739394004 | AA35: 0.255778674 | AB35: 0.294434257 | AC35: 0.4450823305 | AD35: 0.4289704658 | AE35: 0.3758917434 | AF35: 0.3758917434 | AG35: 0.3758917434
A36: NC | B36: North Carolina | C36: -0.3992011958 | D36: -0.45470894 | E36: -0.3877368227 | F36: -0.2440876913 | G36: -0.5358138546 | H36: -0.3458616144 | I36: -0.5815543961 | J36: -0.4290988121 | K36: -0.5045365518 | L36: -0.5923052344 | M36: -0.8656708778 | N36: -0.8117095804 | O36: -0.9105811585 | P36: -0.8401358513 | Q36: -0.8070205966 | R36: -0.8229841776 | S36: -0.9490391773 | T36: -0.8213002414 | U36: -0.7717120378 | V36: -0.6527169006 | W36: -0.5147933298 | X36: -0.7190623533 | Y36: -0.7927841858 | Z36: -0.4777647268 | AA36: -0.3267963424 | AB36: -0.3761847567 | AC36: -0.5686606916 | AD36: -0.5480753223 | AE36: -0.4802591433 | AF36: -0.4802591433 | AG36: -0.4802591433
A37: ND | B37: North Dakota | C37: 1.458702164 | D37: 1.66153038 | E37: 1.416810741 | F37: 0.8919092606 | G37: 1.957892003 | H37: 1.263796528 | I37: 2.125030347 | J37: 1.567949626 | K37: 1.843603094 | L37: 2.164314476 | M37: 3.163206913 | N37: 2.966029495 | O37: 3.327311441 | P37: 3.069900584 | Q37: 2.948895701 | R37: 3.007227466 | S37: 3.467839064 | T37: 3.001074274 | U37: 2.819876371 | V37: 2.385061881 | W37: 1.8810819 | X37: 2.627491654 | Y37: 2.896875107 | Z37: 1.745777437 | AA37: 1.194131021 | AB37: 1.374598885 | AC37: 2.077916073 | AD37: 2.002696051 | AE37: 1.754892166 | AF37: 1.754892166 | AG37: 1.754892166
A38: OH | B38: Ohio | C38: 0.7958648581 | D38: 0.9065275098 | E38: 0.7730089854 | F38: 0.4866238324 | G38: 1.068221793 | H38: 0.6895247497 | I38: 1.159412125 | J38: 0.8554700455 | K38: 1.005866003 | L38: 1.180845464 | M38: 1.725839094 | N38: 1.618259506 | O38: 1.815374182 | P38: 1.674931356 | Q38: 1.608911344 | R38: 1.640737033 | S38: 1.89204576 | T38: 1.637379865 | U38: 1.538518666 | V38: 1.301284788 | W38: 1.026314361 | X38: 1.433553967 | Y38: 1.580529017 | Z38: 0.9524925287 | AA38: 0.6515153946 | AB38: 0.7499782845 | AC38: 1.133706675 | AD38: 1.092666788 | AE38: 0.9574655059 | AF38: 0.9574655059 | AG38: 0.9574655059
A39: OK | B39: Oklahoma | C39: 0.2538068025 | D39: 0.2890978868 | E39: 0.2465179068 | F39: 0.1551877026 | G39: 0.3406633111 | H39: 0.2198942071 | I39: 0.3697445381 | J39: 0.2728153086 | K39: 0.3207776186 | L39: 0.3765797779 | M39: 0.5503820124 | N39: 0.5160741383 | O39: 0.5789353706 | P39: 0.5341471827 | Q39: 0.5130929449 | R39: 0.523242377 | S39: 0.6033864666 | T39: 0.5221717528 | U39: 0.4906442336 | V39: 0.4149887105 | W39: 0.3272987414 | X39: 0.4571702655 | Y39: 0.5040416245 | Z39: 0.3037564489 | AA39: 0.2077727612 | AB39: 0.2391732571 | AC39: 0.3615468925 | AD39: 0.3484589889 | AE39: 0.3053423657 | AF39: 0.3053423657 | AG39: 0.3053423657
A40: OR | B40: Oregon | C40: 0.520414787 | D40: 0.5927769221 | E40: 0.5054693676 | F40: 0.3182025636 | G40: 0.6985085614 | H40: 0.4508791563 | I40: 0.758137777 | J40: 0.5593905259 | K40: 0.6577342075 | L40: 0.7721530036 | M40: 1.128523487 | N40: 1.058177362 | O40: 1.187070341 | P40: 1.095234996 | Q40: 1.052064614 | R40: 1.072875382 | S40: 1.237205766 | T40: 1.070680135 | U40: 1.006034952 | V40: 0.8509080894 | W40: 0.671105357 | X40: 0.9373986986 | Y40: 1.033505454 | Z40: 0.622833376 | AA40: 0.4260248984 | AB40: 0.4904096282 | AC40: 0.7413290235 | AD40: 0.7144931054 | AE40: 0.6260851981 | AF40: 0.6260851981 | AG40: 0.6260851981
A41: PA | B41: Pennsylvania | C41: 0.6357091845 | D41: 0.724102664 | E41: 0.6174527078 | F41: 0.3886982023 | G41: 0.8532584373 | H41: 0.5507684022 | I41: 0.9260981047 | J41: 0.6833197363 | K41: 0.8034507993 | L41: 0.9432183106 | M41: 1.378540279 | N41: 1.292609443 | O41: 1.450057795 | P41: 1.337876946 | Q41: 1.285142456 | R41: 1.31056371 | S41: 1.511300386 | T41: 1.307882121 | U41: 1.228915232 | V41: 1.039421056 | W41: 0.8197842372 | X41: 1.145073078 | Y41: 1.262471639 | Z41: 0.7608179233 | AA41: 0.5204078506 | AB41: 0.5990565844 | AC41: 0.9055654848 | AD41: 0.8727842495 | AE41: 0.7647901647 | AF41: 0.7647901647 | AG41: 0.7647901647
A42: RI | B42: Rhode Island | C42: -0.003418157543 | D42: -0.003893442227 | E42: -0.003319993925 | F42: -0.002089999208 | G42: -0.00458790251 | H42: -0.002961437737 | I42: -0.004979555588 | J42: -0.00367415568 | K42: -0.004320090817 | L42: -0.005071609569 | M42: -0.007412301044 | N42: -0.006950257799 | O42: -0.007796845018 | P42: -0.007193657552 | Q42: -0.006910108407 | R42: -0.007046796461 | S42: -0.008126141544 | T42: -0.007032377769 | U42: -0.006607779111 | V42: -0.005588884052 | W42: -0.004407914409 | X42: -0.006156966543 | Y42: -0.006788209235 | Z42: -0.004090857246 | AA42: -0.002798191474 | AB42: -0.003221079438 | AC42: -0.00486915333 | AD42: -0.004692891245 | AE42: -0.00411221567 | AF42: -0.00411221567 | AG42: -0.00411221567
A43: SC | B43: South Carolina | C43: 0.1682602195 | D43: 0.1916563047 | E43: 0.1634280748 | F43: 0.1028810758 | G43: 0.2258413995 | H43: 0.145777998 | I43: 0.2451206843 | J43: 0.1808618337 | K43: 0.2126582581 | L43: 0.2496520796 | M43: 0.364873586 | N43: 0.3421293161 | O43: 0.3838029223 | P43: 0.3541107697 | Q43: 0.3401529457 | R43: 0.3468814717 | S43: 0.4000126801 | T43: 0.3461717057 | U43: 0.325270661 | V43: 0.2751151301 | W43: 0.2169814107 | X43: 0.3030792258 | Y43: 0.3341524085 | Z43: 0.2013741407 | AA43: 0.1377421332 | AB43: 0.1585589682 | AC43: 0.2396860875 | AD43: 0.2310095134 | AE43: 0.202425518 | AF43: 0.202425518 | AG43: 0.202425518
A44: SD | B44: South Dakota | C44: 0.8701238452 | D44: 0.9911119891 | E44: 0.8451353818 | F44: 0.5320287683 | G44: 1.167893324 | H44: 0.7538615638 | I44: 1.267592263 | J44: 0.9352905557 | K44: 1.099719362 | L44: 1.291025461 | M44: 1.886870282 | N44: 1.769252869 | O44: 1.984759533 | P44: 1.831212544 | Q44: 1.759032468 | R44: 1.793827685 | S44: 2.068585031 | T44: 1.790157273 | U44: 1.682071729 | V44: 1.4227025 | W44: 1.122075676 | X44: 1.56731319 | Y44: 1.728001898 | Z44: 1.041365821 | AA44: 0.7123057069 | AB44: 0.8199557777 | AC44: 1.23948834 | AD44: 1.194619184 | AE44: 1.046802807 | AF44: 1.046802807 | AG44: 1.046802807
A45: TN | B45: Tennessee | C45: 0.3724191144 | D45: 0.4242028894 | E45: 0.3617238767 | F45: 0.2277120479 | G45: 0.4998665417 | H45: 0.3226580418 | I45: 0.5425383877 | J45: 0.400310924 | K45: 0.4706876076 | L45: 0.5525679611 | M45: 0.8075937273 | N45: 0.7572526492 | O45: 0.849491014 | P45: 0.7837718248 | Q45: 0.7528782454 | R45: 0.7677708428 | S45: 0.8853689158 | T45: 0.7661998806 | U45: 0.719938509 | V45: 0.6089266581 | W45: 0.4802562667 | X45: 0.6708210487 | Y45: 0.7395969437 | Z45: 0.4457118824 | AA45: 0.3048718433 | AB45: 0.3509468293 | AC45: 0.5305097113 | AD45: 0.5113053976 | AE45: 0.4480389505 | AF45: 0.4480389505 | AG45: 0.4480389505
A46: TX | B46: Texas | C46: -0.2993893834 | D46: -0.3410185906 | E46: -0.2907914342 | F46: -0.1830587287 | G46: -0.4018449374 | H46: -0.2593862357 | I46: -0.4361490243 | J46: -0.3218117333 | K46: -0.3783878624 | L46: -0.4442118429 | M46: -0.6492281913 | N46: -0.6087587745 | O46: -0.6829096065 | P46: -0.6300776579 | Q46: -0.6052421719 | R46: -0.6172143972 | S46: -0.7117520114 | T46: -0.6159514937 | U46: -0.5787617712 | V46: -0.4895188502 | W46: -0.38608015 | X46: -0.5392760263 | Y46: -0.5945652744 | Z46: -0.3583097657 | AA46: -0.2450878315 | AB46: -0.2821277179 | AC46: -0.4264791177 | AD46: -0.4110406845 | AE46: -0.3601805062 | AF46: -0.3601805062 | AG46: -0.3601805062
A47: UT | B47: Utah | C47: 1.060982205 | D47: 1.208508639 | E47: 1.030512617 | F47: 0.6487272574 | G47: 1.424066287 | H47: 0.9192182339 | I47: 1.54563381 | J47: 1.140442986 | K47: 1.340938626 | L47: 1.574206992 | M47: 2.30074811 | N47: 2.157331765 | O47: 2.420108996 | P47: 2.232882059 | Q47: 2.144869557 | R47: 2.187296973 | S47: 2.522321299 | T47: 2.18282147 | U47: 2.051027772 | V47: 1.734766889 | W47: 1.368198712 | X47: 1.911097384 | Y47: 2.10703255 | Z47: 1.269785458 | AA47: 0.8685472576 | AB47: 0.9998099625 | AC47: 1.511365398 | AD47: 1.456654364 | AE47: 1.276415026 | AF47: 1.276415026 | AG47: 1.276415026
A48: VT | B48: Vermont | C48: 0.02824490356 | D48: 0.03217227376 | E48: 0.02743375841 | F48: 0.01727007177 | G48: 0.03791073476 | H48: 0.02447093858 | I48: 0.04114704065 | J48: 0.03036026618 | K48: 0.03569775441 | L48: 0.04190770068 | M48: 0.06124929163 | N48: 0.05743133803 | O48: 0.06442685362 | P48: 0.05944259774 | Q48: 0.05709957576 | R48: 0.05822905586 | S48: 0.06714789514 | T48: 0.05810991139 | U48: 0.05460136972 | V48: 0.0461820408 | W48: 0.03642345791 | X48: 0.0508762174 | Y48: 0.05609229909 | Z48: 0.03380355263 | AA48: 0.02312200282 | AB48: 0.02661640868 | AC48: 0.04023476523 | AD48: 0.03877827718 | AE48: 0.03398004147 | AF48: 0.03398004147 | AG48: 0.03398004147
A49: VA | B49: Virginia | C49: 0.3477632083 | D49: 0.3961186526 | E49: 0.3377760458 | F49: 0.2126364338 | G49: 0.4667730134 | H49: 0.3012965539 | I49: 0.5066197814 | J49: 0.3738084483 | K49: 0.4395258626 | L49: 0.5159853496 | M49: 0.7541272044 | N49: 0.7071189436 | O49: 0.7932506926 | P49: 0.7318824245 | Q49: 0.7030341461 | R49: 0.7169407832 | S49: 0.8267533077 | T49: 0.715473826 | U49: 0.6722751759 | V49: 0.5686128344 | W49: 0.4484610313 | X49: 0.6264095237 | Y49: 0.6906321294 | Z49: 0.4162036485 | AA49: 0.2846878859 | AB49: 0.32771249 | AC49: 0.4953874602 | AD49: 0.4774545629 | AE49: 0.4183766537 | AF49: 0.4183766537 | AG49: 0.4183766537
A50: WA | B50: Washington | C50: 0.005337524648 | D50: 0.006079691645 | E50: 0.005184240101 | F50: 0.00326357757 | G50: 0.007164105933 | H50: 0.004624347098 | I50: 0.007775680423 | J50: 0.005737271105 | K50: 0.00674591236 | L50: 0.007919424643 | M50: 0.01157446344 | N50: 0.01085297323 | O50: 0.01217493692 | P50: 0.01123304705 | Q50: 0.01079027911 | R50: 0.01100372038 | S50: 0.01268914035 | T50: 0.01098120529 | U50: 0.01031818558 | V50: 0.008727159592 | W50: 0.00688305074 | X50: 0.009614232308 | Y50: 0.010599931 | Z50: 0.006387959334 | AA50: 0.004369434637 | AB50: 0.005029783057 | AC50: 0.007603284983 | AD50: 0.007328048042 | AE50: 0.006421310962 | AF50: 0.006421310962 | AG50: 0.006421310962
A51: WV | B51: West Virginia | C51: 0.1805878945 | D51: 0.2056981064 | E51: 0.1754017201 | F51: 0.1104187129 | G51: 0.2423877905 | H51: 0.156458501 | I51: 0.2630795824 | J51: 0.1941127727 | K51: 0.2282387792 | L51: 0.2679429728 | M51: 0.3916062446 | N51: 0.3671956036 | O51: 0.4119224488 | P51: 0.3800548847 | Q51: 0.3650744333 | R51: 0.3722959284 | S51: 0.4293198231 | T51: 0.3715341609 | U51: 0.34910179 | V51: 0.2952715874 | W51: 0.2328786699 | X51: 0.3252844874 | Y51: 0.3586342636 | Z51: 0.2161279249 | AA51: 0.1478338843 | AB51: 0.1701758759 | AC51: 0.257246817 | AD51: 0.247934549 | AE51: 0.2172563319 | AF51: 0.2172563319 | AG51: 0.2172563319
A52: WI | B52: Wisconsin | C52: -0.7324438581 | D52: -0.8342880076 | E52: -0.7114093276 | F52: -0.4478456783 | G52: -0.9830971725 | H52: -0.6345777964 | I52: -1.067020715 | J52: -0.7872992183 | K52: -0.9257103997 | L52: -1.086746071 | M52: -1.588310166 | N52: -1.489303396 | O52: -1.670710368 | P52: -1.541459171 | Q52: -1.480700172 | R52: -1.509989731 | S52: -1.74127213 | T52: -1.506900089 | U52: -1.415916957 | V52: -1.197587808 | W52: -0.9445292662 | X52: -1.3193167 | Y52: -1.45457958 | Z52: -0.876590159 | AA52: -0.5995973366 | AB52: -0.6902139007 | AC52: -1.043363685 | AD52: -1.005594191 | AE52: -0.8811668488 | AF52: -0.8811668488 | AG52: -0.8811668488
A53: WY | B53: Wyoming | C53: 0.0550268888 | D53: 0.06267821473 | E53: 0.053446611 | F53: 0.03364565634 | G53: 0.07385791851 | H53: 0.04767442781 | I53: 0.08016290887 | J53: 0.05914805081 | K53: 0.06954657707 | L53: 0.08164483125 | M53: 0.1193262335 | N53: 0.1118880737 | O53: 0.1255167787 | P53: 0.1158064218 | Q53: 0.1112417325 | R53: 0.1134421923 | S53: 0.1308179279 | T53: 0.1132100743 | U53: 0.1063747126 | V53: 0.08997212604 | W53: 0.07096039693 | X53: 0.09911734876 | Y53: 0.1092793501 | Z53: 0.06585628191 | AA53: 0.04504642315 | AB53: 0.0518542454 | AC53: 0.07838560847 | AD53: 0.07554806981 | AE53: 0.0662001185 | AF53: 0.0662001185 | AG53: 0.0662001185
A54: US | B54: Total | C54: 9.73474499 | D54: 11.08833245 | E54: 9.455179822 | F54: 5.952215211 | G54: 13.06612127 | H54: 8.434029389 | I54: 14.18153002 | J54: 10.46381513 | K54: 12.30340671 | L54: 14.44369524 | M54: 21.10986973 | N54: 19.79399324 | O54: 22.20503211 | P54: 20.48718379 | Q54: 19.67964974 | R54: 20.06893061 | S54: 23.14285246 | T54: 20.02786688 | U54: 18.81863074 | V54: 15.9168676 | W54: 12.55352399 | X54: 17.53473866 | Y54: 19.33248688 | Z54: 11.65056074 | AA54: 7.969112041 | AB54: 9.173476217 | AC54: 13.86710981 | AD54: 13.36512404 | AE54: 11.71138849 | AF54: 11.71138849 | AG54: 11.71138849
A56: Source: CroplandGrassland_Carbon_1990-2018 spreadsheet provided by U.S. EPA
A57: National estimates are apportioned to the state-level using a percentage breakdown for 2015 estimates.

Sheet Uncertainty
A2: Uncertainty Associated With Land Use, Land-Use Change, and Forestry Emissions Estimates
R9: `

Sheet FRF Carbon Flux
A1: =StateID -> XX | C1: 1990 | D1: 1991 | E1: 1992 | F1: 1993 | G1: 1994 | H1: 1995 | I1: 1996 | J1: 1997 | K1: 1998 | L1: 1999 | M1: 2000 | N1: 2001 | O1: 2002 | P1: 2003 | Q1: 2004 | R1: 2005 | S1: 2006 | T1: 2007 | U1: 2008 | V1: 2009 | W1: 2010 | X1: 2011 | Y1: 2012 | Z1: 2013 | AA1: 2014 | AB1: 2015 | AC1: 2016 | AD1: 2017 | AE1: 2018 | AF1: 2019 | AG1: 2020
B2: Aboveground Biomass | C2: =VLOOKUP($A$1,AboveGroundData_FRF,C1-1987,FALSE) ->  | D2: =VLOOKUP($A$1,AboveGroundData_FRF,D1-1987,FALSE) -> 
B3: Belowground Biomass | C3: =VLOOKUP($A$1,BelowGroundData_FRF, C1-1987,FALSE) -> 
B4: Deadwood | C4: =VLOOKUP($A$1,DeadWoodData_FRF,C1-1987,FALSE) -> 
B5: Litter | C5: =VLOOKUP($A$1,LitterData_FRF,C1-1987,FALSE) ->  | D5: =VLOOKUP($A$1,LitterData_FRF,D1-1987,FALSE) ->  | X5: =VLOOKUP($A$1,LitterData_FRF,X1-1987,FALSE) -> 
B6: Soil (Mineral) | C6: =VLOOKUP($A$1,SoilMineralData_FRF,C1-1987,FALSE) ->  | D6: =VLOOKUP($A$1,SoilMineralData_FRF,D1-1987,FALSE) ->  | X6: =VLOOKUP($A$1,SoilMineralData_FRF,X1-1987,FALSE) -> 
B7: Soil (Organic) | C7: =VLOOKUP($A$1,SoilOrganicData_FRF,C1-1987,FALSE) -> 
B8: Drained Organic Soil | C8: =VLOOKUP($A$1,DrainedOrganicData_FRF,C1-1987,FALSE) -> 
